Workbook

Sheet Instructions
A1: Clean Water Optimization Tool
A2: Eastern Shore, Maryland Version 1.01
A3: December 2014
A4: Updated April 2015
A6: What is the Clean Water Optimization Tool?
A7: The Clean Water Optimization Tool (Tool) is a planning tool for Maryland Eastern Shore communities to develop cost-effective stormwater best management practice
A8: (BMP) scenarios for meeting Watershed Implementation Plan (WIP) goals. For each scenario, the Tool provides the number of units treated by each selected BMP,
A9: an estimate of the associated annual nitrogen, phosphorus and sediment load reductions and the total cost, so that users can compare results across scenarios.
A11: The Tool focuses solely on the stormwater sector, and does not include BMPs for agriculture, forest or wastewater at this time, although the Tool does provide
A12: the option to track loads from agricultural land that are treated by BMPs located on urban land. The results are for planning purposes only and should not be
A13: used to develop detailed budgets or capital improvement project plans. Communities are encouraged to conduct desktop and field assessments to identify
A14: specific locations for BMPs to increase the reliability of the Tool results. Guidance on conducting these assessments is provided in the User Guide.
A16: How is the Tool Different From the Maryland Assessment and Scenario Tool (MAST)?
A17: The Tool includes the following features that are not included in MAST:
A18: l | B18: Incorporates a full suite of BMPs, including ones not currently credited in the Chesapeake Watershed Model (credits for some of these BMPs are currently
B19: under development, while others are not yet available but show promise for significantly reducing the costs to achieve the WIP goals)
A20: l | B20: Allows the user to optimize BMP selection based on cost-effectiveness for a particular pollutant
A21: l | B21: Incorporates assumptions about the practicality of installing each type of BMP, so that the resulting scenarios are realistic and achieveable
A22: l | B22: Includes cost data that has been adjusted for the Eastern Shore counties
A23: l | B23: Scenarios can be run at a user-defined scale
A25: The Tool relies on much of the same data used in MAST, including land use/ pollutant loading rates and pollutant reduction credits (for those BMPs included in
A26: the Bay Model). To calculate and receive credit for BMP implementation, communities will still need to use MAST to develop scenarios and report BMPs.
A28: Required Data Inputs
A29: To develop a BMP scenario using the Tool, it is necessary to enter the County of interest, timeframe for meeting the pollutant reduction goals (2017 or 2025),
A30: NPDES regulatory status, the pollutant on which to base the optimization, the maximum practical number of units that can be treated by each BMP and the
A31: impervious area treated by stormwater retrofits. It is recommended that the maximum practical units treated be developed by calculating the total available units
A32: in the county (i.e., acres of pervious land, linear feet of stream) and then discounting this number to account for limitations on implementation feasibilty, such as
A33: landowner willingness to install BMPs and site constraints. The User Guide provides some general guidance on this process.
A35: Optional data inputs include: user-entered load reduction targets (e.g., for running scenarios at a scale other than the county scale), program budget,
A36: identification of priority BMPs to receive higher weight in the optimization process, estimated pollutant reductions for BMPs that were installed between 2013
A37: and the present or are in the pipeline for near-term installation, and the willingness to pay and maximum amount to spend on cross sector trading.
A39: Most defaults in the Tool can be overrided when better local data is available, for example, BMP costs and assumptions regarding drainage area impervious cover
A40: for different BMP types.
A42: How to Use the Tool
A43: Follow the steps below. In each worksheet, input data into the YELLOW cells, which are required inputs. BLUE cells are optional inputs or contain defaults that can
A44: be overrided if desired. Results cells are shown in PURPLE. BMPs that are credited in the Chesapeake Bay Watershed Model are in GREEN, and BMPs that are not
A45: currently given credit are in GRAY. A complete User Manual is available at www.cwp.org
A47: 1. | B47: Use the Scenario Setup sheet to set up each scenario; the maximum practical number of units that can be treated by each BMP is a required input;
B48: the user Guide provides instructions on how to derive this estimate
A49: 2. | B49: Review the default BMP costs in the BMP Costs sheet and customize with locally available data if desired
A50: 3. | B50: Use the Optimization Results sheet to select which pollutant to optimize on, and view the scenario results to determine how much of the required load
B51: reduction can be met with the scenario and the total cost.
A52: 4. | B52: Charts are provided in the Cost Result Chart, Nitrogen Result Chart, Phosphorus Result Chart and Sediment Result Chart sheets.
A54: Because results display the cost per pound of each BMP, the user can then go back and make adjustments (if possible) to the maximum practical number of units
A55: treated for BMPs that are highly cost-effective. For example, a county may decide to put additional resources towards homeowner outreach for an urban nutrient
A56: management program to greatly increase the number of units that can practically be treated and ultimately reduce the cost per pound to achieve the pollutant
A57: reduction goals.
A59: Funding to develop the Clean Water Optimization Tool was provided by the Town Creek Foundation

Sheet Scenario Setup
A1: Clean Water Optimization Tool Scenario Setup | D1: Required User Input
D2: Optional Input Cells
D3: Results Cells
A4: 1. Community Information:
A5: Enter the required inputs in the yellow cells below. Required pollutant load reductions for urban areas will be calculated automatically based on the County selected.
A6: Optionally, specific pollutant reductions goals may be entered in the blue cells if the scenario is being run for a municipality or at the watershed scale.
C8: County of Interest | D8: Allegany County | J8: County Number (alphabetical) | K8: =MATCH(D8,MarylandCountyList!A2:A25) -> 1
C9: Are you an NPDES regulated community? | D9: No
C10: Scenario Starting Year (Use 2009 for WIP scenarios) | D10: 2013
C11: Scenario Endpoint | D11: 2025
C13: Required Pollutant Load Reductions:
C14: Pollutant | D14: Total County Urban Load (lbs/yr) | E14: County Reduction Goal (lbs reduced/yr) | F14: Reduction Goal (lbs/yr) for scale other than county
C15: TN | D15: =INDEX(CurrentLoad_Goals[],MATCH($D$8,CurrentLoad_Goals[County],0),IF(D10=2009,3,4)) -> 76023.48407 | E15: =INDEX(CurrentLoad_Goals[],MATCH($D$8,CurrentLoad_Goals[County],0),IF(AND(D10=2009,D11=2017),15,IF(AND(D10=2009,D11=2025),16,IF(AND(D10=2013,D11=2017),17,18)))) -> 8513.530245
C16: TP | D16: =INDEX(CurrentLoad_Goals[],MATCH($D$8,CurrentLoad_Goals[County],0),IF(D10=2009,7,8)) -> 23201.36746 | E16: =INDEX(CurrentLoad_Goals[],MATCH($D$8,CurrentLoad_Goals[County],0),IF(AND(D10=2009,D11=2017),19,IF(AND(D10=2009,D11=2025),20,IF(AND(D10=2013,D11=2017),21,22)))) -> 3898.624894
C17: TSS | D17: =INDEX(CurrentLoad_Goals[],MATCH($D$8,CurrentLoad_Goals[County],0),IF(D10=2009,11,12))*2000 -> 4.802508111e+10 | E17: =INDEX(CurrentLoad_Goals[],MATCH($D$8,CurrentLoad_Goals[County],0),IF(AND(D10=2009,D11=2017),23,IF(AND(D10=2009,D11=2025),24,IF(AND(D10=2013,D11=2017),25,26)))) -> 
J18: Practices to add
A19: 2. Best Management Practices: | J19: Atmospheric deposition reduction - would be a lbs/year (maybe assume a 50% washoff rate?)
A20: For each BMP below, enter the maximum practical number of units that can be treated in the jurisdiction or watershed of interest. | J20: Ditch management (vegetation, cleaning and tillage, and removing detritus (like gross solids))
A21: If you do not want to include a particular BMP in the scenario, enter a ZERO in the Maximum Practical Units Treated column. | J21: Turf management (increased grass height)- enter as a CN reduction (i.e. 80 to 78?)
A22: For some BMPs, you must also estimate the average percent imperviousness in the drainage area. | J22: Under pier reef balls (likely be a lbs/year/ball reduction in N, P, and sediment) - numbers from Bill Wolinski
A23: You may also enter the % agricultural land in the drainage area for certain BMPs if applicable. There is currenlty no mechanism for counting these reductions towards
A24: the urban sector targets but the Tool will track these reductions separately so that opportunities to receive credit or trade with other sectors can be further explored.
A25: See the User Guide for instructions on deriving estimates of maximum practical number of units and impervious area treated. | J25: Reef reconstruction (credit the same way as reef balls, but units would be per linear foot? per square foot?)
J26: Floating wetlands (stormwater pond and off-shore) - use floating wetland numbers developed for Easton as a place holder for stormwater ponds
A27: **Not sure where to begin? Try this.**
A28: Enter your budget for stormwater BMP implementation: | E28: per year | F28: Select Nutrient: | G28: TN
A30: The table below will populate with the number of units that can potentially be treated with the given budget, for the top 5 most cost-effective practices for N or P removal
A31: Note that full implementation of the number of units suggested can only occur for ONE of the BMPs shown with the available budget
C32: =IF(G28="TP","Top BMPs for Phosphorus","Top BMPs for Nitrogen") -> Top BMPs for Nitrogen
C33: Suggested Practices | E33: Units Treated* | F33: Units* *
C34: =IF($C$32="Nitrogen",IF($D$28>0,'BMP Costs'!J24,""),IF($D$28>0,'BMP Costs'!J32,"")) ->  | E34: =IF($C$32="Nitrogen",IF($D$28>0,$D$28/'BMP Costs'!K24,""),IF($D$28>0,$D$28/'BMP Costs'!K32,"")) ->  | F34: =IF($C$32="Nitrogen",IF($D$28>0,'BMP Costs'!L24,""),IF($D$28>0,'BMP Costs'!L32,"")) -> 
C35: =IF($C$32="Nitrogen",IF($D$28>0,'BMP Costs'!J25,""),IF($D$28>0,'BMP Costs'!J33,"")) ->  | E35: =IF($C$32="Nitrogen",IF($D$28>0,$D$28/'BMP Costs'!K25,""),IF($D$28>0,$D$28/'BMP Costs'!K33,"")) ->  | F35: =IF($C$32="Nitrogen",IF($D$28>0,'BMP Costs'!L25,""),IF($D$28>0,'BMP Costs'!L33,"")) -> 
C36: =IF($C$32="Nitrogen",IF($D$28>0,'BMP Costs'!J26,""),IF($D$28>0,'BMP Costs'!J34,"")) ->  | E36: =IF($C$32="Nitrogen",IF($D$28>0,$D$28/'BMP Costs'!K26,""),IF($D$28>0,$D$28/'BMP Costs'!K34,"")) ->  | F36: =IF($C$32="Nitrogen",IF($D$28>0,'BMP Costs'!L26,""),IF($D$28>0,'BMP Costs'!L34,"")) -> 
C37: =IF($C$32="Nitrogen",IF($D$28>0,'BMP Costs'!J27,""),IF($D$28>0,'BMP Costs'!J35,"")) ->  | E37: =IF($C$32="Nitrogen",IF($D$28>0,$D$28/'BMP Costs'!K27,""),IF($D$28>0,$D$28/'BMP Costs'!K35,"")) ->  | F37: =IF($C$32="Nitrogen",IF($D$28>0,'BMP Costs'!L27,""),IF($D$28>0,'BMP Costs'!L35,"")) -> 
C38: =IF($C$32="Nitrogen",IF($D$28>0,'BMP Costs'!J28,""),IF($D$28>0,'BMP Costs'!J36,"")) ->  | E38: =IF($C$32="Nitrogen",IF($D$28>0,$D$28/'BMP Costs'!K28,""),IF($D$28>0,$D$28/'BMP Costs'!K36,"")) ->  | F38: =IF($C$32="Nitrogen",IF($D$28>0,'BMP Costs'!L28,""),IF($D$28>0,'BMP Costs'!L36,"")) -> 
A39: * Units Treated is based only on the cost of the practice and does not account for physical and practical constraints on implementation
A40: **Number of units shown is for BMPs that treat a 100% impervious drainage area
A42: To calculate the nutrient and sediment reductions associated with each BMP, enter the number of units treated from above in the Maximum Practical Units Treated
A43: column below, go to the Optimization Results page, select a pollutant to optimize on and click on Update Results.
A45: BMP Key: | B45: BMPs that receive Chesapeake Bay Program credit | D45: BMPs that do not currently receive Chesapeake Bay Program credit
Y46: Agricultural Reductions
B47: Stormwater Retrofits | D47: Units | E47: Maximum Practical Units Treated | F47: Estimated Impervious Cover % in Drainage Area | G47: Estimated Agricultural Land % in Drainage Area | H47: Pervious | I47: Runoff Equivalent Impervious Cover | J47: Water Treated (per impervious acre) | K47: TN Reduction | L47: TP Reduction | M47: TSS Reduction | N47: Practice Treatment Type | Q47: TN Reduced | R47: TP Reduced | S47: TSS Reduced | V47: Initial Estimated Cost | Y47: TN Reduced | Z47: TP Reduced | AA47: TSS Reduced | AB47: Units Treated
I48: acres | J48: inches | K48: % | L48: % | M48: % | Q48: lbs | R48: lbs | S48: lbs | V48: $ (based on equivalent impervious area treated)
B49: Pavement/Impervious Cover BMPs
C50: Permeable Pavement | D50: Acres | E50: 0 | F50: 1 | G50: 0 | H50: =IF(F50-G50>1,0,1-(F50-G50)) -> 0 | I50: =(E50*F50*43560*0.95*J50/12+E50*(1-F50)*43560*0.22*J50/12)/0.95/(J50/12)/43560 -> 0 | J50: 1 | K50: =IF(N50="RR",IF((0.0308*(J50^5)-0.2562*(J50^4)+0.8634*(J50^3)-1.5285*(J50^2)+1.501*J50-0.013)>0.7,0.7,IF((0.0308*(J50^5)-0.2562*(J50^4)+0.8634*(J50^3)-1.5285*(J50^2)+1.501*J50-0.013)<0,0,(0.0308*(J50^5)-0.2562*(J50^4)+0.8634*(J50^3)-1.5285*(J50^2)+1.501*J50-0.013))),IF((0.0152*(J50^5)-0.131*(J50^4)+0.4581*(J50^3)-0.8418*(J50^2)+0.8536*J50-0.0046)>0.65,0.65,IF((0.0152*(J50^5)-0.131*(J50^4)+0.4581*(J50^3)-0.8418*(J50^2)+0.8536*J50-0.0046)<0,0,(0.0152*(J50^5)-0.131*(J50^4)+0.4581*(J50^3)-0.8418*(J50^2)+0.8536*J50-0.0046)))) -> 0.5975 | L50: =IF(N50="RR",IF((0.0304*(J50^5)-0.2619*(J50^4)+0.9161*(J50^3)-1.6837*(J50^2)+1.7072*J50-0.0091)>0.85,0.85,IF((0.0304*(J50^5)-0.2619*(J50^4)+0.9161*(J50^3)-1.6837*(J50^2)+1.7072*J50-0.0091)<0,0,(0.0304*(J50^5)-0.2619*(J50^4)+0.9161*(J50^3)-1.6837*(J50^2)+1.7072*J50-0.0091))),IF((0.0239*(J50^5)-0.2058*(J50^4)+0.7198*(J50^3)-1.3229*(J50^2)+1.3414*J50-0.0072)>0.65,0.65,IF((0.0239*(J50^5)-0.2058*(J50^4)+0.7198*(J50^3)-1.3229*(J50^2)+1.3414*J50-0.0072)<0,0,(0.0239*(J50^5)-0.2058*(J50^4)+0.7198*(J50^3)-1.3229*(J50^2)+1.3414*J50-0.0072)))) -> 0.699 | M50: =IF(N50="RR",IF((0.0326*(J50^5)-0.2806*(J50^4)+0.9816*(J50^3)-1.8039*(J50^2)+1.8292*J50-0.0098)>0.85,0.85,IF((0.0326*(J50^5)-0.2806*(J50^4)+0.9816*(J50^3)-1.8039*(J50^2)+1.8292*J50-0.0098)<0,0,(0.0326*(J50^5)-0.2806*(J50^4)+0.9816*(J50^3)-1.8039*(J50^2)+1.8292*J50-0.0098))),IF((0.0304*(J50^5)-0.2619*(J50^4)+0.9161*(J50^3)-1.6837*(J50^2)+1.7072*J50-0.0091)>0.8,0.8,IF((0.0304*(J50^5)-0.2619*(J50^4)+0.9161*(J50^3)-1.6837*(J50^2)+1.7072*J50-0.0091)<0,0,(0.0304*(J50^5)-0.2619*(J50^4)+0.9161*(J50^3)-1.6837*(J50^2)+1.7072*J50-0.0091)))) -> 0.7491 | N50: RR | Q50: =(SUMIFS(Selected[TN lbs/ac],Selected[Landuse],IF($D$9="Yes","County Phase I/II MS4 Pervious","nonregulated pervious developed"))*($E50-$F50*$E50)+SUMIFS(Selected[TN lbs/ac],Selected[Landuse],IF($D$9="Yes","County Phase I/II MS4 Impervious","nonregulated impervious developed"))*($F50*$E50))*$K50 -> 0 | R50: =(SUMIFS(Selected[TP lbs/ac],Selected[Landuse],IF($D$9="Yes","County Phase I/II MS4 Pervious","nonregulated pervious developed"))*($E50-$F50*$E50)+SUMIFS(Selected[TP lbs/ac],Selected[Landuse],IF($D$9="Yes","County Phase I/II MS4 Impervious","nonregulated impervious developed"))*($F50*$E50))*$L50 -> 0 | S50: =(SUMIFS(Selected[TSS lbs/ac],Selected[Landuse],IF($D$9="Yes","County Phase I/II MS4 Pervious","nonregulated pervious developed"))*($E50-$F50*$E50)+SUMIFS(Selected[TSS lbs/ac],Selected[Landuse],IF($D$9="Yes","County Phase I/II MS4 Impervious","nonregulated impervious developed"))*($F50*$E50))*$M50 -> 0 | V50: =SUMIFS(CurrentBMP[Average Annual Cost/Unit (used in scenario calculations)],CurrentBMP[Practice],C50)*I50 -> 0
C51: Permeable Pavers | D51: Acres | E51: 0 | F51: 1 | H51: =IF(F51-G51>1,0,1-(F51-G51)) -> 0 | I51: =(E51*F51*43560*0.95*J51/12+E51*(1-F51)*43560*0.22*J51/12)/0.95/(J51/12)/43560 -> 0 | J51: 1 | K51: =IF(N51="RR",IF((0.0308*(J51^5)-0.2562*(J51^4)+0.8634*(J51^3)-1.5285*(J51^2)+1.501*J51-0.013)>0.7,0.7,IF((0.0308*(J51^5)-0.2562*(J51^4)+0.8634*(J51^3)-1.5285*(J51^2)+1.501*J51-0.013)<0,0,(0.0308*(J51^5)-0.2562*(J51^4)+0.8634*(J51^3)-1.5285*(J51^2)+1.501*J51-0.013))),IF((0.0152*(J51^5)-0.131*(J51^4)+0.4581*(J51^3)-0.8418*(J51^2)+0.8536*J51-0.0046)>0.65,0.65,IF((0.0152*(J51^5)-0.131*(J51^4)+0.4581*(J51^3)-0.8418*(J51^2)+0.8536*J51-0.0046)<0,0,(0.0152*(J51^5)-0.131*(J51^4)+0.4581*(J51^3)-0.8418*(J51^2)+0.8536*J51-0.0046)))) -> 0.5975 | L51: =IF(N51="RR",IF((0.0304*(J51^5)-0.2619*(J51^4)+0.9161*(J51^3)-1.6837*(J51^2)+1.7072*J51-0.0091)>0.85,0.85,IF((0.0304*(J51^5)-0.2619*(J51^4)+0.9161*(J51^3)-1.6837*(J51^2)+1.7072*J51-0.0091)<0,0,(0.0304*(J51^5)-0.2619*(J51^4)+0.9161*(J51^3)-1.6837*(J51^2)+1.7072*J51-0.0091))),IF((0.0239*(J51^5)-0.2058*(J51^4)+0.7198*(J51^3)-1.3229*(J51^2)+1.3414*J51-0.0072)>0.65,0.65,IF((0.0239*(J51^5)-0.2058*(J51^4)+0.7198*(J51^3)-1.3229*(J51^2)+1.3414*J51-0.0072)<0,0,(0.0239*(J51^5)-0.2058*(J51^4)+0.7198*(J51^3)-1.3229*(J51^2)+1.3414*J51-0.0072)))) -> 0.699 | M51: =IF(N51="RR",IF((0.0326*(J51^5)-0.2806*(J51^4)+0.9816*(J51^3)-1.8039*(J51^2)+1.8292*J51-0.0098)>0.85,0.85,IF((0.0326*(J51^5)-0.2806*(J51^4)+0.9816*(J51^3)-1.8039*(J51^2)+1.8292*J51-0.0098)<0,0,(0.0326*(J51^5)-0.2806*(J51^4)+0.9816*(J51^3)-1.8039*(J51^2)+1.8292*J51-0.0098))),IF((0.0304*(J51^5)-0.2619*(J51^4)+0.9161*(J51^3)-1.6837*(J51^2)+1.7072*J51-0.0091)>0.8,0.8,IF((0.0304*(J51^5)-0.2619*(J51^4)+0.9161*(J51^3)-1.6837*(J51^2)+1.7072*J51-0.0091)<0,0,(0.0304*(J51^5)-0.2619*(J51^4)+0.9161*(J51^3)-1.6837*(J51^2)+1.7072*J51-0.0091)))) -> 0.7491 | N51: RR | Q51: =(SUMIFS(Selected[TN lbs/ac],Selected[Landuse],IF($D$9="Yes","County Phase I/II MS4 Pervious","nonregulated pervious developed"))*($E51-$F51*$E51)+SUMIFS(Selected[TN lbs/ac],Selected[Landuse],IF($D$9="Yes","County Phase I/II MS4 Impervious","nonregulated impervious developed"))*($F51*$E51))*$K51 -> 0 | R51: =(SUMIFS(Selected[TP lbs/ac],Selected[Landuse],IF($D$9="Yes","County Phase I/II MS4 Pervious","nonregulated pervious developed"))*($E51-$F51*$E51)+SUMIFS(Selected[TP lbs/ac],Selected[Landuse],IF($D$9="Yes","County Phase I/II MS4 Impervious","nonregulated impervious developed"))*($F51*$E51))*$L51 -> 0 | S51: =(SUMIFS(Selected[TSS lbs/ac],Selected[Landuse],IF($D$9="Yes","County Phase I/II MS4 Pervious","nonregulated pervious developed"))*($E51-$F51*$E51)+SUMIFS(Selected[TSS lbs/ac],Selected[Landuse],IF($D$9="Yes","County Phase I/II MS4 Impervious","nonregulated impervious developed"))*($F51*$E51))*$M51 -> 0 | V51: =SUMIFS(CurrentBMP[Average Annual Cost/Unit (used in scenario calculations)],CurrentBMP[Practice],C51)*I51 -> 0
B53: Rooftop BMPs
C54: Rainwater Harvesting | D54: Acres | E54: 0 | F54: 1 | H54: =IF(F54-G54>1,0,1-(F54-G54)) -> 0 | I54: =(E54*F54*43560*0.95*J54/12+E54*(1-F54)*43560*0.22*J54/12)/0.95/(J54/12)/43560 -> 0 | J54: 1 | K54: =IF(N54="RR",IF((0.0308*(J54^5)-0.2562*(J54^4)+0.8634*(J54^3)-1.5285*(J54^2)+1.501*J54-0.013)>0.7,0.7,IF((0.0308*(J54^5)-0.2562*(J54^4)+0.8634*(J54^3)-1.5285*(J54^2)+1.501*J54-0.013)<0,0,(0.0308*(J54^5)-0.2562*(J54^4)+0.8634*(J54^3)-1.5285*(J54^2)+1.501*J54-0.013))),IF((0.0152*(J54^5)-0.131*(J54^4)+0.4581*(J54^3)-0.8418*(J54^2)+0.8536*J54-0.0046)>0.65,0.65,IF((0.0152*(J54^5)-0.131*(J54^4)+0.4581*(J54^3)-0.8418*(J54^2)+0.8536*J54-0.0046)<0,0,(0.0152*(J54^5)-0.131*(J54^4)+0.4581*(J54^3)-0.8418*(J54^2)+0.8536*J54-0.0046)))) -> 0.5975 | L54: =IF(N54="RR",IF((0.0304*(J54^5)-0.2619*(J54^4)+0.9161*(J54^3)-1.6837*(J54^2)+1.7072*J54-0.0091)>0.85,0.85,IF((0.0304*(J54^5)-0.2619*(J54^4)+0.9161*(J54^3)-1.6837*(J54^2)+1.7072*J54-0.0091)<0,0,(0.0304*(J54^5)-0.2619*(J54^4)+0.9161*(J54^3)-1.6837*(J54^2)+1.7072*J54-0.0091))),IF((0.0239*(J54^5)-0.2058*(J54^4)+0.7198*(J54^3)-1.3229*(J54^2)+1.3414*J54-0.0072)>0.65,0.65,IF((0.0239*(J54^5)-0.2058*(J54^4)+0.7198*(J54^3)-1.3229*(J54^2)+1.3414*J54-0.0072)<0,0,(0.0239*(J54^5)-0.2058*(J54^4)+0.7198*(J54^3)-1.3229*(J54^2)+1.3414*J54-0.0072)))) -> 0.699 | M54: =IF(N54="RR",IF((0.0326*(J54^5)-0.2806*(J54^4)+0.9816*(J54^3)-1.8039*(J54^2)+1.8292*J54-0.0098)>0.85,0.85,IF((0.0326*(J54^5)-0.2806*(J54^4)+0.9816*(J54^3)-1.8039*(J54^2)+1.8292*J54-0.0098)<0,0,(0.0326*(J54^5)-0.2806*(J54^4)+0.9816*(J54^3)-1.8039*(J54^2)+1.8292*J54-0.0098))),IF((0.0304*(J54^5)-0.2619*(J54^4)+0.9161*(J54^3)-1.6837*(J54^2)+1.7072*J54-0.0091)>0.8,0.8,IF((0.0304*(J54^5)-0.2619*(J54^4)+0.9161*(J54^3)-1.6837*(J54^2)+1.7072*J54-0.0091)<0,0,(0.0304*(J54^5)-0.2619*(J54^4)+0.9161*(J54^3)-1.6837*(J54^2)+1.7072*J54-0.0091)))) -> 0.7491 | N54: RR | Q54: =(SUMIFS(Selected[TN lbs/ac],Selected[Landuse],IF($D$9="Yes","County Phase I/II MS4 Pervious","nonregulated pervious developed"))*($E54-$F54*$E54)+SUMIFS(Selected[TN lbs/ac],Selected[Landuse],IF($D$9="Yes","County Phase I/II MS4 Impervious","nonregulated impervious developed"))*($F54*$E54))*$K54 -> 0 | R54: =(SUMIFS(Selected[TP lbs/ac],Selected[Landuse],IF($D$9="Yes","County Phase I/II MS4 Pervious","nonregulated pervious developed"))*($E54-$F54*$E54)+SUMIFS(Selected[TP lbs/ac],Selected[Landuse],IF($D$9="Yes","County Phase I/II MS4 Impervious","nonregulated impervious developed"))*($F54*$E54))*$L54 -> 0 | S54: =(SUMIFS(Selected[TSS lbs/ac],Selected[Landuse],IF($D$9="Yes","County Phase I/II MS4 Pervious","nonregulated pervious developed"))*($E54-$F54*$E54)+SUMIFS(Selected[TSS lbs/ac],Selected[Landuse],IF($D$9="Yes","County Phase I/II MS4 Impervious","nonregulated impervious developed"))*($F54*$E54))*$M54 -> 0 | V54: =SUMIFS(CurrentBMP[Average Annual Cost/Unit (used in scenario calculations)],CurrentBMP[Practice],C54)*I54 -> 0
C55: Stormwater Planter | D55: Acres | E55: 0 | F55: 1 | H55: 0 | I55: =(E55*F55*43560*0.95*J55/12+E55*(1-F55)*43560*0.22*J55/12)/0.95/(J55/12)/43560 -> 0 | J55: 1 | K55: =IF(N55="RR",IF((0.0308*(J55^5)-0.2562*(J55^4)+0.8634*(J55^3)-1.5285*(J55^2)+1.501*J55-0.013)>0.7,0.7,IF((0.0308*(J55^5)-0.2562*(J55^4)+0.8634*(J55^3)-1.5285*(J55^2)+1.501*J55-0.013)<0,0,(0.0308*(J55^5)-0.2562*(J55^4)+0.8634*(J55^3)-1.5285*(J55^2)+1.501*J55-0.013))),IF((0.0152*(J55^5)-0.131*(J55^4)+0.4581*(J55^3)-0.8418*(J55^2)+0.8536*J55-0.0046)>0.65,0.65,IF((0.0152*(J55^5)-0.131*(J55^4)+0.4581*(J55^3)-0.8418*(J55^2)+0.8536*J55-0.0046)<0,0,(0.0152*(J55^5)-0.131*(J55^4)+0.4581*(J55^3)-0.8418*(J55^2)+0.8536*J55-0.0046)))) -> 0.5975 | L55: =IF(N55="RR",IF((0.0304*(J55^5)-0.2619*(J55^4)+0.9161*(J55^3)-1.6837*(J55^2)+1.7072*J55-0.0091)>0.85,0.85,IF((0.0304*(J55^5)-0.2619*(J55^4)+0.9161*(J55^3)-1.6837*(J55^2)+1.7072*J55-0.0091)<0,0,(0.0304*(J55^5)-0.2619*(J55^4)+0.9161*(J55^3)-1.6837*(J55^2)+1.7072*J55-0.0091))),IF((0.0239*(J55^5)-0.2058*(J55^4)+0.7198*(J55^3)-1.3229*(J55^2)+1.3414*J55-0.0072)>0.65,0.65,IF((0.0239*(J55^5)-0.2058*(J55^4)+0.7198*(J55^3)-1.3229*(J55^2)+1.3414*J55-0.0072)<0,0,(0.0239*(J55^5)-0.2058*(J55^4)+0.7198*(J55^3)-1.3229*(J55^2)+1.3414*J55-0.0072)))) -> 0.699 | M55: =IF(N55="RR",IF((0.0326*(J55^5)-0.2806*(J55^4)+0.9816*(J55^3)-1.8039*(J55^2)+1.8292*J55-0.0098)>0.85,0.85,IF((0.0326*(J55^5)-0.2806*(J55^4)+0.9816*(J55^3)-1.8039*(J55^2)+1.8292*J55-0.0098)<0,0,(0.0326*(J55^5)-0.2806*(J55^4)+0.9816*(J55^3)-1.8039*(J55^2)+1.8292*J55-0.0098))),IF((0.0304*(J55^5)-0.2619*(J55^4)+0.9161*(J55^3)-1.6837*(J55^2)+1.7072*J55-0.0091)>0.8,0.8,IF((0.0304*(J55^5)-0.2619*(J55^4)+0.9161*(J55^3)-1.6837*(J55^2)+1.7072*J55-0.0091)<0,0,(0.0304*(J55^5)-0.2619*(J55^4)+0.9161*(J55^3)-1.6837*(J55^2)+1.7072*J55-0.0091)))) -> 0.7491 | N55: RR | Q55: =(SUMIFS(Selected[TN lbs/ac],Selected[Landuse],IF($D$9="Yes","County Phase I/II MS4 Pervious","nonregulated pervious developed"))*($E55-$F55*$E55)+SUMIFS(Selected[TN lbs/ac],Selected[Landuse],IF($D$9="Yes","County Phase I/II MS4 Impervious","nonregulated impervious developed"))*($F55*$E55))*$K55 -> 0 | R55: =(SUMIFS(Selected[TP lbs/ac],Selected[Landuse],IF($D$9="Yes","County Phase I/II MS4 Pervious","nonregulated pervious developed"))*($E55-$F55*$E55)+SUMIFS(Selected[TP lbs/ac],Selected[Landuse],IF($D$9="Yes","County Phase I/II MS4 Impervious","nonregulated impervious developed"))*($F55*$E55))*$L55 -> 0 | S55: =(SUMIFS(Selected[TSS lbs/ac],Selected[Landuse],IF($D$9="Yes","County Phase I/II MS4 Pervious","nonregulated pervious developed"))*($E55-$F55*$E55)+SUMIFS(Selected[TSS lbs/ac],Selected[Landuse],IF($D$9="Yes","County Phase I/II MS4 Impervious","nonregulated impervious developed"))*($F55*$E55))*$M55 -> 0 | V55: =SUMIFS(CurrentBMP[Average Annual Cost/Unit (used in scenario calculations)],CurrentBMP[Practice],C55)*I55 -> 0
C56: Green Roof | D56: Acres | E56: 0 | F56: 1 | H56: 0 | I56: =(E56*F56*43560*0.95*J56/12+E56*(1-F56)*43560*0.22*J56/12)/0.95/(J56/12)/43560 -> 0 | J56: 1 | K56: =IF(N56="RR",IF((0.0308*(J56^5)-0.2562*(J56^4)+0.8634*(J56^3)-1.5285*(J56^2)+1.501*J56-0.013)>0.7,0.7,IF((0.0308*(J56^5)-0.2562*(J56^4)+0.8634*(J56^3)-1.5285*(J56^2)+1.501*J56-0.013)<0,0,(0.0308*(J56^5)-0.2562*(J56^4)+0.8634*(J56^3)-1.5285*(J56^2)+1.501*J56-0.013))),IF((0.0152*(J56^5)-0.131*(J56^4)+0.4581*(J56^3)-0.8418*(J56^2)+0.8536*J56-0.0046)>0.65,0.65,IF((0.0152*(J56^5)-0.131*(J56^4)+0.4581*(J56^3)-0.8418*(J56^2)+0.8536*J56-0.0046)<0,0,(0.0152*(J56^5)-0.131*(J56^4)+0.4581*(J56^3)-0.8418*(J56^2)+0.8536*J56-0.0046)))) -> 0.5975 | L56: =IF(N56="RR",IF((0.0304*(J56^5)-0.2619*(J56^4)+0.9161*(J56^3)-1.6837*(J56^2)+1.7072*J56-0.0091)>0.85,0.85,IF((0.0304*(J56^5)-0.2619*(J56^4)+0.9161*(J56^3)-1.6837*(J56^2)+1.7072*J56-0.0091)<0,0,(0.0304*(J56^5)-0.2619*(J56^4)+0.9161*(J56^3)-1.6837*(J56^2)+1.7072*J56-0.0091))),IF((0.0239*(J56^5)-0.2058*(J56^4)+0.7198*(J56^3)-1.3229*(J56^2)+1.3414*J56-0.0072)>0.65,0.65,IF((0.0239*(J56^5)-0.2058*(J56^4)+0.7198*(J56^3)-1.3229*(J56^2)+1.3414*J56-0.0072)<0,0,(0.0239*(J56^5)-0.2058*(J56^4)+0.7198*(J56^3)-1.3229*(J56^2)+1.3414*J56-0.0072)))) -> 0.699 | M56: =IF(N56="RR",IF((0.0326*(J56^5)-0.2806*(J56^4)+0.9816*(J56^3)-1.8039*(J56^2)+1.8292*J56-0.0098)>0.85,0.85,IF((0.0326*(J56^5)-0.2806*(J56^4)+0.9816*(J56^3)-1.8039*(J56^2)+1.8292*J56-0.0098)<0,0,(0.0326*(J56^5)-0.2806*(J56^4)+0.9816*(J56^3)-1.8039*(J56^2)+1.8292*J56-0.0098))),IF((0.0304*(J56^5)-0.2619*(J56^4)+0.9161*(J56^3)-1.6837*(J56^2)+1.7072*J56-0.0091)>0.8,0.8,IF((0.0304*(J56^5)-0.2619*(J56^4)+0.9161*(J56^3)-1.6837*(J56^2)+1.7072*J56-0.0091)<0,0,(0.0304*(J56^5)-0.2619*(J56^4)+0.9161*(J56^3)-1.6837*(J56^2)+1.7072*J56-0.0091)))) -> 0.7491 | N56: RR | Q56: =(SUMIFS(Selected[TN lbs/ac],Selected[Landuse],IF($D$9="Yes","County Phase I/II MS4 Pervious","nonregulated pervious developed"))*($E56-$F56*$E56)+SUMIFS(Selected[TN lbs/ac],Selected[Landuse],IF($D$9="Yes","County Phase I/II MS4 Impervious","nonregulated impervious developed"))*($F56*$E56))*$K56 -> 0 | R56: =(SUMIFS(Selected[TP lbs/ac],Selected[Landuse],IF($D$9="Yes","County Phase I/II MS4 Pervious","nonregulated pervious developed"))*($E56-$F56*$E56)+SUMIFS(Selected[TP lbs/ac],Selected[Landuse],IF($D$9="Yes","County Phase I/II MS4 Impervious","nonregulated impervious developed"))*($F56*$E56))*$L56 -> 0 | S56: =(SUMIFS(Selected[TSS lbs/ac],Selected[Landuse],IF($D$9="Yes","County Phase I/II MS4 Pervious","nonregulated pervious developed"))*($E56-$F56*$E56)+SUMIFS(Selected[TSS lbs/ac],Selected[Landuse],IF($D$9="Yes","County Phase I/II MS4 Impervious","nonregulated impervious developed"))*($F56*$E56))*$M56 -> 0 | V56: =SUMIFS(CurrentBMP[Average Annual Cost/Unit (used in scenario calculations)],CurrentBMP[Practice],C56)*I56 -> 0
C57: Downspout Disconnection | D57: Acres | E57: 0 | F57: 1 | H57: 0 | I57: =(E57*F57*43560*0.95*J57/12+E57*(1-F57)*43560*0.22*J57/12)/0.95/(J57/12)/43560 -> 0 | J57: 1 | K57: =IF(N57="RR",IF((0.0308*(J57^5)-0.2562*(J57^4)+0.8634*(J57^3)-1.5285*(J57^2)+1.501*J57-0.013)>0.7,0.7,IF((0.0308*(J57^5)-0.2562*(J57^4)+0.8634*(J57^3)-1.5285*(J57^2)+1.501*J57-0.013)<0,0,(0.0308*(J57^5)-0.2562*(J57^4)+0.8634*(J57^3)-1.5285*(J57^2)+1.501*J57-0.013))),IF((0.0152*(J57^5)-0.131*(J57^4)+0.4581*(J57^3)-0.8418*(J57^2)+0.8536*J57-0.0046)>0.65,0.65,IF((0.0152*(J57^5)-0.131*(J57^4)+0.4581*(J57^3)-0.8418*(J57^2)+0.8536*J57-0.0046)<0,0,(0.0152*(J57^5)-0.131*(J57^4)+0.4581*(J57^3)-0.8418*(J57^2)+0.8536*J57-0.0046)))) -> 0.5975 | L57: =IF(N57="RR",IF((0.0304*(J57^5)-0.2619*(J57^4)+0.9161*(J57^3)-1.6837*(J57^2)+1.7072*J57-0.0091)>0.85,0.85,IF((0.0304*(J57^5)-0.2619*(J57^4)+0.9161*(J57^3)-1.6837*(J57^2)+1.7072*J57-0.0091)<0,0,(0.0304*(J57^5)-0.2619*(J57^4)+0.9161*(J57^3)-1.6837*(J57^2)+1.7072*J57-0.0091))),IF((0.0239*(J57^5)-0.2058*(J57^4)+0.7198*(J57^3)-1.3229*(J57^2)+1.3414*J57-0.0072)>0.65,0.65,IF((0.0239*(J57^5)-0.2058*(J57^4)+0.7198*(J57^3)-1.3229*(J57^2)+1.3414*J57-0.0072)<0,0,(0.0239*(J57^5)-0.2058*(J57^4)+0.7198*(J57^3)-1.3229*(J57^2)+1.3414*J57-0.0072)))) -> 0.699 | M57: =IF(N57="RR",IF((0.0326*(J57^5)-0.2806*(J57^4)+0.9816*(J57^3)-1.8039*(J57^2)+1.8292*J57-0.0098)>0.85,0.85,IF((0.0326*(J57^5)-0.2806*(J57^4)+0.9816*(J57^3)-1.8039*(J57^2)+1.8292*J57-0.0098)<0,0,(0.0326*(J57^5)-0.2806*(J57^4)+0.9816*(J57^3)-1.8039*(J57^2)+1.8292*J57-0.0098))),IF((0.0304*(J57^5)-0.2619*(J57^4)+0.9161*(J57^3)-1.6837*(J57^2)+1.7072*J57-0.0091)>0.8,0.8,IF((0.0304*(J57^5)-0.2619*(J57^4)+0.9161*(J57^3)-1.6837*(J57^2)+1.7072*J57-0.0091)<0,0,(0.0304*(J57^5)-0.2619*(J57^4)+0.9161*(J57^3)-1.6837*(J57^2)+1.7072*J57-0.0091)))) -> 0.7491 | N57: RR | Q57: =(SUMIFS(Selected[TN lbs/ac],Selected[Landuse],IF($D$9="Yes","County Phase I/II MS4 Pervious","nonregulated pervious developed"))*($E57-$F57*$E57)+SUMIFS(Selected[TN lbs/ac],Selected[Landuse],IF($D$9="Yes","County Phase I/II MS4 Impervious","nonregulated impervious developed"))*($F57*$E57))*$K57 -> 0 | R57: =(SUMIFS(Selected[TP lbs/ac],Selected[Landuse],IF($D$9="Yes","County Phase I/II MS4 Pervious","nonregulated pervious developed"))*($E57-$F57*$E57)+SUMIFS(Selected[TP lbs/ac],Selected[Landuse],IF($D$9="Yes","County Phase I/II MS4 Impervious","nonregulated impervious developed"))*($F57*$E57))*$L57 -> 0 | S57: =(SUMIFS(Selected[TSS lbs/ac],Selected[Landuse],IF($D$9="Yes","County Phase I/II MS4 Pervious","nonregulated pervious developed"))*($E57-$F57*$E57)+SUMIFS(Selected[TSS lbs/ac],Selected[Landuse],IF($D$9="Yes","County Phase I/II MS4 Impervious","nonregulated impervious developed"))*($F57*$E57))*$M57 -> 0 | V57: =SUMIFS(CurrentBMP[Average Annual Cost/Unit (used in scenario calculations)],CurrentBMP[Practice],C57)*I57 -> 0
B59: Bioretention
C60: Bioretention | D60: Acres | E60: 0 | H60: =IF(F60-G60>1,0,1-(F60-G60)) -> 1 | I60: =(E60*F60*43560*0.95*J60/12+E60*(1-F60)*43560*0.22*J60/12)/0.95/(J60/12)/43560 -> 0 | J60: 1 | K60: =IF(N60="RR",IF((0.0308*(J60^5)-0.2562*(J60^4)+0.8634*(J60^3)-1.5285*(J60^2)+1.501*J60-0.013)>0.7,0.7,IF((0.0308*(J60^5)-0.2562*(J60^4)+0.8634*(J60^3)-1.5285*(J60^2)+1.501*J60-0.013)<0,0,(0.0308*(J60^5)-0.2562*(J60^4)+0.8634*(J60^3)-1.5285*(J60^2)+1.501*J60-0.013))),IF((0.0152*(J60^5)-0.131*(J60^4)+0.4581*(J60^3)-0.8418*(J60^2)+0.8536*J60-0.0046)>0.65,0.65,IF((0.0152*(J60^5)-0.131*(J60^4)+0.4581*(J60^3)-0.8418*(J60^2)+0.8536*J60-0.0046)<0,0,(0.0152*(J60^5)-0.131*(J60^4)+0.4581*(J60^3)-0.8418*(J60^2)+0.8536*J60-0.0046)))) -> 0.5975 | L60: =IF(N60="RR",IF((0.0304*(J60^5)-0.2619*(J60^4)+0.9161*(J60^3)-1.6837*(J60^2)+1.7072*J60-0.0091)>0.85,0.85,IF((0.0304*(J60^5)-0.2619*(J60^4)+0.9161*(J60^3)-1.6837*(J60^2)+1.7072*J60-0.0091)<0,0,(0.0304*(J60^5)-0.2619*(J60^4)+0.9161*(J60^3)-1.6837*(J60^2)+1.7072*J60-0.0091))),IF((0.0239*(J60^5)-0.2058*(J60^4)+0.7198*(J60^3)-1.3229*(J60^2)+1.3414*J60-0.0072)>0.65,0.65,IF((0.0239*(J60^5)-0.2058*(J60^4)+0.7198*(J60^3)-1.3229*(J60^2)+1.3414*J60-0.0072)<0,0,(0.0239*(J60^5)-0.2058*(J60^4)+0.7198*(J60^3)-1.3229*(J60^2)+1.3414*J60-0.0072)))) -> 0.699 | M60: =IF(N60="RR",IF((0.0326*(J60^5)-0.2806*(J60^4)+0.9816*(J60^3)-1.8039*(J60^2)+1.8292*J60-0.0098)>0.85,0.85,IF((0.0326*(J60^5)-0.2806*(J60^4)+0.9816*(J60^3)-1.8039*(J60^2)+1.8292*J60-0.0098)<0,0,(0.0326*(J60^5)-0.2806*(J60^4)+0.9816*(J60^3)-1.8039*(J60^2)+1.8292*J60-0.0098))),IF((0.0304*(J60^5)-0.2619*(J60^4)+0.9161*(J60^3)-1.6837*(J60^2)+1.7072*J60-0.0091)>0.8,0.8,IF((0.0304*(J60^5)-0.2619*(J60^4)+0.9161*(J60^3)-1.6837*(J60^2)+1.7072*J60-0.0091)<0,0,(0.0304*(J60^5)-0.2619*(J60^4)+0.9161*(J60^3)-1.6837*(J60^2)+1.7072*J60-0.0091)))) -> 0.7491 | N60: RR | Q60: =(SUMIFS(Selected[TN lbs/ac],Selected[Landuse],IF($D$9="Yes","County Phase I/II MS4 Pervious","nonregulated pervious developed"))*($E60-$F60*$E60)+SUMIFS(Selected[TN lbs/ac],Selected[Landuse],IF($D$9="Yes","County Phase I/II MS4 Impervious","nonregulated impervious developed"))*($F60*$E60))*$K60 -> 0 | R60: =(SUMIFS(Selected[TP lbs/ac],Selected[Landuse],IF($D$9="Yes","County Phase I/II MS4 Pervious","nonregulated pervious developed"))*($E60-$F60*$E60)+SUMIFS(Selected[TP lbs/ac],Selected[Landuse],IF($D$9="Yes","County Phase I/II MS4 Impervious","nonregulated impervious developed"))*($F60*$E60))*$L60 -> 0 | S60: =(SUMIFS(Selected[TSS lbs/ac],Selected[Landuse],IF($D$9="Yes","County Phase I/II MS4 Pervious","nonregulated pervious developed"))*($E60-$F60*$E60)+SUMIFS(Selected[TSS lbs/ac],Selected[Landuse],IF($D$9="Yes","County Phase I/II MS4 Impervious","nonregulated impervious developed"))*($F60*$E60))*$M60 -> 0 | V60: =SUMIFS(CurrentBMP[Average Annual Cost/Unit (used in scenario calculations)],CurrentBMP[Practice],C60)*I60 -> 0
C61: Rain Garden | D61: Acres | E61: 0 | H61: 1 | I61: =(E61*F61*43560*0.95*J61/12+E61*(1-F61)*43560*0.22*J61/12)/0.95/(J61/12)/43560 -> 0 | J61: 1 | K61: =IF(N61="RR",IF((0.0308*(J61^5)-0.2562*(J61^4)+0.8634*(J61^3)-1.5285*(J61^2)+1.501*J61-0.013)>0.7,0.7,IF((0.0308*(J61^5)-0.2562*(J61^4)+0.8634*(J61^3)-1.5285*(J61^2)+1.501*J61-0.013)<0,0,(0.0308*(J61^5)-0.2562*(J61^4)+0.8634*(J61^3)-1.5285*(J61^2)+1.501*J61-0.013))),IF((0.0152*(J61^5)-0.131*(J61^4)+0.4581*(J61^3)-0.8418*(J61^2)+0.8536*J61-0.0046)>0.65,0.65,IF((0.0152*(J61^5)-0.131*(J61^4)+0.4581*(J61^3)-0.8418*(J61^2)+0.8536*J61-0.0046)<0,0,(0.0152*(J61^5)-0.131*(J61^4)+0.4581*(J61^3)-0.8418*(J61^2)+0.8536*J61-0.0046)))) -> 0.5975 | L61: =IF(N61="RR",IF((0.0304*(J61^5)-0.2619*(J61^4)+0.9161*(J61^3)-1.6837*(J61^2)+1.7072*J61-0.0091)>0.85,0.85,IF((0.0304*(J61^5)-0.2619*(J61^4)+0.9161*(J61^3)-1.6837*(J61^2)+1.7072*J61-0.0091)<0,0,(0.0304*(J61^5)-0.2619*(J61^4)+0.9161*(J61^3)-1.6837*(J61^2)+1.7072*J61-0.0091))),IF((0.0239*(J61^5)-0.2058*(J61^4)+0.7198*(J61^3)-1.3229*(J61^2)+1.3414*J61-0.0072)>0.65,0.65,IF((0.0239*(J61^5)-0.2058*(J61^4)+0.7198*(J61^3)-1.3229*(J61^2)+1.3414*J61-0.0072)<0,0,(0.0239*(J61^5)-0.2058*(J61^4)+0.7198*(J61^3)-1.3229*(J61^2)+1.3414*J61-0.0072)))) -> 0.699 | M61: =IF(N61="RR",IF((0.0326*(J61^5)-0.2806*(J61^4)+0.9816*(J61^3)-1.8039*(J61^2)+1.8292*J61-0.0098)>0.85,0.85,IF((0.0326*(J61^5)-0.2806*(J61^4)+0.9816*(J61^3)-1.8039*(J61^2)+1.8292*J61-0.0098)<0,0,(0.0326*(J61^5)-0.2806*(J61^4)+0.9816*(J61^3)-1.8039*(J61^2)+1.8292*J61-0.0098))),IF((0.0304*(J61^5)-0.2619*(J61^4)+0.9161*(J61^3)-1.6837*(J61^2)+1.7072*J61-0.0091)>0.8,0.8,IF((0.0304*(J61^5)-0.2619*(J61^4)+0.9161*(J61^3)-1.6837*(J61^2)+1.7072*J61-0.0091)<0,0,(0.0304*(J61^5)-0.2619*(J61^4)+0.9161*(J61^3)-1.6837*(J61^2)+1.7072*J61-0.0091)))) -> 0.7491 | N61: RR | Q61: =(SUMIFS(Selected[TN lbs/ac],Selected[Landuse],IF($D$9="Yes","County Phase I/II MS4 Pervious","nonregulated pervious developed"))*($E61-$F61*$E61)+SUMIFS(Selected[TN lbs/ac],Selected[Landuse],IF($D$9="Yes","County Phase I/II MS4 Impervious","nonregulated impervious developed"))*($F61*$E61))*$K61 -> 0 | R61: =(SUMIFS(Selected[TP lbs/ac],Selected[Landuse],IF($D$9="Yes","County Phase I/II MS4 Pervious","nonregulated pervious developed"))*($E61-$F61*$E61)+SUMIFS(Selected[TP lbs/ac],Selected[Landuse],IF($D$9="Yes","County Phase I/II MS4 Impervious","nonregulated impervious developed"))*($F61*$E61))*$L61 -> 0 | S61: =(SUMIFS(Selected[TSS lbs/ac],Selected[Landuse],IF($D$9="Yes","County Phase I/II MS4 Pervious","nonregulated pervious developed"))*($E61-$F61*$E61)+SUMIFS(Selected[TSS lbs/ac],Selected[Landuse],IF($D$9="Yes","County Phase I/II MS4 Impervious","nonregulated impervious developed"))*($F61*$E61))*$M61 -> 0 | V61: =SUMIFS(CurrentBMP[Average Annual Cost/Unit (used in scenario calculations)],CurrentBMP[Practice],C61)*I61 -> 0
C62: Green Streets | D62: Acres | E62: 0 | H62: 1 | I62: =(E62*F62*43560*0.95*J62/12+E62*(1-F62)*43560*0.22*J62/12)/0.95/(J62/12)/43560 -> 0 | J62: 1 | K62: =IF(N62="RR",IF((0.0308*(J62^5)-0.2562*(J62^4)+0.8634*(J62^3)-1.5285*(J62^2)+1.501*J62-0.013)>0.7,0.7,IF((0.0308*(J62^5)-0.2562*(J62^4)+0.8634*(J62^3)-1.5285*(J62^2)+1.501*J62-0.013)<0,0,(0.0308*(J62^5)-0.2562*(J62^4)+0.8634*(J62^3)-1.5285*(J62^2)+1.501*J62-0.013))),IF((0.0152*(J62^5)-0.131*(J62^4)+0.4581*(J62^3)-0.8418*(J62^2)+0.8536*J62-0.0046)>0.65,0.65,IF((0.0152*(J62^5)-0.131*(J62^4)+0.4581*(J62^3)-0.8418*(J62^2)+0.8536*J62-0.0046)<0,0,(0.0152*(J62^5)-0.131*(J62^4)+0.4581*(J62^3)-0.8418*(J62^2)+0.8536*J62-0.0046)))) -> 0.5975 | L62: =IF(N62="RR",IF((0.0304*(J62^5)-0.2619*(J62^4)+0.9161*(J62^3)-1.6837*(J62^2)+1.7072*J62-0.0091)>0.85,0.85,IF((0.0304*(J62^5)-0.2619*(J62^4)+0.9161*(J62^3)-1.6837*(J62^2)+1.7072*J62-0.0091)<0,0,(0.0304*(J62^5)-0.2619*(J62^4)+0.9161*(J62^3)-1.6837*(J62^2)+1.7072*J62-0.0091))),IF((0.0239*(J62^5)-0.2058*(J62^4)+0.7198*(J62^3)-1.3229*(J62^2)+1.3414*J62-0.0072)>0.65,0.65,IF((0.0239*(J62^5)-0.2058*(J62^4)+0.7198*(J62^3)-1.3229*(J62^2)+1.3414*J62-0.0072)<0,0,(0.0239*(J62^5)-0.2058*(J62^4)+0.7198*(J62^3)-1.3229*(J62^2)+1.3414*J62-0.0072)))) -> 0.699 | M62: =IF(N62="RR",IF((0.0326*(J62^5)-0.2806*(J62^4)+0.9816*(J62^3)-1.8039*(J62^2)+1.8292*J62-0.0098)>0.85,0.85,IF((0.0326*(J62^5)-0.2806*(J62^4)+0.9816*(J62^3)-1.8039*(J62^2)+1.8292*J62-0.0098)<0,0,(0.0326*(J62^5)-0.2806*(J62^4)+0.9816*(J62^3)-1.8039*(J62^2)+1.8292*J62-0.0098))),IF((0.0304*(J62^5)-0.2619*(J62^4)+0.9161*(J62^3)-1.6837*(J62^2)+1.7072*J62-0.0091)>0.8,0.8,IF((0.0304*(J62^5)-0.2619*(J62^4)+0.9161*(J62^3)-1.6837*(J62^2)+1.7072*J62-0.0091)<0,0,(0.0304*(J62^5)-0.2619*(J62^4)+0.9161*(J62^3)-1.6837*(J62^2)+1.7072*J62-0.0091)))) -> 0.7491 | N62: RR | Q62: =(SUMIFS(Selected[TN lbs/ac],Selected[Landuse],IF($D$9="Yes","County Phase I/II MS4 Pervious","nonregulated pervious developed"))*($E62-$F62*$E62)+SUMIFS(Selected[TN lbs/ac],Selected[Landuse],IF($D$9="Yes","County Phase I/II MS4 Impervious","nonregulated impervious developed"))*($F62*$E62))*$K62 -> 0 | R62: =(SUMIFS(Selected[TP lbs/ac],Selected[Landuse],IF($D$9="Yes","County Phase I/II MS4 Pervious","nonregulated pervious developed"))*($E62-$F62*$E62)+SUMIFS(Selected[TP lbs/ac],Selected[Landuse],IF($D$9="Yes","County Phase I/II MS4 Impervious","nonregulated impervious developed"))*($F62*$E62))*$L62 -> 0 | S62: =(SUMIFS(Selected[TSS lbs/ac],Selected[Landuse],IF($D$9="Yes","County Phase I/II MS4 Pervious","nonregulated pervious developed"))*($E62-$F62*$E62)+SUMIFS(Selected[TSS lbs/ac],Selected[Landuse],IF($D$9="Yes","County Phase I/II MS4 Impervious","nonregulated impervious developed"))*($F62*$E62))*$M62 -> 0 | V62: =SUMIFS(CurrentBMP[Average Annual Cost/Unit (used in scenario calculations)],CurrentBMP[Practice],C62)*I62 -> 0
B64: Filtering/Infiltration
C65: Vegetated Filter Strips | D65: Acres | E65: 0 | H65: =IF(F65-G65>1,0,1-(F65-G65)) -> 1 | I65: =(E65*F65*43560*0.95*J65/12+E65*(1-IF((F65+G65)>1,1,F65+G65))*43560*0.22*J65/12+E65*IF(G65+F65>1,1-F65,G65)*43560*0.4*J65/12)/0.95/(J65/12)/43560 -> 0 | J65: 1 | K65: =IF(N65="RR",IF((0.0308*(J65^5)-0.2562*(J65^4)+0.8634*(J65^3)-1.5285*(J65^2)+1.501*J65-0.013)>0.7,0.7,IF((0.0308*(J65^5)-0.2562*(J65^4)+0.8634*(J65^3)-1.5285*(J65^2)+1.501*J65-0.013)<0,0,(0.0308*(J65^5)-0.2562*(J65^4)+0.8634*(J65^3)-1.5285*(J65^2)+1.501*J65-0.013))),IF((0.0152*(J65^5)-0.131*(J65^4)+0.4581*(J65^3)-0.8418*(J65^2)+0.8536*J65-0.0046)>0.65,0.65,IF((0.0152*(J65^5)-0.131*(J65^4)+0.4581*(J65^3)-0.8418*(J65^2)+0.8536*J65-0.0046)<0,0,(0.0152*(J65^5)-0.131*(J65^4)+0.4581*(J65^3)-0.8418*(J65^2)+0.8536*J65-0.0046)))) -> 0.5975 | L65: =IF(N65="RR",IF((0.0304*(J65^5)-0.2619*(J65^4)+0.9161*(J65^3)-1.6837*(J65^2)+1.7072*J65-0.0091)>0.85,0.85,IF((0.0304*(J65^5)-0.2619*(J65^4)+0.9161*(J65^3)-1.6837*(J65^2)+1.7072*J65-0.0091)<0,0,(0.0304*(J65^5)-0.2619*(J65^4)+0.9161*(J65^3)-1.6837*(J65^2)+1.7072*J65-0.0091))),IF((0.0239*(J65^5)-0.2058*(J65^4)+0.7198*(J65^3)-1.3229*(J65^2)+1.3414*J65-0.0072)>0.65,0.65,IF((0.0239*(J65^5)-0.2058*(J65^4)+0.7198*(J65^3)-1.3229*(J65^2)+1.3414*J65-0.0072)<0,0,(0.0239*(J65^5)-0.2058*(J65^4)+0.7198*(J65^3)-1.3229*(J65^2)+1.3414*J65-0.0072)))) -> 0.699 | M65: =IF(N65="RR",IF((0.0326*(J65^5)-0.2806*(J65^4)+0.9816*(J65^3)-1.8039*(J65^2)+1.8292*J65-0.0098)>0.85,0.85,IF((0.0326*(J65^5)-0.2806*(J65^4)+0.9816*(J65^3)-1.8039*(J65^2)+1.8292*J65-0.0098)<0,0,(0.0326*(J65^5)-0.2806*(J65^4)+0.9816*(J65^3)-1.8039*(J65^2)+1.8292*J65-0.0098))),IF((0.0304*(J65^5)-0.2619*(J65^4)+0.9161*(J65^3)-1.6837*(J65^2)+1.7072*J65-0.0091)>0.8,0.8,IF((0.0304*(J65^5)-0.2619*(J65^4)+0.9161*(J65^3)-1.6837*(J65^2)+1.7072*J65-0.0091)<0,0,(0.0304*(J65^5)-0.2619*(J65^4)+0.9161*(J65^3)-1.6837*(J65^2)+1.7072*J65-0.0091)))) -> 0.7491 | N65: RR | Q65: =(SUMIFS(Selected[TN lbs/ac],Selected[Landuse],IF($D$9="Yes","County Phase I/II MS4 Pervious","nonregulated pervious developed"))*($E65*(1-IF(F65+G65>1,1,F65+G65)))+SUMIFS(Selected[TN lbs/ac],Selected[Landuse],IF($D$9="Yes","County Phase I/II MS4 Impervious","nonregulated impervious developed"))*($F65*$E65))*$K65 -> 0 | R65: =(SUMIFS(Selected[TP lbs/ac],Selected[Landuse],IF($D$9="Yes","County Phase I/II MS4 Pervious","nonregulated pervious developed"))*($E65*(1-IF(F65+G65>1,1,F65+G65)))+SUMIFS(Selected[TP lbs/ac],Selected[Landuse],IF($D$9="Yes","County Phase I/II MS4 Impervious","nonregulated impervious developed"))*($F65*$E65))*$L65 -> 0 | S65: =(SUMIFS(Selected[TSS lbs/ac],Selected[Landuse],IF($D$9="Yes","County Phase I/II MS4 Pervious","nonregulated pervious developed"))*($E65*(1-IF(F65+G65>1,1,F65+G65)))+SUMIFS(Selected[TSS lbs/ac],Selected[Landuse],IF($D$9="Yes","County Phase I/II MS4 Impervious","nonregulated impervious developed"))*($F65*$E65))*$M65 -> 0 | V65: =SUMIFS(CurrentBMP[Average Annual Cost/Unit (used in scenario calculations)],CurrentBMP[Practice],C65)*I65 -> 0 | Y65: =SUMIFS(Selected[Lbs Nitrogen-Delivered],Selected[Sector],"=Agriculture")/SUMIFS(Selected[PostBMPAcres],Selected[Sector],"=Agriculture")*E65*IF(F65+G65>1,1-G65,G65) -> 0 | Z65: =SUMIFS(Selected[Lbs Phosphorus-Delivered],Selected[Sector],"=Agriculture")/SUMIFS(Selected[PostBMPAcres],Selected[Sector],"=Agriculture")*E65*IF(F65+G65>1,1-G65,G65) -> 0 | AA65: =SUMIFS(Selected[Lbs Sediment-Delivered],Selected[Sector],"=Agriculture")/SUMIFS(Selected[PostBMPAcres],Selected[Sector],"=Agriculture")*E65*IF(F65+G65>1,1-G65,G65) -> 0 | AB65: =IF(F65+G65>1,1-F65,G65)*E65 -> 0
C66: Hydrodynamic and Filtering Practices | D66: Acres | E66: 0 | H66: 1 | I66: =(E66*F66*43560*0.95*J66/12+E66*(1-F66)*43560*0.22*J66/12)/0.95/(J66/12)/43560 -> 0 | J66: 1 | K66: =IF(N66="RR",IF((0.0308*(J66^5)-0.2562*(J66^4)+0.8634*(J66^3)-1.5285*(J66^2)+1.501*J66-0.013)>0.7,0.7,IF((0.0308*(J66^5)-0.2562*(J66^4)+0.8634*(J66^3)-1.5285*(J66^2)+1.501*J66-0.013)<0,0,(0.0308*(J66^5)-0.2562*(J66^4)+0.8634*(J66^3)-1.5285*(J66^2)+1.501*J66-0.013))),IF((0.0152*(J66^5)-0.131*(J66^4)+0.4581*(J66^3)-0.8418*(J66^2)+0.8536*J66-0.0046)>0.65,0.65,IF((0.0152*(J66^5)-0.131*(J66^4)+0.4581*(J66^3)-0.8418*(J66^2)+0.8536*J66-0.0046)<0,0,(0.0152*(J66^5)-0.131*(J66^4)+0.4581*(J66^3)-0.8418*(J66^2)+0.8536*J66-0.0046)))) -> 0.3495 | L66: =IF(N66="RR",IF((0.0304*(J66^5)-0.2619*(J66^4)+0.9161*(J66^3)-1.6837*(J66^2)+1.7072*J66-0.0091)>0.85,0.85,IF((0.0304*(J66^5)-0.2619*(J66^4)+0.9161*(J66^3)-1.6837*(J66^2)+1.7072*J66-0.0091)<0,0,(0.0304*(J66^5)-0.2619*(J66^4)+0.9161*(J66^3)-1.6837*(J66^2)+1.7072*J66-0.0091))),IF((0.0239*(J66^5)-0.2058*(J66^4)+0.7198*(J66^3)-1.3229*(J66^2)+1.3414*J66-0.0072)>0.65,0.65,IF((0.0239*(J66^5)-0.2058*(J66^4)+0.7198*(J66^3)-1.3229*(J66^2)+1.3414*J66-0.0072)<0,0,(0.0239*(J66^5)-0.2058*(J66^4)+0.7198*(J66^3)-1.3229*(J66^2)+1.3414*J66-0.0072)))) -> 0.5492 | M66: =IF(N66="RR",IF((0.0326*(J66^5)-0.2806*(J66^4)+0.9816*(J66^3)-1.8039*(J66^2)+1.8292*J66-0.0098)>0.85,0.85,IF((0.0326*(J66^5)-0.2806*(J66^4)+0.9816*(J66^3)-1.8039*(J66^2)+1.8292*J66-0.0098)<0,0,(0.0326*(J66^5)-0.2806*(J66^4)+0.9816*(J66^3)-1.8039*(J66^2)+1.8292*J66-0.0098))),IF((0.0304*(J66^5)-0.2619*(J66^4)+0.9161*(J66^3)-1.6837*(J66^2)+1.7072*J66-0.0091)>0.8,0.8,IF((0.0304*(J66^5)-0.2619*(J66^4)+0.9161*(J66^3)-1.6837*(J66^2)+1.7072*J66-0.0091)<0,0,(0.0304*(J66^5)-0.2619*(J66^4)+0.9161*(J66^3)-1.6837*(J66^2)+1.7072*J66-0.0091)))) -> 0.699 | N66: ST | Q66: =(SUMIFS(Selected[TN lbs/ac],Selected[Landuse],IF($D$9="Yes","County Phase I/II MS4 Pervious","nonregulated pervious developed"))*($E66-$F66*$E66)+SUMIFS(Selected[TN lbs/ac],Selected[Landuse],IF($D$9="Yes","County Phase I/II MS4 Impervious","nonregulated impervious developed"))*($F66*$E66))*$K66 -> 0 | R66: =(SUMIFS(Selected[TP lbs/ac],Selected[Landuse],IF($D$9="Yes","County Phase I/II MS4 Pervious","nonregulated pervious developed"))*($E66-$F66*$E66)+SUMIFS(Selected[TP lbs/ac],Selected[Landuse],IF($D$9="Yes","County Phase I/II MS4 Impervious","nonregulated impervious developed"))*($F66*$E66))*$L66 -> 0 | S66: =(SUMIFS(Selected[TSS lbs/ac],Selected[Landuse],IF($D$9="Yes","County Phase I/II MS4 Pervious","nonregulated pervious developed"))*($E66-$F66*$E66)+SUMIFS(Selected[TSS lbs/ac],Selected[Landuse],IF($D$9="Yes","County Phase I/II MS4 Impervious","nonregulated impervious developed"))*($F66*$E66))*$M66 -> 0 | V66: =SUMIFS(CurrentBMP[Average Annual Cost/Unit (used in scenario calculations)],CurrentBMP[Practice],C66)*I66 -> 0
C67: Infiltration | D67: Acres | E67: 0 | H67: 1 | I67: =(E67*F67*43560*0.95*J67/12+E67*(1-IF((F67+G67)>1,1,F67+G67))*43560*0.22*J67/12+E67*IF(G67+F67>1,1-F67,G67)*43560*0.4*J67/12)/0.95/(J67/12)/43560 -> 0 | J67: 1 | K67: =IF(N67="RR",IF((0.0308*(J67^5)-0.2562*(J67^4)+0.8634*(J67^3)-1.5285*(J67^2)+1.501*J67-0.013)>0.7,0.7,IF((0.0308*(J67^5)-0.2562*(J67^4)+0.8634*(J67^3)-1.5285*(J67^2)+1.501*J67-0.013)<0,0,(0.0308*(J67^5)-0.2562*(J67^4)+0.8634*(J67^3)-1.5285*(J67^2)+1.501*J67-0.013))),IF((0.0152*(J67^5)-0.131*(J67^4)+0.4581*(J67^3)-0.8418*(J67^2)+0.8536*J67-0.0046)>0.65,0.65,IF((0.0152*(J67^5)-0.131*(J67^4)+0.4581*(J67^3)-0.8418*(J67^2)+0.8536*J67-0.0046)<0,0,(0.0152*(J67^5)-0.131*(J67^4)+0.4581*(J67^3)-0.8418*(J67^2)+0.8536*J67-0.0046)))) -> 0.5975 | L67: =IF(N67="RR",IF((0.0304*(J67^5)-0.2619*(J67^4)+0.9161*(J67^3)-1.6837*(J67^2)+1.7072*J67-0.0091)>0.85,0.85,IF((0.0304*(J67^5)-0.2619*(J67^4)+0.9161*(J67^3)-1.6837*(J67^2)+1.7072*J67-0.0091)<0,0,(0.0304*(J67^5)-0.2619*(J67^4)+0.9161*(J67^3)-1.6837*(J67^2)+1.7072*J67-0.0091))),IF((0.0239*(J67^5)-0.2058*(J67^4)+0.7198*(J67^3)-1.3229*(J67^2)+1.3414*J67-0.0072)>0.65,0.65,IF((0.0239*(J67^5)-0.2058*(J67^4)+0.7198*(J67^3)-1.3229*(J67^2)+1.3414*J67-0.0072)<0,0,(0.0239*(J67^5)-0.2058*(J67^4)+0.7198*(J67^3)-1.3229*(J67^2)+1.3414*J67-0.0072)))) -> 0.699 | M67: =IF(N67="RR",IF((0.0326*(J67^5)-0.2806*(J67^4)+0.9816*(J67^3)-1.8039*(J67^2)+1.8292*J67-0.0098)>0.85,0.85,IF((0.0326*(J67^5)-0.2806*(J67^4)+0.9816*(J67^3)-1.8039*(J67^2)+1.8292*J67-0.0098)<0,0,(0.0326*(J67^5)-0.2806*(J67^4)+0.9816*(J67^3)-1.8039*(J67^2)+1.8292*J67-0.0098))),IF((0.0304*(J67^5)-0.2619*(J67^4)+0.9161*(J67^3)-1.6837*(J67^2)+1.7072*J67-0.0091)>0.8,0.8,IF((0.0304*(J67^5)-0.2619*(J67^4)+0.9161*(J67^3)-1.6837*(J67^2)+1.7072*J67-0.0091)<0,0,(0.0304*(J67^5)-0.2619*(J67^4)+0.9161*(J67^3)-1.6837*(J67^2)+1.7072*J67-0.0091)))) -> 0.7491 | N67: RR | Q67: =(SUMIFS(Selected[TN lbs/ac],Selected[Landuse],IF($D$9="Yes","County Phase I/II MS4 Pervious","nonregulated pervious developed"))*($E67*(1-IF(F67+G67>1,1,F67+G67)))+SUMIFS(Selected[TN lbs/ac],Selected[Landuse],IF($D$9="Yes","County Phase I/II MS4 Impervious","nonregulated impervious developed"))*($F67*$E67))*$K67 -> 0 | R67: =(SUMIFS(Selected[TP lbs/ac],Selected[Landuse],IF($D$9="Yes","County Phase I/II MS4 Pervious","nonregulated pervious developed"))*($E67*(1-IF(F67+G67>1,1,F67+G67)))+SUMIFS(Selected[TP lbs/ac],Selected[Landuse],IF($D$9="Yes","County Phase I/II MS4 Impervious","nonregulated impervious developed"))*($F67*$E67))*$L67 -> 0 | S67: =(SUMIFS(Selected[TSS lbs/ac],Selected[Landuse],IF($D$9="Yes","County Phase I/II MS4 Pervious","nonregulated pervious developed"))*($E67*(1-IF(F67+G67>1,1,F67+G67)))+SUMIFS(Selected[TSS lbs/ac],Selected[Landuse],IF($D$9="Yes","County Phase I/II MS4 Impervious","nonregulated impervious developed"))*($F67*$E67))*$M67 -> 0 | V67: =SUMIFS(CurrentBMP[Average Annual Cost/Unit (used in scenario calculations)],CurrentBMP[Practice],C67)*I67 -> 0 | Y67: =SUMIFS(Selected[Lbs Nitrogen-Delivered],Selected[Sector],"=Agriculture")/SUMIFS(Selected[PostBMPAcres],Selected[Sector],"=Agriculture")*E67*IF(F67+G67>1,1-G67,G67) -> 0 | Z67: =SUMIFS(Selected[Lbs Phosphorus-Delivered],Selected[Sector],"=Agriculture")/SUMIFS(Selected[PostBMPAcres],Selected[Sector],"=Agriculture")*E67*IF(F67+G67>1,1-G67,G67) -> 0 | AA67: =SUMIFS(Selected[Lbs Sediment-Delivered],Selected[Sector],"=Agriculture")/SUMIFS(Selected[PostBMPAcres],Selected[Sector],"=Agriculture")*E67*IF(F67+G67>1,1-G67,G67) -> 0 | AB67: =IF(F67+G67>1,1-F67,G67)*E67 -> 0
C68: Stormwater Tree Pits/Structural Soils | D68: Acres | E68: 0 | F68: 1 | H68: 0 | I68: =(E68*F68*43560*0.95*J68/12+E68*(1-F68)*43560*0.22*J68/12)/0.95/(J68/12)/43560 -> 0 | J68: 1 | K68: =IF(N68="RR",IF((0.0308*(J68^5)-0.2562*(J68^4)+0.8634*(J68^3)-1.5285*(J68^2)+1.501*J68-0.013)>0.7,0.7,IF((0.0308*(J68^5)-0.2562*(J68^4)+0.8634*(J68^3)-1.5285*(J68^2)+1.501*J68-0.013)<0,0,(0.0308*(J68^5)-0.2562*(J68^4)+0.8634*(J68^3)-1.5285*(J68^2)+1.501*J68-0.013))),IF((0.0152*(J68^5)-0.131*(J68^4)+0.4581*(J68^3)-0.8418*(J68^2)+0.8536*J68-0.0046)>0.65,0.65,IF((0.0152*(J68^5)-0.131*(J68^4)+0.4581*(J68^3)-0.8418*(J68^2)+0.8536*J68-0.0046)<0,0,(0.0152*(J68^5)-0.131*(J68^4)+0.4581*(J68^3)-0.8418*(J68^2)+0.8536*J68-0.0046)))) -> 0.3495 | L68: =IF(N68="RR",IF((0.0304*(J68^5)-0.2619*(J68^4)+0.9161*(J68^3)-1.6837*(J68^2)+1.7072*J68-0.0091)>0.85,0.85,IF((0.0304*(J68^5)-0.2619*(J68^4)+0.9161*(J68^3)-1.6837*(J68^2)+1.7072*J68-0.0091)<0,0,(0.0304*(J68^5)-0.2619*(J68^4)+0.9161*(J68^3)-1.6837*(J68^2)+1.7072*J68-0.0091))),IF((0.0239*(J68^5)-0.2058*(J68^4)+0.7198*(J68^3)-1.3229*(J68^2)+1.3414*J68-0.0072)>0.65,0.65,IF((0.0239*(J68^5)-0.2058*(J68^4)+0.7198*(J68^3)-1.3229*(J68^2)+1.3414*J68-0.0072)<0,0,(0.0239*(J68^5)-0.2058*(J68^4)+0.7198*(J68^3)-1.3229*(J68^2)+1.3414*J68-0.0072)))) -> 0.5492 | M68: =IF(N68="RR",IF((0.0326*(J68^5)-0.2806*(J68^4)+0.9816*(J68^3)-1.8039*(J68^2)+1.8292*J68-0.0098)>0.85,0.85,IF((0.0326*(J68^5)-0.2806*(J68^4)+0.9816*(J68^3)-1.8039*(J68^2)+1.8292*J68-0.0098)<0,0,(0.0326*(J68^5)-0.2806*(J68^4)+0.9816*(J68^3)-1.8039*(J68^2)+1.8292*J68-0.0098))),IF((0.0304*(J68^5)-0.2619*(J68^4)+0.9161*(J68^3)-1.6837*(J68^2)+1.7072*J68-0.0091)>0.8,0.8,IF((0.0304*(J68^5)-0.2619*(J68^4)+0.9161*(J68^3)-1.6837*(J68^2)+1.7072*J68-0.0091)<0,0,(0.0304*(J68^5)-0.2619*(J68^4)+0.9161*(J68^3)-1.6837*(J68^2)+1.7072*J68-0.0091)))) -> 0.699 | N68: ST | Q68: =(SUMIFS(Selected[TN lbs/ac],Selected[Landuse],IF($D$9="Yes","County Phase I/II MS4 Pervious","nonregulated pervious developed"))*($E68-$F68*$E68)+SUMIFS(Selected[TN lbs/ac],Selected[Landuse],IF($D$9="Yes","County Phase I/II MS4 Impervious","nonregulated impervious developed"))*($F68*$E68))*$K68 -> 0 | R68: =(SUMIFS(Selected[TP lbs/ac],Selected[Landuse],IF($D$9="Yes","County Phase I/II MS4 Pervious","nonregulated pervious developed"))*($E68-$F68*$E68)+SUMIFS(Selected[TP lbs/ac],Selected[Landuse],IF($D$9="Yes","County Phase I/II MS4 Impervious","nonregulated impervious developed"))*($F68*$E68))*$L68 -> 0 | S68: =(SUMIFS(Selected[TSS lbs/ac],Selected[Landuse],IF($D$9="Yes","County Phase I/II MS4 Pervious","nonregulated pervious developed"))*($E68-$F68*$E68)+SUMIFS(Selected[TSS lbs/ac],Selected[Landuse],IF($D$9="Yes","County Phase I/II MS4 Impervious","nonregulated impervious developed"))*($F68*$E68))*$M68 -> 0 | V68: =SUMIFS(CurrentBMP[Average Annual Cost/Unit (used in scenario calculations)],CurrentBMP[Practice],C68)*I68 -> 0
C69: Sand Filter | D69: Acres | E69: 0 | H69: 1 | I69: =(E69*F69*43560*0.95*J69/12+E69*(1-F69)*43560*0.22*J69/12)/0.95/(J69/12)/43560 -> 0 | J69: 1 | K69: =IF(N69="RR",IF((0.0308*(J69^5)-0.2562*(J69^4)+0.8634*(J69^3)-1.5285*(J69^2)+1.501*J69-0.013)>0.7,0.7,IF((0.0308*(J69^5)-0.2562*(J69^4)+0.8634*(J69^3)-1.5285*(J69^2)+1.501*J69-0.013)<0,0,(0.0308*(J69^5)-0.2562*(J69^4)+0.8634*(J69^3)-1.5285*(J69^2)+1.501*J69-0.013))),IF((0.0152*(J69^5)-0.131*(J69^4)+0.4581*(J69^3)-0.8418*(J69^2)+0.8536*J69-0.0046)>0.65,0.65,IF((0.0152*(J69^5)-0.131*(J69^4)+0.4581*(J69^3)-0.8418*(J69^2)+0.8536*J69-0.0046)<0,0,(0.0152*(J69^5)-0.131*(J69^4)+0.4581*(J69^3)-0.8418*(J69^2)+0.8536*J69-0.0046)))) -> 0.3495 | L69: =IF(N69="RR",IF((0.0304*(J69^5)-0.2619*(J69^4)+0.9161*(J69^3)-1.6837*(J69^2)+1.7072*J69-0.0091)>0.85,0.85,IF((0.0304*(J69^5)-0.2619*(J69^4)+0.9161*(J69^3)-1.6837*(J69^2)+1.7072*J69-0.0091)<0,0,(0.0304*(J69^5)-0.2619*(J69^4)+0.9161*(J69^3)-1.6837*(J69^2)+1.7072*J69-0.0091))),IF((0.0239*(J69^5)-0.2058*(J69^4)+0.7198*(J69^3)-1.3229*(J69^2)+1.3414*J69-0.0072)>0.65,0.65,IF((0.0239*(J69^5)-0.2058*(J69^4)+0.7198*(J69^3)-1.3229*(J69^2)+1.3414*J69-0.0072)<0,0,(0.0239*(J69^5)-0.2058*(J69^4)+0.7198*(J69^3)-1.3229*(J69^2)+1.3414*J69-0.0072)))) -> 0.5492 | M69: =IF(N69="RR",IF((0.0326*(J69^5)-0.2806*(J69^4)+0.9816*(J69^3)-1.8039*(J69^2)+1.8292*J69-0.0098)>0.85,0.85,IF((0.0326*(J69^5)-0.2806*(J69^4)+0.9816*(J69^3)-1.8039*(J69^2)+1.8292*J69-0.0098)<0,0,(0.0326*(J69^5)-0.2806*(J69^4)+0.9816*(J69^3)-1.8039*(J69^2)+1.8292*J69-0.0098))),IF((0.0304*(J69^5)-0.2619*(J69^4)+0.9161*(J69^3)-1.6837*(J69^2)+1.7072*J69-0.0091)>0.8,0.8,IF((0.0304*(J69^5)-0.2619*(J69^4)+0.9161*(J69^3)-1.6837*(J69^2)+1.7072*J69-0.0091)<0,0,(0.0304*(J69^5)-0.2619*(J69^4)+0.9161*(J69^3)-1.6837*(J69^2)+1.7072*J69-0.0091)))) -> 0.699 | N69: ST | Q69: =(SUMIFS(Selected[TN lbs/ac],Selected[Landuse],IF($D$9="Yes","County Phase I/II MS4 Pervious","nonregulated pervious developed"))*($E69-$F69*$E69)+SUMIFS(Selected[TN lbs/ac],Selected[Landuse],IF($D$9="Yes","County Phase I/II MS4 Impervious","nonregulated impervious developed"))*($F69*$E69))*$K69 -> 0 | R69: =(SUMIFS(Selected[TP lbs/ac],Selected[Landuse],IF($D$9="Yes","County Phase I/II MS4 Pervious","nonregulated pervious developed"))*($E69-$F69*$E69)+SUMIFS(Selected[TP lbs/ac],Selected[Landuse],IF($D$9="Yes","County Phase I/II MS4 Impervious","nonregulated impervious developed"))*($F69*$E69))*$L69 -> 0 | S69: =(SUMIFS(Selected[TSS lbs/ac],Selected[Landuse],IF($D$9="Yes","County Phase I/II MS4 Pervious","nonregulated pervious developed"))*($E69-$F69*$E69)+SUMIFS(Selected[TSS lbs/ac],Selected[Landuse],IF($D$9="Yes","County Phase I/II MS4 Impervious","nonregulated impervious developed"))*($F69*$E69))*$M69 -> 0 | V69: =SUMIFS(CurrentBMP[Average Annual Cost/Unit (used in scenario calculations)],CurrentBMP[Practice],C69)*I69 -> 0
B71: Channels
C72: Dry Swale/Bioswale | D72: Acres | E72: 0 | H72: =IF(F72-G72>1,0,1-(F72-G72)) -> 1 | I72: =(E72*F72*43560*0.95*J72/12+E72*(1-IF((F72+G72)>1,1,F72+G72))*43560*0.22*J72/12+E72*IF(G72+F72>1,1-F72,G72)*43560*0.4*J72/12)/0.95/(J72/12)/43560 -> 0 | J72: 1 | K72: =IF(N72="RR",IF((0.0308*(J72^5)-0.2562*(J72^4)+0.8634*(J72^3)-1.5285*(J72^2)+1.501*J72-0.013)>0.7,0.7,IF((0.0308*(J72^5)-0.2562*(J72^4)+0.8634*(J72^3)-1.5285*(J72^2)+1.501*J72-0.013)<0,0,(0.0308*(J72^5)-0.2562*(J72^4)+0.8634*(J72^3)-1.5285*(J72^2)+1.501*J72-0.013))),IF((0.0152*(J72^5)-0.131*(J72^4)+0.4581*(J72^3)-0.8418*(J72^2)+0.8536*J72-0.0046)>0.65,0.65,IF((0.0152*(J72^5)-0.131*(J72^4)+0.4581*(J72^3)-0.8418*(J72^2)+0.8536*J72-0.0046)<0,0,(0.0152*(J72^5)-0.131*(J72^4)+0.4581*(J72^3)-0.8418*(J72^2)+0.8536*J72-0.0046)))) -> 0.5975 | L72: =IF(N72="RR",IF((0.0304*(J72^5)-0.2619*(J72^4)+0.9161*(J72^3)-1.6837*(J72^2)+1.7072*J72-0.0091)>0.85,0.85,IF((0.0304*(J72^5)-0.2619*(J72^4)+0.9161*(J72^3)-1.6837*(J72^2)+1.7072*J72-0.0091)<0,0,(0.0304*(J72^5)-0.2619*(J72^4)+0.9161*(J72^3)-1.6837*(J72^2)+1.7072*J72-0.0091))),IF((0.0239*(J72^5)-0.2058*(J72^4)+0.7198*(J72^3)-1.3229*(J72^2)+1.3414*J72-0.0072)>0.65,0.65,IF((0.0239*(J72^5)-0.2058*(J72^4)+0.7198*(J72^3)-1.3229*(J72^2)+1.3414*J72-0.0072)<0,0,(0.0239*(J72^5)-0.2058*(J72^4)+0.7198*(J72^3)-1.3229*(J72^2)+1.3414*J72-0.0072)))) -> 0.699 | M72: =IF(N72="RR",IF((0.0326*(J72^5)-0.2806*(J72^4)+0.9816*(J72^3)-1.8039*(J72^2)+1.8292*J72-0.0098)>0.85,0.85,IF((0.0326*(J72^5)-0.2806*(J72^4)+0.9816*(J72^3)-1.8039*(J72^2)+1.8292*J72-0.0098)<0,0,(0.0326*(J72^5)-0.2806*(J72^4)+0.9816*(J72^3)-1.8039*(J72^2)+1.8292*J72-0.0098))),IF((0.0304*(J72^5)-0.2619*(J72^4)+0.9161*(J72^3)-1.6837*(J72^2)+1.7072*J72-0.0091)>0.8,0.8,IF((0.0304*(J72^5)-0.2619*(J72^4)+0.9161*(J72^3)-1.6837*(J72^2)+1.7072*J72-0.0091)<0,0,(0.0304*(J72^5)-0.2619*(J72^4)+0.9161*(J72^3)-1.6837*(J72^2)+1.7072*J72-0.0091)))) -> 0.7491 | N72: RR | Q72: =(SUMIFS(Selected[TN lbs/ac],Selected[Landuse],IF($D$9="Yes","County Phase I/II MS4 Pervious","nonregulated pervious developed"))*($E72*(1-IF(F72+G72>1,1,F72+G72)))+SUMIFS(Selected[TN lbs/ac],Selected[Landuse],IF($D$9="Yes","County Phase I/II MS4 Impervious","nonregulated impervious developed"))*($F72*$E72))*$K72 -> 0 | R72: =(SUMIFS(Selected[TP lbs/ac],Selected[Landuse],IF($D$9="Yes","County Phase I/II MS4 Pervious","nonregulated pervious developed"))*($E72*(1-IF(F72+G72>1,1,F72+G72)))+SUMIFS(Selected[TP lbs/ac],Selected[Landuse],IF($D$9="Yes","County Phase I/II MS4 Impervious","nonregulated impervious developed"))*($F72*$E72))*$L72 -> 0 | S72: =(SUMIFS(Selected[TSS lbs/ac],Selected[Landuse],IF($D$9="Yes","County Phase I/II MS4 Pervious","nonregulated pervious developed"))*($E72*(1-IF(F72+G72>1,1,F72+G72)))+SUMIFS(Selected[TSS lbs/ac],Selected[Landuse],IF($D$9="Yes","County Phase I/II MS4 Impervious","nonregulated impervious developed"))*($F72*$E72))*$M72 -> 0 | V72: =SUMIFS(CurrentBMP[Average Annual Cost/Unit (used in scenario calculations)],CurrentBMP[Practice],C72)*I72 -> 0 | Y72: =SUMIFS(Selected[Lbs Nitrogen-Delivered],Selected[Sector],"=Agriculture")/SUMIFS(Selected[PostBMPAcres],Selected[Sector],"=Agriculture")*E72*IF(F72+G72>1,1-G72,G72) -> 0 | Z72: =SUMIFS(Selected[Lbs Phosphorus-Delivered],Selected[Sector],"=Agriculture")/SUMIFS(Selected[PostBMPAcres],Selected[Sector],"=Agriculture")*E72*IF(F72+G72>1,1-G72,G72) -> 0 | AA72: =SUMIFS(Selected[Lbs Sediment-Delivered],Selected[Sector],"=Agriculture")/SUMIFS(Selected[PostBMPAcres],Selected[Sector],"=Agriculture")*E72*IF(F72+G72>1,1-G72,G72) -> 0 | AB72: =IF(F72+G72>1,1-F72,G72)*E72 -> 0
C73: Wet Swale | D73: Acres | E73: 0 | H73: 1 | I73: =(E73*F73*43560*0.95*J73/12+E73*(1-IF((F73+G73)>1,1,F73+G73))*43560*0.22*J73/12+E73*IF(G73+F73>1,1-F73,G73)*43560*0.4*J73/12)/0.95/(J73/12)/43560 -> 0 | J73: 1 | K73: =IF(N73="RR",IF((0.0308*(J73^5)-0.2562*(J73^4)+0.8634*(J73^3)-1.5285*(J73^2)+1.501*J73-0.013)>0.7,0.7,IF((0.0308*(J73^5)-0.2562*(J73^4)+0.8634*(J73^3)-1.5285*(J73^2)+1.501*J73-0.013)<0,0,(0.0308*(J73^5)-0.2562*(J73^4)+0.8634*(J73^3)-1.5285*(J73^2)+1.501*J73-0.013))),IF((0.0152*(J73^5)-0.131*(J73^4)+0.4581*(J73^3)-0.8418*(J73^2)+0.8536*J73-0.0046)>0.65,0.65,IF((0.0152*(J73^5)-0.131*(J73^4)+0.4581*(J73^3)-0.8418*(J73^2)+0.8536*J73-0.0046)<0,0,(0.0152*(J73^5)-0.131*(J73^4)+0.4581*(J73^3)-0.8418*(J73^2)+0.8536*J73-0.0046)))) -> 0.3495 | L73: =IF(N73="RR",IF((0.0304*(J73^5)-0.2619*(J73^4)+0.9161*(J73^3)-1.6837*(J73^2)+1.7072*J73-0.0091)>0.85,0.85,IF((0.0304*(J73^5)-0.2619*(J73^4)+0.9161*(J73^3)-1.6837*(J73^2)+1.7072*J73-0.0091)<0,0,(0.0304*(J73^5)-0.2619*(J73^4)+0.9161*(J73^3)-1.6837*(J73^2)+1.7072*J73-0.0091))),IF((0.0239*(J73^5)-0.2058*(J73^4)+0.7198*(J73^3)-1.3229*(J73^2)+1.3414*J73-0.0072)>0.65,0.65,IF((0.0239*(J73^5)-0.2058*(J73^4)+0.7198*(J73^3)-1.3229*(J73^2)+1.3414*J73-0.0072)<0,0,(0.0239*(J73^5)-0.2058*(J73^4)+0.7198*(J73^3)-1.3229*(J73^2)+1.3414*J73-0.0072)))) -> 0.5492 | M73: =IF(N73="RR",IF((0.0326*(J73^5)-0.2806*(J73^4)+0.9816*(J73^3)-1.8039*(J73^2)+1.8292*J73-0.0098)>0.85,0.85,IF((0.0326*(J73^5)-0.2806*(J73^4)+0.9816*(J73^3)-1.8039*(J73^2)+1.8292*J73-0.0098)<0,0,(0.0326*(J73^5)-0.2806*(J73^4)+0.9816*(J73^3)-1.8039*(J73^2)+1.8292*J73-0.0098))),IF((0.0304*(J73^5)-0.2619*(J73^4)+0.9161*(J73^3)-1.6837*(J73^2)+1.7072*J73-0.0091)>0.8,0.8,IF((0.0304*(J73^5)-0.2619*(J73^4)+0.9161*(J73^3)-1.6837*(J73^2)+1.7072*J73-0.0091)<0,0,(0.0304*(J73^5)-0.2619*(J73^4)+0.9161*(J73^3)-1.6837*(J73^2)+1.7072*J73-0.0091)))) -> 0.699 | N73: ST | Q73: =(SUMIFS(Selected[TN lbs/ac],Selected[Landuse],IF($D$9="Yes","County Phase I/II MS4 Pervious","nonregulated pervious developed"))*($E73*(1-IF(F73+G73>1,1,F73+G73)))+SUMIFS(Selected[TN lbs/ac],Selected[Landuse],IF($D$9="Yes","County Phase I/II MS4 Impervious","nonregulated impervious developed"))*($F73*$E73))*$K73 -> 0 | R73: =(SUMIFS(Selected[TP lbs/ac],Selected[Landuse],IF($D$9="Yes","County Phase I/II MS4 Pervious","nonregulated pervious developed"))*($E73*(1-IF(F73+G73>1,1,F73+G73)))+SUMIFS(Selected[TP lbs/ac],Selected[Landuse],IF($D$9="Yes","County Phase I/II MS4 Impervious","nonregulated impervious developed"))*($F73*$E73))*$L73 -> 0 | S73: =(SUMIFS(Selected[TSS lbs/ac],Selected[Landuse],IF($D$9="Yes","County Phase I/II MS4 Pervious","nonregulated pervious developed"))*($E73*(1-IF(F73+G73>1,1,F73+G73)))+SUMIFS(Selected[TSS lbs/ac],Selected[Landuse],IF($D$9="Yes","County Phase I/II MS4 Impervious","nonregulated impervious developed"))*($F73*$E73))*$M73 -> 0 | V73: =SUMIFS(CurrentBMP[Average Annual Cost/Unit (used in scenario calculations)],CurrentBMP[Practice],C73)*I73 -> 0 | Y73: =SUMIFS(Selected[Lbs Nitrogen-Delivered],Selected[Sector],"=Agriculture")/SUMIFS(Selected[PostBMPAcres],Selected[Sector],"=Agriculture")*E73*IF(F73+G73>1,1-G73,G73) -> 0 | Z73: =SUMIFS(Selected[Lbs Phosphorus-Delivered],Selected[Sector],"=Agriculture")/SUMIFS(Selected[PostBMPAcres],Selected[Sector],"=Agriculture")*E73*IF(F73+G73>1,1-G73,G73) -> 0 | AA73: =SUMIFS(Selected[Lbs Sediment-Delivered],Selected[Sector],"=Agriculture")/SUMIFS(Selected[PostBMPAcres],Selected[Sector],"=Agriculture")*E73*IF(F73+G73>1,1-G73,G73) -> 0 | AB73: 0
C74: Vegetated Open Channels | D74: Acres | E74: 0 | H74: 1 | I74: =(E74*F74*43560*0.95*J74/12+E74*(1-IF((F74+G74)>1,1,F74+G74))*43560*0.22*J74/12+E74*IF(G74+F74>1,1-F74,G74)*43560*0.4*J74/12)/0.95/(J74/12)/43560 -> 0 | J74: 1 | K74: =IF(N74="RR",IF((0.0308*(J74^5)-0.2562*(J74^4)+0.8634*(J74^3)-1.5285*(J74^2)+1.501*J74-0.013)>0.7,0.7,IF((0.0308*(J74^5)-0.2562*(J74^4)+0.8634*(J74^3)-1.5285*(J74^2)+1.501*J74-0.013)<0,0,(0.0308*(J74^5)-0.2562*(J74^4)+0.8634*(J74^3)-1.5285*(J74^2)+1.501*J74-0.013))),IF((0.0152*(J74^5)-0.131*(J74^4)+0.4581*(J74^3)-0.8418*(J74^2)+0.8536*J74-0.0046)>0.65,0.65,IF((0.0152*(J74^5)-0.131*(J74^4)+0.4581*(J74^3)-0.8418*(J74^2)+0.8536*J74-0.0046)<0,0,(0.0152*(J74^5)-0.131*(J74^4)+0.4581*(J74^3)-0.8418*(J74^2)+0.8536*J74-0.0046)))) -> 0.3495 | L74: =IF(N74="RR",IF((0.0304*(J74^5)-0.2619*(J74^4)+0.9161*(J74^3)-1.6837*(J74^2)+1.7072*J74-0.0091)>0.85,0.85,IF((0.0304*(J74^5)-0.2619*(J74^4)+0.9161*(J74^3)-1.6837*(J74^2)+1.7072*J74-0.0091)<0,0,(0.0304*(J74^5)-0.2619*(J74^4)+0.9161*(J74^3)-1.6837*(J74^2)+1.7072*J74-0.0091))),IF((0.0239*(J74^5)-0.2058*(J74^4)+0.7198*(J74^3)-1.3229*(J74^2)+1.3414*J74-0.0072)>0.65,0.65,IF((0.0239*(J74^5)-0.2058*(J74^4)+0.7198*(J74^3)-1.3229*(J74^2)+1.3414*J74-0.0072)<0,0,(0.0239*(J74^5)-0.2058*(J74^4)+0.7198*(J74^3)-1.3229*(J74^2)+1.3414*J74-0.0072)))) -> 0.5492 | M74: =IF(N74="RR",IF((0.0326*(J74^5)-0.2806*(J74^4)+0.9816*(J74^3)-1.8039*(J74^2)+1.8292*J74-0.0098)>0.85,0.85,IF((0.0326*(J74^5)-0.2806*(J74^4)+0.9816*(J74^3)-1.8039*(J74^2)+1.8292*J74-0.0098)<0,0,(0.0326*(J74^5)-0.2806*(J74^4)+0.9816*(J74^3)-1.8039*(J74^2)+1.8292*J74-0.0098))),IF((0.0304*(J74^5)-0.2619*(J74^4)+0.9161*(J74^3)-1.6837*(J74^2)+1.7072*J74-0.0091)>0.8,0.8,IF((0.0304*(J74^5)-0.2619*(J74^4)+0.9161*(J74^3)-1.6837*(J74^2)+1.7072*J74-0.0091)<0,0,(0.0304*(J74^5)-0.2619*(J74^4)+0.9161*(J74^3)-1.6837*(J74^2)+1.7072*J74-0.0091)))) -> 0.699 | N74: ST | Q74: =(SUMIFS(Selected[TN lbs/ac],Selected[Landuse],IF($D$9="Yes","County Phase I/II MS4 Pervious","nonregulated pervious developed"))*($E74*(1-IF(F74+G74>1,1,F74+G74)))+SUMIFS(Selected[TN lbs/ac],Selected[Landuse],IF($D$9="Yes","County Phase I/II MS4 Impervious","nonregulated impervious developed"))*($F74*$E74))*$K74 -> 0 | R74: =(SUMIFS(Selected[TP lbs/ac],Selected[Landuse],IF($D$9="Yes","County Phase I/II MS4 Pervious","nonregulated pervious developed"))*($E74*(1-IF(F74+G74>1,1,F74+G74)))+SUMIFS(Selected[TP lbs/ac],Selected[Landuse],IF($D$9="Yes","County Phase I/II MS4 Impervious","nonregulated impervious developed"))*($F74*$E74))*$L74 -> 0 | S74: =(SUMIFS(Selected[TSS lbs/ac],Selected[Landuse],IF($D$9="Yes","County Phase I/II MS4 Pervious","nonregulated pervious developed"))*($E74*(1-IF(F74+G74>1,1,F74+G74)))+SUMIFS(Selected[TSS lbs/ac],Selected[Landuse],IF($D$9="Yes","County Phase I/II MS4 Impervious","nonregulated impervious developed"))*($F74*$E74))*$M74 -> 0 | V74: =SUMIFS(CurrentBMP[Average Annual Cost/Unit (used in scenario calculations)],CurrentBMP[Practice],C74)*I74 -> 0 | Y74: =SUMIFS(Selected[Lbs Nitrogen-Delivered],Selected[Sector],"=Agriculture")/SUMIFS(Selected[PostBMPAcres],Selected[Sector],"=Agriculture")*E74*IF(F74+G74>1,1-G74,G74) -> 0 | Z74: =SUMIFS(Selected[Lbs Phosphorus-Delivered],Selected[Sector],"=Agriculture")/SUMIFS(Selected[PostBMPAcres],Selected[Sector],"=Agriculture")*E74*IF(F74+G74>1,1-G74,G74) -> 0 | AA74: =SUMIFS(Selected[Lbs Sediment-Delivered],Selected[Sector],"=Agriculture")/SUMIFS(Selected[PostBMPAcres],Selected[Sector],"=Agriculture")*E74*IF(F74+G74>1,1-G74,G74) -> 0 | AB74: 0
C75: Regenerative Stormwater Conveyance | D75: Acres | E75: 0 | H75: 1 | I75: =(E75*F75*43560*0.95*J75/12+E75*(1-IF((F75+G75)>1,1,F75+G75))*43560*0.22*J75/12+E75*IF(G75+F75>1,1-F75,G75)*43560*0.4*J75/12)/0.95/(J75/12)/43560 -> 0 | J75: 1 | K75: =IF(N75="RR",IF((0.0308*(J75^5)-0.2562*(J75^4)+0.8634*(J75^3)-1.5285*(J75^2)+1.501*J75-0.013)>0.7,0.7,IF((0.0308*(J75^5)-0.2562*(J75^4)+0.8634*(J75^3)-1.5285*(J75^2)+1.501*J75-0.013)<0,0,(0.0308*(J75^5)-0.2562*(J75^4)+0.8634*(J75^3)-1.5285*(J75^2)+1.501*J75-0.013))),IF((0.0152*(J75^5)-0.131*(J75^4)+0.4581*(J75^3)-0.8418*(J75^2)+0.8536*J75-0.0046)>0.65,0.65,IF((0.0152*(J75^5)-0.131*(J75^4)+0.4581*(J75^3)-0.8418*(J75^2)+0.8536*J75-0.0046)<0,0,(0.0152*(J75^5)-0.131*(J75^4)+0.4581*(J75^3)-0.8418*(J75^2)+0.8536*J75-0.0046)))) -> 0.5975 | L75: =IF(N75="RR",IF((0.0304*(J75^5)-0.2619*(J75^4)+0.9161*(J75^3)-1.6837*(J75^2)+1.7072*J75-0.0091)>0.85,0.85,IF((0.0304*(J75^5)-0.2619*(J75^4)+0.9161*(J75^3)-1.6837*(J75^2)+1.7072*J75-0.0091)<0,0,(0.0304*(J75^5)-0.2619*(J75^4)+0.9161*(J75^3)-1.6837*(J75^2)+1.7072*J75-0.0091))),IF((0.0239*(J75^5)-0.2058*(J75^4)+0.7198*(J75^3)-1.3229*(J75^2)+1.3414*J75-0.0072)>0.65,0.65,IF((0.0239*(J75^5)-0.2058*(J75^4)+0.7198*(J75^3)-1.3229*(J75^2)+1.3414*J75-0.0072)<0,0,(0.0239*(J75^5)-0.2058*(J75^4)+0.7198*(J75^3)-1.3229*(J75^2)+1.3414*J75-0.0072)))) -> 0.699 | M75: =IF(N75="RR",IF((0.0326*(J75^5)-0.2806*(J75^4)+0.9816*(J75^3)-1.8039*(J75^2)+1.8292*J75-0.0098)>0.85,0.85,IF((0.0326*(J75^5)-0.2806*(J75^4)+0.9816*(J75^3)-1.8039*(J75^2)+1.8292*J75-0.0098)<0,0,(0.0326*(J75^5)-0.2806*(J75^4)+0.9816*(J75^3)-1.8039*(J75^2)+1.8292*J75-0.0098))),IF((0.0304*(J75^5)-0.2619*(J75^4)+0.9161*(J75^3)-1.6837*(J75^2)+1.7072*J75-0.0091)>0.8,0.8,IF((0.0304*(J75^5)-0.2619*(J75^4)+0.9161*(J75^3)-1.6837*(J75^2)+1.7072*J75-0.0091)<0,0,(0.0304*(J75^5)-0.2619*(J75^4)+0.9161*(J75^3)-1.6837*(J75^2)+1.7072*J75-0.0091)))) -> 0.7491 | N75: RR | Q75: =(SUMIFS(Selected[TN lbs/ac],Selected[Landuse],IF($D$9="Yes","County Phase I/II MS4 Pervious","nonregulated pervious developed"))*($E75*(1-IF(F75+G75>1,1,F75+G75)))+SUMIFS(Selected[TN lbs/ac],Selected[Landuse],IF($D$9="Yes","County Phase I/II MS4 Impervious","nonregulated impervious developed"))*($F75*$E75))*$K75 -> 0 | R75: =(SUMIFS(Selected[TP lbs/ac],Selected[Landuse],IF($D$9="Yes","County Phase I/II MS4 Pervious","nonregulated pervious developed"))*($E75*(1-IF(F75+G75>1,1,F75+G75)))+SUMIFS(Selected[TP lbs/ac],Selected[Landuse],IF($D$9="Yes","County Phase I/II MS4 Impervious","nonregulated impervious developed"))*($F75*$E75))*$L75 -> 0 | S75: =(SUMIFS(Selected[TSS lbs/ac],Selected[Landuse],IF($D$9="Yes","County Phase I/II MS4 Pervious","nonregulated pervious developed"))*($E75*(1-IF(F75+G75>1,1,F75+G75)))+SUMIFS(Selected[TSS lbs/ac],Selected[Landuse],IF($D$9="Yes","County Phase I/II MS4 Impervious","nonregulated impervious developed"))*($F75*$E75))*$M75 -> 0 | V75: =SUMIFS(CurrentBMP[Average Annual Cost/Unit (used in scenario calculations)],CurrentBMP[Practice],C75)*I75 -> 0 | Y75: =SUMIFS(Selected[Lbs Nitrogen-Delivered],Selected[Sector],"=Agriculture")/SUMIFS(Selected[PostBMPAcres],Selected[Sector],"=Agriculture")*E75*IF(F75+G75>1,1-G75,G75) -> 0 | Z75: =SUMIFS(Selected[Lbs Phosphorus-Delivered],Selected[Sector],"=Agriculture")/SUMIFS(Selected[PostBMPAcres],Selected[Sector],"=Agriculture")*E75*IF(F75+G75>1,1-G75,G75) -> 0 | AA75: =SUMIFS(Selected[Lbs Sediment-Delivered],Selected[Sector],"=Agriculture")/SUMIFS(Selected[PostBMPAcres],Selected[Sector],"=Agriculture")*E75*IF(F75+G75>1,1-G75,G75) -> 0 | AB75: 0
B77: Ponds/Wetlands
C78: Wet Ponds | D78: Acres | E78: 0 | H78: =IF(F78-G78>1,0,1-(F78-G78)) -> 1 | I78: =(E78*F78*43560*0.95*J78/12+E78*(1-IF((F78+G78)>1,1,F78+G78))*43560*0.22*J78/12+E78*IF(G78+F78>1,1-F78,G78)*43560*0.4*J78/12)/0.95/(J78/12)/43560 -> 0 | J78: 1 | K78: =IF(N78="RR",IF((0.0308*(J78^5)-0.2562*(J78^4)+0.8634*(J78^3)-1.5285*(J78^2)+1.501*J78-0.013)>0.7,0.7,IF((0.0308*(J78^5)-0.2562*(J78^4)+0.8634*(J78^3)-1.5285*(J78^2)+1.501*J78-0.013)<0,0,(0.0308*(J78^5)-0.2562*(J78^4)+0.8634*(J78^3)-1.5285*(J78^2)+1.501*J78-0.013))),IF((0.0152*(J78^5)-0.131*(J78^4)+0.4581*(J78^3)-0.8418*(J78^2)+0.8536*J78-0.0046)>0.65,0.65,IF((0.0152*(J78^5)-0.131*(J78^4)+0.4581*(J78^3)-0.8418*(J78^2)+0.8536*J78-0.0046)<0,0,(0.0152*(J78^5)-0.131*(J78^4)+0.4581*(J78^3)-0.8418*(J78^2)+0.8536*J78-0.0046)))) -> 0.3495 | L78: =IF(N78="RR",IF((0.0304*(J78^5)-0.2619*(J78^4)+0.9161*(J78^3)-1.6837*(J78^2)+1.7072*J78-0.0091)>0.85,0.85,IF((0.0304*(J78^5)-0.2619*(J78^4)+0.9161*(J78^3)-1.6837*(J78^2)+1.7072*J78-0.0091)<0,0,(0.0304*(J78^5)-0.2619*(J78^4)+0.9161*(J78^3)-1.6837*(J78^2)+1.7072*J78-0.0091))),IF((0.0239*(J78^5)-0.2058*(J78^4)+0.7198*(J78^3)-1.3229*(J78^2)+1.3414*J78-0.0072)>0.65,0.65,IF((0.0239*(J78^5)-0.2058*(J78^4)+0.7198*(J78^3)-1.3229*(J78^2)+1.3414*J78-0.0072)<0,0,(0.0239*(J78^5)-0.2058*(J78^4)+0.7198*(J78^3)-1.3229*(J78^2)+1.3414*J78-0.0072)))) -> 0.5492 | M78: =IF(N78="RR",IF((0.0326*(J78^5)-0.2806*(J78^4)+0.9816*(J78^3)-1.8039*(J78^2)+1.8292*J78-0.0098)>0.85,0.85,IF((0.0326*(J78^5)-0.2806*(J78^4)+0.9816*(J78^3)-1.8039*(J78^2)+1.8292*J78-0.0098)<0,0,(0.0326*(J78^5)-0.2806*(J78^4)+0.9816*(J78^3)-1.8039*(J78^2)+1.8292*J78-0.0098))),IF((0.0304*(J78^5)-0.2619*(J78^4)+0.9161*(J78^3)-1.6837*(J78^2)+1.7072*J78-0.0091)>0.8,0.8,IF((0.0304*(J78^5)-0.2619*(J78^4)+0.9161*(J78^3)-1.6837*(J78^2)+1.7072*J78-0.0091)<0,0,(0.0304*(J78^5)-0.2619*(J78^4)+0.9161*(J78^3)-1.6837*(J78^2)+1.7072*J78-0.0091)))) -> 0.699 | N78: ST | Q78: =(SUMIFS(Selected[TN lbs/ac],Selected[Landuse],IF($D$9="Yes","County Phase I/II MS4 Pervious","nonregulated pervious developed"))*($E78*(1-IF(F78+G78>1,1,F78+G78)))+SUMIFS(Selected[TN lbs/ac],Selected[Landuse],IF($D$9="Yes","County Phase I/II MS4 Impervious","nonregulated impervious developed"))*($F78*$E78))*$K78 -> 0 | R78: =(SUMIFS(Selected[TP lbs/ac],Selected[Landuse],IF($D$9="Yes","County Phase I/II MS4 Pervious","nonregulated pervious developed"))*($E78*(1-IF(F78+G78>1,1,F78+G78)))+SUMIFS(Selected[TP lbs/ac],Selected[Landuse],IF($D$9="Yes","County Phase I/II MS4 Impervious","nonregulated impervious developed"))*($F78*$E78))*$L78 -> 0 | S78: =(SUMIFS(Selected[TSS lbs/ac],Selected[Landuse],IF($D$9="Yes","County Phase I/II MS4 Pervious","nonregulated pervious developed"))*($E78*(1-IF(F78+G78>1,1,F78+G78)))+SUMIFS(Selected[TSS lbs/ac],Selected[Landuse],IF($D$9="Yes","County Phase I/II MS4 Impervious","nonregulated impervious developed"))*($F78*$E78))*$M78 -> 0 | V78: =SUMIFS(CurrentBMP[Average Annual Cost/Unit (used in scenario calculations)],CurrentBMP[Practice],C78)*I78 -> 0 | Y78: =SUMIFS(Selected[Lbs Nitrogen-Delivered],Selected[Sector],"=Agriculture")/SUMIFS(Selected[PostBMPAcres],Selected[Sector],"=Agriculture")*E78*IF(F78+G78>1,1-G78,G78) -> 0 | Z78: =SUMIFS(Selected[Lbs Phosphorus-Delivered],Selected[Sector],"=Agriculture")/SUMIFS(Selected[PostBMPAcres],Selected[Sector],"=Agriculture")*E78*IF(F78+G78>1,1-G78,G78) -> 0 | AA78: =SUMIFS(Selected[Lbs Sediment-Delivered],Selected[Sector],"=Agriculture")/SUMIFS(Selected[PostBMPAcres],Selected[Sector],"=Agriculture")*E78*IF(F78+G78>1,1-G78,G78) -> 0 | AB78: =IF(F78+G78>1,1-F78,G78)*E78 -> 0
C79: Constructed Wetlands | D79: Acres | E79: 0 | H79: 1 | I79: =(E79*F79*43560*0.95*J79/12+E79*(1-IF((F79+G79)>1,1,F79+G79))*43560*0.22*J79/12+E79*IF(G79+F79>1,1-F79,G79)*43560*0.4*J79/12)/0.95/(J79/12)/43560 -> 0 | J79: 1 | K79: =IF(N79="RR",IF((0.0308*(J79^5)-0.2562*(J79^4)+0.8634*(J79^3)-1.5285*(J79^2)+1.501*J79-0.013)>0.7,0.7,IF((0.0308*(J79^5)-0.2562*(J79^4)+0.8634*(J79^3)-1.5285*(J79^2)+1.501*J79-0.013)<0,0,(0.0308*(J79^5)-0.2562*(J79^4)+0.8634*(J79^3)-1.5285*(J79^2)+1.501*J79-0.013))),IF((0.0152*(J79^5)-0.131*(J79^4)+0.4581*(J79^3)-0.8418*(J79^2)+0.8536*J79-0.0046)>0.65,0.65,IF((0.0152*(J79^5)-0.131*(J79^4)+0.4581*(J79^3)-0.8418*(J79^2)+0.8536*J79-0.0046)<0,0,(0.0152*(J79^5)-0.131*(J79^4)+0.4581*(J79^3)-0.8418*(J79^2)+0.8536*J79-0.0046)))) -> 0.3495 | L79: =IF(N79="RR",IF((0.0304*(J79^5)-0.2619*(J79^4)+0.9161*(J79^3)-1.6837*(J79^2)+1.7072*J79-0.0091)>0.85,0.85,IF((0.0304*(J79^5)-0.2619*(J79^4)+0.9161*(J79^3)-1.6837*(J79^2)+1.7072*J79-0.0091)<0,0,(0.0304*(J79^5)-0.2619*(J79^4)+0.9161*(J79^3)-1.6837*(J79^2)+1.7072*J79-0.0091))),IF((0.0239*(J79^5)-0.2058*(J79^4)+0.7198*(J79^3)-1.3229*(J79^2)+1.3414*J79-0.0072)>0.65,0.65,IF((0.0239*(J79^5)-0.2058*(J79^4)+0.7198*(J79^3)-1.3229*(J79^2)+1.3414*J79-0.0072)<0,0,(0.0239*(J79^5)-0.2058*(J79^4)+0.7198*(J79^3)-1.3229*(J79^2)+1.3414*J79-0.0072)))) -> 0.5492 | M79: =IF(N79="RR",IF((0.0326*(J79^5)-0.2806*(J79^4)+0.9816*(J79^3)-1.8039*(J79^2)+1.8292*J79-0.0098)>0.85,0.85,IF((0.0326*(J79^5)-0.2806*(J79^4)+0.9816*(J79^3)-1.8039*(J79^2)+1.8292*J79-0.0098)<0,0,(0.0326*(J79^5)-0.2806*(J79^4)+0.9816*(J79^3)-1.8039*(J79^2)+1.8292*J79-0.0098))),IF((0.0304*(J79^5)-0.2619*(J79^4)+0.9161*(J79^3)-1.6837*(J79^2)+1.7072*J79-0.0091)>0.8,0.8,IF((0.0304*(J79^5)-0.2619*(J79^4)+0.9161*(J79^3)-1.6837*(J79^2)+1.7072*J79-0.0091)<0,0,(0.0304*(J79^5)-0.2619*(J79^4)+0.9161*(J79^3)-1.6837*(J79^2)+1.7072*J79-0.0091)))) -> 0.699 | N79: ST | Q79: =(SUMIFS(Selected[TN lbs/ac],Selected[Landuse],IF($D$9="Yes","County Phase I/II MS4 Pervious","nonregulated pervious developed"))*($E79*(1-IF(F79+G79>1,1,F79+G79)))+SUMIFS(Selected[TN lbs/ac],Selected[Landuse],IF($D$9="Yes","County Phase I/II MS4 Impervious","nonregulated impervious developed"))*($F79*$E79))*$K79 -> 0 | R79: =(SUMIFS(Selected[TP lbs/ac],Selected[Landuse],IF($D$9="Yes","County Phase I/II MS4 Pervious","nonregulated pervious developed"))*($E79*(1-IF(F79+G79>1,1,F79+G79)))+SUMIFS(Selected[TP lbs/ac],Selected[Landuse],IF($D$9="Yes","County Phase I/II MS4 Impervious","nonregulated impervious developed"))*($F79*$E79))*$L79 -> 0 | S79: =(SUMIFS(Selected[TSS lbs/ac],Selected[Landuse],IF($D$9="Yes","County Phase I/II MS4 Pervious","nonregulated pervious developed"))*($E79*(1-IF(F79+G79>1,1,F79+G79)))+SUMIFS(Selected[TSS lbs/ac],Selected[Landuse],IF($D$9="Yes","County Phase I/II MS4 Impervious","nonregulated impervious developed"))*($F79*$E79))*$M79 -> 0 | V79: =SUMIFS(CurrentBMP[Average Annual Cost/Unit (used in scenario calculations)],CurrentBMP[Practice],C79)*I79 -> 0 | Y79: =SUMIFS(Selected[Lbs Nitrogen-Delivered],Selected[Sector],"=Agriculture")/SUMIFS(Selected[PostBMPAcres],Selected[Sector],"=Agriculture")*E79*IF(F79+G79>1,1-G79,G79) -> 0 | Z79: =SUMIFS(Selected[Lbs Phosphorus-Delivered],Selected[Sector],"=Agriculture")/SUMIFS(Selected[PostBMPAcres],Selected[Sector],"=Agriculture")*E79*IF(F79+G79>1,1-G79,G79) -> 0 | AA79: =SUMIFS(Selected[Lbs Sediment-Delivered],Selected[Sector],"=Agriculture")/SUMIFS(Selected[PostBMPAcres],Selected[Sector],"=Agriculture")*E79*IF(F79+G79>1,1-G79,G79) -> 0 | AB79: 0
C80: Extended Detention Ponds | D80: Acres | E80: 0 | H80: 1 | I80: =(E80*F80*43560*0.95*J80/12+E80*(1-IF((F80+G80)>1,1,F80+G80))*43560*0.22*J80/12+E80*IF(G80+F80>1,1-F80,G80)*43560*0.4*J80/12)/0.95/(J80/12)/43560 -> 0 | J80: 1 | K80: 0.2 | L80: 0.2 | M80: 0.6 | N80: NA | Q80: =(SUMIFS(Selected[TN lbs/ac],Selected[Landuse],IF($D$9="Yes","County Phase I/II MS4 Pervious","nonregulated pervious developed"))*($E80*(1-IF(F80+G80>1,1,F80+G80)))+SUMIFS(Selected[TN lbs/ac],Selected[Landuse],IF($D$9="Yes","County Phase I/II MS4 Impervious","nonregulated impervious developed"))*($F80*$E80))*$K80 -> 0 | R80: =(SUMIFS(Selected[TP lbs/ac],Selected[Landuse],IF($D$9="Yes","County Phase I/II MS4 Pervious","nonregulated pervious developed"))*($E80*(1-IF(F80+G80>1,1,F80+G80)))+SUMIFS(Selected[TP lbs/ac],Selected[Landuse],IF($D$9="Yes","County Phase I/II MS4 Impervious","nonregulated impervious developed"))*($F80*$E80))*$L80 -> 0 | S80: =(SUMIFS(Selected[TSS lbs/ac],Selected[Landuse],IF($D$9="Yes","County Phase I/II MS4 Pervious","nonregulated pervious developed"))*($E80*(1-IF(F80+G80>1,1,F80+G80)))+SUMIFS(Selected[TSS lbs/ac],Selected[Landuse],IF($D$9="Yes","County Phase I/II MS4 Impervious","nonregulated impervious developed"))*($F80*$E80))*$M80 -> 0 | V80: =SUMIFS(CurrentBMP[Average Annual Cost/Unit (used in scenario calculations)],CurrentBMP[Practice],C80)*I80 -> 0 | Y80: =SUMIFS(Selected[Lbs Nitrogen-Delivered],Selected[Sector],"=Agriculture")/SUMIFS(Selected[PostBMPAcres],Selected[Sector],"=Agriculture")*E80*IF(F80+G80>1,1-G80,G80) -> 0 | Z80: =SUMIFS(Selected[Lbs Phosphorus-Delivered],Selected[Sector],"=Agriculture")/SUMIFS(Selected[PostBMPAcres],Selected[Sector],"=Agriculture")*E80*IF(F80+G80>1,1-G80,G80) -> 0 | AA80: =SUMIFS(Selected[Lbs Sediment-Delivered],Selected[Sector],"=Agriculture")/SUMIFS(Selected[PostBMPAcres],Selected[Sector],"=Agriculture")*E80*IF(F80+G80>1,1-G80,G80) -> 0 | AB80: 0
B82: Conversion/Enhancement
C83: Ditch Enhancement | D83: Acres | E83: 0 | H83: =IF(F83-G83>1,0,1-(F83-G83)) -> 1 | I83: =(E83*F83*43560*0.95*J83/12+E83*(1-IF((F83+G83)>1,1,F83+G83))*43560*0.22*J83/12+E83*IF(G83+F83>1,1-F83,G83)*43560*0.4*J83/12)/0.95/(J83/12)/43560 -> 0 | J83: 1 | K83: =IF(N83="RR",IF((0.0308*(J83^5)-0.2562*(J83^4)+0.8634*(J83^3)-1.5285*(J83^2)+1.501*J83-0.013)>0.7,0.7,IF((0.0308*(J83^5)-0.2562*(J83^4)+0.8634*(J83^3)-1.5285*(J83^2)+1.501*J83-0.013)<0,0,(0.0308*(J83^5)-0.2562*(J83^4)+0.8634*(J83^3)-1.5285*(J83^2)+1.501*J83-0.013))),IF((0.0152*(J83^5)-0.131*(J83^4)+0.4581*(J83^3)-0.8418*(J83^2)+0.8536*J83-0.0046)>0.65,0.65,IF((0.0152*(J83^5)-0.131*(J83^4)+0.4581*(J83^3)-0.8418*(J83^2)+0.8536*J83-0.0046)<0,0,(0.0152*(J83^5)-0.131*(J83^4)+0.4581*(J83^3)-0.8418*(J83^2)+0.8536*J83-0.0046)))) -> 0.5975 | L83: =IF(N83="RR",IF((0.0304*(J83^5)-0.2619*(J83^4)+0.9161*(J83^3)-1.6837*(J83^2)+1.7072*J83-0.0091)>0.85,0.85,IF((0.0304*(J83^5)-0.2619*(J83^4)+0.9161*(J83^3)-1.6837*(J83^2)+1.7072*J83-0.0091)<0,0,(0.0304*(J83^5)-0.2619*(J83^4)+0.9161*(J83^3)-1.6837*(J83^2)+1.7072*J83-0.0091))),IF((0.0239*(J83^5)-0.2058*(J83^4)+0.7198*(J83^3)-1.3229*(J83^2)+1.3414*J83-0.0072)>0.65,0.65,IF((0.0239*(J83^5)-0.2058*(J83^4)+0.7198*(J83^3)-1.3229*(J83^2)+1.3414*J83-0.0072)<0,0,(0.0239*(J83^5)-0.2058*(J83^4)+0.7198*(J83^3)-1.3229*(J83^2)+1.3414*J83-0.0072)))) -> 0.699 | M83: =IF(N83="RR",IF((0.0326*(J83^5)-0.2806*(J83^4)+0.9816*(J83^3)-1.8039*(J83^2)+1.8292*J83-0.0098)>0.85,0.85,IF((0.0326*(J83^5)-0.2806*(J83^4)+0.9816*(J83^3)-1.8039*(J83^2)+1.8292*J83-0.0098)<0,0,(0.0326*(J83^5)-0.2806*(J83^4)+0.9816*(J83^3)-1.8039*(J83^2)+1.8292*J83-0.0098))),IF((0.0304*(J83^5)-0.2619*(J83^4)+0.9161*(J83^3)-1.6837*(J83^2)+1.7072*J83-0.0091)>0.8,0.8,IF((0.0304*(J83^5)-0.2619*(J83^4)+0.9161*(J83^3)-1.6837*(J83^2)+1.7072*J83-0.0091)<0,0,(0.0304*(J83^5)-0.2619*(J83^4)+0.9161*(J83^3)-1.6837*(J83^2)+1.7072*J83-0.0091)))) -> 0.7491 | N83: RR | Q83: =(SUMIFS(Selected[TN lbs/ac],Selected[Landuse],IF($D$9="Yes","County Phase I/II MS4 Pervious","nonregulated pervious developed"))*($E83*(1-IF(F83+G83>1,1,F83+G83)))+SUMIFS(Selected[TN lbs/ac],Selected[Landuse],IF($D$9="Yes","County Phase I/II MS4 Impervious","nonregulated impervious developed"))*($F83*$E83))*$K83 -> 0 | R83: =(SUMIFS(Selected[TP lbs/ac],Selected[Landuse],IF($D$9="Yes","County Phase I/II MS4 Pervious","nonregulated pervious developed"))*($E83*(1-IF(F83+G83>1,1,F83+G83)))+SUMIFS(Selected[TP lbs/ac],Selected[Landuse],IF($D$9="Yes","County Phase I/II MS4 Impervious","nonregulated impervious developed"))*($F83*$E83))*$L83 -> 0 | S83: =(SUMIFS(Selected[TSS lbs/ac],Selected[Landuse],IF($D$9="Yes","County Phase I/II MS4 Pervious","nonregulated pervious developed"))*($E83*(1-IF(F83+G83>1,1,F83+G83)))+SUMIFS(Selected[TSS lbs/ac],Selected[Landuse],IF($D$9="Yes","County Phase I/II MS4 Impervious","nonregulated impervious developed"))*($F83*$E83))*$M83 -> 0 | V83: =SUMIFS(CurrentBMP[Average Annual Cost/Unit (used in scenario calculations)],CurrentBMP[Practice],C83)*I83 -> 0 | Y83: =SUMIFS(Selected[Lbs Nitrogen-Delivered],Selected[Sector],"=Agriculture")/SUMIFS(Selected[PostBMPAcres],Selected[Sector],"=Agriculture")*E83*IF(F83+G83>1,1-G83,G83) -> 0 | Z83: =SUMIFS(Selected[Lbs Phosphorus-Delivered],Selected[Sector],"=Agriculture")/SUMIFS(Selected[PostBMPAcres],Selected[Sector],"=Agriculture")*E83*IF(F83+G83>1,1-G83,G83) -> 0 | AA83: =SUMIFS(Selected[Lbs Sediment-Delivered],Selected[Sector],"=Agriculture")/SUMIFS(Selected[PostBMPAcres],Selected[Sector],"=Agriculture")*E83*IF(F83+G83>1,1-G83,G83) -> 0 | AB83: =IF(F83+G83>1,1-F83,G83)*E83 -> 0
C84: Conversion of Dry Pond to Wet Pond | D84: Acres | E84: 0 | H84: 1 | I84: =(E84*F84*43560*0.95*J84/12+E84*(1-IF((F84+G84)>1,1,F84+G84))*43560*0.22*J84/12+E84*IF(G84+F84>1,1-F84,G84)*43560*0.4*J84/12)/0.95/(J84/12)/43560 -> 0 | J84: 1 | K84: =IF(N84="RR",IF((0.0308*(J84^5)-0.2562*(J84^4)+0.8634*(J84^3)-1.5285*(J84^2)+1.501*J84-0.013)>0.7,0.7,IF((0.0308*(J84^5)-0.2562*(J84^4)+0.8634*(J84^3)-1.5285*(J84^2)+1.501*J84-0.013)<0,0,(0.0308*(J84^5)-0.2562*(J84^4)+0.8634*(J84^3)-1.5285*(J84^2)+1.501*J84-0.013))),IF((0.0152*(J84^5)-0.131*(J84^4)+0.4581*(J84^3)-0.8418*(J84^2)+0.8536*J84-0.0046)>0.65,0.65,IF((0.0152*(J84^5)-0.131*(J84^4)+0.4581*(J84^3)-0.8418*(J84^2)+0.8536*J84-0.0046)<0,0,(0.0152*(J84^5)-0.131*(J84^4)+0.4581*(J84^3)-0.8418*(J84^2)+0.8536*J84-0.0046)))) -> 0.3495 | L84: =IF(N84="RR",IF((0.0304*(J84^5)-0.2619*(J84^4)+0.9161*(J84^3)-1.6837*(J84^2)+1.7072*J84-0.0091)>0.85,0.85,IF((0.0304*(J84^5)-0.2619*(J84^4)+0.9161*(J84^3)-1.6837*(J84^2)+1.7072*J84-0.0091)<0,0,(0.0304*(J84^5)-0.2619*(J84^4)+0.9161*(J84^3)-1.6837*(J84^2)+1.7072*J84-0.0091))),IF((0.0239*(J84^5)-0.2058*(J84^4)+0.7198*(J84^3)-1.3229*(J84^2)+1.3414*J84-0.0072)>0.65,0.65,IF((0.0239*(J84^5)-0.2058*(J84^4)+0.7198*(J84^3)-1.3229*(J84^2)+1.3414*J84-0.0072)<0,0,(0.0239*(J84^5)-0.2058*(J84^4)+0.7198*(J84^3)-1.3229*(J84^2)+1.3414*J84-0.0072)))) -> 0.5492 | M84: =IF(N84="RR",IF((0.0326*(J84^5)-0.2806*(J84^4)+0.9816*(J84^3)-1.8039*(J84^2)+1.8292*J84-0.0098)>0.85,0.85,IF((0.0326*(J84^5)-0.2806*(J84^4)+0.9816*(J84^3)-1.8039*(J84^2)+1.8292*J84-0.0098)<0,0,(0.0326*(J84^5)-0.2806*(J84^4)+0.9816*(J84^3)-1.8039*(J84^2)+1.8292*J84-0.0098))),IF((0.0304*(J84^5)-0.2619*(J84^4)+0.9161*(J84^3)-1.6837*(J84^2)+1.7072*J84-0.0091)>0.8,0.8,IF((0.0304*(J84^5)-0.2619*(J84^4)+0.9161*(J84^3)-1.6837*(J84^2)+1.7072*J84-0.0091)<0,0,(0.0304*(J84^5)-0.2619*(J84^4)+0.9161*(J84^3)-1.6837*(J84^2)+1.7072*J84-0.0091)))) -> 0.699 | N84: ST | Q84: =(SUMIFS(Selected[TN lbs/ac],Selected[Landuse],IF($D$9="Yes","County Phase I/II MS4 Pervious","nonregulated pervious developed"))*($E84*(1-IF(F84+G84>1,1,F84+G84)))+SUMIFS(Selected[TN lbs/ac],Selected[Landuse],IF($D$9="Yes","County Phase I/II MS4 Impervious","nonregulated impervious developed"))*($F84*$E84))*$K84 -> 0 | R84: =(SUMIFS(Selected[TP lbs/ac],Selected[Landuse],IF($D$9="Yes","County Phase I/II MS4 Pervious","nonregulated pervious developed"))*($E84*(1-IF(F84+G84>1,1,F84+G84)))+SUMIFS(Selected[TP lbs/ac],Selected[Landuse],IF($D$9="Yes","County Phase I/II MS4 Impervious","nonregulated impervious developed"))*($F84*$E84))*$L84 -> 0 | S84: =(SUMIFS(Selected[TSS lbs/ac],Selected[Landuse],IF($D$9="Yes","County Phase I/II MS4 Pervious","nonregulated pervious developed"))*($E84*(1-IF(F84+G84>1,1,F84+G84)))+SUMIFS(Selected[TSS lbs/ac],Selected[Landuse],IF($D$9="Yes","County Phase I/II MS4 Impervious","nonregulated impervious developed"))*($F84*$E84))*$M84 -> 0 | V84: =SUMIFS(CurrentBMP[Average Annual Cost/Unit (used in scenario calculations)],CurrentBMP[Practice],C84)*I84 -> 0 | Y84: =SUMIFS(Selected[Lbs Nitrogen-Delivered],Selected[Sector],"=Agriculture")/SUMIFS(Selected[PostBMPAcres],Selected[Sector],"=Agriculture")*E84*IF(F84+G84>1,1-G84,G84) -> 0 | Z84: =SUMIFS(Selected[Lbs Phosphorus-Delivered],Selected[Sector],"=Agriculture")/SUMIFS(Selected[PostBMPAcres],Selected[Sector],"=Agriculture")*E84*IF(F84+G84>1,1-G84,G84) -> 0 | AA84: =SUMIFS(Selected[Lbs Sediment-Delivered],Selected[Sector],"=Agriculture")/SUMIFS(Selected[PostBMPAcres],Selected[Sector],"=Agriculture")*E84*IF(F84+G84>1,1-G84,G84) -> 0 | AB84: 0
B86: Land Use Change BMPs | D86: Units | E86: Maximum Practical Units Treated | J86: Water Treated (per impervious acre)
J87: inches | K87: Initial Land Use | L87: New Land Use
B88: Forest Buffer | D88: Acres | E88: 0 | I88: =E88 -> 0 | J88: NA | K88: nonregulated pervious developed | L88: forest | Q88: =(IF(SUMIFS(Selected[TN lbs/ac],Selected[Landuse],$K88)-SUMIFS(Selected[TN lbs/ac],Selected[Landuse],$L88)<0,SUMIFS(Selected[TN lbs/ac],Selected[Landuse],$K88),SUMIFS(Selected[TN lbs/ac],Selected[Landuse],$L88))+SUMIFS(Selected[TN lbs/ac],Selected[Landuse],$K88)*0.25)*E88 -> 0 | R88: =(IF(SUMIFS(Selected[TP lbs/ac],Selected[Landuse],$K88)-SUMIFS(Selected[TP lbs/ac],Selected[Landuse],$L88)<0,SUMIFS(Selected[TP lbs/ac],Selected[Landuse],$K88),SUMIFS(Selected[TP lbs/ac],Selected[Landuse],$L88))+SUMIFS(Selected[TP lbs/ac],Selected[Landuse],$K88)*0.5)*E88 -> 0 | S88: =(IF(SUMIFS(Selected[TSS lbs/ac],Selected[Landuse],$K88)-SUMIFS(Selected[TSS lbs/ac],Selected[Landuse],$L88)<0,SUMIFS(Selected[TSS lbs/ac],Selected[Landuse],$K88),SUMIFS(Selected[TSS lbs/ac],Selected[Landuse],$L88))+SUMIFS(Selected[TSS lbs/ac],Selected[Landuse],$K88)*0.5)*E88 -> 0 | V88: =SUMIFS(CurrentBMP[Average Annual Cost/Unit (used in scenario calculations)],CurrentBMP[Practice],B88)*E88 -> 0
B89: Urban Tree Planting | D89: Acres | E89: 0 | I89: =E89 -> 0 | J89: NA | K89: nonregulated impervious developed | L89: forest | Q89: =(SUMIFS(Selected[TN lbs/ac],Selected[Landuse],$K89)-SUMIFS(Selected[TN lbs/ac],Selected[Landuse],$L89))*E89 -> 0 | R89: =(SUMIFS(Selected[TP lbs/ac],Selected[Landuse],$K89)-SUMIFS(Selected[TP lbs/ac],Selected[Landuse],$L89))*E89 -> 0 | S89: =(SUMIFS(Selected[TSS lbs/ac],Selected[Landuse],$K89)-SUMIFS(Selected[TSS lbs/ac],Selected[Landuse],$L89))*E89 -> 0 | V89: =SUMIFS(CurrentBMP[Average Annual Cost/Unit (used in scenario calculations)],CurrentBMP[Practice],B89)*E89 -> 0
B90: Impervious Cover Removal | D90: Acres | E90: 0 | I90: 0 | J90: NA | K90: nonregulated impervious developed | L90: nonregulated pervious developed | Q90: =(SUMIFS(Selected[TN lbs/ac],Selected[Landuse],$K90)-SUMIFS(Selected[TN lbs/ac],Selected[Landuse],$L90))*E90 -> 0 | R90: =(SUMIFS(Selected[TP lbs/ac],Selected[Landuse],$K90)-SUMIFS(Selected[TP lbs/ac],Selected[Landuse],$L90))*E90 -> 0 | S90: =(SUMIFS(Selected[TSS lbs/ac],Selected[Landuse],$K90)-SUMIFS(Selected[TSS lbs/ac],Selected[Landuse],$L90))*E90 -> 0 | V90: =SUMIFS(CurrentBMP[Average Annual Cost/Unit (used in scenario calculations)],CurrentBMP[Practice],B90)*E90 -> 0
B91: Urban Cover Crop | D91: Acres | E91: 0 | I91: 0 | J91: NA | K91: nonregulated pervious developed | L91: hay without nutrients | Q91: =(SUMIFS(Selected[TN lbs/ac],Selected[Landuse],$K91)-SUMIFS(Selected[TN lbs/ac],Selected[Landuse],$L91))*E91 -> 0 | R91: =(SUMIFS(Selected[TP lbs/ac],Selected[Landuse],$K91)-SUMIFS(Selected[TP lbs/ac],Selected[Landuse],$L91))*E91 -> 0 | S91: =(SUMIFS(Selected[TSS lbs/ac],Selected[Landuse],$K91)-SUMIFS(Selected[TSS lbs/ac],Selected[Landuse],$L91))*E91 -> 0 | V91: =SUMIFS(CurrentBMP[Average Annual Cost/Unit (used in scenario calculations)],CurrentBMP[Practice],B91)*E91 -> 0
J92: Assumed Storm for analysis (Recommend 1-yr 24-hr) | K92: TN Reduction | L92: TP Reduction | M92: TSS Reduction | N92: CN reductions | P92: Runoff Reduced
J93: inches | K93: % | L93: % | M93: % | N93: Assumed CN before Planting | O93: Assumed CN After Planting | P93: inches
B94: Soil Augmentation | D94: Acres | E94: 0 | I94: =(E94*43560*0.95*J94/12+E94*43560*0.22*J94/12)/0.95/(J94/12)/43560 -> 0 | J94: 2.6 | K94: =IF(D94="RR",IF((0.0308*(P94^5)-0.2562*(P94^4)+0.8634*(P94^3)-1.5285*(P94^2)+1.501*P94-0.013)>0.7,0.7,IF((0.0308*(P94^5)-0.2562*(P94^4)+0.8634*(P94^3)-1.5285*(P94^2)+1.501*P94-0.013)<0,0,(0.0308*(P94^5)-0.2562*(P94^4)+0.8634*(P94^3)-1.5285*(P94^2)+1.501*P94-0.013))),IF((0.0152*(P94^5)-0.131*(P94^4)+0.4581*(P94^3)-0.8418*(P94^2)+0.8536*P94-0.0046)>0.65,0.65,IF((0.0152*(P94^5)-0.131*(P94^4)+0.4581*(P94^3)-0.8418*(P94^2)+0.8536*P94-0.0046)<0,0,(0.0152*(P94^5)-0.131*(P94^4)+0.4581*(P94^3)-0.8418*(P94^2)+0.8536*P94-0.0046)))) -> 0.07001275169 | L94: =IF(D94="RR",IF((0.0304*(P94^5)-0.2619*(P94^4)+0.9161*(P94^3)-1.6837*(P94^2)+1.7072*P94-0.0091)>0.85,0.85,IF((0.0304*(P94^5)-0.2619*(P94^4)+0.9161*(P94^3)-1.6837*(P94^2)+1.7072*P94-0.0091)<0,0,(0.0304*(P94^5)-0.2619*(P94^4)+0.9161*(P94^3)-1.6837*(P94^2)+1.7072*P94-0.0091))),IF((0.0239*(P94^5)-0.2058*(P94^4)+0.7198*(P94^3)-1.3229*(P94^2)+1.3414*P94-0.0072)>0.65,0.65,IF((0.0239*(P94^5)-0.2058*(P94^4)+0.7198*(P94^3)-1.3229*(P94^2)+1.3414*P94-0.0072)<0,0,(0.0239*(P94^5)-0.2058*(P94^4)+0.7198*(P94^3)-1.3229*(P94^2)+1.3414*P94-0.0072)))) -> 0.1100506367 | M94: =IF(D94="RR",IF((0.0326*(P94^5)-0.2806*(P94^4)+0.9816*(P94^3)-1.8039*(P94^2)+1.8292*P94-0.0098)>0.85,0.85,IF((0.0326*(P94^5)-0.2806*(P94^4)+0.9816*(P94^3)-1.8039*(P94^2)+1.8292*P94-0.0098)<0,0,(0.0326*(P94^5)-0.2806*(P94^4)+0.9816*(P94^3)-1.8039*(P94^2)+1.8292*P94-0.0098))),IF((0.0304*(P94^5)-0.2619*(P94^4)+0.9161*(P94^3)-1.6837*(P94^2)+1.7072*P94-0.0091)>0.8,0.8,IF((0.0304*(P94^5)-0.2619*(P94^4)+0.9161*(P94^3)-1.6837*(P94^2)+1.7072*P94-0.0091)<0,0,(0.0304*(P94^5)-0.2619*(P94^4)+0.9161*(P94^3)-1.6837*(P94^2)+1.7072*P94-0.0091)))) -> 0.1401245009 | N94: 80 | O94: 70 | P94: =(J94-0.2*(1000/N94-10))^0.5/(J94+0.8*(1000/N94-10))-(J94-0.2*(1000/O94-10))^0.5/(J94+0.8*(1000/O94-10)) -> 0.09604386193 | Q94: =(SUMIFS(Selected[TN lbs/ac],Selected[Landuse],IF($D$9="Yes","County Phase I/II MS4 Pervious","nonregulated pervious developed"))*($E94))*$K94 -> 0 | R94: =(SUMIFS(Selected[TP lbs/ac],Selected[Landuse],IF($D$9="Yes","County Phase I/II MS4 Pervious","nonregulated pervious developed"))*($E94))*$L94 -> 0 | S94: =(SUMIFS(Selected[TSS lbs/ac],Selected[Landuse],IF($D$9="Yes","County Phase I/II MS4 Pervious","nonregulated pervious developed"))*($E94))*$M94 -> 0 | V94: =SUMIFS(CurrentBMP[Average Annual Cost/Unit (used in scenario calculations)],CurrentBMP[Practice],B94)*E94 -> 0
B97: Municipal Programs and Other Practices | D97: Units | E97: Maximum Practical Units Treated | F97: Estimated Impervious Cover % in Drainage Area
B98: Pet Waste Program | D98: Number of pet waste stations | E98: 0 | I98: =E98 -> 0 | Q98: ='BMP Costs'!C159*0.23*0.25 -> 0 | R98: ='BMP Costs'!C159*0.01*0.75 -> 0 | V98: =IF(E98>0,SUMIFS(CurrentBMP[Average Annual Cost/Unit (used in scenario calculations)],CurrentBMP[Practice],B98),0)*E98 -> 0
B100: Street Sweeping | E100: =SUM(I101:I103) -> 0 | I100: =SUM(I101:I103) -> 0 | K100: 0.03 | L100: 0.03 | M100: 0.09 | Q100: =(SUMIFS(Selected[TN lbs/ac],Selected[Landuse],IF($D$9="Yes","County Phase I/II MS4 impervious","nonregulated impervious developed"))*($E101))*$K100+$E102*0.00175 -> 0 | R100: =(SUMIFS(Selected[TP lbs/ac],Selected[Landuse],IF($D$9="Yes","County Phase I/II MS4 impervious","nonregulated impervious developed"))*($E101))*$L100+$E102*0.0007 -> 0 | S100: =(SUMIFS(Selected[TSS lbs/ac],Selected[Landuse],IF($D$9="Yes","County Phase I/II MS4 impervious","nonregulated impervious developed"))*($E101))*$M100+($E102-$E102*0.00175-$E102*0.0007)+$E103 -> 0 | T100: =SUMIFS(Selected[TSS lbs/ac],Selected[Landuse],IF($D$9="Yes","County Phase I/II MS4 Impervious","nonregulated Impervious developed"))*M100 -> 138.5147403 | V100: =SUMIFS(CurrentBMP[Average Annual Cost/Unit (used in scenario calculations)],CurrentBMP[Practice],B100)*(E101+I102+I103) -> 0
C101: 25 times per year (no weighing) | D101: Acres | E101: 0 | F101: 1 | H101: =IF(F101-G101>1,0,1-(F101-G101)) -> 0 | I101: =E101 -> 0
C102: 25 times per year (weighing) | D102: Pounds | I102: =S102/T100 -> 0 | J102: Sediment Equivalent Imp. Area
C103: Sporadic (weighing) | D103: Pounds | I103: =S103/T100 -> 0 | J103: Sediment Equivalent Imp. Area
B105: Urban Nutrient Management (not available in Maryland) | Q105: =(SUMIFS(Selected[TN lbs/ac],Selected[Landuse],IF($D$9="Yes","County Phase I/II MS4 Pervious","nonregulated pervious developed"))*($E106))*$K106+(SUMIFS(Selected[TN lbs/ac],Selected[Landuse],IF($D$9="Yes","County Phase I/II MS4 Pervious","nonregulated pervious developed"))*($E107))*$K107 -> 0 | V105: =SUMIFS(CurrentBMP[Average Annual Cost/Unit (used in scenario calculations)],CurrentBMP[Practice],B105)*(E106+E107) -> 0
C106: Commercial Applicator | D106: Acres | K106: 0.09
C107: Homeowner Application | D107: Acres | K107: 0.045
B109: Outfall Netting System | D109: Acres | E109: 0 | H109: =IF(F109-G109>1,0,1-(F109-G109)) -> 1 | I109: =E109*F109 -> 0 | K109: 0.006681 | L109: 0.008765 | Q109: =(SUMIFS(Selected[TN lbs/ac],Selected[Landuse],IF($D$9="Yes","County Phase I/II MS4 Pervious","nonregulated pervious developed"))*($E109-$F109*$E109)*K109+SUMIFS(Selected[TN lbs/ac],Selected[Landuse],IF($D$9="Yes","County Phase I/II MS4 Impervious","nonregulated impervious developed"))*($F109*$E109)*K109) -> 0 | R109: =(SUMIFS(Selected[TP lbs/ac],Selected[Landuse],IF($D$9="Yes","County Phase I/II MS4 Pervious","nonregulated pervious developed"))*($E109-$F109*$E109)*L109+SUMIFS(Selected[TP lbs/ac],Selected[Landuse],IF($D$9="Yes","County Phase I/II MS4 Impervious","nonregulated impervious developed"))*($F109*$E109)*L109) -> 0 | V109: =SUMIFS(CurrentBMP[Average Annual Cost/Unit (used in scenario calculations)],CurrentBMP[Practice],B109)*I109 -> 0
B111: Illicit Discharge Detection and Elimination Program
C113: Advanced IDDE Program (interim 5-yr credit) | D113: Number of programs | K113: 0.01 | L113: 0.01 | M113: 0.01 | Q113: =IF((SUMIFS(Selected[TN lbs/ac],Selected[Landuse],IF($D$9="Yes","County Phase I/II MS4 Pervious","nonregulated pervious developed"))*($E113-$F113*$E113))*$K113*0.2>0.17*Q183,0.17*Q183,(SUMIFS(Selected[TN lbs/ac],Selected[Landuse],IF($D$9="Yes","County Phase I/II MS4 Pervious","nonregulated pervious developed"))*($E113-$F113*$E113))*$K113*0.2) -> 0 | R113: =IF((SUMIFS(Selected[TP lbs/ac],Selected[Landuse],IF($D$9="Yes","County Phase I/II MS4 Pervious","nonregulated pervious developed"))*($E113-$F113*$E113))*$L113*0.2>0.58*R183,0.58*R183,(SUMIFS(Selected[TP lbs/ac],Selected[Landuse],IF($D$9="Yes","County Phase I/II MS4 Pervious","nonregulated pervious developed"))*($E113-$F113*$E113))*$L113*0.2) -> 0 | S113: =(SUMIFS(Selected[TSS lbs/ac],Selected[Landuse],IF($D$9="Yes","County Phase I/II MS4 Pervious","nonregulated pervious developed"))*($E113-$F113*$E113))*$M113*0.2 -> 0 | V113: =SUMIFS(CurrentBMP[Average Annual Cost/Unit (used in scenario calculations)],CurrentBMP[Practice],C113)*E113 -> 0
C114: OR
C115: Correction of Cross-Connections | D115: Number of corrections | Q115: =E117 -> 0 | R115: =E118 -> 0 | S115: =E119 -> 0 | V115: =SUMIFS(CurrentBMP[Average Annual Cost/Unit (used in scenario calculations)],CurrentBMP[Practice],"Correction of Cross-Connections")*E115 -> 0
D116: Pollutant | E116: lbs reduced
D117: TN
D118: TP
D119: TSS
C121: Sewer Repair | D121: Number of repairs | Q121: =E123 -> 0 | R121: =E124 -> 0 | S121: =E125 -> 5 | V121: =SUMIFS(CurrentBMP[Average Annual Cost/Unit (used in scenario calculations)],CurrentBMP[Practice],"Sewer Repair")*E121 -> 0
D122: Pollutant | E122: lbs reduced
D123: TN
D124: TP
D125: TSS | E125: 5
E127: Maximum Practical Units Treated | F127: Estimated Impervious Cover % in Drainage Area | G127: Estimated Agricultural Cover % in Drainage Area
B128: User Defined BMP | D128: Acres | E128: 0 | H128: =IF(F128-G128>1,0,1-(F128-G128)) -> 1 | I128: =(E128*F128*43560*0.95*J128/12+E128*(1-IF((F128+G128)>1,1,F128+G128))*43560*0.22*J128/12+E128*IF(G128+F128>1,1-F128,G128)*43560*0.4*J128/12)/0.95/(J128/12)/43560 -> 0 | J128: 1 | K128: =C130 -> 0 | L128: =C131 -> 0 | M128: =C132 -> 0 | Q128: =(SUMIFS(Selected[TN lbs/ac],Selected[Landuse],IF($D$9="Yes","County Phase I/II MS4 Pervious","nonregulated pervious developed"))*($E128*(1-IF(F128+G128>1,1,F128+G128)))+SUMIFS(Selected[TN lbs/ac],Selected[Landuse],IF($D$9="Yes","County Phase I/II MS4 Impervious","nonregulated impervious developed"))*($F128*$E128))*$K128 -> 0 | R128: =(SUMIFS(Selected[TP lbs/ac],Selected[Landuse],IF($D$9="Yes","County Phase I/II MS4 Pervious","nonregulated pervious developed"))*($E128*(1-IF(F128+G128>1,1,F128+G128)))+SUMIFS(Selected[TP lbs/ac],Selected[Landuse],IF($D$9="Yes","County Phase I/II MS4 Impervious","nonregulated impervious developed"))*($F128*$E128))*$L128 -> 0 | S128: =(SUMIFS(Selected[TSS lbs/ac],Selected[Landuse],IF($D$9="Yes","County Phase I/II MS4 Pervious","nonregulated pervious developed"))*($E128*(1-IF(F128+G128>1,1,F128+G128)))+SUMIFS(Selected[TSS lbs/ac],Selected[Landuse],IF($D$9="Yes","County Phase I/II MS4 Impervious","nonregulated impervious developed"))*($F128*$E128))*$M128 -> 0 | V128: =SUMIFS(UserCost[User-Defined Annual Cost per Unit],UserCost[BMP],'Scenario Setup'!B128)*E128 -> 0 | Y128: =SUMIFS(Selected[Lbs Nitrogen-Delivered],Selected[Sector],"=Agriculture")/SUMIFS(Selected[PostBMPAcres],Selected[Sector],"=Agriculture")*E128*IF(F128+G128>1,1-G128,G128) -> 0 | Z128: =SUMIFS(Selected[Lbs Phosphorus-Delivered],Selected[Sector],"=Agriculture")/SUMIFS(Selected[PostBMPAcres],Selected[Sector],"=Agriculture")*E128*IF(F128+G128>1,1-G128,G128) -> 0 | AA128: =SUMIFS(Selected[Lbs Sediment-Delivered],Selected[Sector],"=Agriculture")/SUMIFS(Selected[PostBMPAcres],Selected[Sector],"=Agriculture")*E128*IF(F128+G128>1,1-G128,G128) -> 0 | AB128: =IF(F128+G128>1,1-F128,G128)*E128 -> 0
B129: Pollutant | C129: Removal Efficiency (%)
B130: TN
B131: TP
B132: TSS
B134: Living Shoreline | D134: Linear feet | E134: 0 | I134: =E134 -> 0 | Q134: =IF(E134*IF(ISBLANK(C137),2,C137)*IF(ISBLANK(C138),2,C138)*93.6*0.0005*0+E134*C136/43560*(85+6.83)>1/3*Q183,1/3*Q183,E134*IF(ISBLANK(C137),2,C137)*IF(ISBLANK(C138),2,C138)*93.6*0.0005*0+E134*C136/43560*(85+6.83)) -> 0 | R134: =IF(E134*IF(ISBLANK(C137),2,C137)*IF(ISBLANK(C138),2,C138)*93.6*0.0005*0+E134*C136/43560*(0.3+5.289)>1/3*R183,R183,E134*IF(ISBLANK(C137),2,C137)*IF(ISBLANK(C138),2,C138)*93.6*0.0005*0+E134*C136/43560*(0.3+5.289)) -> 0 | S134: =E134*IF(ISBLANK(C137),2,C137)*IF(ISBLANK(C138),2,C138)*93.6*0.5+E134*C136/43560*6959 -> 0 | V134: =SUMIFS(CurrentBMP[Average Annual Cost/Unit (used in scenario calculations)],CurrentBMP[Practice],B134)*E134 -> 0
B135: Other Inputs | C135: Value
B136: Width of Vegetated Area (ft) | C136: 10
B137: Average Bank Height (ft) | C137: 10
B138: Recession Rate (ft) | C138: 10
E139: Maximum Practical Units Treated | F139: Estimated Impervious Cover % in Drainage Area
B140: Stream Restoration | D140: Acres | I140: =E142+E149 -> 0 | Q140: =(SUMIFS(Selected[TN lbs/ac],Selected[Landuse],IF($D$9="Yes","County Phase I/II MS4 Pervious","nonregulated pervious developed"))*($E140-$F140*$E140)+SUMIFS(Selected[TN lbs/ac],Selected[Landuse],IF($D$9="Yes","County Phase I/II MS4 Impervious","nonregulated impervious developed"))*($F140*$E140))*$K155+0.075*E142+62.4*E149*E148*E147/2000*K149*0.5+(10+E152)*5*62.4*E153/2000*0.000106*365 -> 0 | R140: =(SUMIFS(Selected[TP lbs/ac],Selected[Landuse],IF($D$9="Yes","County Phase I/II MS4 Pervious","nonregulated pervious developed"))*($E140-$F140*$E140)+SUMIFS(Selected[TP lbs/ac],Selected[Landuse],IF($D$9="Yes","County Phase I/II MS4 Impervious","nonregulated impervious developed"))*($F140*$E140))*$L155+0.068*E142+62.4*E149*E148*E147/2000*L149*0.5 -> 0 | S140: =(SUMIFS(Selected[TSS lbs/ac],Selected[Landuse],IF($D$9="Yes","County Phase I/II MS4 Pervious","nonregulated pervious developed"))*($E140-$F140*$E140)+SUMIFS(Selected[TSS lbs/ac],Selected[Landuse],IF($D$9="Yes","County Phase I/II MS4 Impervious","nonregulated impervious developed"))*($F140*$E140))*$M155+43.4*E142+62.4*E149*E148*E147*0.5 -> 0 | V140: =SUMIFS(CurrentBMP[Average Annual Cost/Unit (used in scenario calculations)],CurrentBMP[Practice],B140)*(E142+E149) -> 0
B141: Enter Units Treated for EITHER 1) the Interim Rate option or 2) the Expert Panel Protocols
C142: Interim Rate option: | D142: Linear feet | E142: 0
B143: Stream Restoration | E143: =E142+E149 -> 0
C145: Expert Panel Protocols:
C146: Protocol 1 - Sediment Prevented (assumes a 50% reduction efficiency)
C147: Stream Erosion Rate | D147: Feet per year
C148: Bank Height | D148: Feet | K148: Stream protocol 1 nitrogen number (has been pulled from expert panel report - was 2.28) | L148: Stream protocol 1 phosphorus number (has been pulled from expert panel report - was 1.05)
C149: Stream Restoration Length | D149: Feet | E149: 0 | K149: 2.28 | L149: 1.05
C151: Protocol 2 - Nutrient Processing (not to exceed 40% of the nitrate loading for the watershed)
C152: Stream Width at Median Baseflow | D152: Feet
C153: Stream Restoration Length | D153: Feet | E153: 0
C155: Protocol 3 - Floodplain Reconnection | K155: =MarylandCountyList!Y15 -> 0 | L155: =MarylandCountyList!Y16 -> 0 | M155: =MarylandCountyList!Y17 -> 0
C156: Floodplain Width | D156: Feet
C157: Stream Restoration Length | D157: Feet | E157: 0
C158: Floodplain Storage | D158: cubic feet | E158: =E156*E157*1 -> 0
C159: Watershed Curve Number
C160: Rain Event to Access Floodplain | D160: Inches
B167: Cross Sector Trading (must be done in goal area) | E167: Willingness to Pay | F167: Credits to Buy
E168: $/lb Reduced | F168: lbs/year
C169: Cross Sector Trading (Nitrogen) | D169: TN | E169: ='Optimization Results'!A17 -> 0 | F169: ='Optimization Results'!A20 -> 0 | I169: =F169 -> 0 | Q169: =F169 -> 0 | V169: =E169*Q169 -> 0
C170: Cross Sector Trading (Phosphorus) | D170: TP | E170: ='Optimization Results'!B17 -> 0 | F170: ='Optimization Results'!B20 -> 0 | I170: =F170 -> 0 | R170: =F170 -> 0 | V170: =E170*R170 -> 0
A172: The acres of impervious and pervious land treated with the BMPs selected above are tallied below and shown next to the total acres of each type
A173: of land in the County of interest, to ensure the proposed units treated do not exceed the available acres. For scenarios run at a scale other
A174: than the County, the user can enter in the available acres of impervious and pervious land in their area of interest.
B175: Type of Developed Land | C175: Acres Available in Selected County | D175: Acres Available (for custom area of interest) | E175: Treated Area Tally
B176: Impervious | C176: =SUMIFS(Selected[PostBMPAcres],Selected[Landuse],"nonregulated impervious developed")+SUMIFS(Selected[PostBMPAcres],Selected[Landuse],"County Phase I/II MS4 Impervious")+SUMIFS(Selected[PostBMPAcres],Selected[Landuse],"Municipal Phase II MS4 Impervious") -> 5976.8 | E176: =(E128*F128+E109*F109+E101*F101)+SUMPRODUCT(E50:E84,F50:F84) -> 0 | F176: =IF(E176>IF(D176>0,D176,C176),"Caution: Treatment area is larger than developed area","") -> 
B177: Pervious | C177: =SUMIFS(Selected[PostBMPAcres],Selected[Landuse],"nonregulated pervious developed")+SUMIFS(Selected[PostBMPAcres],Selected[Landuse],"County Phase I/II MS4 Pervious")+SUMIFS(Selected[PostBMPAcres],Selected[Landuse],"Municipal Phase II MS4 Pervious") -> 10698.3 | E177: =(E128*H128+E109*H109+E101*H101)+SUMPRODUCT(E50:E84,H50:H84) -> 0 | F177: =IF(E177>IF(D177>0,D177,C177),"Caution: Treatment area is larger than develped area","") -> 
A180: 3. Select a High Priority BMP (optional):
A181: If desired, select one or more BMP Types that you wish to receive a higher weight during the optimization | Q181: =SUM(Q60:Q168) -> 0 | R181: =SUM(R60:R168) -> 0 | S181: =SUM(S60:S168) -> 5
A182: This optional step allows the Tool to account for outside factors, such as community support, when developing scenarios
P183: Waste Load Allocation Reduction Goals | Q183: =IF(F15>0,F15,E15) -> 8513.530245 | R183: =IF(F16>0,F16,E16) -> 3898.624894 | S183: =IF(F17>0,F17,0) -> 0
C185: BMP Type | Q185: =Q183-Q181 -> 8513.530245 | R185: =R183-R181 -> 3898.624894 | S185: =IF(S183=0,"Not Applicable",S183-S181) -> Not Applicable
C186: None

Sheet BMP Costs
A1: Stormwater BMP Costs | B1: Required User Input | C1: BMPs that receive Chesapeake Bay Program credit
B2: Optional Input Cells | C2: BMPs that do not currently receive Chesapeake Bay Program credit
B3: Results Cells
A5: 1. Variables Used to Develop Annualized Costs:
A6: Annualized life cycle costs for each BMP were estimated as the annual bond payment required to finance the initial cost (including design, construction and land)
A7: of the BMP plus average annual routine and intermittent maintenance costs.
A8: Review the major assumptions used below and replace the defaults provided if necessary to better reflect the local conditions/situation.
A10: Variable | B10: Value
A11: Opportunity cost of developable land ($/acre) | B11: 100000
A12: Typical proportion of land that is developable (%) | B12: 0.5
A13: Interest rate associated with bond payment to finance construction (%) | B13: 0.03
A14: Number of years over which to project costs | B14: 20
A19: 2. BMP Cost Data:
A20: For each BMP, an average annual cost per unit treated is provided below, based on the County selected in the Scenario Setup sheet.
A21: Review the County-Specific costs, and if desired, enter annual per-unit cost data that better reflects local conditions in the User Defined column.
J22: Nitrogen
A23: BMP | B23: Units | C23: Default Annual Cost per Unit | D23: User-Defined Annual Cost per Unit | E23: Rank | G23: Priority BMP List - Manually Modify with new BMPs | J23: Least Expensive Practices (per unit) | K23: Unit Cost ($/year)
A24: =A69 -> Permeable Pavement | B24: Acres | C24: =C69 -> 22095.27368 | E24: =IFERROR(_xlfn.RANK.EQ(IF(UserCost[[#This Row],[Default Annual Cost per Unit]]=0,99999,UserCost[[#This Row],[Default Annual Cost per Unit]]),UserCost[Default Annual Cost per Unit],1),99999) -> 37 | G24: None | J24: Downspout Disconnection | K24: =INDEX(UserCost[],MATCH(J24,UserCost[BMP],0),3) -> 29.19944149 | L24: =INDEX(UserCost[],MATCH(J24,UserCost[BMP],0),2) -> Acres
A25: Permeable Pavers | B25: Acres | C25: 22095.27368 | E25: =IFERROR(_xlfn.RANK.EQ(IF(UserCost[[#This Row],[Default Annual Cost per Unit]]=0,99999,UserCost[[#This Row],[Default Annual Cost per Unit]]),UserCost[Default Annual Cost per Unit],1),99999) -> 37 | G25: Permeable Pavement | J25: Pet Waste Program | K25: =INDEX(UserCost[],MATCH(J25,UserCost[BMP],0),3) -> 757.9331775 | L25: =INDEX(UserCost[],MATCH(J25,UserCost[BMP],0),2) -> Number of pet waste stations
A26: Rainwater Harvesting | B26: Acres | C26: 9252.962646 | E26: =IFERROR(_xlfn.RANK.EQ(IF(UserCost[[#This Row],[Default Annual Cost per Unit]]=0,99999,UserCost[[#This Row],[Default Annual Cost per Unit]]),UserCost[Default Annual Cost per Unit],1),99999) -> 32 | G26: Permeable Pavers | J26: Stream Restoration | K26: =INDEX(UserCost[],MATCH(J26,UserCost[BMP],0),3) -> 82.32094316 | L26: =INDEX(UserCost[],MATCH(J26,UserCost[BMP],0),2) -> Linear Feet
A27: Stormwater Planter | B27: Acres | C27: 10681.21692 | E27: =IFERROR(_xlfn.RANK.EQ(IF(UserCost[[#This Row],[Default Annual Cost per Unit]]=0,99999,UserCost[[#This Row],[Default Annual Cost per Unit]]),UserCost[Default Annual Cost per Unit],1),99999) -> 34 | G27: Rainwater Harvesting | J27: Vegetated Filter Strips | K27: =INDEX(UserCost[],MATCH(J27,UserCost[BMP],0),3) -> 2438.149336 | L27: =INDEX(UserCost[],MATCH(J27,UserCost[BMP],0),2) -> Acres
A28: Green Roof | B28: Acres | C28: 123059.0639 | E28: =IFERROR(_xlfn.RANK.EQ(IF(UserCost[[#This Row],[Default Annual Cost per Unit]]=0,99999,UserCost[[#This Row],[Default Annual Cost per Unit]]),UserCost[Default Annual Cost per Unit],1),99999) -> 40 | G28: Stormwater Planter | J28: Conversion of Dry Pond to Wet Pond | K28: =INDEX(UserCost[],MATCH(J28,UserCost[BMP],0),3) -> 1775.828719 | L28: =INDEX(UserCost[],MATCH(J28,UserCost[BMP],0),2) -> Acres
A29: Downspout Disconnection | B29: Acres | C29: 29.19944149 | E29: =IFERROR(_xlfn.RANK.EQ(IF(UserCost[[#This Row],[Default Annual Cost per Unit]]=0,99999,UserCost[[#This Row],[Default Annual Cost per Unit]]),UserCost[Default Annual Cost per Unit],1),99999) -> 4 | G29: Green Roof
A30: Bioretention | B30: Acres | C30: 4907.196496 | E30: =IFERROR(_xlfn.RANK.EQ(IF(UserCost[[#This Row],[Default Annual Cost per Unit]]=0,99999,UserCost[[#This Row],[Default Annual Cost per Unit]]),UserCost[Default Annual Cost per Unit],1),99999) -> 24 | G30: Downspout Disconnection | J30: Phosphorus
A31: Rain Garden | B31: Acres | C31: 4907.196496 | E31: =IFERROR(_xlfn.RANK.EQ(IF(UserCost[[#This Row],[Default Annual Cost per Unit]]=0,99999,UserCost[[#This Row],[Default Annual Cost per Unit]]),UserCost[Default Annual Cost per Unit],1),99999) -> 24 | G31: Bioretention | J31: Least Expensive Practices (per unit) | K31: Unit Cost ($/year)
A32: Green Streets | B32: Acres | C32: 13973.97707 | E32: =IFERROR(_xlfn.RANK.EQ(IF(UserCost[[#This Row],[Default Annual Cost per Unit]]=0,99999,UserCost[[#This Row],[Default Annual Cost per Unit]]),UserCost[Default Annual Cost per Unit],1),99999) -> 35 | G32: Rain Garden | J32: Downspout Disconnection | K32: =INDEX(UserCost[],MATCH(J32,UserCost[BMP],0),3) -> 29.19944149 | L32: =INDEX(UserCost[],MATCH(J32,UserCost[BMP],0),2) -> Acres
A33: Vegetated Filter Strips | B33: Acres | C33: 2438.149336 | E33: =IFERROR(_xlfn.RANK.EQ(IF(UserCost[[#This Row],[Default Annual Cost per Unit]]=0,99999,UserCost[[#This Row],[Default Annual Cost per Unit]]),UserCost[Default Annual Cost per Unit],1),99999) -> 16 | G33: Green Streets | J33: Stream Restoration | K33: =INDEX(UserCost[],MATCH(J33,UserCost[BMP],0),3) -> 82.32094316 | L33: =INDEX(UserCost[],MATCH(J33,UserCost[BMP],0),2) -> Linear Feet
A34: Hydrodynamic and Filtering Practices | B34: Acres | C34: 6395.56352 | E34: =IFERROR(_xlfn.RANK.EQ(IF(UserCost[[#This Row],[Default Annual Cost per Unit]]=0,99999,UserCost[[#This Row],[Default Annual Cost per Unit]]),UserCost[Default Annual Cost per Unit],1),99999) -> 29 | G34: Vegetated Filter Strips | J34: Living Shoreline | K34: =INDEX(UserCost[],MATCH(J34,UserCost[BMP],0),3) -> 62.15300978 | L34: =INDEX(UserCost[],MATCH(J34,UserCost[BMP],0),2) -> Linear Feet
A35: Infiltration | B35: Acres | C35: 5265.976184 | E35: =IFERROR(_xlfn.RANK.EQ(IF(UserCost[[#This Row],[Default Annual Cost per Unit]]=0,99999,UserCost[[#This Row],[Default Annual Cost per Unit]]),UserCost[Default Annual Cost per Unit],1),99999) -> 26 | G35: Hydrodynamic and Filtering Practices | J35: Pet Waste Program | K35: =INDEX(UserCost[],MATCH(J35,UserCost[BMP],0),3) -> 757.9331775 | L35: =INDEX(UserCost[],MATCH(J35,UserCost[BMP],0),2) -> Number of pet waste stations
A36: Stormwater Tree Pits/Structural Soils | B36: Acres | C36: 28760.08378 | E36: =IFERROR(_xlfn.RANK.EQ(IF(UserCost[[#This Row],[Default Annual Cost per Unit]]=0,99999,UserCost[[#This Row],[Default Annual Cost per Unit]]),UserCost[Default Annual Cost per Unit],1),99999) -> 39 | G36: Infiltration | J36: Conversion of Dry Pond to Wet Pond | K36: =INDEX(UserCost[],MATCH(J36,UserCost[BMP],0),3) -> 1775.828719 | L36: =INDEX(UserCost[],MATCH(J36,UserCost[BMP],0),2) -> Acres
A37: Sand Filter | B37: Acres | C37: 5417.955215 | E37: =IFERROR(_xlfn.RANK.EQ(IF(UserCost[[#This Row],[Default Annual Cost per Unit]]=0,99999,UserCost[[#This Row],[Default Annual Cost per Unit]]),UserCost[Default Annual Cost per Unit],1),99999) -> 27 | G37: Stormwater Tree Pits/Structural Soils
A38: Dry Swale/Bioswale | B38: Acres | C38: 3908.22113 | E38: =IFERROR(_xlfn.RANK.EQ(IF(UserCost[[#This Row],[Default Annual Cost per Unit]]=0,99999,UserCost[[#This Row],[Default Annual Cost per Unit]]),UserCost[Default Annual Cost per Unit],1),99999) -> 21 | G38: Sand Filter
A39: Wet Swale | B39: Acres | C39: 2368.183422 | E39: =IFERROR(_xlfn.RANK.EQ(IF(UserCost[[#This Row],[Default Annual Cost per Unit]]=0,99999,UserCost[[#This Row],[Default Annual Cost per Unit]]),UserCost[Default Annual Cost per Unit],1),99999) -> 14 | G39: Dry Swale/Bioswale
A40: Vegetated Open Channels | B40: Acres | C40: 2368.183422 | E40: =IFERROR(_xlfn.RANK.EQ(IF(UserCost[[#This Row],[Default Annual Cost per Unit]]=0,99999,UserCost[[#This Row],[Default Annual Cost per Unit]]),UserCost[Default Annual Cost per Unit],1),99999) -> 14 | G40: Wet Swale
A41: Regenerative Stormwater Conveyance | B41: Acres | C41: 20815.41964 | E41: =IFERROR(_xlfn.RANK.EQ(IF(UserCost[[#This Row],[Default Annual Cost per Unit]]=0,99999,UserCost[[#This Row],[Default Annual Cost per Unit]]),UserCost[Default Annual Cost per Unit],1),99999) -> 36 | G41: Vegetated Open Channels
A42: Wet Ponds | B42: Acres | C42: 2528.923692 | E42: =IFERROR(_xlfn.RANK.EQ(IF(UserCost[[#This Row],[Default Annual Cost per Unit]]=0,99999,UserCost[[#This Row],[Default Annual Cost per Unit]]),UserCost[Default Annual Cost per Unit],1),99999) -> 17 | G42: Regenerative Stormwater Conveyance
A43: Constructed Wetlands | B43: Acres | C43: 2528.923692 | E43: =IFERROR(_xlfn.RANK.EQ(IF(UserCost[[#This Row],[Default Annual Cost per Unit]]=0,99999,UserCost[[#This Row],[Default Annual Cost per Unit]]),UserCost[Default Annual Cost per Unit],1),99999) -> 17 | G43: Wet Ponds
A44: Extended Detention Ponds | B44: Acres | C44: 4202.429354 | E44: =IFERROR(_xlfn.RANK.EQ(IF(UserCost[[#This Row],[Default Annual Cost per Unit]]=0,99999,UserCost[[#This Row],[Default Annual Cost per Unit]]),UserCost[Default Annual Cost per Unit],1),99999) -> 22 | G44: Constructed Wetlands
A45: Ditch Enhancement | B45: Acres | C45: 3778.09152 | E45: =IFERROR(_xlfn.RANK.EQ(IF(UserCost[[#This Row],[Default Annual Cost per Unit]]=0,99999,UserCost[[#This Row],[Default Annual Cost per Unit]]),UserCost[Default Annual Cost per Unit],1),99999) -> 20 | G45: Extended Detention Ponds
A46: Conversion of Dry Pond to Wet Pond | B46: Acres | C46: 1775.828719 | E46: =IFERROR(_xlfn.RANK.EQ(IF(UserCost[[#This Row],[Default Annual Cost per Unit]]=0,99999,UserCost[[#This Row],[Default Annual Cost per Unit]]),UserCost[Default Annual Cost per Unit],1),99999) -> 13 | G46: Ditch Enhancement
A47: Forest Buffer | B47: Acres | C47: 1180.437888 | E47: =IFERROR(_xlfn.RANK.EQ(IF(UserCost[[#This Row],[Default Annual Cost per Unit]]=0,99999,UserCost[[#This Row],[Default Annual Cost per Unit]]),UserCost[Default Annual Cost per Unit],1),99999) -> 12 | G47: Conversion of Dry Pond to Wet Pond
A48: Urban Tree Planting | B48: Acres | C48: 4571.665769 | E48: =IFERROR(_xlfn.RANK.EQ(IF(UserCost[[#This Row],[Default Annual Cost per Unit]]=0,99999,UserCost[[#This Row],[Default Annual Cost per Unit]]),UserCost[Default Annual Cost per Unit],1),99999) -> 23 | G48: Forest Buffer
A49: Impervious Cover Removal | B49: Acres | C49: 10657.1115 | E49: =IFERROR(_xlfn.RANK.EQ(IF(UserCost[[#This Row],[Default Annual Cost per Unit]]=0,99999,UserCost[[#This Row],[Default Annual Cost per Unit]]),UserCost[Default Annual Cost per Unit],1),99999) -> 33 | G49: Urban Tree Planting
A50: Urban Cover Crop | B50: Acres | C50: 3521.837097 | E50: =IFERROR(_xlfn.RANK.EQ(IF(UserCost[[#This Row],[Default Annual Cost per Unit]]=0,99999,UserCost[[#This Row],[Default Annual Cost per Unit]]),UserCost[Default Annual Cost per Unit],1),99999) -> 19 | G50: Impervious Cover Removal
A51: Soil Augmentation | B51: Acres | C51: 5524.181435 | E51: =IFERROR(_xlfn.RANK.EQ(IF(UserCost[[#This Row],[Default Annual Cost per Unit]]=0,99999,UserCost[[#This Row],[Default Annual Cost per Unit]]),UserCost[Default Annual Cost per Unit],1),99999) -> 28 | G51: Urban Cover Crop
A52: Pet Waste Program | B52: Number of pet waste stations | C52: 757.9331775 | E52: =IFERROR(_xlfn.RANK.EQ(IF(UserCost[[#This Row],[Default Annual Cost per Unit]]=0,99999,UserCost[[#This Row],[Default Annual Cost per Unit]]),UserCost[Default Annual Cost per Unit],1),99999) -> 10 | G52: Soil Augmentation
A53: Street Sweeping | B53: Acres or Pounds | C53: 846.3624054 | E53: =IFERROR(_xlfn.RANK.EQ(IF(UserCost[[#This Row],[Default Annual Cost per Unit]]=0,99999,UserCost[[#This Row],[Default Annual Cost per Unit]]),UserCost[Default Annual Cost per Unit],1),99999) -> 11 | G53: Pet Waste Program
A54: =A99 -> Urban Nutrient Management | B54: Acres | C54: =C99 -> 382.0444695 | E54: =IFERROR(_xlfn.RANK.EQ(IF(UserCost[[#This Row],[Default Annual Cost per Unit]]=0,99999,UserCost[[#This Row],[Default Annual Cost per Unit]]),UserCost[Default Annual Cost per Unit],1),99999) -> 7 | G54: Street Sweeping
A55: Outfall Netting System | B55: Acres | C55: 448.6818612 | E55: =IFERROR(_xlfn.RANK.EQ(IF(UserCost[[#This Row],[Default Annual Cost per Unit]]=0,99999,UserCost[[#This Row],[Default Annual Cost per Unit]]),UserCost[Default Annual Cost per Unit],1),99999) -> 9 | G55: Outfall Netting System
A56: =A101 -> Advanced IDDE Program | B56: Number of Programs | C56: =C101 -> 8230.697827 | E56: =IFERROR(_xlfn.RANK.EQ(IF(UserCost[[#This Row],[Default Annual Cost per Unit]]=0,99999,UserCost[[#This Row],[Default Annual Cost per Unit]]),UserCost[Default Annual Cost per Unit],1),99999) -> 31 | G56: Correction of Cross-Connections
A57: Correction of Cross-Connections | B57: Number of Repairs | C57: 406.8102435 | E57: =IFERROR(_xlfn.RANK.EQ(IF(UserCost[[#This Row],[Default Annual Cost per Unit]]=0,99999,UserCost[[#This Row],[Default Annual Cost per Unit]]),UserCost[Default Annual Cost per Unit],1),99999) -> 8 | G57: Sewer Repair
A58: Sewer Repair | B58: Number of Repairs | C58: 6973.387495 | E58: =IFERROR(_xlfn.RANK.EQ(IF(UserCost[[#This Row],[Default Annual Cost per Unit]]=0,99999,UserCost[[#This Row],[Default Annual Cost per Unit]]),UserCost[Default Annual Cost per Unit],1),99999) -> 30 | G58: Living Shoreline
A59: User Defined BMP | B59: Acres | C59: 0 | E59: =IFERROR(_xlfn.RANK.EQ(IF(UserCost[[#This Row],[Default Annual Cost per Unit]]=0,99999,UserCost[[#This Row],[Default Annual Cost per Unit]]),UserCost[Default Annual Cost per Unit],1),99999) -> 99999 | G59: Stream Restoration
A60: Living Shoreline | B60: Linear Feet | C60: 62.15300978 | E60: =IFERROR(_xlfn.RANK.EQ(IF(UserCost[[#This Row],[Default Annual Cost per Unit]]=0,99999,UserCost[[#This Row],[Default Annual Cost per Unit]]),UserCost[Default Annual Cost per Unit],1),99999) -> 5
A61: Stream Restoration | B61: Linear Feet | C61: 82.32094316 | E61: =IFERROR(_xlfn.RANK.EQ(IF(UserCost[[#This Row],[Default Annual Cost per Unit]]=0,99999,UserCost[[#This Row],[Default Annual Cost per Unit]]),UserCost[Default Annual Cost per Unit],1),99999) -> 6
A62: Cross Sector Trading (Nitrogen) | B62: Pounds of Nitrogen | C62: 0 | D62: ='Scenario Setup'!V169 -> 0 | E62: =IFERROR(_xlfn.RANK.EQ(IF(UserCost[[#This Row],[Default Annual Cost per Unit]]=0,99999,UserCost[[#This Row],[Default Annual Cost per Unit]]),UserCost[Default Annual Cost per Unit],1),99999) -> 99999
A63: =A108 -> Cross Sector Trading (Phosphorus) | B63: Pounds of Phosphorus | C63: =C108 -> 0 | D63: ='Scenario Setup'!V170 -> 0 | E63: =IFERROR(_xlfn.RANK.EQ(IF(UserCost[[#This Row],[Default Annual Cost per Unit]]=0,99999,UserCost[[#This Row],[Default Annual Cost per Unit]]),UserCost[Default Annual Cost per Unit],1),99999) -> 99999
A67: Selected County | B67: ='Scenario Setup'!K8 -> 1 | C67: ='Scenario Setup'!D8 -> Allegany County | D67: County cost adjustment | E67: =SUMIFS(CountyAdjustments[King & Hagan Adjustor],CountyAdjustments[County],'BMP Costs'!C67) -> 0.968 | F67: Allegany County | G67: Anne Arundel County | H67: Baltimore City | I67: Baltimore County | J67: Calvert County | K67: Caroline County | L67: Carroll County | M67: Cecil County | N67: Charles County | O67: Dorchester County | P67: Frederick County | Q67: Garrett County | R67: Harford County | S67: Howard County | T67: Kent County | U67: Montgomery County | V67: Prince George's County | W67: Queen Anne's County | X67: Somerset County | Y67: St. Mary's County | Z67: Talbot County | AA67: Washington County | AB67: Wicomico County | AC67: Worcester County
A68: Practice | B68: Treatment Type | C68: Average Annual Cost/Unit (county-specific) | D68: Average Annual Cost/Unit (used in scenario calculations) | F68: Unit Cost | G68: Unit Cost | H68: Unit Cost | I68: Unit Cost | J68: Unit Cost | K68: Unit Cost | L68: Unit Cost | M68: Unit Cost | N68: Unit Cost | O68: Unit Cost | P68: Unit Cost | Q68: Unit Cost | R68: Unit Cost | S68: Unit Cost | T68: Unit Cost | U68: Unit Cost | V68: Unit Cost | W68: Unit Cost | X68: Unit Cost | Y68: Unit Cost | Z68: Unit Cost | AA68: Unit Cost | AB68: Unit Cost | AC68: Unit Cost
A69: =A112 -> Permeable Pavement | B69: RR | C69: =OFFSET(F69,0,B$67-1) -> 22095.27368 | D69: =IF(SUMIFS(UserCost[User-Defined Annual Cost per Unit],UserCost[BMP],CurrentBMP[[#This Row],[Practice]])>0,SUMIFS(UserCost[User-Defined Annual Cost per Unit],UserCost[BMP],CurrentBMP[[#This Row],[Practice]]),CurrentBMP[[#This Row],[Average Annual Cost/Unit (county-specific)]]) -> 22095.27368 | F69: =SUMIFS(Table33[Average Annual Cost],Table33[Stormwater BMP],CurrentBMP[[#This Row],[Practice]])*SUMIFS(CountyAdjustments[King & Hagan Adjustor],CountyAdjustments[County],'BMP Costs'!F$67) -> 22095.27368 | G69: =SUMIFS(Table33[Average Annual Cost],Table33[Stormwater BMP],CurrentBMP[[#This Row],[Practice]])*SUMIFS(CountyAdjustments[King & Hagan Adjustor],CountyAdjustments[County],'BMP Costs'!G$67) -> 22734.39317 | H69: =SUMIFS(Table33[Average Annual Cost],Table33[Stormwater BMP],CurrentBMP[[#This Row],[Practice]])*SUMIFS(CountyAdjustments[King & Hagan Adjustor],CountyAdjustments[County],'BMP Costs'!H$67) -> 22620.26469 | I69: =SUMIFS(Table33[Average Annual Cost],Table33[Stormwater BMP],CurrentBMP[[#This Row],[Practice]])*SUMIFS(CountyAdjustments[King & Hagan Adjustor],CountyAdjustments[County],'BMP Costs'!I$67) -> 22620.26469 | J69: =SUMIFS(Table33[Average Annual Cost],Table33[Stormwater BMP],CurrentBMP[[#This Row],[Practice]])*SUMIFS(CountyAdjustments[King & Hagan Adjustor],CountyAdjustments[County],'BMP Costs'!J$67) -> 22528.96191 | K69: =SUMIFS(Table33[Average Annual Cost],Table33[Stormwater BMP],CurrentBMP[[#This Row],[Practice]])*SUMIFS(CountyAdjustments[King & Hagan Adjustor],CountyAdjustments[County],'BMP Costs'!K$67) -> 22232.22786 | L69: =SUMIFS(Table33[Average Annual Cost],Table33[Stormwater BMP],CurrentBMP[[#This Row],[Practice]])*SUMIFS(CountyAdjustments[King & Hagan Adjustor],CountyAdjustments[County],'BMP Costs'!L$67) -> 22460.48482 | M69: =SUMIFS(Table33[Average Annual Cost],Table33[Stormwater BMP],CurrentBMP[[#This Row],[Practice]])*SUMIFS(CountyAdjustments[King & Hagan Adjustor],CountyAdjustments[County],'BMP Costs'!M$67) -> 22414.83343 | N69: =SUMIFS(Table33[Average Annual Cost],Table33[Stormwater BMP],CurrentBMP[[#This Row],[Practice]])*SUMIFS(CountyAdjustments[King & Hagan Adjustor],CountyAdjustments[County],'BMP Costs'!N$67) -> 22528.96191 | O69: =SUMIFS(Table33[Average Annual Cost],Table33[Stormwater BMP],CurrentBMP[[#This Row],[Practice]])*SUMIFS(CountyAdjustments[King & Hagan Adjustor],CountyAdjustments[County],'BMP Costs'!O$67) -> 22232.22786 | P69: =SUMIFS(Table33[Average Annual Cost],Table33[Stormwater BMP],CurrentBMP[[#This Row],[Practice]])*SUMIFS(CountyAdjustments[King & Hagan Adjustor],CountyAdjustments[County],'BMP Costs'!P$67) -> 22460.48482 | Q69: =SUMIFS(Table33[Average Annual Cost],Table33[Stormwater BMP],CurrentBMP[[#This Row],[Practice]])*SUMIFS(CountyAdjustments[King & Hagan Adjustor],CountyAdjustments[County],'BMP Costs'!Q$67) -> 22095.27368 | R69: =SUMIFS(Table33[Average Annual Cost],Table33[Stormwater BMP],CurrentBMP[[#This Row],[Practice]])*SUMIFS(CountyAdjustments[King & Hagan Adjustor],CountyAdjustments[County],'BMP Costs'!R$67) -> 22620.26469 | S69: =SUMIFS(Table33[Average Annual Cost],Table33[Stormwater BMP],CurrentBMP[[#This Row],[Practice]])*SUMIFS(CountyAdjustments[King & Hagan Adjustor],CountyAdjustments[County],'BMP Costs'!S$67) -> 22620.26469 | T69: =SUMIFS(Table33[Average Annual Cost],Table33[Stormwater BMP],CurrentBMP[[#This Row],[Practice]])*SUMIFS(CountyAdjustments[King & Hagan Adjustor],CountyAdjustments[County],'BMP Costs'!T$67) -> 22414.83343 | U69: =SUMIFS(Table33[Average Annual Cost],Table33[Stormwater BMP],CurrentBMP[[#This Row],[Practice]])*SUMIFS(CountyAdjustments[King & Hagan Adjustor],CountyAdjustments[County],'BMP Costs'!U$67) -> 22483.31051 | V69: =SUMIFS(Table33[Average Annual Cost],Table33[Stormwater BMP],CurrentBMP[[#This Row],[Practice]])*SUMIFS(CountyAdjustments[King & Hagan Adjustor],CountyAdjustments[County],'BMP Costs'!V$67) -> 22574.6133 | W69: =SUMIFS(Table33[Average Annual Cost],Table33[Stormwater BMP],CurrentBMP[[#This Row],[Practice]])*SUMIFS(CountyAdjustments[King & Hagan Adjustor],CountyAdjustments[County],'BMP Costs'!W$67) -> 22232.22786 | X69: =SUMIFS(Table33[Average Annual Cost],Table33[Stormwater BMP],CurrentBMP[[#This Row],[Practice]])*SUMIFS(CountyAdjustments[King & Hagan Adjustor],CountyAdjustments[County],'BMP Costs'!X$67) -> 22140.92508 | Y69: =SUMIFS(Table33[Average Annual Cost],Table33[Stormwater BMP],CurrentBMP[[#This Row],[Practice]])*SUMIFS(CountyAdjustments[King & Hagan Adjustor],CountyAdjustments[County],'BMP Costs'!Y$67) -> 22528.96191 | Z69: =SUMIFS(Table33[Average Annual Cost],Table33[Stormwater BMP],CurrentBMP[[#This Row],[Practice]])*SUMIFS(CountyAdjustments[King & Hagan Adjustor],CountyAdjustments[County],'BMP Costs'!Z$67) -> 22232.22786 | AA69: =SUMIFS(Table33[Average Annual Cost],Table33[Stormwater BMP],CurrentBMP[[#This Row],[Practice]])*SUMIFS(CountyAdjustments[King & Hagan Adjustor],CountyAdjustments[County],'BMP Costs'!AA$67) -> 22460.48482 | AB69: =SUMIFS(Table33[Average Annual Cost],Table33[Stormwater BMP],CurrentBMP[[#This Row],[Practice]])*SUMIFS(CountyAdjustments[King & Hagan Adjustor],CountyAdjustments[County],'BMP Costs'!AB$67) -> 22140.92508 | AC69: =SUMIFS(Table33[Average Annual Cost],Table33[Stormwater BMP],CurrentBMP[[#This Row],[Practice]])*SUMIFS(CountyAdjustments[King & Hagan Adjustor],CountyAdjustments[County],'BMP Costs'!AC$67) -> 22140.92508
A70: Permeable Pavers | B70: RR | C70: 22095.27368 | D70: =IF(SUMIFS(UserCost[User-Defined Annual Cost per Unit],UserCost[BMP],CurrentBMP[[#This Row],[Practice]])>0,SUMIFS(UserCost[User-Defined Annual Cost per Unit],UserCost[BMP],CurrentBMP[[#This Row],[Practice]]),CurrentBMP[[#This Row],[Average Annual Cost/Unit (county-specific)]]) -> 22095.27368 | F70: =SUMIFS(Table33[Average Annual Cost],Table33[Stormwater BMP],CurrentBMP[[#This Row],[Practice]])*SUMIFS(CountyAdjustments[King & Hagan Adjustor],CountyAdjustments[County],'BMP Costs'!F$67) -> 22095.27368 | G70: =SUMIFS(Table33[Average Annual Cost],Table33[Stormwater BMP],CurrentBMP[[#This Row],[Practice]])*SUMIFS(CountyAdjustments[King & Hagan Adjustor],CountyAdjustments[County],'BMP Costs'!G$67) -> 22734.39317 | H70: =SUMIFS(Table33[Average Annual Cost],Table33[Stormwater BMP],CurrentBMP[[#This Row],[Practice]])*SUMIFS(CountyAdjustments[King & Hagan Adjustor],CountyAdjustments[County],'BMP Costs'!H$67) -> 22620.26469 | I70: =SUMIFS(Table33[Average Annual Cost],Table33[Stormwater BMP],CurrentBMP[[#This Row],[Practice]])*SUMIFS(CountyAdjustments[King & Hagan Adjustor],CountyAdjustments[County],'BMP Costs'!I$67) -> 22620.26469 | J70: =SUMIFS(Table33[Average Annual Cost],Table33[Stormwater BMP],CurrentBMP[[#This Row],[Practice]])*SUMIFS(CountyAdjustments[King & Hagan Adjustor],CountyAdjustments[County],'BMP Costs'!J$67) -> 22528.96191 | K70: =SUMIFS(Table33[Average Annual Cost],Table33[Stormwater BMP],CurrentBMP[[#This Row],[Practice]])*SUMIFS(CountyAdjustments[King & Hagan Adjustor],CountyAdjustments[County],'BMP Costs'!K$67) -> 22232.22786 | L70: =SUMIFS(Table33[Average Annual Cost],Table33[Stormwater BMP],CurrentBMP[[#This Row],[Practice]])*SUMIFS(CountyAdjustments[King & Hagan Adjustor],CountyAdjustments[County],'BMP Costs'!L$67) -> 22460.48482 | M70: =SUMIFS(Table33[Average Annual Cost],Table33[Stormwater BMP],CurrentBMP[[#This Row],[Practice]])*SUMIFS(CountyAdjustments[King & Hagan Adjustor],CountyAdjustments[County],'BMP Costs'!M$67) -> 22414.83343 | N70: =SUMIFS(Table33[Average Annual Cost],Table33[Stormwater BMP],CurrentBMP[[#This Row],[Practice]])*SUMIFS(CountyAdjustments[King & Hagan Adjustor],CountyAdjustments[County],'BMP Costs'!N$67) -> 22528.96191 | O70: =SUMIFS(Table33[Average Annual Cost],Table33[Stormwater BMP],CurrentBMP[[#This Row],[Practice]])*SUMIFS(CountyAdjustments[King & Hagan Adjustor],CountyAdjustments[County],'BMP Costs'!O$67) -> 22232.22786 | P70: =SUMIFS(Table33[Average Annual Cost],Table33[Stormwater BMP],CurrentBMP[[#This Row],[Practice]])*SUMIFS(CountyAdjustments[King & Hagan Adjustor],CountyAdjustments[County],'BMP Costs'!P$67) -> 22460.48482 | Q70: =SUMIFS(Table33[Average Annual Cost],Table33[Stormwater BMP],CurrentBMP[[#This Row],[Practice]])*SUMIFS(CountyAdjustments[King & Hagan Adjustor],CountyAdjustments[County],'BMP Costs'!Q$67) -> 22095.27368 | R70: =SUMIFS(Table33[Average Annual Cost],Table33[Stormwater BMP],CurrentBMP[[#This Row],[Practice]])*SUMIFS(CountyAdjustments[King & Hagan Adjustor],CountyAdjustments[County],'BMP Costs'!R$67) -> 22620.26469 | S70: =SUMIFS(Table33[Average Annual Cost],Table33[Stormwater BMP],CurrentBMP[[#This Row],[Practice]])*SUMIFS(CountyAdjustments[King & Hagan Adjustor],CountyAdjustments[County],'BMP Costs'!S$67) -> 22620.26469 | T70: =SUMIFS(Table33[Average Annual Cost],Table33[Stormwater BMP],CurrentBMP[[#This Row],[Practice]])*SUMIFS(CountyAdjustments[King & Hagan Adjustor],CountyAdjustments[County],'BMP Costs'!T$67) -> 22414.83343 | U70: =SUMIFS(Table33[Average Annual Cost],Table33[Stormwater BMP],CurrentBMP[[#This Row],[Practice]])*SUMIFS(CountyAdjustments[King & Hagan Adjustor],CountyAdjustments[County],'BMP Costs'!U$67) -> 22483.31051 | V70: =SUMIFS(Table33[Average Annual Cost],Table33[Stormwater BMP],CurrentBMP[[#This Row],[Practice]])*SUMIFS(CountyAdjustments[King & Hagan Adjustor],CountyAdjustments[County],'BMP Costs'!V$67) -> 22574.6133 | W70: =SUMIFS(Table33[Average Annual Cost],Table33[Stormwater BMP],CurrentBMP[[#This Row],[Practice]])*SUMIFS(CountyAdjustments[King & Hagan Adjustor],CountyAdjustments[County],'BMP Costs'!W$67) -> 22232.22786 | X70: =SUMIFS(Table33[Average Annual Cost],Table33[Stormwater BMP],CurrentBMP[[#This Row],[Practice]])*SUMIFS(CountyAdjustments[King & Hagan Adjustor],CountyAdjustments[County],'BMP Costs'!X$67) -> 22140.92508 | Y70: =SUMIFS(Table33[Average Annual Cost],Table33[Stormwater BMP],CurrentBMP[[#This Row],[Practice]])*SUMIFS(CountyAdjustments[King & Hagan Adjustor],CountyAdjustments[County],'BMP Costs'!Y$67) -> 22528.96191 | Z70: =SUMIFS(Table33[Average Annual Cost],Table33[Stormwater BMP],CurrentBMP[[#This Row],[Practice]])*SUMIFS(CountyAdjustments[King & Hagan Adjustor],CountyAdjustments[County],'BMP Costs'!Z$67) -> 22232.22786 | AA70: =SUMIFS(Table33[Average Annual Cost],Table33[Stormwater BMP],CurrentBMP[[#This Row],[Practice]])*SUMIFS(CountyAdjustments[King & Hagan Adjustor],CountyAdjustments[County],'BMP Costs'!AA$67) -> 22460.48482 | AB70: =SUMIFS(Table33[Average Annual Cost],Table33[Stormwater BMP],CurrentBMP[[#This Row],[Practice]])*SUMIFS(CountyAdjustments[King & Hagan Adjustor],CountyAdjustments[County],'BMP Costs'!AB$67) -> 22140.92508 | AC70: =SUMIFS(Table33[Average Annual Cost],Table33[Stormwater BMP],CurrentBMP[[#This Row],[Practice]])*SUMIFS(CountyAdjustments[King & Hagan Adjustor],CountyAdjustments[County],'BMP Costs'!AC$67) -> 22140.92508
A71: Rainwater Harvesting | B71: RR | C71: 9252.962646 | D71: =IF(SUMIFS(UserCost[User-Defined Annual Cost per Unit],UserCost[BMP],CurrentBMP[[#This Row],[Practice]])>0,SUMIFS(UserCost[User-Defined Annual Cost per Unit],UserCost[BMP],CurrentBMP[[#This Row],[Practice]]),CurrentBMP[[#This Row],[Average Annual Cost/Unit (county-specific)]]) -> 9252.962646 | F71: =SUMIFS(Table33[Average Annual Cost],Table33[Stormwater BMP],CurrentBMP[[#This Row],[Practice]])*SUMIFS(CountyAdjustments[King & Hagan Adjustor],CountyAdjustments[County],'BMP Costs'!F$67) -> 9252.962646 | G71: =SUMIFS(Table33[Average Annual Cost],Table33[Stormwater BMP],CurrentBMP[[#This Row],[Practice]])*SUMIFS(CountyAdjustments[King & Hagan Adjustor],CountyAdjustments[County],'BMP Costs'!G$67) -> 9520.610325 | H71: =SUMIFS(Table33[Average Annual Cost],Table33[Stormwater BMP],CurrentBMP[[#This Row],[Practice]])*SUMIFS(CountyAdjustments[King & Hagan Adjustor],CountyAdjustments[County],'BMP Costs'!H$67) -> 9472.816097 | I71: =SUMIFS(Table33[Average Annual Cost],Table33[Stormwater BMP],CurrentBMP[[#This Row],[Practice]])*SUMIFS(CountyAdjustments[King & Hagan Adjustor],CountyAdjustments[County],'BMP Costs'!I$67) -> 9472.816097 | J71: =SUMIFS(Table33[Average Annual Cost],Table33[Stormwater BMP],CurrentBMP[[#This Row],[Practice]])*SUMIFS(CountyAdjustments[King & Hagan Adjustor],CountyAdjustments[County],'BMP Costs'!J$67) -> 9434.580714 | K71: =SUMIFS(Table33[Average Annual Cost],Table33[Stormwater BMP],CurrentBMP[[#This Row],[Practice]])*SUMIFS(CountyAdjustments[King & Hagan Adjustor],CountyAdjustments[County],'BMP Costs'!K$67) -> 9310.31572 | L71: =SUMIFS(Table33[Average Annual Cost],Table33[Stormwater BMP],CurrentBMP[[#This Row],[Practice]])*SUMIFS(CountyAdjustments[King & Hagan Adjustor],CountyAdjustments[County],'BMP Costs'!L$67) -> 9405.904177 | M71: =SUMIFS(Table33[Average Annual Cost],Table33[Stormwater BMP],CurrentBMP[[#This Row],[Practice]])*SUMIFS(CountyAdjustments[King & Hagan Adjustor],CountyAdjustments[County],'BMP Costs'!M$67) -> 9386.786485 | N71: =SUMIFS(Table33[Average Annual Cost],Table33[Stormwater BMP],CurrentBMP[[#This Row],[Practice]])*SUMIFS(CountyAdjustments[King & Hagan Adjustor],CountyAdjustments[County],'BMP Costs'!N$67) -> 9434.580714 | O71: =SUMIFS(Table33[Average Annual Cost],Table33[Stormwater BMP],CurrentBMP[[#This Row],[Practice]])*SUMIFS(CountyAdjustments[King & Hagan Adjustor],CountyAdjustments[County],'BMP Costs'!O$67) -> 9310.31572 | P71: =SUMIFS(Table33[Average Annual Cost],Table33[Stormwater BMP],CurrentBMP[[#This Row],[Practice]])*SUMIFS(CountyAdjustments[King & Hagan Adjustor],CountyAdjustments[County],'BMP Costs'!P$67) -> 9405.904177 | Q71: =SUMIFS(Table33[Average Annual Cost],Table33[Stormwater BMP],CurrentBMP[[#This Row],[Practice]])*SUMIFS(CountyAdjustments[King & Hagan Adjustor],CountyAdjustments[County],'BMP Costs'!Q$67) -> 9252.962646 | R71: =SUMIFS(Table33[Average Annual Cost],Table33[Stormwater BMP],CurrentBMP[[#This Row],[Practice]])*SUMIFS(CountyAdjustments[King & Hagan Adjustor],CountyAdjustments[County],'BMP Costs'!R$67) -> 9472.816097 | S71: =SUMIFS(Table33[Average Annual Cost],Table33[Stormwater BMP],CurrentBMP[[#This Row],[Practice]])*SUMIFS(CountyAdjustments[King & Hagan Adjustor],CountyAdjustments[County],'BMP Costs'!S$67) -> 9472.816097 | T71: =SUMIFS(Table33[Average Annual Cost],Table33[Stormwater BMP],CurrentBMP[[#This Row],[Practice]])*SUMIFS(CountyAdjustments[King & Hagan Adjustor],CountyAdjustments[County],'BMP Costs'!T$67) -> 9386.786485 | U71: =SUMIFS(Table33[Average Annual Cost],Table33[Stormwater BMP],CurrentBMP[[#This Row],[Practice]])*SUMIFS(CountyAdjustments[King & Hagan Adjustor],CountyAdjustments[County],'BMP Costs'!U$67) -> 9415.463023 | V71: =SUMIFS(Table33[Average Annual Cost],Table33[Stormwater BMP],CurrentBMP[[#This Row],[Practice]])*SUMIFS(CountyAdjustments[King & Hagan Adjustor],CountyAdjustments[County],'BMP Costs'!V$67) -> 9453.698405 | W71: =SUMIFS(Table33[Average Annual Cost],Table33[Stormwater BMP],CurrentBMP[[#This Row],[Practice]])*SUMIFS(CountyAdjustments[King & Hagan Adjustor],CountyAdjustments[County],'BMP Costs'!W$67) -> 9310.31572 | X71: =SUMIFS(Table33[Average Annual Cost],Table33[Stormwater BMP],CurrentBMP[[#This Row],[Practice]])*SUMIFS(CountyAdjustments[King & Hagan Adjustor],CountyAdjustments[County],'BMP Costs'!X$67) -> 9272.080337 | Y71: =SUMIFS(Table33[Average Annual Cost],Table33[Stormwater BMP],CurrentBMP[[#This Row],[Practice]])*SUMIFS(CountyAdjustments[King & Hagan Adjustor],CountyAdjustments[County],'BMP Costs'!Y$67) -> 9434.580714 | Z71: =SUMIFS(Table33[Average Annual Cost],Table33[Stormwater BMP],CurrentBMP[[#This Row],[Practice]])*SUMIFS(CountyAdjustments[King & Hagan Adjustor],CountyAdjustments[County],'BMP Costs'!Z$67) -> 9310.31572 | AA71: =SUMIFS(Table33[Average Annual Cost],Table33[Stormwater BMP],CurrentBMP[[#This Row],[Practice]])*SUMIFS(CountyAdjustments[King & Hagan Adjustor],CountyAdjustments[County],'BMP Costs'!AA$67) -> 9405.904177 | AB71: =SUMIFS(Table33[Average Annual Cost],Table33[Stormwater BMP],CurrentBMP[[#This Row],[Practice]])*SUMIFS(CountyAdjustments[King & Hagan Adjustor],CountyAdjustments[County],'BMP Costs'!AB$67) -> 9272.080337 | AC71: =SUMIFS(Table33[Average Annual Cost],Table33[Stormwater BMP],CurrentBMP[[#This Row],[Practice]])*SUMIFS(CountyAdjustments[King & Hagan Adjustor],CountyAdjustments[County],'BMP Costs'!AC$67) -> 9272.080337
A72: Stormwater Planter | B72: RR | C72: 10681.21692 | D72: =IF(SUMIFS(UserCost[User-Defined Annual Cost per Unit],UserCost[BMP],CurrentBMP[[#This Row],[Practice]])>0,SUMIFS(UserCost[User-Defined Annual Cost per Unit],UserCost[BMP],CurrentBMP[[#This Row],[Practice]]),CurrentBMP[[#This Row],[Average Annual Cost/Unit (county-specific)]]) -> 10681.21692 | F72: =SUMIFS(Table33[Average Annual Cost],Table33[Stormwater BMP],CurrentBMP[[#This Row],[Practice]])*SUMIFS(CountyAdjustments[King & Hagan Adjustor],CountyAdjustments[County],'BMP Costs'!F$67) -> 10681.21692 | G72: =SUMIFS(Table33[Average Annual Cost],Table33[Stormwater BMP],CurrentBMP[[#This Row],[Practice]])*SUMIFS(CountyAdjustments[King & Hagan Adjustor],CountyAdjustments[County],'BMP Costs'!G$67) -> 10990.17774 | H72: =SUMIFS(Table33[Average Annual Cost],Table33[Stormwater BMP],CurrentBMP[[#This Row],[Practice]])*SUMIFS(CountyAdjustments[King & Hagan Adjustor],CountyAdjustments[County],'BMP Costs'!H$67) -> 10935.00616 | I72: =SUMIFS(Table33[Average Annual Cost],Table33[Stormwater BMP],CurrentBMP[[#This Row],[Practice]])*SUMIFS(CountyAdjustments[King & Hagan Adjustor],CountyAdjustments[County],'BMP Costs'!I$67) -> 10935.00616 | J72: =SUMIFS(Table33[Average Annual Cost],Table33[Stormwater BMP],CurrentBMP[[#This Row],[Practice]])*SUMIFS(CountyAdjustments[King & Hagan Adjustor],CountyAdjustments[County],'BMP Costs'!J$67) -> 10890.8689 | K72: =SUMIFS(Table33[Average Annual Cost],Table33[Stormwater BMP],CurrentBMP[[#This Row],[Practice]])*SUMIFS(CountyAdjustments[King & Hagan Adjustor],CountyAdjustments[County],'BMP Costs'!K$67) -> 10747.42281 | L72: =SUMIFS(Table33[Average Annual Cost],Table33[Stormwater BMP],CurrentBMP[[#This Row],[Practice]])*SUMIFS(CountyAdjustments[King & Hagan Adjustor],CountyAdjustments[County],'BMP Costs'!L$67) -> 10857.76596 | M72: =SUMIFS(Table33[Average Annual Cost],Table33[Stormwater BMP],CurrentBMP[[#This Row],[Practice]])*SUMIFS(CountyAdjustments[King & Hagan Adjustor],CountyAdjustments[County],'BMP Costs'!M$67) -> 10835.69733 | N72: =SUMIFS(Table33[Average Annual Cost],Table33[Stormwater BMP],CurrentBMP[[#This Row],[Practice]])*SUMIFS(CountyAdjustments[King & Hagan Adjustor],CountyAdjustments[County],'BMP Costs'!N$67) -> 10890.8689 | O72: =SUMIFS(Table33[Average Annual Cost],Table33[Stormwater BMP],CurrentBMP[[#This Row],[Practice]])*SUMIFS(CountyAdjustments[King & Hagan Adjustor],CountyAdjustments[County],'BMP Costs'!O$67) -> 10747.42281 | P72: =SUMIFS(Table33[Average Annual Cost],Table33[Stormwater BMP],CurrentBMP[[#This Row],[Practice]])*SUMIFS(CountyAdjustments[King & Hagan Adjustor],CountyAdjustments[County],'BMP Costs'!P$67) -> 10857.76596 | Q72: =SUMIFS(Table33[Average Annual Cost],Table33[Stormwater BMP],CurrentBMP[[#This Row],[Practice]])*SUMIFS(CountyAdjustments[King & Hagan Adjustor],CountyAdjustments[County],'BMP Costs'!Q$67) -> 10681.21692 | R72: =SUMIFS(Table33[Average Annual Cost],Table33[Stormwater BMP],CurrentBMP[[#This Row],[Practice]])*SUMIFS(CountyAdjustments[King & Hagan Adjustor],CountyAdjustments[County],'BMP Costs'!R$67) -> 10935.00616 | S72: =SUMIFS(Table33[Average Annual Cost],Table33[Stormwater BMP],CurrentBMP[[#This Row],[Practice]])*SUMIFS(CountyAdjustments[King & Hagan Adjustor],CountyAdjustments[County],'BMP Costs'!S$67) -> 10935.00616 | T72: =SUMIFS(Table33[Average Annual Cost],Table33[Stormwater BMP],CurrentBMP[[#This Row],[Practice]])*SUMIFS(CountyAdjustments[King & Hagan Adjustor],CountyAdjustments[County],'BMP Costs'!T$67) -> 10835.69733 | U72: =SUMIFS(Table33[Average Annual Cost],Table33[Stormwater BMP],CurrentBMP[[#This Row],[Practice]])*SUMIFS(CountyAdjustments[King & Hagan Adjustor],CountyAdjustments[County],'BMP Costs'!U$67) -> 10868.80027 | V72: =SUMIFS(Table33[Average Annual Cost],Table33[Stormwater BMP],CurrentBMP[[#This Row],[Practice]])*SUMIFS(CountyAdjustments[King & Hagan Adjustor],CountyAdjustments[County],'BMP Costs'!V$67) -> 10912.93753 | W72: =SUMIFS(Table33[Average Annual Cost],Table33[Stormwater BMP],CurrentBMP[[#This Row],[Practice]])*SUMIFS(CountyAdjustments[King & Hagan Adjustor],CountyAdjustments[County],'BMP Costs'!W$67) -> 10747.42281 | X72: =SUMIFS(Table33[Average Annual Cost],Table33[Stormwater BMP],CurrentBMP[[#This Row],[Practice]])*SUMIFS(CountyAdjustments[King & Hagan Adjustor],CountyAdjustments[County],'BMP Costs'!X$67) -> 10703.28555 | Y72: =SUMIFS(Table33[Average Annual Cost],Table33[Stormwater BMP],CurrentBMP[[#This Row],[Practice]])*SUMIFS(CountyAdjustments[King & Hagan Adjustor],CountyAdjustments[County],'BMP Costs'!Y$67) -> 10890.8689 | Z72: =SUMIFS(Table33[Average Annual Cost],Table33[Stormwater BMP],CurrentBMP[[#This Row],[Practice]])*SUMIFS(CountyAdjustments[King & Hagan Adjustor],CountyAdjustments[County],'BMP Costs'!Z$67) -> 10747.42281 | AA72: =SUMIFS(Table33[Average Annual Cost],Table33[Stormwater BMP],CurrentBMP[[#This Row],[Practice]])*SUMIFS(CountyAdjustments[King & Hagan Adjustor],CountyAdjustments[County],'BMP Costs'!AA$67) -> 10857.76596 | AB72: =SUMIFS(Table33[Average Annual Cost],Table33[Stormwater BMP],CurrentBMP[[#This Row],[Practice]])*SUMIFS(CountyAdjustments[King & Hagan Adjustor],CountyAdjustments[County],'BMP Costs'!AB$67) -> 10703.28555 | AC72: =SUMIFS(Table33[Average Annual Cost],Table33[Stormwater BMP],CurrentBMP[[#This Row],[Practice]])*SUMIFS(CountyAdjustments[King & Hagan Adjustor],CountyAdjustments[County],'BMP Costs'!AC$67) -> 10703.28555
A73: Green Roof | B73: RR | C73: 123059.0639 | D73: =IF(SUMIFS(UserCost[User-Defined Annual Cost per Unit],UserCost[BMP],CurrentBMP[[#This Row],[Practice]])>0,SUMIFS(UserCost[User-Defined Annual Cost per Unit],UserCost[BMP],CurrentBMP[[#This Row],[Practice]]),CurrentBMP[[#This Row],[Average Annual Cost/Unit (county-specific)]]) -> 123059.0639 | F73: =SUMIFS(Table33[Average Annual Cost],Table33[Stormwater BMP],CurrentBMP[[#This Row],[Practice]])*SUMIFS(CountyAdjustments[King & Hagan Adjustor],CountyAdjustments[County],'BMP Costs'!F$67) -> 123059.0639 | G73: =SUMIFS(Table33[Average Annual Cost],Table33[Stormwater BMP],CurrentBMP[[#This Row],[Practice]])*SUMIFS(CountyAdjustments[King & Hagan Adjustor],CountyAdjustments[County],'BMP Costs'!G$67) -> 126618.6236 | H73: =SUMIFS(Table33[Average Annual Cost],Table33[Stormwater BMP],CurrentBMP[[#This Row],[Practice]])*SUMIFS(CountyAdjustments[King & Hagan Adjustor],CountyAdjustments[County],'BMP Costs'!H$67) -> 125982.988 | I73: =SUMIFS(Table33[Average Annual Cost],Table33[Stormwater BMP],CurrentBMP[[#This Row],[Practice]])*SUMIFS(CountyAdjustments[King & Hagan Adjustor],CountyAdjustments[County],'BMP Costs'!I$67) -> 125982.988 | J73: =SUMIFS(Table33[Average Annual Cost],Table33[Stormwater BMP],CurrentBMP[[#This Row],[Practice]])*SUMIFS(CountyAdjustments[King & Hagan Adjustor],CountyAdjustments[County],'BMP Costs'!J$67) -> 125474.4794 | K73: =SUMIFS(Table33[Average Annual Cost],Table33[Stormwater BMP],CurrentBMP[[#This Row],[Practice]])*SUMIFS(CountyAdjustments[King & Hagan Adjustor],CountyAdjustments[County],'BMP Costs'!K$67) -> 123821.8267 | L73: =SUMIFS(Table33[Average Annual Cost],Table33[Stormwater BMP],CurrentBMP[[#This Row],[Practice]])*SUMIFS(CountyAdjustments[King & Hagan Adjustor],CountyAdjustments[County],'BMP Costs'!L$67) -> 125093.098 | M73: =SUMIFS(Table33[Average Annual Cost],Table33[Stormwater BMP],CurrentBMP[[#This Row],[Practice]])*SUMIFS(CountyAdjustments[King & Hagan Adjustor],CountyAdjustments[County],'BMP Costs'!M$67) -> 124838.8438 | N73: =SUMIFS(Table33[Average Annual Cost],Table33[Stormwater BMP],CurrentBMP[[#This Row],[Practice]])*SUMIFS(CountyAdjustments[King & Hagan Adjustor],CountyAdjustments[County],'BMP Costs'!N$67) -> 125474.4794 | O73: =SUMIFS(Table33[Average Annual Cost],Table33[Stormwater BMP],CurrentBMP[[#This Row],[Practice]])*SUMIFS(CountyAdjustments[King & Hagan Adjustor],CountyAdjustments[County],'BMP Costs'!O$67) -> 123821.8267 | P73: =SUMIFS(Table33[Average Annual Cost],Table33[Stormwater BMP],CurrentBMP[[#This Row],[Practice]])*SUMIFS(CountyAdjustments[King & Hagan Adjustor],CountyAdjustments[County],'BMP Costs'!P$67) -> 125093.098 | Q73: =SUMIFS(Table33[Average Annual Cost],Table33[Stormwater BMP],CurrentBMP[[#This Row],[Practice]])*SUMIFS(CountyAdjustments[King & Hagan Adjustor],CountyAdjustments[County],'BMP Costs'!Q$67) -> 123059.0639 | R73: =SUMIFS(Table33[Average Annual Cost],Table33[Stormwater BMP],CurrentBMP[[#This Row],[Practice]])*SUMIFS(CountyAdjustments[King & Hagan Adjustor],CountyAdjustments[County],'BMP Costs'!R$67) -> 125982.988 | S73: =SUMIFS(Table33[Average Annual Cost],Table33[Stormwater BMP],CurrentBMP[[#This Row],[Practice]])*SUMIFS(CountyAdjustments[King & Hagan Adjustor],CountyAdjustments[County],'BMP Costs'!S$67) -> 125982.988 | T73: =SUMIFS(Table33[Average Annual Cost],Table33[Stormwater BMP],CurrentBMP[[#This Row],[Practice]])*SUMIFS(CountyAdjustments[King & Hagan Adjustor],CountyAdjustments[County],'BMP Costs'!T$67) -> 124838.8438 | U73: =SUMIFS(Table33[Average Annual Cost],Table33[Stormwater BMP],CurrentBMP[[#This Row],[Practice]])*SUMIFS(CountyAdjustments[King & Hagan Adjustor],CountyAdjustments[County],'BMP Costs'!U$67) -> 125220.2252 | V73: =SUMIFS(Table33[Average Annual Cost],Table33[Stormwater BMP],CurrentBMP[[#This Row],[Practice]])*SUMIFS(CountyAdjustments[King & Hagan Adjustor],CountyAdjustments[County],'BMP Costs'!V$67) -> 125728.7337 | W73: =SUMIFS(Table33[Average Annual Cost],Table33[Stormwater BMP],CurrentBMP[[#This Row],[Practice]])*SUMIFS(CountyAdjustments[King & Hagan Adjustor],CountyAdjustments[County],'BMP Costs'!W$67) -> 123821.8267 | X73: =SUMIFS(Table33[Average Annual Cost],Table33[Stormwater BMP],CurrentBMP[[#This Row],[Practice]])*SUMIFS(CountyAdjustments[King & Hagan Adjustor],CountyAdjustments[County],'BMP Costs'!X$67) -> 123313.3182 | Y73: =SUMIFS(Table33[Average Annual Cost],Table33[Stormwater BMP],CurrentBMP[[#This Row],[Practice]])*SUMIFS(CountyAdjustments[King & Hagan Adjustor],CountyAdjustments[County],'BMP Costs'!Y$67) -> 125474.4794 | Z73: =SUMIFS(Table33[Average Annual Cost],Table33[Stormwater BMP],CurrentBMP[[#This Row],[Practice]])*SUMIFS(CountyAdjustments[King & Hagan Adjustor],CountyAdjustments[County],'BMP Costs'!Z$67) -> 123821.8267 | AA73: =SUMIFS(Table33[Average Annual Cost],Table33[Stormwater BMP],CurrentBMP[[#This Row],[Practice]])*SUMIFS(CountyAdjustments[King & Hagan Adjustor],CountyAdjustments[County],'BMP Costs'!AA$67) -> 125093.098 | AB73: =SUMIFS(Table33[Average Annual Cost],Table33[Stormwater BMP],CurrentBMP[[#This Row],[Practice]])*SUMIFS(CountyAdjustments[King & Hagan Adjustor],CountyAdjustments[County],'BMP Costs'!AB$67) -> 123313.3182 | AC73: =SUMIFS(Table33[Average Annual Cost],Table33[Stormwater BMP],CurrentBMP[[#This Row],[Practice]])*SUMIFS(CountyAdjustments[King & Hagan Adjustor],CountyAdjustments[County],'BMP Costs'!AC$67) -> 123313.3182
A74: Downspout Disconnection | B74: RR | C74: 29.19944149 | D74: =IF(SUMIFS(UserCost[User-Defined Annual Cost per Unit],UserCost[BMP],CurrentBMP[[#This Row],[Practice]])>0,SUMIFS(UserCost[User-Defined Annual Cost per Unit],UserCost[BMP],CurrentBMP[[#This Row],[Practice]]),CurrentBMP[[#This Row],[Average Annual Cost/Unit (county-specific)]]) -> 29.19944149 | F74: =SUMIFS(Table33[Average Annual Cost],Table33[Stormwater BMP],CurrentBMP[[#This Row],[Practice]])*SUMIFS(CountyAdjustments[King & Hagan Adjustor],CountyAdjustments[County],'BMP Costs'!F$67) -> 29.19944149 | G74: =SUMIFS(Table33[Average Annual Cost],Table33[Stormwater BMP],CurrentBMP[[#This Row],[Practice]])*SUMIFS(CountyAdjustments[King & Hagan Adjustor],CountyAdjustments[County],'BMP Costs'!G$67) -> 30.04405343 | H74: =SUMIFS(Table33[Average Annual Cost],Table33[Stormwater BMP],CurrentBMP[[#This Row],[Practice]])*SUMIFS(CountyAdjustments[King & Hagan Adjustor],CountyAdjustments[County],'BMP Costs'!H$67) -> 29.89322987 | I74: =SUMIFS(Table33[Average Annual Cost],Table33[Stormwater BMP],CurrentBMP[[#This Row],[Practice]])*SUMIFS(CountyAdjustments[King & Hagan Adjustor],CountyAdjustments[County],'BMP Costs'!I$67) -> 29.89322987 | J74: =SUMIFS(Table33[Average Annual Cost],Table33[Stormwater BMP],CurrentBMP[[#This Row],[Practice]])*SUMIFS(CountyAdjustments[King & Hagan Adjustor],CountyAdjustments[County],'BMP Costs'!J$67) -> 29.77257102 | K74: =SUMIFS(Table33[Average Annual Cost],Table33[Stormwater BMP],CurrentBMP[[#This Row],[Practice]])*SUMIFS(CountyAdjustments[King & Hagan Adjustor],CountyAdjustments[County],'BMP Costs'!K$67) -> 29.38042976 | L74: =SUMIFS(Table33[Average Annual Cost],Table33[Stormwater BMP],CurrentBMP[[#This Row],[Practice]])*SUMIFS(CountyAdjustments[King & Hagan Adjustor],CountyAdjustments[County],'BMP Costs'!L$67) -> 29.68207688 | M74: =SUMIFS(Table33[Average Annual Cost],Table33[Stormwater BMP],CurrentBMP[[#This Row],[Practice]])*SUMIFS(CountyAdjustments[King & Hagan Adjustor],CountyAdjustments[County],'BMP Costs'!M$67) -> 29.62174746 | N74: =SUMIFS(Table33[Average Annual Cost],Table33[Stormwater BMP],CurrentBMP[[#This Row],[Practice]])*SUMIFS(CountyAdjustments[King & Hagan Adjustor],CountyAdjustments[County],'BMP Costs'!N$67) -> 29.77257102 | O74: =SUMIFS(Table33[Average Annual Cost],Table33[Stormwater BMP],CurrentBMP[[#This Row],[Practice]])*SUMIFS(CountyAdjustments[King & Hagan Adjustor],CountyAdjustments[County],'BMP Costs'!O$67) -> 29.38042976 | P74: =SUMIFS(Table33[Average Annual Cost],Table33[Stormwater BMP],CurrentBMP[[#This Row],[Practice]])*SUMIFS(CountyAdjustments[King & Hagan Adjustor],CountyAdjustments[County],'BMP Costs'!P$67) -> 29.68207688 | Q74: =SUMIFS(Table33[Average Annual Cost],Table33[Stormwater BMP],CurrentBMP[[#This Row],[Practice]])*SUMIFS(CountyAdjustments[King & Hagan Adjustor],CountyAdjustments[County],'BMP Costs'!Q$67) -> 29.19944149 | R74: =SUMIFS(Table33[Average Annual Cost],Table33[Stormwater BMP],CurrentBMP[[#This Row],[Practice]])*SUMIFS(CountyAdjustments[King & Hagan Adjustor],CountyAdjustments[County],'BMP Costs'!R$67) -> 29.89322987 | S74: =SUMIFS(Table33[Average Annual Cost],Table33[Stormwater BMP],CurrentBMP[[#This Row],[Practice]])*SUMIFS(CountyAdjustments[King & Hagan Adjustor],CountyAdjustments[County],'BMP Costs'!S$67) -> 29.89322987 | T74: =SUMIFS(Table33[Average Annual Cost],Table33[Stormwater BMP],CurrentBMP[[#This Row],[Practice]])*SUMIFS(CountyAdjustments[King & Hagan Adjustor],CountyAdjustments[County],'BMP Costs'!T$67) -> 29.62174746 | U74: =SUMIFS(Table33[Average Annual Cost],Table33[Stormwater BMP],CurrentBMP[[#This Row],[Practice]])*SUMIFS(CountyAdjustments[King & Hagan Adjustor],CountyAdjustments[County],'BMP Costs'!U$67) -> 29.71224159 | V74: =SUMIFS(Table33[Average Annual Cost],Table33[Stormwater BMP],CurrentBMP[[#This Row],[Practice]])*SUMIFS(CountyAdjustments[King & Hagan Adjustor],CountyAdjustments[County],'BMP Costs'!V$67) -> 29.83290044 | W74: =SUMIFS(Table33[Average Annual Cost],Table33[Stormwater BMP],CurrentBMP[[#This Row],[Practice]])*SUMIFS(CountyAdjustments[King & Hagan Adjustor],CountyAdjustments[County],'BMP Costs'!W$67) -> 29.38042976 | X74: =SUMIFS(Table33[Average Annual Cost],Table33[Stormwater BMP],CurrentBMP[[#This Row],[Practice]])*SUMIFS(CountyAdjustments[King & Hagan Adjustor],CountyAdjustments[County],'BMP Costs'!X$67) -> 29.25977091 | Y74: =SUMIFS(Table33[Average Annual Cost],Table33[Stormwater BMP],CurrentBMP[[#This Row],[Practice]])*SUMIFS(CountyAdjustments[King & Hagan Adjustor],CountyAdjustments[County],'BMP Costs'!Y$67) -> 29.77257102 | Z74: =SUMIFS(Table33[Average Annual Cost],Table33[Stormwater BMP],CurrentBMP[[#This Row],[Practice]])*SUMIFS(CountyAdjustments[King & Hagan Adjustor],CountyAdjustments[County],'BMP Costs'!Z$67) -> 29.38042976 | AA74: =SUMIFS(Table33[Average Annual Cost],Table33[Stormwater BMP],CurrentBMP[[#This Row],[Practice]])*SUMIFS(CountyAdjustments[King & Hagan Adjustor],CountyAdjustments[County],'BMP Costs'!AA$67) -> 29.68207688 | AB74: =SUMIFS(Table33[Average Annual Cost],Table33[Stormwater BMP],CurrentBMP[[#This Row],[Practice]])*SUMIFS(CountyAdjustments[King & Hagan Adjustor],CountyAdjustments[County],'BMP Costs'!AB$67) -> 29.25977091 | AC74: =SUMIFS(Table33[Average Annual Cost],Table33[Stormwater BMP],CurrentBMP[[#This Row],[Practice]])*SUMIFS(CountyAdjustments[King & Hagan Adjustor],CountyAdjustments[County],'BMP Costs'!AC$67) -> 29.25977091
A75: Bioretention | B75: RR | C75: 4907.196496 | D75: =IF(SUMIFS(UserCost[User-Defined Annual Cost per Unit],UserCost[BMP],CurrentBMP[[#This Row],[Practice]])>0,SUMIFS(UserCost[User-Defined Annual Cost per Unit],UserCost[BMP],CurrentBMP[[#This Row],[Practice]]),CurrentBMP[[#This Row],[Average Annual Cost/Unit (county-specific)]]) -> 4907.196496 | F75: =SUMIFS(Table33[Average Annual Cost],Table33[Stormwater BMP],CurrentBMP[[#This Row],[Practice]])*SUMIFS(CountyAdjustments[King & Hagan Adjustor],CountyAdjustments[County],'BMP Costs'!F$67) -> 4907.196496 | G75: =SUMIFS(Table33[Average Annual Cost],Table33[Stormwater BMP],CurrentBMP[[#This Row],[Practice]])*SUMIFS(CountyAdjustments[King & Hagan Adjustor],CountyAdjustments[County],'BMP Costs'!G$67) -> 5049.140197 | H75: =SUMIFS(Table33[Average Annual Cost],Table33[Stormwater BMP],CurrentBMP[[#This Row],[Practice]])*SUMIFS(CountyAdjustments[King & Hagan Adjustor],CountyAdjustments[County],'BMP Costs'!H$67) -> 5023.793107 | I75: =SUMIFS(Table33[Average Annual Cost],Table33[Stormwater BMP],CurrentBMP[[#This Row],[Practice]])*SUMIFS(CountyAdjustments[King & Hagan Adjustor],CountyAdjustments[County],'BMP Costs'!I$67) -> 5023.793107 | J75: =SUMIFS(Table33[Average Annual Cost],Table33[Stormwater BMP],CurrentBMP[[#This Row],[Practice]])*SUMIFS(CountyAdjustments[King & Hagan Adjustor],CountyAdjustments[County],'BMP Costs'!J$67) -> 5003.515436 | K75: =SUMIFS(Table33[Average Annual Cost],Table33[Stormwater BMP],CurrentBMP[[#This Row],[Practice]])*SUMIFS(CountyAdjustments[King & Hagan Adjustor],CountyAdjustments[County],'BMP Costs'!K$67) -> 4937.613004 | L75: =SUMIFS(Table33[Average Annual Cost],Table33[Stormwater BMP],CurrentBMP[[#This Row],[Practice]])*SUMIFS(CountyAdjustments[King & Hagan Adjustor],CountyAdjustments[County],'BMP Costs'!L$67) -> 4988.307182 | M75: =SUMIFS(Table33[Average Annual Cost],Table33[Stormwater BMP],CurrentBMP[[#This Row],[Practice]])*SUMIFS(CountyAdjustments[King & Hagan Adjustor],CountyAdjustments[County],'BMP Costs'!M$67) -> 4978.168347 | N75: =SUMIFS(Table33[Average Annual Cost],Table33[Stormwater BMP],CurrentBMP[[#This Row],[Practice]])*SUMIFS(CountyAdjustments[King & Hagan Adjustor],CountyAdjustments[County],'BMP Costs'!N$67) -> 5003.515436 | O75: =SUMIFS(Table33[Average Annual Cost],Table33[Stormwater BMP],CurrentBMP[[#This Row],[Practice]])*SUMIFS(CountyAdjustments[King & Hagan Adjustor],CountyAdjustments[County],'BMP Costs'!O$67) -> 4937.613004 | P75: =SUMIFS(Table33[Average Annual Cost],Table33[Stormwater BMP],CurrentBMP[[#This Row],[Practice]])*SUMIFS(CountyAdjustments[King & Hagan Adjustor],CountyAdjustments[County],'BMP Costs'!P$67) -> 4988.307182 | Q75: =SUMIFS(Table33[Average Annual Cost],Table33[Stormwater BMP],CurrentBMP[[#This Row],[Practice]])*SUMIFS(CountyAdjustments[King & Hagan Adjustor],CountyAdjustments[County],'BMP Costs'!Q$67) -> 4907.196496 | R75: =SUMIFS(Table33[Average Annual Cost],Table33[Stormwater BMP],CurrentBMP[[#This Row],[Practice]])*SUMIFS(CountyAdjustments[King & Hagan Adjustor],CountyAdjustments[County],'BMP Costs'!R$67) -> 5023.793107 | S75: =SUMIFS(Table33[Average Annual Cost],Table33[Stormwater BMP],CurrentBMP[[#This Row],[Practice]])*SUMIFS(CountyAdjustments[King & Hagan Adjustor],CountyAdjustments[County],'BMP Costs'!S$67) -> 5023.793107 | T75: =SUMIFS(Table33[Average Annual Cost],Table33[Stormwater BMP],CurrentBMP[[#This Row],[Practice]])*SUMIFS(CountyAdjustments[King & Hagan Adjustor],CountyAdjustments[County],'BMP Costs'!T$67) -> 4978.168347 | U75: =SUMIFS(Table33[Average Annual Cost],Table33[Stormwater BMP],CurrentBMP[[#This Row],[Practice]])*SUMIFS(CountyAdjustments[King & Hagan Adjustor],CountyAdjustments[County],'BMP Costs'!U$67) -> 4993.3766 | V75: =SUMIFS(Table33[Average Annual Cost],Table33[Stormwater BMP],CurrentBMP[[#This Row],[Practice]])*SUMIFS(CountyAdjustments[King & Hagan Adjustor],CountyAdjustments[County],'BMP Costs'!V$67) -> 5013.654272 | W75: =SUMIFS(Table33[Average Annual Cost],Table33[Stormwater BMP],CurrentBMP[[#This Row],[Practice]])*SUMIFS(CountyAdjustments[King & Hagan Adjustor],CountyAdjustments[County],'BMP Costs'!W$67) -> 4937.613004 | X75: =SUMIFS(Table33[Average Annual Cost],Table33[Stormwater BMP],CurrentBMP[[#This Row],[Practice]])*SUMIFS(CountyAdjustments[King & Hagan Adjustor],CountyAdjustments[County],'BMP Costs'!X$67) -> 4917.335332 | Y75: =SUMIFS(Table33[Average Annual Cost],Table33[Stormwater BMP],CurrentBMP[[#This Row],[Practice]])*SUMIFS(CountyAdjustments[King & Hagan Adjustor],CountyAdjustments[County],'BMP Costs'!Y$67) -> 5003.515436 | Z75: =SUMIFS(Table33[Average Annual Cost],Table33[Stormwater BMP],CurrentBMP[[#This Row],[Practice]])*SUMIFS(CountyAdjustments[King & Hagan Adjustor],CountyAdjustments[County],'BMP Costs'!Z$67) -> 4937.613004 | AA75: =SUMIFS(Table33[Average Annual Cost],Table33[Stormwater BMP],CurrentBMP[[#This Row],[Practice]])*SUMIFS(CountyAdjustments[King & Hagan Adjustor],CountyAdjustments[County],'BMP Costs'!AA$67) -> 4988.307182 | AB75: =SUMIFS(Table33[Average Annual Cost],Table33[Stormwater BMP],CurrentBMP[[#This Row],[Practice]])*SUMIFS(CountyAdjustments[King & Hagan Adjustor],CountyAdjustments[County],'BMP Costs'!AB$67) -> 4917.335332 | AC75: =SUMIFS(Table33[Average Annual Cost],Table33[Stormwater BMP],CurrentBMP[[#This Row],[Practice]])*SUMIFS(CountyAdjustments[King & Hagan Adjustor],CountyAdjustments[County],'BMP Costs'!AC$67) -> 4917.335332
A76: Rain Garden | B76: RR | C76: 4907.196496 | D76: =IF(SUMIFS(UserCost[User-Defined Annual Cost per Unit],UserCost[BMP],CurrentBMP[[#This Row],[Practice]])>0,SUMIFS(UserCost[User-Defined Annual Cost per Unit],UserCost[BMP],CurrentBMP[[#This Row],[Practice]]),CurrentBMP[[#This Row],[Average Annual Cost/Unit (county-specific)]]) -> 4907.196496 | F76: =SUMIFS(Table33[Average Annual Cost],Table33[Stormwater BMP],CurrentBMP[[#This Row],[Practice]])*SUMIFS(CountyAdjustments[King & Hagan Adjustor],CountyAdjustments[County],'BMP Costs'!F$67) -> 4907.196496 | G76: =SUMIFS(Table33[Average Annual Cost],Table33[Stormwater BMP],CurrentBMP[[#This Row],[Practice]])*SUMIFS(CountyAdjustments[King & Hagan Adjustor],CountyAdjustments[County],'BMP Costs'!G$67) -> 5049.140197 | H76: =SUMIFS(Table33[Average Annual Cost],Table33[Stormwater BMP],CurrentBMP[[#This Row],[Practice]])*SUMIFS(CountyAdjustments[King & Hagan Adjustor],CountyAdjustments[County],'BMP Costs'!H$67) -> 5023.793107 | I76: =SUMIFS(Table33[Average Annual Cost],Table33[Stormwater BMP],CurrentBMP[[#This Row],[Practice]])*SUMIFS(CountyAdjustments[King & Hagan Adjustor],CountyAdjustments[County],'BMP Costs'!I$67) -> 5023.793107 | J76: =SUMIFS(Table33[Average Annual Cost],Table33[Stormwater BMP],CurrentBMP[[#This Row],[Practice]])*SUMIFS(CountyAdjustments[King & Hagan Adjustor],CountyAdjustments[County],'BMP Costs'!J$67) -> 5003.515436 | K76: =SUMIFS(Table33[Average Annual Cost],Table33[Stormwater BMP],CurrentBMP[[#This Row],[Practice]])*SUMIFS(CountyAdjustments[King & Hagan Adjustor],CountyAdjustments[County],'BMP Costs'!K$67) -> 4937.613004 | L76: =SUMIFS(Table33[Average Annual Cost],Table33[Stormwater BMP],CurrentBMP[[#This Row],[Practice]])*SUMIFS(CountyAdjustments[King & Hagan Adjustor],CountyAdjustments[County],'BMP Costs'!L$67) -> 4988.307182 | M76: =SUMIFS(Table33[Average Annual Cost],Table33[Stormwater BMP],CurrentBMP[[#This Row],[Practice]])*SUMIFS(CountyAdjustments[King & Hagan Adjustor],CountyAdjustments[County],'BMP Costs'!M$67) -> 4978.168347 | N76: =SUMIFS(Table33[Average Annual Cost],Table33[Stormwater BMP],CurrentBMP[[#This Row],[Practice]])*SUMIFS(CountyAdjustments[King & Hagan Adjustor],CountyAdjustments[County],'BMP Costs'!N$67) -> 5003.515436 | O76: =SUMIFS(Table33[Average Annual Cost],Table33[Stormwater BMP],CurrentBMP[[#This Row],[Practice]])*SUMIFS(CountyAdjustments[King & Hagan Adjustor],CountyAdjustments[County],'BMP Costs'!O$67) -> 4937.613004 | P76: =SUMIFS(Table33[Average Annual Cost],Table33[Stormwater BMP],CurrentBMP[[#This Row],[Practice]])*SUMIFS(CountyAdjustments[King & Hagan Adjustor],CountyAdjustments[County],'BMP Costs'!P$67) -> 4988.307182 | Q76: =SUMIFS(Table33[Average Annual Cost],Table33[Stormwater BMP],CurrentBMP[[#This Row],[Practice]])*SUMIFS(CountyAdjustments[King & Hagan Adjustor],CountyAdjustments[County],'BMP Costs'!Q$67) -> 4907.196496 | R76: =SUMIFS(Table33[Average Annual Cost],Table33[Stormwater BMP],CurrentBMP[[#This Row],[Practice]])*SUMIFS(CountyAdjustments[King & Hagan Adjustor],CountyAdjustments[County],'BMP Costs'!R$67) -> 5023.793107 | S76: =SUMIFS(Table33[Average Annual Cost],Table33[Stormwater BMP],CurrentBMP[[#This Row],[Practice]])*SUMIFS(CountyAdjustments[King & Hagan Adjustor],CountyAdjustments[County],'BMP Costs'!S$67) -> 5023.793107 | T76: =SUMIFS(Table33[Average Annual Cost],Table33[Stormwater BMP],CurrentBMP[[#This Row],[Practice]])*SUMIFS(CountyAdjustments[King & Hagan Adjustor],CountyAdjustments[County],'BMP Costs'!T$67) -> 4978.168347 | U76: =SUMIFS(Table33[Average Annual Cost],Table33[Stormwater BMP],CurrentBMP[[#This Row],[Practice]])*SUMIFS(CountyAdjustments[King & Hagan Adjustor],CountyAdjustments[County],'BMP Costs'!U$67) -> 4993.3766 | V76: =SUMIFS(Table33[Average Annual Cost],Table33[Stormwater BMP],CurrentBMP[[#This Row],[Practice]])*SUMIFS(CountyAdjustments[King & Hagan Adjustor],CountyAdjustments[County],'BMP Costs'!V$67) -> 5013.654272 | W76: =SUMIFS(Table33[Average Annual Cost],Table33[Stormwater BMP],CurrentBMP[[#This Row],[Practice]])*SUMIFS(CountyAdjustments[King & Hagan Adjustor],CountyAdjustments[County],'BMP Costs'!W$67) -> 4937.613004 | X76: =SUMIFS(Table33[Average Annual Cost],Table33[Stormwater BMP],CurrentBMP[[#This Row],[Practice]])*SUMIFS(CountyAdjustments[King & Hagan Adjustor],CountyAdjustments[County],'BMP Costs'!X$67) -> 4917.335332 | Y76: =SUMIFS(Table33[Average Annual Cost],Table33[Stormwater BMP],CurrentBMP[[#This Row],[Practice]])*SUMIFS(CountyAdjustments[King & Hagan Adjustor],CountyAdjustments[County],'BMP Costs'!Y$67) -> 5003.515436 | Z76: =SUMIFS(Table33[Average Annual Cost],Table33[Stormwater BMP],CurrentBMP[[#This Row],[Practice]])*SUMIFS(CountyAdjustments[King & Hagan Adjustor],CountyAdjustments[County],'BMP Costs'!Z$67) -> 4937.613004 | AA76: =SUMIFS(Table33[Average Annual Cost],Table33[Stormwater BMP],CurrentBMP[[#This Row],[Practice]])*SUMIFS(CountyAdjustments[King & Hagan Adjustor],CountyAdjustments[County],'BMP Costs'!AA$67) -> 4988.307182 | AB76: =SUMIFS(Table33[Average Annual Cost],Table33[Stormwater BMP],CurrentBMP[[#This Row],[Practice]])*SUMIFS(CountyAdjustments[King & Hagan Adjustor],CountyAdjustments[County],'BMP Costs'!AB$67) -> 4917.335332 | AC76: =SUMIFS(Table33[Average Annual Cost],Table33[Stormwater BMP],CurrentBMP[[#This Row],[Practice]])*SUMIFS(CountyAdjustments[King & Hagan Adjustor],CountyAdjustments[County],'BMP Costs'!AC$67) -> 4917.335332
A77: Green Streets | B77: ST | C77: 13973.97707 | D77: =IF(SUMIFS(UserCost[User-Defined Annual Cost per Unit],UserCost[BMP],CurrentBMP[[#This Row],[Practice]])>0,SUMIFS(UserCost[User-Defined Annual Cost per Unit],UserCost[BMP],CurrentBMP[[#This Row],[Practice]]),CurrentBMP[[#This Row],[Average Annual Cost/Unit (county-specific)]]) -> 13973.97707 | F77: =SUMIFS(Table33[Average Annual Cost],Table33[Stormwater BMP],CurrentBMP[[#This Row],[Practice]])*SUMIFS(CountyAdjustments[King & Hagan Adjustor],CountyAdjustments[County],'BMP Costs'!F$67) -> 13973.97707 | G77: =SUMIFS(Table33[Average Annual Cost],Table33[Stormwater BMP],CurrentBMP[[#This Row],[Practice]])*SUMIFS(CountyAdjustments[King & Hagan Adjustor],CountyAdjustments[County],'BMP Costs'!G$67) -> 14378.18301 | H77: =SUMIFS(Table33[Average Annual Cost],Table33[Stormwater BMP],CurrentBMP[[#This Row],[Practice]])*SUMIFS(CountyAdjustments[King & Hagan Adjustor],CountyAdjustments[County],'BMP Costs'!H$67) -> 14306.00338 | I77: =SUMIFS(Table33[Average Annual Cost],Table33[Stormwater BMP],CurrentBMP[[#This Row],[Practice]])*SUMIFS(CountyAdjustments[King & Hagan Adjustor],CountyAdjustments[County],'BMP Costs'!I$67) -> 14306.00338 | J77: =SUMIFS(Table33[Average Annual Cost],Table33[Stormwater BMP],CurrentBMP[[#This Row],[Practice]])*SUMIFS(CountyAdjustments[King & Hagan Adjustor],CountyAdjustments[County],'BMP Costs'!J$67) -> 14248.25967 | K77: =SUMIFS(Table33[Average Annual Cost],Table33[Stormwater BMP],CurrentBMP[[#This Row],[Practice]])*SUMIFS(CountyAdjustments[King & Hagan Adjustor],CountyAdjustments[County],'BMP Costs'!K$67) -> 14060.59263 | L77: =SUMIFS(Table33[Average Annual Cost],Table33[Stormwater BMP],CurrentBMP[[#This Row],[Practice]])*SUMIFS(CountyAdjustments[King & Hagan Adjustor],CountyAdjustments[County],'BMP Costs'!L$67) -> 14204.95189 | M77: =SUMIFS(Table33[Average Annual Cost],Table33[Stormwater BMP],CurrentBMP[[#This Row],[Practice]])*SUMIFS(CountyAdjustments[King & Hagan Adjustor],CountyAdjustments[County],'BMP Costs'!M$67) -> 14176.08004 | N77: =SUMIFS(Table33[Average Annual Cost],Table33[Stormwater BMP],CurrentBMP[[#This Row],[Practice]])*SUMIFS(CountyAdjustments[King & Hagan Adjustor],CountyAdjustments[County],'BMP Costs'!N$67) -> 14248.25967 | O77: =SUMIFS(Table33[Average Annual Cost],Table33[Stormwater BMP],CurrentBMP[[#This Row],[Practice]])*SUMIFS(CountyAdjustments[King & Hagan Adjustor],CountyAdjustments[County],'BMP Costs'!O$67) -> 14060.59263 | P77: =SUMIFS(Table33[Average Annual Cost],Table33[Stormwater BMP],CurrentBMP[[#This Row],[Practice]])*SUMIFS(CountyAdjustments[King & Hagan Adjustor],CountyAdjustments[County],'BMP Costs'!P$67) -> 14204.95189 | Q77: =SUMIFS(Table33[Average Annual Cost],Table33[Stormwater BMP],CurrentBMP[[#This Row],[Practice]])*SUMIFS(CountyAdjustments[King & Hagan Adjustor],CountyAdjustments[County],'BMP Costs'!Q$67) -> 13973.97707 | R77: =SUMIFS(Table33[Average Annual Cost],Table33[Stormwater BMP],CurrentBMP[[#This Row],[Practice]])*SUMIFS(CountyAdjustments[King & Hagan Adjustor],CountyAdjustments[County],'BMP Costs'!R$67) -> 14306.00338 | S77: =SUMIFS(Table33[Average Annual Cost],Table33[Stormwater BMP],CurrentBMP[[#This Row],[Practice]])*SUMIFS(CountyAdjustments[King & Hagan Adjustor],CountyAdjustments[County],'BMP Costs'!S$67) -> 14306.00338 | T77: =SUMIFS(Table33[Average Annual Cost],Table33[Stormwater BMP],CurrentBMP[[#This Row],[Practice]])*SUMIFS(CountyAdjustments[King & Hagan Adjustor],CountyAdjustments[County],'BMP Costs'!T$67) -> 14176.08004 | U77: =SUMIFS(Table33[Average Annual Cost],Table33[Stormwater BMP],CurrentBMP[[#This Row],[Practice]])*SUMIFS(CountyAdjustments[King & Hagan Adjustor],CountyAdjustments[County],'BMP Costs'!U$67) -> 14219.38782 | V77: =SUMIFS(Table33[Average Annual Cost],Table33[Stormwater BMP],CurrentBMP[[#This Row],[Practice]])*SUMIFS(CountyAdjustments[King & Hagan Adjustor],CountyAdjustments[County],'BMP Costs'!V$67) -> 14277.13153 | W77: =SUMIFS(Table33[Average Annual Cost],Table33[Stormwater BMP],CurrentBMP[[#This Row],[Practice]])*SUMIFS(CountyAdjustments[King & Hagan Adjustor],CountyAdjustments[County],'BMP Costs'!W$67) -> 14060.59263 | X77: =SUMIFS(Table33[Average Annual Cost],Table33[Stormwater BMP],CurrentBMP[[#This Row],[Practice]])*SUMIFS(CountyAdjustments[King & Hagan Adjustor],CountyAdjustments[County],'BMP Costs'!X$67) -> 14002.84892 | Y77: =SUMIFS(Table33[Average Annual Cost],Table33[Stormwater BMP],CurrentBMP[[#This Row],[Practice]])*SUMIFS(CountyAdjustments[King & Hagan Adjustor],CountyAdjustments[County],'BMP Costs'!Y$67) -> 14248.25967 | Z77: =SUMIFS(Table33[Average Annual Cost],Table33[Stormwater BMP],CurrentBMP[[#This Row],[Practice]])*SUMIFS(CountyAdjustments[King & Hagan Adjustor],CountyAdjustments[County],'BMP Costs'!Z$67) -> 14060.59263 | AA77: =SUMIFS(Table33[Average Annual Cost],Table33[Stormwater BMP],CurrentBMP[[#This Row],[Practice]])*SUMIFS(CountyAdjustments[King & Hagan Adjustor],CountyAdjustments[County],'BMP Costs'!AA$67) -> 14204.95189 | AB77: =SUMIFS(Table33[Average Annual Cost],Table33[Stormwater BMP],CurrentBMP[[#This Row],[Practice]])*SUMIFS(CountyAdjustments[King & Hagan Adjustor],CountyAdjustments[County],'BMP Costs'!AB$67) -> 14002.84892 | AC77: =SUMIFS(Table33[Average Annual Cost],Table33[Stormwater BMP],CurrentBMP[[#This Row],[Practice]])*SUMIFS(CountyAdjustments[King & Hagan Adjustor],CountyAdjustments[County],'BMP Costs'!AC$67) -> 14002.84892
A78: Vegetated Filter Strips | B78: RR | C78: 2438.149336 | D78: =IF(SUMIFS(UserCost[User-Defined Annual Cost per Unit],UserCost[BMP],CurrentBMP[[#This Row],[Practice]])>0,SUMIFS(UserCost[User-Defined Annual Cost per Unit],UserCost[BMP],CurrentBMP[[#This Row],[Practice]]),CurrentBMP[[#This Row],[Average Annual Cost/Unit (county-specific)]]) -> 2438.149336 | F78: =SUMIFS(Table33[Average Annual Cost],Table33[Stormwater BMP],CurrentBMP[[#This Row],[Practice]])*SUMIFS(CountyAdjustments[King & Hagan Adjustor],CountyAdjustments[County],'BMP Costs'!F$67) -> 2438.149336 | G78: =SUMIFS(Table33[Average Annual Cost],Table33[Stormwater BMP],CurrentBMP[[#This Row],[Practice]])*SUMIFS(CountyAdjustments[King & Hagan Adjustor],CountyAdjustments[County],'BMP Costs'!G$67) -> 2508.674317 | H78: =SUMIFS(Table33[Average Annual Cost],Table33[Stormwater BMP],CurrentBMP[[#This Row],[Practice]])*SUMIFS(CountyAdjustments[King & Hagan Adjustor],CountyAdjustments[County],'BMP Costs'!H$67) -> 2496.08057 | I78: =SUMIFS(Table33[Average Annual Cost],Table33[Stormwater BMP],CurrentBMP[[#This Row],[Practice]])*SUMIFS(CountyAdjustments[King & Hagan Adjustor],CountyAdjustments[County],'BMP Costs'!I$67) -> 2496.08057 | J78: =SUMIFS(Table33[Average Annual Cost],Table33[Stormwater BMP],CurrentBMP[[#This Row],[Practice]])*SUMIFS(CountyAdjustments[King & Hagan Adjustor],CountyAdjustments[County],'BMP Costs'!J$67) -> 2486.005573 | K78: =SUMIFS(Table33[Average Annual Cost],Table33[Stormwater BMP],CurrentBMP[[#This Row],[Practice]])*SUMIFS(CountyAdjustments[King & Hagan Adjustor],CountyAdjustments[County],'BMP Costs'!K$67) -> 2453.261832 | L78: =SUMIFS(Table33[Average Annual Cost],Table33[Stormwater BMP],CurrentBMP[[#This Row],[Practice]])*SUMIFS(CountyAdjustments[King & Hagan Adjustor],CountyAdjustments[County],'BMP Costs'!L$67) -> 2478.449325 | M78: =SUMIFS(Table33[Average Annual Cost],Table33[Stormwater BMP],CurrentBMP[[#This Row],[Practice]])*SUMIFS(CountyAdjustments[King & Hagan Adjustor],CountyAdjustments[County],'BMP Costs'!M$67) -> 2473.411826 | N78: =SUMIFS(Table33[Average Annual Cost],Table33[Stormwater BMP],CurrentBMP[[#This Row],[Practice]])*SUMIFS(CountyAdjustments[King & Hagan Adjustor],CountyAdjustments[County],'BMP Costs'!N$67) -> 2486.005573 | O78: =SUMIFS(Table33[Average Annual Cost],Table33[Stormwater BMP],CurrentBMP[[#This Row],[Practice]])*SUMIFS(CountyAdjustments[King & Hagan Adjustor],CountyAdjustments[County],'BMP Costs'!O$67) -> 2453.261832 | P78: =SUMIFS(Table33[Average Annual Cost],Table33[Stormwater BMP],CurrentBMP[[#This Row],[Practice]])*SUMIFS(CountyAdjustments[King & Hagan Adjustor],CountyAdjustments[County],'BMP Costs'!P$67) -> 2478.449325 | Q78: =SUMIFS(Table33[Average Annual Cost],Table33[Stormwater BMP],CurrentBMP[[#This Row],[Practice]])*SUMIFS(CountyAdjustments[King & Hagan Adjustor],CountyAdjustments[County],'BMP Costs'!Q$67) -> 2438.149336 | R78: =SUMIFS(Table33[Average Annual Cost],Table33[Stormwater BMP],CurrentBMP[[#This Row],[Practice]])*SUMIFS(CountyAdjustments[King & Hagan Adjustor],CountyAdjustments[County],'BMP Costs'!R$67) -> 2496.08057 | S78: =SUMIFS(Table33[Average Annual Cost],Table33[Stormwater BMP],CurrentBMP[[#This Row],[Practice]])*SUMIFS(CountyAdjustments[King & Hagan Adjustor],CountyAdjustments[County],'BMP Costs'!S$67) -> 2496.08057 | T78: =SUMIFS(Table33[Average Annual Cost],Table33[Stormwater BMP],CurrentBMP[[#This Row],[Practice]])*SUMIFS(CountyAdjustments[King & Hagan Adjustor],CountyAdjustments[County],'BMP Costs'!T$67) -> 2473.411826 | U78: =SUMIFS(Table33[Average Annual Cost],Table33[Stormwater BMP],CurrentBMP[[#This Row],[Practice]])*SUMIFS(CountyAdjustments[King & Hagan Adjustor],CountyAdjustments[County],'BMP Costs'!U$67) -> 2480.968074 | V78: =SUMIFS(Table33[Average Annual Cost],Table33[Stormwater BMP],CurrentBMP[[#This Row],[Practice]])*SUMIFS(CountyAdjustments[King & Hagan Adjustor],CountyAdjustments[County],'BMP Costs'!V$67) -> 2491.043071 | W78: =SUMIFS(Table33[Average Annual Cost],Table33[Stormwater BMP],CurrentBMP[[#This Row],[Practice]])*SUMIFS(CountyAdjustments[King & Hagan Adjustor],CountyAdjustments[County],'BMP Costs'!W$67) -> 2453.261832 | X78: =SUMIFS(Table33[Average Annual Cost],Table33[Stormwater BMP],CurrentBMP[[#This Row],[Practice]])*SUMIFS(CountyAdjustments[King & Hagan Adjustor],CountyAdjustments[County],'BMP Costs'!X$67) -> 2443.186834 | Y78: =SUMIFS(Table33[Average Annual Cost],Table33[Stormwater BMP],CurrentBMP[[#This Row],[Practice]])*SUMIFS(CountyAdjustments[King & Hagan Adjustor],CountyAdjustments[County],'BMP Costs'!Y$67) -> 2486.005573 | Z78: =SUMIFS(Table33[Average Annual Cost],Table33[Stormwater BMP],CurrentBMP[[#This Row],[Practice]])*SUMIFS(CountyAdjustments[King & Hagan Adjustor],CountyAdjustments[County],'BMP Costs'!Z$67) -> 2453.261832 | AA78: =SUMIFS(Table33[Average Annual Cost],Table33[Stormwater BMP],CurrentBMP[[#This Row],[Practice]])*SUMIFS(CountyAdjustments[King & Hagan Adjustor],CountyAdjustments[County],'BMP Costs'!AA$67) -> 2478.449325 | AB78: =SUMIFS(Table33[Average Annual Cost],Table33[Stormwater BMP],CurrentBMP[[#This Row],[Practice]])*SUMIFS(CountyAdjustments[King & Hagan Adjustor],CountyAdjustments[County],'BMP Costs'!AB$67) -> 2443.186834 | AC78: =SUMIFS(Table33[Average Annual Cost],Table33[Stormwater BMP],CurrentBMP[[#This Row],[Practice]])*SUMIFS(CountyAdjustments[King & Hagan Adjustor],CountyAdjustments[County],'BMP Costs'!AC$67) -> 2443.186834
A79: Hydrodynamic and Filtering Practices | B79: RR | C79: 6395.56352 | D79: =IF(SUMIFS(UserCost[User-Defined Annual Cost per Unit],UserCost[BMP],CurrentBMP[[#This Row],[Practice]])>0,SUMIFS(UserCost[User-Defined Annual Cost per Unit],UserCost[BMP],CurrentBMP[[#This Row],[Practice]]),CurrentBMP[[#This Row],[Average Annual Cost/Unit (county-specific)]]) -> 6395.56352 | F79: =SUMIFS(Table33[Average Annual Cost],Table33[Stormwater BMP],CurrentBMP[[#This Row],[Practice]])*SUMIFS(CountyAdjustments[King & Hagan Adjustor],CountyAdjustments[County],'BMP Costs'!F$67) -> 6395.56352 | G79: =SUMIFS(Table33[Average Annual Cost],Table33[Stormwater BMP],CurrentBMP[[#This Row],[Practice]])*SUMIFS(CountyAdjustments[King & Hagan Adjustor],CountyAdjustments[County],'BMP Costs'!G$67) -> 6580.559159 | H79: =SUMIFS(Table33[Average Annual Cost],Table33[Stormwater BMP],CurrentBMP[[#This Row],[Practice]])*SUMIFS(CountyAdjustments[King & Hagan Adjustor],CountyAdjustments[County],'BMP Costs'!H$67) -> 6547.524224 | I79: =SUMIFS(Table33[Average Annual Cost],Table33[Stormwater BMP],CurrentBMP[[#This Row],[Practice]])*SUMIFS(CountyAdjustments[King & Hagan Adjustor],CountyAdjustments[County],'BMP Costs'!I$67) -> 6547.524224 | J79: =SUMIFS(Table33[Average Annual Cost],Table33[Stormwater BMP],CurrentBMP[[#This Row],[Practice]])*SUMIFS(CountyAdjustments[King & Hagan Adjustor],CountyAdjustments[County],'BMP Costs'!J$67) -> 6521.096275 | K79: =SUMIFS(Table33[Average Annual Cost],Table33[Stormwater BMP],CurrentBMP[[#This Row],[Practice]])*SUMIFS(CountyAdjustments[King & Hagan Adjustor],CountyAdjustments[County],'BMP Costs'!K$67) -> 6435.205443 | L79: =SUMIFS(Table33[Average Annual Cost],Table33[Stormwater BMP],CurrentBMP[[#This Row],[Practice]])*SUMIFS(CountyAdjustments[King & Hagan Adjustor],CountyAdjustments[County],'BMP Costs'!L$67) -> 6501.275314 | M79: =SUMIFS(Table33[Average Annual Cost],Table33[Stormwater BMP],CurrentBMP[[#This Row],[Practice]])*SUMIFS(CountyAdjustments[King & Hagan Adjustor],CountyAdjustments[County],'BMP Costs'!M$67) -> 6488.06134 | N79: =SUMIFS(Table33[Average Annual Cost],Table33[Stormwater BMP],CurrentBMP[[#This Row],[Practice]])*SUMIFS(CountyAdjustments[King & Hagan Adjustor],CountyAdjustments[County],'BMP Costs'!N$67) -> 6521.096275 | O79: =SUMIFS(Table33[Average Annual Cost],Table33[Stormwater BMP],CurrentBMP[[#This Row],[Practice]])*SUMIFS(CountyAdjustments[King & Hagan Adjustor],CountyAdjustments[County],'BMP Costs'!O$67) -> 6435.205443 | P79: =SUMIFS(Table33[Average Annual Cost],Table33[Stormwater BMP],CurrentBMP[[#This Row],[Practice]])*SUMIFS(CountyAdjustments[King & Hagan Adjustor],CountyAdjustments[County],'BMP Costs'!P$67) -> 6501.275314 | Q79: =SUMIFS(Table33[Average Annual Cost],Table33[Stormwater BMP],CurrentBMP[[#This Row],[Practice]])*SUMIFS(CountyAdjustments[King & Hagan Adjustor],CountyAdjustments[County],'BMP Costs'!Q$67) -> 6395.56352 | R79: =SUMIFS(Table33[Average Annual Cost],Table33[Stormwater BMP],CurrentBMP[[#This Row],[Practice]])*SUMIFS(CountyAdjustments[King & Hagan Adjustor],CountyAdjustments[County],'BMP Costs'!R$67) -> 6547.524224 | S79: =SUMIFS(Table33[Average Annual Cost],Table33[Stormwater BMP],CurrentBMP[[#This Row],[Practice]])*SUMIFS(CountyAdjustments[King & Hagan Adjustor],CountyAdjustments[County],'BMP Costs'!S$67) -> 6547.524224 | T79: =SUMIFS(Table33[Average Annual Cost],Table33[Stormwater BMP],CurrentBMP[[#This Row],[Practice]])*SUMIFS(CountyAdjustments[King & Hagan Adjustor],CountyAdjustments[County],'BMP Costs'!T$67) -> 6488.06134 | U79: =SUMIFS(Table33[Average Annual Cost],Table33[Stormwater BMP],CurrentBMP[[#This Row],[Practice]])*SUMIFS(CountyAdjustments[King & Hagan Adjustor],CountyAdjustments[County],'BMP Costs'!U$67) -> 6507.882301 | V79: =SUMIFS(Table33[Average Annual Cost],Table33[Stormwater BMP],CurrentBMP[[#This Row],[Practice]])*SUMIFS(CountyAdjustments[King & Hagan Adjustor],CountyAdjustments[County],'BMP Costs'!V$67) -> 6534.31025 | W79: =SUMIFS(Table33[Average Annual Cost],Table33[Stormwater BMP],CurrentBMP[[#This Row],[Practice]])*SUMIFS(CountyAdjustments[King & Hagan Adjustor],CountyAdjustments[County],'BMP Costs'!W$67) -> 6435.205443 | X79: =SUMIFS(Table33[Average Annual Cost],Table33[Stormwater BMP],CurrentBMP[[#This Row],[Practice]])*SUMIFS(CountyAdjustments[King & Hagan Adjustor],CountyAdjustments[County],'BMP Costs'!X$67) -> 6408.777495 | Y79: =SUMIFS(Table33[Average Annual Cost],Table33[Stormwater BMP],CurrentBMP[[#This Row],[Practice]])*SUMIFS(CountyAdjustments[King & Hagan Adjustor],CountyAdjustments[County],'BMP Costs'!Y$67) -> 6521.096275 | Z79: =SUMIFS(Table33[Average Annual Cost],Table33[Stormwater BMP],CurrentBMP[[#This Row],[Practice]])*SUMIFS(CountyAdjustments[King & Hagan Adjustor],CountyAdjustments[County],'BMP Costs'!Z$67) -> 6435.205443 | AA79: =SUMIFS(Table33[Average Annual Cost],Table33[Stormwater BMP],CurrentBMP[[#This Row],[Practice]])*SUMIFS(CountyAdjustments[King & Hagan Adjustor],CountyAdjustments[County],'BMP Costs'!AA$67) -> 6501.275314 | AB79: =SUMIFS(Table33[Average Annual Cost],Table33[Stormwater BMP],CurrentBMP[[#This Row],[Practice]])*SUMIFS(CountyAdjustments[King & Hagan Adjustor],CountyAdjustments[County],'BMP Costs'!AB$67) -> 6408.777495 | AC79: =SUMIFS(Table33[Average Annual Cost],Table33[Stormwater BMP],CurrentBMP[[#This Row],[Practice]])*SUMIFS(CountyAdjustments[King & Hagan Adjustor],CountyAdjustments[County],'BMP Costs'!AC$67) -> 6408.777495
A80: Infiltration | B80: ST | C80: 5265.976184 | D80: =IF(SUMIFS(UserCost[User-Defined Annual Cost per Unit],UserCost[BMP],CurrentBMP[[#This Row],[Practice]])>0,SUMIFS(UserCost[User-Defined Annual Cost per Unit],UserCost[BMP],CurrentBMP[[#This Row],[Practice]]),CurrentBMP[[#This Row],[Average Annual Cost/Unit (county-specific)]]) -> 5265.976184 | F80: =SUMIFS(Table33[Average Annual Cost],Table33[Stormwater BMP],CurrentBMP[[#This Row],[Practice]])*SUMIFS(CountyAdjustments[King & Hagan Adjustor],CountyAdjustments[County],'BMP Costs'!F$67) -> 5265.976184 | G80: =SUMIFS(Table33[Average Annual Cost],Table33[Stormwater BMP],CurrentBMP[[#This Row],[Practice]])*SUMIFS(CountyAdjustments[King & Hagan Adjustor],CountyAdjustments[County],'BMP Costs'!G$67) -> 5418.297809 | H80: =SUMIFS(Table33[Average Annual Cost],Table33[Stormwater BMP],CurrentBMP[[#This Row],[Practice]])*SUMIFS(CountyAdjustments[King & Hagan Adjustor],CountyAdjustments[County],'BMP Costs'!H$67) -> 5391.097519 | I80: =SUMIFS(Table33[Average Annual Cost],Table33[Stormwater BMP],CurrentBMP[[#This Row],[Practice]])*SUMIFS(CountyAdjustments[King & Hagan Adjustor],CountyAdjustments[County],'BMP Costs'!I$67) -> 5391.097519 | J80: =SUMIFS(Table33[Average Annual Cost],Table33[Stormwater BMP],CurrentBMP[[#This Row],[Practice]])*SUMIFS(CountyAdjustments[King & Hagan Adjustor],CountyAdjustments[County],'BMP Costs'!J$67) -> 5369.337287 | K80: =SUMIFS(Table33[Average Annual Cost],Table33[Stormwater BMP],CurrentBMP[[#This Row],[Practice]])*SUMIFS(CountyAdjustments[King & Hagan Adjustor],CountyAdjustments[County],'BMP Costs'!K$67) -> 5298.616533 | L80: =SUMIFS(Table33[Average Annual Cost],Table33[Stormwater BMP],CurrentBMP[[#This Row],[Practice]])*SUMIFS(CountyAdjustments[King & Hagan Adjustor],CountyAdjustments[County],'BMP Costs'!L$67) -> 5353.017113 | M80: =SUMIFS(Table33[Average Annual Cost],Table33[Stormwater BMP],CurrentBMP[[#This Row],[Practice]])*SUMIFS(CountyAdjustments[King & Hagan Adjustor],CountyAdjustments[County],'BMP Costs'!M$67) -> 5342.136997 | N80: =SUMIFS(Table33[Average Annual Cost],Table33[Stormwater BMP],CurrentBMP[[#This Row],[Practice]])*SUMIFS(CountyAdjustments[King & Hagan Adjustor],CountyAdjustments[County],'BMP Costs'!N$67) -> 5369.337287 | O80: =SUMIFS(Table33[Average Annual Cost],Table33[Stormwater BMP],CurrentBMP[[#This Row],[Practice]])*SUMIFS(CountyAdjustments[King & Hagan Adjustor],CountyAdjustments[County],'BMP Costs'!O$67) -> 5298.616533 | P80: =SUMIFS(Table33[Average Annual Cost],Table33[Stormwater BMP],CurrentBMP[[#This Row],[Practice]])*SUMIFS(CountyAdjustments[King & Hagan Adjustor],CountyAdjustments[County],'BMP Costs'!P$67) -> 5353.017113 | Q80: =SUMIFS(Table33[Average Annual Cost],Table33[Stormwater BMP],CurrentBMP[[#This Row],[Practice]])*SUMIFS(CountyAdjustments[King & Hagan Adjustor],CountyAdjustments[County],'BMP Costs'!Q$67) -> 5265.976184 | R80: =SUMIFS(Table33[Average Annual Cost],Table33[Stormwater BMP],CurrentBMP[[#This Row],[Practice]])*SUMIFS(CountyAdjustments[King & Hagan Adjustor],CountyAdjustments[County],'BMP Costs'!R$67) -> 5391.097519 | S80: =SUMIFS(Table33[Average Annual Cost],Table33[Stormwater BMP],CurrentBMP[[#This Row],[Practice]])*SUMIFS(CountyAdjustments[King & Hagan Adjustor],CountyAdjustments[County],'BMP Costs'!S$67) -> 5391.097519 | T80: =SUMIFS(Table33[Average Annual Cost],Table33[Stormwater BMP],CurrentBMP[[#This Row],[Practice]])*SUMIFS(CountyAdjustments[King & Hagan Adjustor],CountyAdjustments[County],'BMP Costs'!T$67) -> 5342.136997 | U80: =SUMIFS(Table33[Average Annual Cost],Table33[Stormwater BMP],CurrentBMP[[#This Row],[Practice]])*SUMIFS(CountyAdjustments[King & Hagan Adjustor],CountyAdjustments[County],'BMP Costs'!U$67) -> 5358.457171 | V80: =SUMIFS(Table33[Average Annual Cost],Table33[Stormwater BMP],CurrentBMP[[#This Row],[Practice]])*SUMIFS(CountyAdjustments[King & Hagan Adjustor],CountyAdjustments[County],'BMP Costs'!V$67) -> 5380.217403 | W80: =SUMIFS(Table33[Average Annual Cost],Table33[Stormwater BMP],CurrentBMP[[#This Row],[Practice]])*SUMIFS(CountyAdjustments[King & Hagan Adjustor],CountyAdjustments[County],'BMP Costs'!W$67) -> 5298.616533 | X80: =SUMIFS(Table33[Average Annual Cost],Table33[Stormwater BMP],CurrentBMP[[#This Row],[Practice]])*SUMIFS(CountyAdjustments[King & Hagan Adjustor],CountyAdjustments[County],'BMP Costs'!X$67) -> 5276.8563 | Y80: =SUMIFS(Table33[Average Annual Cost],Table33[Stormwater BMP],CurrentBMP[[#This Row],[Practice]])*SUMIFS(CountyAdjustments[King & Hagan Adjustor],CountyAdjustments[County],'BMP Costs'!Y$67) -> 5369.337287 | Z80: =SUMIFS(Table33[Average Annual Cost],Table33[Stormwater BMP],CurrentBMP[[#This Row],[Practice]])*SUMIFS(CountyAdjustments[King & Hagan Adjustor],CountyAdjustments[County],'BMP Costs'!Z$67) -> 5298.616533 | AA80: =SUMIFS(Table33[Average Annual Cost],Table33[Stormwater BMP],CurrentBMP[[#This Row],[Practice]])*SUMIFS(CountyAdjustments[King & Hagan Adjustor],CountyAdjustments[County],'BMP Costs'!AA$67) -> 5353.017113 | AB80: =SUMIFS(Table33[Average Annual Cost],Table33[Stormwater BMP],CurrentBMP[[#This Row],[Practice]])*SUMIFS(CountyAdjustments[King & Hagan Adjustor],CountyAdjustments[County],'BMP Costs'!AB$67) -> 5276.8563 | AC80: =SUMIFS(Table33[Average Annual Cost],Table33[Stormwater BMP],CurrentBMP[[#This Row],[Practice]])*SUMIFS(CountyAdjustments[King & Hagan Adjustor],CountyAdjustments[County],'BMP Costs'!AC$67) -> 5276.8563
A81: Stormwater Tree Pits/Structural Soils | B81: RR | C81: 28760.08378 | D81: =IF(SUMIFS(UserCost[User-Defined Annual Cost per Unit],UserCost[BMP],CurrentBMP[[#This Row],[Practice]])>0,SUMIFS(UserCost[User-Defined Annual Cost per Unit],UserCost[BMP],CurrentBMP[[#This Row],[Practice]]),CurrentBMP[[#This Row],[Average Annual Cost/Unit (county-specific)]]) -> 28760.08378 | F81: =SUMIFS(Table33[Average Annual Cost],Table33[Stormwater BMP],CurrentBMP[[#This Row],[Practice]])*SUMIFS(CountyAdjustments[King & Hagan Adjustor],CountyAdjustments[County],'BMP Costs'!F$67) -> 28760.08378 | G81: =SUMIFS(Table33[Average Annual Cost],Table33[Stormwater BMP],CurrentBMP[[#This Row],[Practice]])*SUMIFS(CountyAdjustments[King & Hagan Adjustor],CountyAdjustments[County],'BMP Costs'!G$67) -> 29591.98703 | H81: =SUMIFS(Table33[Average Annual Cost],Table33[Stormwater BMP],CurrentBMP[[#This Row],[Practice]])*SUMIFS(CountyAdjustments[King & Hagan Adjustor],CountyAdjustments[County],'BMP Costs'!H$67) -> 29443.43288 | I81: =SUMIFS(Table33[Average Annual Cost],Table33[Stormwater BMP],CurrentBMP[[#This Row],[Practice]])*SUMIFS(CountyAdjustments[King & Hagan Adjustor],CountyAdjustments[County],'BMP Costs'!I$67) -> 29443.43288 | J81: =SUMIFS(Table33[Average Annual Cost],Table33[Stormwater BMP],CurrentBMP[[#This Row],[Practice]])*SUMIFS(CountyAdjustments[King & Hagan Adjustor],CountyAdjustments[County],'BMP Costs'!J$67) -> 29324.58956 | K81: =SUMIFS(Table33[Average Annual Cost],Table33[Stormwater BMP],CurrentBMP[[#This Row],[Practice]])*SUMIFS(CountyAdjustments[King & Hagan Adjustor],CountyAdjustments[County],'BMP Costs'!K$67) -> 28938.34876 | L81: =SUMIFS(Table33[Average Annual Cost],Table33[Stormwater BMP],CurrentBMP[[#This Row],[Practice]])*SUMIFS(CountyAdjustments[King & Hagan Adjustor],CountyAdjustments[County],'BMP Costs'!L$67) -> 29235.45707 | M81: =SUMIFS(Table33[Average Annual Cost],Table33[Stormwater BMP],CurrentBMP[[#This Row],[Practice]])*SUMIFS(CountyAdjustments[King & Hagan Adjustor],CountyAdjustments[County],'BMP Costs'!M$67) -> 29176.03541 | N81: =SUMIFS(Table33[Average Annual Cost],Table33[Stormwater BMP],CurrentBMP[[#This Row],[Practice]])*SUMIFS(CountyAdjustments[King & Hagan Adjustor],CountyAdjustments[County],'BMP Costs'!N$67) -> 29324.58956 | O81: =SUMIFS(Table33[Average Annual Cost],Table33[Stormwater BMP],CurrentBMP[[#This Row],[Practice]])*SUMIFS(CountyAdjustments[King & Hagan Adjustor],CountyAdjustments[County],'BMP Costs'!O$67) -> 28938.34876 | P81: =SUMIFS(Table33[Average Annual Cost],Table33[Stormwater BMP],CurrentBMP[[#This Row],[Practice]])*SUMIFS(CountyAdjustments[King & Hagan Adjustor],CountyAdjustments[County],'BMP Costs'!P$67) -> 29235.45707 | Q81: =SUMIFS(Table33[Average Annual Cost],Table33[Stormwater BMP],CurrentBMP[[#This Row],[Practice]])*SUMIFS(CountyAdjustments[King & Hagan Adjustor],CountyAdjustments[County],'BMP Costs'!Q$67) -> 28760.08378 | R81: =SUMIFS(Table33[Average Annual Cost],Table33[Stormwater BMP],CurrentBMP[[#This Row],[Practice]])*SUMIFS(CountyAdjustments[King & Hagan Adjustor],CountyAdjustments[County],'BMP Costs'!R$67) -> 29443.43288 | S81: =SUMIFS(Table33[Average Annual Cost],Table33[Stormwater BMP],CurrentBMP[[#This Row],[Practice]])*SUMIFS(CountyAdjustments[King & Hagan Adjustor],CountyAdjustments[County],'BMP Costs'!S$67) -> 29443.43288 | T81: =SUMIFS(Table33[Average Annual Cost],Table33[Stormwater BMP],CurrentBMP[[#This Row],[Practice]])*SUMIFS(CountyAdjustments[King & Hagan Adjustor],CountyAdjustments[County],'BMP Costs'!T$67) -> 29176.03541 | U81: =SUMIFS(Table33[Average Annual Cost],Table33[Stormwater BMP],CurrentBMP[[#This Row],[Practice]])*SUMIFS(CountyAdjustments[King & Hagan Adjustor],CountyAdjustments[County],'BMP Costs'!U$67) -> 29265.1679 | V81: =SUMIFS(Table33[Average Annual Cost],Table33[Stormwater BMP],CurrentBMP[[#This Row],[Practice]])*SUMIFS(CountyAdjustments[King & Hagan Adjustor],CountyAdjustments[County],'BMP Costs'!V$67) -> 29384.01122 | W81: =SUMIFS(Table33[Average Annual Cost],Table33[Stormwater BMP],CurrentBMP[[#This Row],[Practice]])*SUMIFS(CountyAdjustments[King & Hagan Adjustor],CountyAdjustments[County],'BMP Costs'!W$67) -> 28938.34876 | X81: =SUMIFS(Table33[Average Annual Cost],Table33[Stormwater BMP],CurrentBMP[[#This Row],[Practice]])*SUMIFS(CountyAdjustments[King & Hagan Adjustor],CountyAdjustments[County],'BMP Costs'!X$67) -> 28819.50544 | Y81: =SUMIFS(Table33[Average Annual Cost],Table33[Stormwater BMP],CurrentBMP[[#This Row],[Practice]])*SUMIFS(CountyAdjustments[King & Hagan Adjustor],CountyAdjustments[County],'BMP Costs'!Y$67) -> 29324.58956 | Z81: =SUMIFS(Table33[Average Annual Cost],Table33[Stormwater BMP],CurrentBMP[[#This Row],[Practice]])*SUMIFS(CountyAdjustments[King & Hagan Adjustor],CountyAdjustments[County],'BMP Costs'!Z$67) -> 28938.34876 | AA81: =SUMIFS(Table33[Average Annual Cost],Table33[Stormwater BMP],CurrentBMP[[#This Row],[Practice]])*SUMIFS(CountyAdjustments[King & Hagan Adjustor],CountyAdjustments[County],'BMP Costs'!AA$67) -> 29235.45707 | AB81: =SUMIFS(Table33[Average Annual Cost],Table33[Stormwater BMP],CurrentBMP[[#This Row],[Practice]])*SUMIFS(CountyAdjustments[King & Hagan Adjustor],CountyAdjustments[County],'BMP Costs'!AB$67) -> 28819.50544 | AC81: =SUMIFS(Table33[Average Annual Cost],Table33[Stormwater BMP],CurrentBMP[[#This Row],[Practice]])*SUMIFS(CountyAdjustments[King & Hagan Adjustor],CountyAdjustments[County],'BMP Costs'!AC$67) -> 28819.50544
A82: Sand Filter | B82: ST | C82: 5417.955215 | D82: =IF(SUMIFS(UserCost[User-Defined Annual Cost per Unit],UserCost[BMP],CurrentBMP[[#This Row],[Practice]])>0,SUMIFS(UserCost[User-Defined Annual Cost per Unit],UserCost[BMP],CurrentBMP[[#This Row],[Practice]]),CurrentBMP[[#This Row],[Average Annual Cost/Unit (county-specific)]]) -> 5417.955215 | F82: =SUMIFS(Table33[Average Annual Cost],Table33[Stormwater BMP],CurrentBMP[[#This Row],[Practice]])*SUMIFS(CountyAdjustments[King & Hagan Adjustor],CountyAdjustments[County],'BMP Costs'!F$67) -> 5417.955215 | G82: =SUMIFS(Table33[Average Annual Cost],Table33[Stormwater BMP],CurrentBMP[[#This Row],[Practice]])*SUMIFS(CountyAdjustments[King & Hagan Adjustor],CountyAdjustments[County],'BMP Costs'!G$67) -> 5574.672928 | H82: =SUMIFS(Table33[Average Annual Cost],Table33[Stormwater BMP],CurrentBMP[[#This Row],[Practice]])*SUMIFS(CountyAdjustments[King & Hagan Adjustor],CountyAdjustments[County],'BMP Costs'!H$67) -> 5546.687622 | I82: =SUMIFS(Table33[Average Annual Cost],Table33[Stormwater BMP],CurrentBMP[[#This Row],[Practice]])*SUMIFS(CountyAdjustments[King & Hagan Adjustor],CountyAdjustments[County],'BMP Costs'!I$67) -> 5546.687622 | J82: =SUMIFS(Table33[Average Annual Cost],Table33[Stormwater BMP],CurrentBMP[[#This Row],[Practice]])*SUMIFS(CountyAdjustments[King & Hagan Adjustor],CountyAdjustments[County],'BMP Costs'!J$67) -> 5524.299378 | K82: =SUMIFS(Table33[Average Annual Cost],Table33[Stormwater BMP],CurrentBMP[[#This Row],[Practice]])*SUMIFS(CountyAdjustments[King & Hagan Adjustor],CountyAdjustments[County],'BMP Costs'!K$67) -> 5451.537582 | L82: =SUMIFS(Table33[Average Annual Cost],Table33[Stormwater BMP],CurrentBMP[[#This Row],[Practice]])*SUMIFS(CountyAdjustments[King & Hagan Adjustor],CountyAdjustments[County],'BMP Costs'!L$67) -> 5507.508194 | M82: =SUMIFS(Table33[Average Annual Cost],Table33[Stormwater BMP],CurrentBMP[[#This Row],[Practice]])*SUMIFS(CountyAdjustments[King & Hagan Adjustor],CountyAdjustments[County],'BMP Costs'!M$67) -> 5496.314072 | N82: =SUMIFS(Table33[Average Annual Cost],Table33[Stormwater BMP],CurrentBMP[[#This Row],[Practice]])*SUMIFS(CountyAdjustments[King & Hagan Adjustor],CountyAdjustments[County],'BMP Costs'!N$67) -> 5524.299378 | O82: =SUMIFS(Table33[Average Annual Cost],Table33[Stormwater BMP],CurrentBMP[[#This Row],[Practice]])*SUMIFS(CountyAdjustments[King & Hagan Adjustor],CountyAdjustments[County],'BMP Costs'!O$67) -> 5451.537582 | P82: =SUMIFS(Table33[Average Annual Cost],Table33[Stormwater BMP],CurrentBMP[[#This Row],[Practice]])*SUMIFS(CountyAdjustments[King & Hagan Adjustor],CountyAdjustments[County],'BMP Costs'!P$67) -> 5507.508194 | Q82: =SUMIFS(Table33[Average Annual Cost],Table33[Stormwater BMP],CurrentBMP[[#This Row],[Practice]])*SUMIFS(CountyAdjustments[King & Hagan Adjustor],CountyAdjustments[County],'BMP Costs'!Q$67) -> 5417.955215 | R82: =SUMIFS(Table33[Average Annual Cost],Table33[Stormwater BMP],CurrentBMP[[#This Row],[Practice]])*SUMIFS(CountyAdjustments[King & Hagan Adjustor],CountyAdjustments[County],'BMP Costs'!R$67) -> 5546.687622 | S82: =SUMIFS(Table33[Average Annual Cost],Table33[Stormwater BMP],CurrentBMP[[#This Row],[Practice]])*SUMIFS(CountyAdjustments[King & Hagan Adjustor],CountyAdjustments[County],'BMP Costs'!S$67) -> 5546.687622 | T82: =SUMIFS(Table33[Average Annual Cost],Table33[Stormwater BMP],CurrentBMP[[#This Row],[Practice]])*SUMIFS(CountyAdjustments[King & Hagan Adjustor],CountyAdjustments[County],'BMP Costs'!T$67) -> 5496.314072 | U82: =SUMIFS(Table33[Average Annual Cost],Table33[Stormwater BMP],CurrentBMP[[#This Row],[Practice]])*SUMIFS(CountyAdjustments[King & Hagan Adjustor],CountyAdjustments[County],'BMP Costs'!U$67) -> 5513.105255 | V82: =SUMIFS(Table33[Average Annual Cost],Table33[Stormwater BMP],CurrentBMP[[#This Row],[Practice]])*SUMIFS(CountyAdjustments[King & Hagan Adjustor],CountyAdjustments[County],'BMP Costs'!V$67) -> 5535.4935 | W82: =SUMIFS(Table33[Average Annual Cost],Table33[Stormwater BMP],CurrentBMP[[#This Row],[Practice]])*SUMIFS(CountyAdjustments[King & Hagan Adjustor],CountyAdjustments[County],'BMP Costs'!W$67) -> 5451.537582 | X82: =SUMIFS(Table33[Average Annual Cost],Table33[Stormwater BMP],CurrentBMP[[#This Row],[Practice]])*SUMIFS(CountyAdjustments[King & Hagan Adjustor],CountyAdjustments[County],'BMP Costs'!X$67) -> 5429.149338 | Y82: =SUMIFS(Table33[Average Annual Cost],Table33[Stormwater BMP],CurrentBMP[[#This Row],[Practice]])*SUMIFS(CountyAdjustments[King & Hagan Adjustor],CountyAdjustments[County],'BMP Costs'!Y$67) -> 5524.299378 | Z82: =SUMIFS(Table33[Average Annual Cost],Table33[Stormwater BMP],CurrentBMP[[#This Row],[Practice]])*SUMIFS(CountyAdjustments[King & Hagan Adjustor],CountyAdjustments[County],'BMP Costs'!Z$67) -> 5451.537582 | AA82: =SUMIFS(Table33[Average Annual Cost],Table33[Stormwater BMP],CurrentBMP[[#This Row],[Practice]])*SUMIFS(CountyAdjustments[King & Hagan Adjustor],CountyAdjustments[County],'BMP Costs'!AA$67) -> 5507.508194 | AB82: =SUMIFS(Table33[Average Annual Cost],Table33[Stormwater BMP],CurrentBMP[[#This Row],[Practice]])*SUMIFS(CountyAdjustments[King & Hagan Adjustor],CountyAdjustments[County],'BMP Costs'!AB$67) -> 5429.149338 | AC82: =SUMIFS(Table33[Average Annual Cost],Table33[Stormwater BMP],CurrentBMP[[#This Row],[Practice]])*SUMIFS(CountyAdjustments[King & Hagan Adjustor],CountyAdjustments[County],'BMP Costs'!AC$67) -> 5429.149338
A83: Dry Swale/Bioswale | B83: ST | C83: 3908.22113 | D83: =IF(SUMIFS(UserCost[User-Defined Annual Cost per Unit],UserCost[BMP],CurrentBMP[[#This Row],[Practice]])>0,SUMIFS(UserCost[User-Defined Annual Cost per Unit],UserCost[BMP],CurrentBMP[[#This Row],[Practice]]),CurrentBMP[[#This Row],[Average Annual Cost/Unit (county-specific)]]) -> 3908.22113 | F83: =SUMIFS(Table33[Average Annual Cost],Table33[Stormwater BMP],CurrentBMP[[#This Row],[Practice]])*SUMIFS(CountyAdjustments[King & Hagan Adjustor],CountyAdjustments[County],'BMP Costs'!F$67) -> 3908.22113 | G83: =SUMIFS(Table33[Average Annual Cost],Table33[Stormwater BMP],CurrentBMP[[#This Row],[Practice]])*SUMIFS(CountyAdjustments[King & Hagan Adjustor],CountyAdjustments[County],'BMP Costs'!G$67) -> 4021.268849 | H83: =SUMIFS(Table33[Average Annual Cost],Table33[Stormwater BMP],CurrentBMP[[#This Row],[Practice]])*SUMIFS(CountyAdjustments[King & Hagan Adjustor],CountyAdjustments[County],'BMP Costs'!H$67) -> 4001.081756 | I83: =SUMIFS(Table33[Average Annual Cost],Table33[Stormwater BMP],CurrentBMP[[#This Row],[Practice]])*SUMIFS(CountyAdjustments[King & Hagan Adjustor],CountyAdjustments[County],'BMP Costs'!I$67) -> 4001.081756 | J83: =SUMIFS(Table33[Average Annual Cost],Table33[Stormwater BMP],CurrentBMP[[#This Row],[Practice]])*SUMIFS(CountyAdjustments[King & Hagan Adjustor],CountyAdjustments[County],'BMP Costs'!J$67) -> 3984.932082 | K83: =SUMIFS(Table33[Average Annual Cost],Table33[Stormwater BMP],CurrentBMP[[#This Row],[Practice]])*SUMIFS(CountyAdjustments[King & Hagan Adjustor],CountyAdjustments[County],'BMP Costs'!K$67) -> 3932.445641 | L83: =SUMIFS(Table33[Average Annual Cost],Table33[Stormwater BMP],CurrentBMP[[#This Row],[Practice]])*SUMIFS(CountyAdjustments[King & Hagan Adjustor],CountyAdjustments[County],'BMP Costs'!L$67) -> 3972.819827 | M83: =SUMIFS(Table33[Average Annual Cost],Table33[Stormwater BMP],CurrentBMP[[#This Row],[Practice]])*SUMIFS(CountyAdjustments[King & Hagan Adjustor],CountyAdjustments[County],'BMP Costs'!M$67) -> 3964.74499 | N83: =SUMIFS(Table33[Average Annual Cost],Table33[Stormwater BMP],CurrentBMP[[#This Row],[Practice]])*SUMIFS(CountyAdjustments[King & Hagan Adjustor],CountyAdjustments[County],'BMP Costs'!N$67) -> 3984.932082 | O83: =SUMIFS(Table33[Average Annual Cost],Table33[Stormwater BMP],CurrentBMP[[#This Row],[Practice]])*SUMIFS(CountyAdjustments[King & Hagan Adjustor],CountyAdjustments[County],'BMP Costs'!O$67) -> 3932.445641 | P83: =SUMIFS(Table33[Average Annual Cost],Table33[Stormwater BMP],CurrentBMP[[#This Row],[Practice]])*SUMIFS(CountyAdjustments[King & Hagan Adjustor],CountyAdjustments[County],'BMP Costs'!P$67) -> 3972.819827 | Q83: =SUMIFS(Table33[Average Annual Cost],Table33[Stormwater BMP],CurrentBMP[[#This Row],[Practice]])*SUMIFS(CountyAdjustments[King & Hagan Adjustor],CountyAdjustments[County],'BMP Costs'!Q$67) -> 3908.22113 | R83: =SUMIFS(Table33[Average Annual Cost],Table33[Stormwater BMP],CurrentBMP[[#This Row],[Practice]])*SUMIFS(CountyAdjustments[King & Hagan Adjustor],CountyAdjustments[County],'BMP Costs'!R$67) -> 4001.081756 | S83: =SUMIFS(Table33[Average Annual Cost],Table33[Stormwater BMP],CurrentBMP[[#This Row],[Practice]])*SUMIFS(CountyAdjustments[King & Hagan Adjustor],CountyAdjustments[County],'BMP Costs'!S$67) -> 4001.081756 | T83: =SUMIFS(Table33[Average Annual Cost],Table33[Stormwater BMP],CurrentBMP[[#This Row],[Practice]])*SUMIFS(CountyAdjustments[King & Hagan Adjustor],CountyAdjustments[County],'BMP Costs'!T$67) -> 3964.74499 | U83: =SUMIFS(Table33[Average Annual Cost],Table33[Stormwater BMP],CurrentBMP[[#This Row],[Practice]])*SUMIFS(CountyAdjustments[King & Hagan Adjustor],CountyAdjustments[County],'BMP Costs'!U$67) -> 3976.857245 | V83: =SUMIFS(Table33[Average Annual Cost],Table33[Stormwater BMP],CurrentBMP[[#This Row],[Practice]])*SUMIFS(CountyAdjustments[King & Hagan Adjustor],CountyAdjustments[County],'BMP Costs'!V$67) -> 3993.006919 | W83: =SUMIFS(Table33[Average Annual Cost],Table33[Stormwater BMP],CurrentBMP[[#This Row],[Practice]])*SUMIFS(CountyAdjustments[King & Hagan Adjustor],CountyAdjustments[County],'BMP Costs'!W$67) -> 3932.445641 | X83: =SUMIFS(Table33[Average Annual Cost],Table33[Stormwater BMP],CurrentBMP[[#This Row],[Practice]])*SUMIFS(CountyAdjustments[King & Hagan Adjustor],CountyAdjustments[County],'BMP Costs'!X$67) -> 3916.295967 | Y83: =SUMIFS(Table33[Average Annual Cost],Table33[Stormwater BMP],CurrentBMP[[#This Row],[Practice]])*SUMIFS(CountyAdjustments[King & Hagan Adjustor],CountyAdjustments[County],'BMP Costs'!Y$67) -> 3984.932082 | Z83: =SUMIFS(Table33[Average Annual Cost],Table33[Stormwater BMP],CurrentBMP[[#This Row],[Practice]])*SUMIFS(CountyAdjustments[King & Hagan Adjustor],CountyAdjustments[County],'BMP Costs'!Z$67) -> 3932.445641 | AA83: =SUMIFS(Table33[Average Annual Cost],Table33[Stormwater BMP],CurrentBMP[[#This Row],[Practice]])*SUMIFS(CountyAdjustments[King & Hagan Adjustor],CountyAdjustments[County],'BMP Costs'!AA$67) -> 3972.819827 | AB83: =SUMIFS(Table33[Average Annual Cost],Table33[Stormwater BMP],CurrentBMP[[#This Row],[Practice]])*SUMIFS(CountyAdjustments[King & Hagan Adjustor],CountyAdjustments[County],'BMP Costs'!AB$67) -> 3916.295967 | AC83: =SUMIFS(Table33[Average Annual Cost],Table33[Stormwater BMP],CurrentBMP[[#This Row],[Practice]])*SUMIFS(CountyAdjustments[King & Hagan Adjustor],CountyAdjustments[County],'BMP Costs'!AC$67) -> 3916.295967
A84: Wet Swale | B84: RR | C84: 2368.183422 | D84: =IF(SUMIFS(UserCost[User-Defined Annual Cost per Unit],UserCost[BMP],CurrentBMP[[#This Row],[Practice]])>0,SUMIFS(UserCost[User-Defined Annual Cost per Unit],UserCost[BMP],CurrentBMP[[#This Row],[Practice]]),CurrentBMP[[#This Row],[Average Annual Cost/Unit (county-specific)]]) -> 2368.183422 | F84: =SUMIFS(Table33[Average Annual Cost],Table33[Stormwater BMP],CurrentBMP[[#This Row],[Practice]])*SUMIFS(CountyAdjustments[King & Hagan Adjustor],CountyAdjustments[County],'BMP Costs'!F$67) -> 2368.183422 | G84: =SUMIFS(Table33[Average Annual Cost],Table33[Stormwater BMP],CurrentBMP[[#This Row],[Practice]])*SUMIFS(CountyAdjustments[King & Hagan Adjustor],CountyAdjustments[County],'BMP Costs'!G$67) -> 2436.684595 | H84: =SUMIFS(Table33[Average Annual Cost],Table33[Stormwater BMP],CurrentBMP[[#This Row],[Practice]])*SUMIFS(CountyAdjustments[King & Hagan Adjustor],CountyAdjustments[County],'BMP Costs'!H$67) -> 2424.452243 | I84: =SUMIFS(Table33[Average Annual Cost],Table33[Stormwater BMP],CurrentBMP[[#This Row],[Practice]])*SUMIFS(CountyAdjustments[King & Hagan Adjustor],CountyAdjustments[County],'BMP Costs'!I$67) -> 2424.452243 | J84: =SUMIFS(Table33[Average Annual Cost],Table33[Stormwater BMP],CurrentBMP[[#This Row],[Practice]])*SUMIFS(CountyAdjustments[King & Hagan Adjustor],CountyAdjustments[County],'BMP Costs'!J$67) -> 2414.666361 | K84: =SUMIFS(Table33[Average Annual Cost],Table33[Stormwater BMP],CurrentBMP[[#This Row],[Practice]])*SUMIFS(CountyAdjustments[King & Hagan Adjustor],CountyAdjustments[County],'BMP Costs'!K$67) -> 2382.862244 | L84: =SUMIFS(Table33[Average Annual Cost],Table33[Stormwater BMP],CurrentBMP[[#This Row],[Practice]])*SUMIFS(CountyAdjustments[King & Hagan Adjustor],CountyAdjustments[County],'BMP Costs'!L$67) -> 2407.326949 | M84: =SUMIFS(Table33[Average Annual Cost],Table33[Stormwater BMP],CurrentBMP[[#This Row],[Practice]])*SUMIFS(CountyAdjustments[King & Hagan Adjustor],CountyAdjustments[County],'BMP Costs'!M$67) -> 2402.434008 | N84: =SUMIFS(Table33[Average Annual Cost],Table33[Stormwater BMP],CurrentBMP[[#This Row],[Practice]])*SUMIFS(CountyAdjustments[King & Hagan Adjustor],CountyAdjustments[County],'BMP Costs'!N$67) -> 2414.666361 | O84: =SUMIFS(Table33[Average Annual Cost],Table33[Stormwater BMP],CurrentBMP[[#This Row],[Practice]])*SUMIFS(CountyAdjustments[King & Hagan Adjustor],CountyAdjustments[County],'BMP Costs'!O$67) -> 2382.862244 | P84: =SUMIFS(Table33[Average Annual Cost],Table33[Stormwater BMP],CurrentBMP[[#This Row],[Practice]])*SUMIFS(CountyAdjustments[King & Hagan Adjustor],CountyAdjustments[County],'BMP Costs'!P$67) -> 2407.326949 | Q84: =SUMIFS(Table33[Average Annual Cost],Table33[Stormwater BMP],CurrentBMP[[#This Row],[Practice]])*SUMIFS(CountyAdjustments[King & Hagan Adjustor],CountyAdjustments[County],'BMP Costs'!Q$67) -> 2368.183422 | R84: =SUMIFS(Table33[Average Annual Cost],Table33[Stormwater BMP],CurrentBMP[[#This Row],[Practice]])*SUMIFS(CountyAdjustments[King & Hagan Adjustor],CountyAdjustments[County],'BMP Costs'!R$67) -> 2424.452243 | S84: =SUMIFS(Table33[Average Annual Cost],Table33[Stormwater BMP],CurrentBMP[[#This Row],[Practice]])*SUMIFS(CountyAdjustments[King & Hagan Adjustor],CountyAdjustments[County],'BMP Costs'!S$67) -> 2424.452243 | T84: =SUMIFS(Table33[Average Annual Cost],Table33[Stormwater BMP],CurrentBMP[[#This Row],[Practice]])*SUMIFS(CountyAdjustments[King & Hagan Adjustor],CountyAdjustments[County],'BMP Costs'!T$67) -> 2402.434008 | U84: =SUMIFS(Table33[Average Annual Cost],Table33[Stormwater BMP],CurrentBMP[[#This Row],[Practice]])*SUMIFS(CountyAdjustments[King & Hagan Adjustor],CountyAdjustments[County],'BMP Costs'!U$67) -> 2409.77342 | V84: =SUMIFS(Table33[Average Annual Cost],Table33[Stormwater BMP],CurrentBMP[[#This Row],[Practice]])*SUMIFS(CountyAdjustments[King & Hagan Adjustor],CountyAdjustments[County],'BMP Costs'!V$67) -> 2419.559302 | W84: =SUMIFS(Table33[Average Annual Cost],Table33[Stormwater BMP],CurrentBMP[[#This Row],[Practice]])*SUMIFS(CountyAdjustments[King & Hagan Adjustor],CountyAdjustments[County],'BMP Costs'!W$67) -> 2382.862244 | X84: =SUMIFS(Table33[Average Annual Cost],Table33[Stormwater BMP],CurrentBMP[[#This Row],[Practice]])*SUMIFS(CountyAdjustments[King & Hagan Adjustor],CountyAdjustments[County],'BMP Costs'!X$67) -> 2373.076363 | Y84: =SUMIFS(Table33[Average Annual Cost],Table33[Stormwater BMP],CurrentBMP[[#This Row],[Practice]])*SUMIFS(CountyAdjustments[King & Hagan Adjustor],CountyAdjustments[County],'BMP Costs'!Y$67) -> 2414.666361 | Z84: =SUMIFS(Table33[Average Annual Cost],Table33[Stormwater BMP],CurrentBMP[[#This Row],[Practice]])*SUMIFS(CountyAdjustments[King & Hagan Adjustor],CountyAdjustments[County],'BMP Costs'!Z$67) -> 2382.862244 | AA84: =SUMIFS(Table33[Average Annual Cost],Table33[Stormwater BMP],CurrentBMP[[#This Row],[Practice]])*SUMIFS(CountyAdjustments[King & Hagan Adjustor],CountyAdjustments[County],'BMP Costs'!AA$67) -> 2407.326949 | AB84: =SUMIFS(Table33[Average Annual Cost],Table33[Stormwater BMP],CurrentBMP[[#This Row],[Practice]])*SUMIFS(CountyAdjustments[King & Hagan Adjustor],CountyAdjustments[County],'BMP Costs'!AB$67) -> 2373.076363 | AC84: =SUMIFS(Table33[Average Annual Cost],Table33[Stormwater BMP],CurrentBMP[[#This Row],[Practice]])*SUMIFS(CountyAdjustments[King & Hagan Adjustor],CountyAdjustments[County],'BMP Costs'!AC$67) -> 2373.076363
A85: Vegetated Open Channels | B85: NA | C85: 2368.183422 | D85: =IF(SUMIFS(UserCost[User-Defined Annual Cost per Unit],UserCost[BMP],CurrentBMP[[#This Row],[Practice]])>0,SUMIFS(UserCost[User-Defined Annual Cost per Unit],UserCost[BMP],CurrentBMP[[#This Row],[Practice]]),CurrentBMP[[#This Row],[Average Annual Cost/Unit (county-specific)]]) -> 2368.183422 | F85: =SUMIFS(Table33[Average Annual Cost],Table33[Stormwater BMP],CurrentBMP[[#This Row],[Practice]])*SUMIFS(CountyAdjustments[King & Hagan Adjustor],CountyAdjustments[County],'BMP Costs'!F$67) -> 2368.183422 | G85: =SUMIFS(Table33[Average Annual Cost],Table33[Stormwater BMP],CurrentBMP[[#This Row],[Practice]])*SUMIFS(CountyAdjustments[King & Hagan Adjustor],CountyAdjustments[County],'BMP Costs'!G$67) -> 2436.684595 | H85: =SUMIFS(Table33[Average Annual Cost],Table33[Stormwater BMP],CurrentBMP[[#This Row],[Practice]])*SUMIFS(CountyAdjustments[King & Hagan Adjustor],CountyAdjustments[County],'BMP Costs'!H$67) -> 2424.452243 | I85: =SUMIFS(Table33[Average Annual Cost],Table33[Stormwater BMP],CurrentBMP[[#This Row],[Practice]])*SUMIFS(CountyAdjustments[King & Hagan Adjustor],CountyAdjustments[County],'BMP Costs'!I$67) -> 2424.452243 | J85: =SUMIFS(Table33[Average Annual Cost],Table33[Stormwater BMP],CurrentBMP[[#This Row],[Practice]])*SUMIFS(CountyAdjustments[King & Hagan Adjustor],CountyAdjustments[County],'BMP Costs'!J$67) -> 2414.666361 | K85: =SUMIFS(Table33[Average Annual Cost],Table33[Stormwater BMP],CurrentBMP[[#This Row],[Practice]])*SUMIFS(CountyAdjustments[King & Hagan Adjustor],CountyAdjustments[County],'BMP Costs'!K$67) -> 2382.862244 | L85: =SUMIFS(Table33[Average Annual Cost],Table33[Stormwater BMP],CurrentBMP[[#This Row],[Practice]])*SUMIFS(CountyAdjustments[King & Hagan Adjustor],CountyAdjustments[County],'BMP Costs'!L$67) -> 2407.326949 | M85: =SUMIFS(Table33[Average Annual Cost],Table33[Stormwater BMP],CurrentBMP[[#This Row],[Practice]])*SUMIFS(CountyAdjustments[King & Hagan Adjustor],CountyAdjustments[County],'BMP Costs'!M$67) -> 2402.434008 | N85: =SUMIFS(Table33[Average Annual Cost],Table33[Stormwater BMP],CurrentBMP[[#This Row],[Practice]])*SUMIFS(CountyAdjustments[King & Hagan Adjustor],CountyAdjustments[County],'BMP Costs'!N$67) -> 2414.666361 | O85: =SUMIFS(Table33[Average Annual Cost],Table33[Stormwater BMP],CurrentBMP[[#This Row],[Practice]])*SUMIFS(CountyAdjustments[King & Hagan Adjustor],CountyAdjustments[County],'BMP Costs'!O$67) -> 2382.862244 | P85: =SUMIFS(Table33[Average Annual Cost],Table33[Stormwater BMP],CurrentBMP[[#This Row],[Practice]])*SUMIFS(CountyAdjustments[King & Hagan Adjustor],CountyAdjustments[County],'BMP Costs'!P$67) -> 2407.326949 | Q85: =SUMIFS(Table33[Average Annual Cost],Table33[Stormwater BMP],CurrentBMP[[#This Row],[Practice]])*SUMIFS(CountyAdjustments[King & Hagan Adjustor],CountyAdjustments[County],'BMP Costs'!Q$67) -> 2368.183422 | R85: =SUMIFS(Table33[Average Annual Cost],Table33[Stormwater BMP],CurrentBMP[[#This Row],[Practice]])*SUMIFS(CountyAdjustments[King & Hagan Adjustor],CountyAdjustments[County],'BMP Costs'!R$67) -> 2424.452243 | S85: =SUMIFS(Table33[Average Annual Cost],Table33[Stormwater BMP],CurrentBMP[[#This Row],[Practice]])*SUMIFS(CountyAdjustments[King & Hagan Adjustor],CountyAdjustments[County],'BMP Costs'!S$67) -> 2424.452243 | T85: =SUMIFS(Table33[Average Annual Cost],Table33[Stormwater BMP],CurrentBMP[[#This Row],[Practice]])*SUMIFS(CountyAdjustments[King & Hagan Adjustor],CountyAdjustments[County],'BMP Costs'!T$67) -> 2402.434008 | U85: =SUMIFS(Table33[Average Annual Cost],Table33[Stormwater BMP],CurrentBMP[[#This Row],[Practice]])*SUMIFS(CountyAdjustments[King & Hagan Adjustor],CountyAdjustments[County],'BMP Costs'!U$67) -> 2409.77342 | V85: =SUMIFS(Table33[Average Annual Cost],Table33[Stormwater BMP],CurrentBMP[[#This Row],[Practice]])*SUMIFS(CountyAdjustments[King & Hagan Adjustor],CountyAdjustments[County],'BMP Costs'!V$67) -> 2419.559302 | W85: =SUMIFS(Table33[Average Annual Cost],Table33[Stormwater BMP],CurrentBMP[[#This Row],[Practice]])*SUMIFS(CountyAdjustments[King & Hagan Adjustor],CountyAdjustments[County],'BMP Costs'!W$67) -> 2382.862244 | X85: =SUMIFS(Table33[Average Annual Cost],Table33[Stormwater BMP],CurrentBMP[[#This Row],[Practice]])*SUMIFS(CountyAdjustments[King & Hagan Adjustor],CountyAdjustments[County],'BMP Costs'!X$67) -> 2373.076363 | Y85: =SUMIFS(Table33[Average Annual Cost],Table33[Stormwater BMP],CurrentBMP[[#This Row],[Practice]])*SUMIFS(CountyAdjustments[King & Hagan Adjustor],CountyAdjustments[County],'BMP Costs'!Y$67) -> 2414.666361 | Z85: =SUMIFS(Table33[Average Annual Cost],Table33[Stormwater BMP],CurrentBMP[[#This Row],[Practice]])*SUMIFS(CountyAdjustments[King & Hagan Adjustor],CountyAdjustments[County],'BMP Costs'!Z$67) -> 2382.862244 | AA85: =SUMIFS(Table33[Average Annual Cost],Table33[Stormwater BMP],CurrentBMP[[#This Row],[Practice]])*SUMIFS(CountyAdjustments[King & Hagan Adjustor],CountyAdjustments[County],'BMP Costs'!AA$67) -> 2407.326949 | AB85: =SUMIFS(Table33[Average Annual Cost],Table33[Stormwater BMP],CurrentBMP[[#This Row],[Practice]])*SUMIFS(CountyAdjustments[King & Hagan Adjustor],CountyAdjustments[County],'BMP Costs'!AB$67) -> 2373.076363 | AC85: =SUMIFS(Table33[Average Annual Cost],Table33[Stormwater BMP],CurrentBMP[[#This Row],[Practice]])*SUMIFS(CountyAdjustments[King & Hagan Adjustor],CountyAdjustments[County],'BMP Costs'!AC$67) -> 2373.076363
A86: Regenerative Stormwater Conveyance | B86: ST | C86: 20815.41964 | D86: =IF(SUMIFS(UserCost[User-Defined Annual Cost per Unit],UserCost[BMP],CurrentBMP[[#This Row],[Practice]])>0,SUMIFS(UserCost[User-Defined Annual Cost per Unit],UserCost[BMP],CurrentBMP[[#This Row],[Practice]]),CurrentBMP[[#This Row],[Average Annual Cost/Unit (county-specific)]]) -> 20815.41964 | F86: =SUMIFS(Table33[Average Annual Cost],Table33[Stormwater BMP],CurrentBMP[[#This Row],[Practice]])*SUMIFS(CountyAdjustments[King & Hagan Adjustor],CountyAdjustments[County],'BMP Costs'!F$67) -> 20815.41964 | G86: =SUMIFS(Table33[Average Annual Cost],Table33[Stormwater BMP],CurrentBMP[[#This Row],[Practice]])*SUMIFS(CountyAdjustments[King & Hagan Adjustor],CountyAdjustments[County],'BMP Costs'!G$67) -> 21417.51855 | H86: =SUMIFS(Table33[Average Annual Cost],Table33[Stormwater BMP],CurrentBMP[[#This Row],[Practice]])*SUMIFS(CountyAdjustments[King & Hagan Adjustor],CountyAdjustments[County],'BMP Costs'!H$67) -> 21310.00089 | I86: =SUMIFS(Table33[Average Annual Cost],Table33[Stormwater BMP],CurrentBMP[[#This Row],[Practice]])*SUMIFS(CountyAdjustments[King & Hagan Adjustor],CountyAdjustments[County],'BMP Costs'!I$67) -> 21310.00089 | J86: =SUMIFS(Table33[Average Annual Cost],Table33[Stormwater BMP],CurrentBMP[[#This Row],[Practice]])*SUMIFS(CountyAdjustments[King & Hagan Adjustor],CountyAdjustments[County],'BMP Costs'!J$67) -> 21223.98676 | K86: =SUMIFS(Table33[Average Annual Cost],Table33[Stormwater BMP],CurrentBMP[[#This Row],[Practice]])*SUMIFS(CountyAdjustments[King & Hagan Adjustor],CountyAdjustments[County],'BMP Costs'!K$67) -> 20944.44084 | L86: =SUMIFS(Table33[Average Annual Cost],Table33[Stormwater BMP],CurrentBMP[[#This Row],[Practice]])*SUMIFS(CountyAdjustments[King & Hagan Adjustor],CountyAdjustments[County],'BMP Costs'!L$67) -> 21159.47616 | M86: =SUMIFS(Table33[Average Annual Cost],Table33[Stormwater BMP],CurrentBMP[[#This Row],[Practice]])*SUMIFS(CountyAdjustments[King & Hagan Adjustor],CountyAdjustments[County],'BMP Costs'!M$67) -> 21116.4691 | N86: =SUMIFS(Table33[Average Annual Cost],Table33[Stormwater BMP],CurrentBMP[[#This Row],[Practice]])*SUMIFS(CountyAdjustments[King & Hagan Adjustor],CountyAdjustments[County],'BMP Costs'!N$67) -> 21223.98676 | O86: =SUMIFS(Table33[Average Annual Cost],Table33[Stormwater BMP],CurrentBMP[[#This Row],[Practice]])*SUMIFS(CountyAdjustments[King & Hagan Adjustor],CountyAdjustments[County],'BMP Costs'!O$67) -> 20944.44084 | P86: =SUMIFS(Table33[Average Annual Cost],Table33[Stormwater BMP],CurrentBMP[[#This Row],[Practice]])*SUMIFS(CountyAdjustments[King & Hagan Adjustor],CountyAdjustments[County],'BMP Costs'!P$67) -> 21159.47616 | Q86: =SUMIFS(Table33[Average Annual Cost],Table33[Stormwater BMP],CurrentBMP[[#This Row],[Practice]])*SUMIFS(CountyAdjustments[King & Hagan Adjustor],CountyAdjustments[County],'BMP Costs'!Q$67) -> 20815.41964 | R86: =SUMIFS(Table33[Average Annual Cost],Table33[Stormwater BMP],CurrentBMP[[#This Row],[Practice]])*SUMIFS(CountyAdjustments[King & Hagan Adjustor],CountyAdjustments[County],'BMP Costs'!R$67) -> 21310.00089 | S86: =SUMIFS(Table33[Average Annual Cost],Table33[Stormwater BMP],CurrentBMP[[#This Row],[Practice]])*SUMIFS(CountyAdjustments[King & Hagan Adjustor],CountyAdjustments[County],'BMP Costs'!S$67) -> 21310.00089 | T86: =SUMIFS(Table33[Average Annual Cost],Table33[Stormwater BMP],CurrentBMP[[#This Row],[Practice]])*SUMIFS(CountyAdjustments[King & Hagan Adjustor],CountyAdjustments[County],'BMP Costs'!T$67) -> 21116.4691 | U86: =SUMIFS(Table33[Average Annual Cost],Table33[Stormwater BMP],CurrentBMP[[#This Row],[Practice]])*SUMIFS(CountyAdjustments[King & Hagan Adjustor],CountyAdjustments[County],'BMP Costs'!U$67) -> 21180.97969 | V86: =SUMIFS(Table33[Average Annual Cost],Table33[Stormwater BMP],CurrentBMP[[#This Row],[Practice]])*SUMIFS(CountyAdjustments[King & Hagan Adjustor],CountyAdjustments[County],'BMP Costs'!V$67) -> 21266.99383 | W86: =SUMIFS(Table33[Average Annual Cost],Table33[Stormwater BMP],CurrentBMP[[#This Row],[Practice]])*SUMIFS(CountyAdjustments[King & Hagan Adjustor],CountyAdjustments[County],'BMP Costs'!W$67) -> 20944.44084 | X86: =SUMIFS(Table33[Average Annual Cost],Table33[Stormwater BMP],CurrentBMP[[#This Row],[Practice]])*SUMIFS(CountyAdjustments[King & Hagan Adjustor],CountyAdjustments[County],'BMP Costs'!X$67) -> 20858.4267 | Y86: =SUMIFS(Table33[Average Annual Cost],Table33[Stormwater BMP],CurrentBMP[[#This Row],[Practice]])*SUMIFS(CountyAdjustments[King & Hagan Adjustor],CountyAdjustments[County],'BMP Costs'!Y$67) -> 21223.98676 | Z86: =SUMIFS(Table33[Average Annual Cost],Table33[Stormwater BMP],CurrentBMP[[#This Row],[Practice]])*SUMIFS(CountyAdjustments[King & Hagan Adjustor],CountyAdjustments[County],'BMP Costs'!Z$67) -> 20944.44084 | AA86: =SUMIFS(Table33[Average Annual Cost],Table33[Stormwater BMP],CurrentBMP[[#This Row],[Practice]])*SUMIFS(CountyAdjustments[King & Hagan Adjustor],CountyAdjustments[County],'BMP Costs'!AA$67) -> 21159.47616 | AB86: =SUMIFS(Table33[Average Annual Cost],Table33[Stormwater BMP],CurrentBMP[[#This Row],[Practice]])*SUMIFS(CountyAdjustments[King & Hagan Adjustor],CountyAdjustments[County],'BMP Costs'!AB$67) -> 20858.4267 | AC86: =SUMIFS(Table33[Average Annual Cost],Table33[Stormwater BMP],CurrentBMP[[#This Row],[Practice]])*SUMIFS(CountyAdjustments[King & Hagan Adjustor],CountyAdjustments[County],'BMP Costs'!AC$67) -> 20858.4267
A87: Wet Ponds | B87: NA | C87: 2528.923692 | D87: =IF(SUMIFS(UserCost[User-Defined Annual Cost per Unit],UserCost[BMP],CurrentBMP[[#This Row],[Practice]])>0,SUMIFS(UserCost[User-Defined Annual Cost per Unit],UserCost[BMP],CurrentBMP[[#This Row],[Practice]]),CurrentBMP[[#This Row],[Average Annual Cost/Unit (county-specific)]]) -> 2528.923692 | F87: =SUMIFS(Table33[Average Annual Cost],Table33[Stormwater BMP],CurrentBMP[[#This Row],[Practice]])*SUMIFS(CountyAdjustments[King & Hagan Adjustor],CountyAdjustments[County],'BMP Costs'!F$67) -> 2528.923692 | G87: =SUMIFS(Table33[Average Annual Cost],Table33[Stormwater BMP],CurrentBMP[[#This Row],[Practice]])*SUMIFS(CountyAdjustments[King & Hagan Adjustor],CountyAdjustments[County],'BMP Costs'!G$67) -> 2602.074378 | H87: =SUMIFS(Table33[Average Annual Cost],Table33[Stormwater BMP],CurrentBMP[[#This Row],[Practice]])*SUMIFS(CountyAdjustments[King & Hagan Adjustor],CountyAdjustments[County],'BMP Costs'!H$67) -> 2589.011755 | I87: =SUMIFS(Table33[Average Annual Cost],Table33[Stormwater BMP],CurrentBMP[[#This Row],[Practice]])*SUMIFS(CountyAdjustments[King & Hagan Adjustor],CountyAdjustments[County],'BMP Costs'!I$67) -> 2589.011755 | J87: =SUMIFS(Table33[Average Annual Cost],Table33[Stormwater BMP],CurrentBMP[[#This Row],[Practice]])*SUMIFS(CountyAdjustments[King & Hagan Adjustor],CountyAdjustments[County],'BMP Costs'!J$67) -> 2578.561657 | K87: =SUMIFS(Table33[Average Annual Cost],Table33[Stormwater BMP],CurrentBMP[[#This Row],[Practice]])*SUMIFS(CountyAdjustments[King & Hagan Adjustor],CountyAdjustments[County],'BMP Costs'!K$67) -> 2544.598839 | L87: =SUMIFS(Table33[Average Annual Cost],Table33[Stormwater BMP],CurrentBMP[[#This Row],[Practice]])*SUMIFS(CountyAdjustments[King & Hagan Adjustor],CountyAdjustments[County],'BMP Costs'!L$67) -> 2570.724084 | M87: =SUMIFS(Table33[Average Annual Cost],Table33[Stormwater BMP],CurrentBMP[[#This Row],[Practice]])*SUMIFS(CountyAdjustments[King & Hagan Adjustor],CountyAdjustments[County],'BMP Costs'!M$67) -> 2565.499035 | N87: =SUMIFS(Table33[Average Annual Cost],Table33[Stormwater BMP],CurrentBMP[[#This Row],[Practice]])*SUMIFS(CountyAdjustments[King & Hagan Adjustor],CountyAdjustments[County],'BMP Costs'!N$67) -> 2578.561657 | O87: =SUMIFS(Table33[Average Annual Cost],Table33[Stormwater BMP],CurrentBMP[[#This Row],[Practice]])*SUMIFS(CountyAdjustments[King & Hagan Adjustor],CountyAdjustments[County],'BMP Costs'!O$67) -> 2544.598839 | P87: =SUMIFS(Table33[Average Annual Cost],Table33[Stormwater BMP],CurrentBMP[[#This Row],[Practice]])*SUMIFS(CountyAdjustments[King & Hagan Adjustor],CountyAdjustments[County],'BMP Costs'!P$67) -> 2570.724084 | Q87: =SUMIFS(Table33[Average Annual Cost],Table33[Stormwater BMP],CurrentBMP[[#This Row],[Practice]])*SUMIFS(CountyAdjustments[King & Hagan Adjustor],CountyAdjustments[County],'BMP Costs'!Q$67) -> 2528.923692 | R87: =SUMIFS(Table33[Average Annual Cost],Table33[Stormwater BMP],CurrentBMP[[#This Row],[Practice]])*SUMIFS(CountyAdjustments[King & Hagan Adjustor],CountyAdjustments[County],'BMP Costs'!R$67) -> 2589.011755 | S87: =SUMIFS(Table33[Average Annual Cost],Table33[Stormwater BMP],CurrentBMP[[#This Row],[Practice]])*SUMIFS(CountyAdjustments[King & Hagan Adjustor],CountyAdjustments[County],'BMP Costs'!S$67) -> 2589.011755 | T87: =SUMIFS(Table33[Average Annual Cost],Table33[Stormwater BMP],CurrentBMP[[#This Row],[Practice]])*SUMIFS(CountyAdjustments[King & Hagan Adjustor],CountyAdjustments[County],'BMP Costs'!T$67) -> 2565.499035 | U87: =SUMIFS(Table33[Average Annual Cost],Table33[Stormwater BMP],CurrentBMP[[#This Row],[Practice]])*SUMIFS(CountyAdjustments[King & Hagan Adjustor],CountyAdjustments[County],'BMP Costs'!U$67) -> 2573.336608 | V87: =SUMIFS(Table33[Average Annual Cost],Table33[Stormwater BMP],CurrentBMP[[#This Row],[Practice]])*SUMIFS(CountyAdjustments[King & Hagan Adjustor],CountyAdjustments[County],'BMP Costs'!V$67) -> 2583.786706 | W87: =SUMIFS(Table33[Average Annual Cost],Table33[Stormwater BMP],CurrentBMP[[#This Row],[Practice]])*SUMIFS(CountyAdjustments[King & Hagan Adjustor],CountyAdjustments[County],'BMP Costs'!W$67) -> 2544.598839 | X87: =SUMIFS(Table33[Average Annual Cost],Table33[Stormwater BMP],CurrentBMP[[#This Row],[Practice]])*SUMIFS(CountyAdjustments[King & Hagan Adjustor],CountyAdjustments[County],'BMP Costs'!X$67) -> 2534.148741 | Y87: =SUMIFS(Table33[Average Annual Cost],Table33[Stormwater BMP],CurrentBMP[[#This Row],[Practice]])*SUMIFS(CountyAdjustments[King & Hagan Adjustor],CountyAdjustments[County],'BMP Costs'!Y$67) -> 2578.561657 | Z87: =SUMIFS(Table33[Average Annual Cost],Table33[Stormwater BMP],CurrentBMP[[#This Row],[Practice]])*SUMIFS(CountyAdjustments[King & Hagan Adjustor],CountyAdjustments[County],'BMP Costs'!Z$67) -> 2544.598839 | AA87: =SUMIFS(Table33[Average Annual Cost],Table33[Stormwater BMP],CurrentBMP[[#This Row],[Practice]])*SUMIFS(CountyAdjustments[King & Hagan Adjustor],CountyAdjustments[County],'BMP Costs'!AA$67) -> 2570.724084 | AB87: =SUMIFS(Table33[Average Annual Cost],Table33[Stormwater BMP],CurrentBMP[[#This Row],[Practice]])*SUMIFS(CountyAdjustments[King & Hagan Adjustor],CountyAdjustments[County],'BMP Costs'!AB$67) -> 2534.148741 | AC87: =SUMIFS(Table33[Average Annual Cost],Table33[Stormwater BMP],CurrentBMP[[#This Row],[Practice]])*SUMIFS(CountyAdjustments[King & Hagan Adjustor],CountyAdjustments[County],'BMP Costs'!AC$67) -> 2534.148741
A88: Constructed Wetlands | B88: RR | C88: 2528.923692 | D88: =IF(SUMIFS(UserCost[User-Defined Annual Cost per Unit],UserCost[BMP],CurrentBMP[[#This Row],[Practice]])>0,SUMIFS(UserCost[User-Defined Annual Cost per Unit],UserCost[BMP],CurrentBMP[[#This Row],[Practice]]),CurrentBMP[[#This Row],[Average Annual Cost/Unit (county-specific)]]) -> 2528.923692 | F88: =SUMIFS(Table33[Average Annual Cost],Table33[Stormwater BMP],CurrentBMP[[#This Row],[Practice]])*SUMIFS(CountyAdjustments[King & Hagan Adjustor],CountyAdjustments[County],'BMP Costs'!F$67) -> 2528.923692 | G88: =SUMIFS(Table33[Average Annual Cost],Table33[Stormwater BMP],CurrentBMP[[#This Row],[Practice]])*SUMIFS(CountyAdjustments[King & Hagan Adjustor],CountyAdjustments[County],'BMP Costs'!G$67) -> 2602.074378 | H88: =SUMIFS(Table33[Average Annual Cost],Table33[Stormwater BMP],CurrentBMP[[#This Row],[Practice]])*SUMIFS(CountyAdjustments[King & Hagan Adjustor],CountyAdjustments[County],'BMP Costs'!H$67) -> 2589.011755 | I88: =SUMIFS(Table33[Average Annual Cost],Table33[Stormwater BMP],CurrentBMP[[#This Row],[Practice]])*SUMIFS(CountyAdjustments[King & Hagan Adjustor],CountyAdjustments[County],'BMP Costs'!I$67) -> 2589.011755 | J88: =SUMIFS(Table33[Average Annual Cost],Table33[Stormwater BMP],CurrentBMP[[#This Row],[Practice]])*SUMIFS(CountyAdjustments[King & Hagan Adjustor],CountyAdjustments[County],'BMP Costs'!J$67) -> 2578.561657 | K88: =SUMIFS(Table33[Average Annual Cost],Table33[Stormwater BMP],CurrentBMP[[#This Row],[Practice]])*SUMIFS(CountyAdjustments[King & Hagan Adjustor],CountyAdjustments[County],'BMP Costs'!K$67) -> 2544.598839 | L88: =SUMIFS(Table33[Average Annual Cost],Table33[Stormwater BMP],CurrentBMP[[#This Row],[Practice]])*SUMIFS(CountyAdjustments[King & Hagan Adjustor],CountyAdjustments[County],'BMP Costs'!L$67) -> 2570.724084 | M88: =SUMIFS(Table33[Average Annual Cost],Table33[Stormwater BMP],CurrentBMP[[#This Row],[Practice]])*SUMIFS(CountyAdjustments[King & Hagan Adjustor],CountyAdjustments[County],'BMP Costs'!M$67) -> 2565.499035 | N88: =SUMIFS(Table33[Average Annual Cost],Table33[Stormwater BMP],CurrentBMP[[#This Row],[Practice]])*SUMIFS(CountyAdjustments[King & Hagan Adjustor],CountyAdjustments[County],'BMP Costs'!N$67) -> 2578.561657 | O88: =SUMIFS(Table33[Average Annual Cost],Table33[Stormwater BMP],CurrentBMP[[#This Row],[Practice]])*SUMIFS(CountyAdjustments[King & Hagan Adjustor],CountyAdjustments[County],'BMP Costs'!O$67) -> 2544.598839 | P88: =SUMIFS(Table33[Average Annual Cost],Table33[Stormwater BMP],CurrentBMP[[#This Row],[Practice]])*SUMIFS(CountyAdjustments[King & Hagan Adjustor],CountyAdjustments[County],'BMP Costs'!P$67) -> 2570.724084 | Q88: =SUMIFS(Table33[Average Annual Cost],Table33[Stormwater BMP],CurrentBMP[[#This Row],[Practice]])*SUMIFS(CountyAdjustments[King & Hagan Adjustor],CountyAdjustments[County],'BMP Costs'!Q$67) -> 2528.923692 | R88: =SUMIFS(Table33[Average Annual Cost],Table33[Stormwater BMP],CurrentBMP[[#This Row],[Practice]])*SUMIFS(CountyAdjustments[King & Hagan Adjustor],CountyAdjustments[County],'BMP Costs'!R$67) -> 2589.011755 | S88: =SUMIFS(Table33[Average Annual Cost],Table33[Stormwater BMP],CurrentBMP[[#This Row],[Practice]])*SUMIFS(CountyAdjustments[King & Hagan Adjustor],CountyAdjustments[County],'BMP Costs'!S$67) -> 2589.011755 | T88: =SUMIFS(Table33[Average Annual Cost],Table33[Stormwater BMP],CurrentBMP[[#This Row],[Practice]])*SUMIFS(CountyAdjustments[King & Hagan Adjustor],CountyAdjustments[County],'BMP Costs'!T$67) -> 2565.499035 | U88: =SUMIFS(Table33[Average Annual Cost],Table33[Stormwater BMP],CurrentBMP[[#This Row],[Practice]])*SUMIFS(CountyAdjustments[King & Hagan Adjustor],CountyAdjustments[County],'BMP Costs'!U$67) -> 2573.336608 | V88: =SUMIFS(Table33[Average Annual Cost],Table33[Stormwater BMP],CurrentBMP[[#This Row],[Practice]])*SUMIFS(CountyAdjustments[King & Hagan Adjustor],CountyAdjustments[County],'BMP Costs'!V$67) -> 2583.786706 | W88: =SUMIFS(Table33[Average Annual Cost],Table33[Stormwater BMP],CurrentBMP[[#This Row],[Practice]])*SUMIFS(CountyAdjustments[King & Hagan Adjustor],CountyAdjustments[County],'BMP Costs'!W$67) -> 2544.598839 | X88: =SUMIFS(Table33[Average Annual Cost],Table33[Stormwater BMP],CurrentBMP[[#This Row],[Practice]])*SUMIFS(CountyAdjustments[King & Hagan Adjustor],CountyAdjustments[County],'BMP Costs'!X$67) -> 2534.148741 | Y88: =SUMIFS(Table33[Average Annual Cost],Table33[Stormwater BMP],CurrentBMP[[#This Row],[Practice]])*SUMIFS(CountyAdjustments[King & Hagan Adjustor],CountyAdjustments[County],'BMP Costs'!Y$67) -> 2578.561657 | Z88: =SUMIFS(Table33[Average Annual Cost],Table33[Stormwater BMP],CurrentBMP[[#This Row],[Practice]])*SUMIFS(CountyAdjustments[King & Hagan Adjustor],CountyAdjustments[County],'BMP Costs'!Z$67) -> 2544.598839 | AA88: =SUMIFS(Table33[Average Annual Cost],Table33[Stormwater BMP],CurrentBMP[[#This Row],[Practice]])*SUMIFS(CountyAdjustments[King & Hagan Adjustor],CountyAdjustments[County],'BMP Costs'!AA$67) -> 2570.724084 | AB88: =SUMIFS(Table33[Average Annual Cost],Table33[Stormwater BMP],CurrentBMP[[#This Row],[Practice]])*SUMIFS(CountyAdjustments[King & Hagan Adjustor],CountyAdjustments[County],'BMP Costs'!AB$67) -> 2534.148741 | AC88: =SUMIFS(Table33[Average Annual Cost],Table33[Stormwater BMP],CurrentBMP[[#This Row],[Practice]])*SUMIFS(CountyAdjustments[King & Hagan Adjustor],CountyAdjustments[County],'BMP Costs'!AC$67) -> 2534.148741
A89: Extended Detention Ponds | B89: ST | C89: 4202.429354 | D89: =IF(SUMIFS(UserCost[User-Defined Annual Cost per Unit],UserCost[BMP],CurrentBMP[[#This Row],[Practice]])>0,SUMIFS(UserCost[User-Defined Annual Cost per Unit],UserCost[BMP],CurrentBMP[[#This Row],[Practice]]),CurrentBMP[[#This Row],[Average Annual Cost/Unit (county-specific)]]) -> 4202.429354 | F89: =SUMIFS(Table33[Average Annual Cost],Table33[Stormwater BMP],CurrentBMP[[#This Row],[Practice]])*SUMIFS(CountyAdjustments[King & Hagan Adjustor],CountyAdjustments[County],'BMP Costs'!F$67) -> 4202.429354 | G89: =SUMIFS(Table33[Average Annual Cost],Table33[Stormwater BMP],CurrentBMP[[#This Row],[Practice]])*SUMIFS(CountyAdjustments[King & Hagan Adjustor],CountyAdjustments[County],'BMP Costs'!G$67) -> 4323.987228 | H89: =SUMIFS(Table33[Average Annual Cost],Table33[Stormwater BMP],CurrentBMP[[#This Row],[Practice]])*SUMIFS(CountyAdjustments[King & Hagan Adjustor],CountyAdjustments[County],'BMP Costs'!H$67) -> 4302.280464 | I89: =SUMIFS(Table33[Average Annual Cost],Table33[Stormwater BMP],CurrentBMP[[#This Row],[Practice]])*SUMIFS(CountyAdjustments[King & Hagan Adjustor],CountyAdjustments[County],'BMP Costs'!I$67) -> 4302.280464 | J89: =SUMIFS(Table33[Average Annual Cost],Table33[Stormwater BMP],CurrentBMP[[#This Row],[Practice]])*SUMIFS(CountyAdjustments[King & Hagan Adjustor],CountyAdjustments[County],'BMP Costs'!J$67) -> 4284.915054 | K89: =SUMIFS(Table33[Average Annual Cost],Table33[Stormwater BMP],CurrentBMP[[#This Row],[Practice]])*SUMIFS(CountyAdjustments[King & Hagan Adjustor],CountyAdjustments[County],'BMP Costs'!K$67) -> 4228.47747 | L89: =SUMIFS(Table33[Average Annual Cost],Table33[Stormwater BMP],CurrentBMP[[#This Row],[Practice]])*SUMIFS(CountyAdjustments[King & Hagan Adjustor],CountyAdjustments[County],'BMP Costs'!L$67) -> 4271.890996 | M89: =SUMIFS(Table33[Average Annual Cost],Table33[Stormwater BMP],CurrentBMP[[#This Row],[Practice]])*SUMIFS(CountyAdjustments[King & Hagan Adjustor],CountyAdjustments[County],'BMP Costs'!M$67) -> 4263.208291 | N89: =SUMIFS(Table33[Average Annual Cost],Table33[Stormwater BMP],CurrentBMP[[#This Row],[Practice]])*SUMIFS(CountyAdjustments[King & Hagan Adjustor],CountyAdjustments[County],'BMP Costs'!N$67) -> 4284.915054 | O89: =SUMIFS(Table33[Average Annual Cost],Table33[Stormwater BMP],CurrentBMP[[#This Row],[Practice]])*SUMIFS(CountyAdjustments[King & Hagan Adjustor],CountyAdjustments[County],'BMP Costs'!O$67) -> 4228.47747 | P89: =SUMIFS(Table33[Average Annual Cost],Table33[Stormwater BMP],CurrentBMP[[#This Row],[Practice]])*SUMIFS(CountyAdjustments[King & Hagan Adjustor],CountyAdjustments[County],'BMP Costs'!P$67) -> 4271.890996 | Q89: =SUMIFS(Table33[Average Annual Cost],Table33[Stormwater BMP],CurrentBMP[[#This Row],[Practice]])*SUMIFS(CountyAdjustments[King & Hagan Adjustor],CountyAdjustments[County],'BMP Costs'!Q$67) -> 4202.429354 | R89: =SUMIFS(Table33[Average Annual Cost],Table33[Stormwater BMP],CurrentBMP[[#This Row],[Practice]])*SUMIFS(CountyAdjustments[King & Hagan Adjustor],CountyAdjustments[County],'BMP Costs'!R$67) -> 4302.280464 | S89: =SUMIFS(Table33[Average Annual Cost],Table33[Stormwater BMP],CurrentBMP[[#This Row],[Practice]])*SUMIFS(CountyAdjustments[King & Hagan Adjustor],CountyAdjustments[County],'BMP Costs'!S$67) -> 4302.280464 | T89: =SUMIFS(Table33[Average Annual Cost],Table33[Stormwater BMP],CurrentBMP[[#This Row],[Practice]])*SUMIFS(CountyAdjustments[King & Hagan Adjustor],CountyAdjustments[County],'BMP Costs'!T$67) -> 4263.208291 | U89: =SUMIFS(Table33[Average Annual Cost],Table33[Stormwater BMP],CurrentBMP[[#This Row],[Practice]])*SUMIFS(CountyAdjustments[King & Hagan Adjustor],CountyAdjustments[County],'BMP Costs'!U$67) -> 4276.232349 | V89: =SUMIFS(Table33[Average Annual Cost],Table33[Stormwater BMP],CurrentBMP[[#This Row],[Practice]])*SUMIFS(CountyAdjustments[King & Hagan Adjustor],CountyAdjustments[County],'BMP Costs'!V$67) -> 4293.597759 | W89: =SUMIFS(Table33[Average Annual Cost],Table33[Stormwater BMP],CurrentBMP[[#This Row],[Practice]])*SUMIFS(CountyAdjustments[King & Hagan Adjustor],CountyAdjustments[County],'BMP Costs'!W$67) -> 4228.47747 | X89: =SUMIFS(Table33[Average Annual Cost],Table33[Stormwater BMP],CurrentBMP[[#This Row],[Practice]])*SUMIFS(CountyAdjustments[King & Hagan Adjustor],CountyAdjustments[County],'BMP Costs'!X$67) -> 4211.112059 | Y89: =SUMIFS(Table33[Average Annual Cost],Table33[Stormwater BMP],CurrentBMP[[#This Row],[Practice]])*SUMIFS(CountyAdjustments[King & Hagan Adjustor],CountyAdjustments[County],'BMP Costs'!Y$67) -> 4284.915054 | Z89: =SUMIFS(Table33[Average Annual Cost],Table33[Stormwater BMP],CurrentBMP[[#This Row],[Practice]])*SUMIFS(CountyAdjustments[King & Hagan Adjustor],CountyAdjustments[County],'BMP Costs'!Z$67) -> 4228.47747 | AA89: =SUMIFS(Table33[Average Annual Cost],Table33[Stormwater BMP],CurrentBMP[[#This Row],[Practice]])*SUMIFS(CountyAdjustments[King & Hagan Adjustor],CountyAdjustments[County],'BMP Costs'!AA$67) -> 4271.890996 | AB89: =SUMIFS(Table33[Average Annual Cost],Table33[Stormwater BMP],CurrentBMP[[#This Row],[Practice]])*SUMIFS(CountyAdjustments[King & Hagan Adjustor],CountyAdjustments[County],'BMP Costs'!AB$67) -> 4211.112059 | AC89: =SUMIFS(Table33[Average Annual Cost],Table33[Stormwater BMP],CurrentBMP[[#This Row],[Practice]])*SUMIFS(CountyAdjustments[King & Hagan Adjustor],CountyAdjustments[County],'BMP Costs'!AC$67) -> 4211.112059
A90: Ditch Enhancement | B90: NA | C90: 3778.09152 | D90: =IF(SUMIFS(UserCost[User-Defined Annual Cost per Unit],UserCost[BMP],CurrentBMP[[#This Row],[Practice]])>0,SUMIFS(UserCost[User-Defined Annual Cost per Unit],UserCost[BMP],CurrentBMP[[#This Row],[Practice]]),CurrentBMP[[#This Row],[Average Annual Cost/Unit (county-specific)]]) -> 3778.09152 | F90: =SUMIFS(Table33[Average Annual Cost],Table33[Stormwater BMP],CurrentBMP[[#This Row],[Practice]])*SUMIFS(CountyAdjustments[King & Hagan Adjustor],CountyAdjustments[County],'BMP Costs'!F$67) -> 3778.09152 | G90: =SUMIFS(Table33[Average Annual Cost],Table33[Stormwater BMP],CurrentBMP[[#This Row],[Practice]])*SUMIFS(CountyAdjustments[King & Hagan Adjustor],CountyAdjustments[County],'BMP Costs'!G$67) -> 3887.375159 | H90: =SUMIFS(Table33[Average Annual Cost],Table33[Stormwater BMP],CurrentBMP[[#This Row],[Practice]])*SUMIFS(CountyAdjustments[King & Hagan Adjustor],CountyAdjustments[County],'BMP Costs'!H$67) -> 3867.860224 | I90: =SUMIFS(Table33[Average Annual Cost],Table33[Stormwater BMP],CurrentBMP[[#This Row],[Practice]])*SUMIFS(CountyAdjustments[King & Hagan Adjustor],CountyAdjustments[County],'BMP Costs'!I$67) -> 3867.860224 | J90: =SUMIFS(Table33[Average Annual Cost],Table33[Stormwater BMP],CurrentBMP[[#This Row],[Practice]])*SUMIFS(CountyAdjustments[King & Hagan Adjustor],CountyAdjustments[County],'BMP Costs'!J$67) -> 3852.248275 | K90: =SUMIFS(Table33[Average Annual Cost],Table33[Stormwater BMP],CurrentBMP[[#This Row],[Practice]])*SUMIFS(CountyAdjustments[King & Hagan Adjustor],CountyAdjustments[County],'BMP Costs'!K$67) -> 3801.509443 | L90: =SUMIFS(Table33[Average Annual Cost],Table33[Stormwater BMP],CurrentBMP[[#This Row],[Practice]])*SUMIFS(CountyAdjustments[King & Hagan Adjustor],CountyAdjustments[County],'BMP Costs'!L$67) -> 3840.539314 | M90: =SUMIFS(Table33[Average Annual Cost],Table33[Stormwater BMP],CurrentBMP[[#This Row],[Practice]])*SUMIFS(CountyAdjustments[King & Hagan Adjustor],CountyAdjustments[County],'BMP Costs'!M$67) -> 3832.73334 | N90: =SUMIFS(Table33[Average Annual Cost],Table33[Stormwater BMP],CurrentBMP[[#This Row],[Practice]])*SUMIFS(CountyAdjustments[King & Hagan Adjustor],CountyAdjustments[County],'BMP Costs'!N$67) -> 3852.248275 | O90: =SUMIFS(Table33[Average Annual Cost],Table33[Stormwater BMP],CurrentBMP[[#This Row],[Practice]])*SUMIFS(CountyAdjustments[King & Hagan Adjustor],CountyAdjustments[County],'BMP Costs'!O$67) -> 3801.509443 | P90: =SUMIFS(Table33[Average Annual Cost],Table33[Stormwater BMP],CurrentBMP[[#This Row],[Practice]])*SUMIFS(CountyAdjustments[King & Hagan Adjustor],CountyAdjustments[County],'BMP Costs'!P$67) -> 3840.539314 | Q90: =SUMIFS(Table33[Average Annual Cost],Table33[Stormwater BMP],CurrentBMP[[#This Row],[Practice]])*SUMIFS(CountyAdjustments[King & Hagan Adjustor],CountyAdjustments[County],'BMP Costs'!Q$67) -> 3778.09152 | R90: =SUMIFS(Table33[Average Annual Cost],Table33[Stormwater BMP],CurrentBMP[[#This Row],[Practice]])*SUMIFS(CountyAdjustments[King & Hagan Adjustor],CountyAdjustments[County],'BMP Costs'!R$67) -> 3867.860224 | S90: =SUMIFS(Table33[Average Annual Cost],Table33[Stormwater BMP],CurrentBMP[[#This Row],[Practice]])*SUMIFS(CountyAdjustments[King & Hagan Adjustor],CountyAdjustments[County],'BMP Costs'!S$67) -> 3867.860224 | T90: =SUMIFS(Table33[Average Annual Cost],Table33[Stormwater BMP],CurrentBMP[[#This Row],[Practice]])*SUMIFS(CountyAdjustments[King & Hagan Adjustor],CountyAdjustments[County],'BMP Costs'!T$67) -> 3832.73334 | U90: =SUMIFS(Table33[Average Annual Cost],Table33[Stormwater BMP],CurrentBMP[[#This Row],[Practice]])*SUMIFS(CountyAdjustments[King & Hagan Adjustor],CountyAdjustments[County],'BMP Costs'!U$67) -> 3844.442301 | V90: =SUMIFS(Table33[Average Annual Cost],Table33[Stormwater BMP],CurrentBMP[[#This Row],[Practice]])*SUMIFS(CountyAdjustments[King & Hagan Adjustor],CountyAdjustments[County],'BMP Costs'!V$67) -> 3860.05425 | W90: =SUMIFS(Table33[Average Annual Cost],Table33[Stormwater BMP],CurrentBMP[[#This Row],[Practice]])*SUMIFS(CountyAdjustments[King & Hagan Adjustor],CountyAdjustments[County],'BMP Costs'!W$67) -> 3801.509443 | X90: =SUMIFS(Table33[Average Annual Cost],Table33[Stormwater BMP],CurrentBMP[[#This Row],[Practice]])*SUMIFS(CountyAdjustments[King & Hagan Adjustor],CountyAdjustments[County],'BMP Costs'!X$67) -> 3785.897495 | Y90: =SUMIFS(Table33[Average Annual Cost],Table33[Stormwater BMP],CurrentBMP[[#This Row],[Practice]])*SUMIFS(CountyAdjustments[King & Hagan Adjustor],CountyAdjustments[County],'BMP Costs'!Y$67) -> 3852.248275 | Z90: =SUMIFS(Table33[Average Annual Cost],Table33[Stormwater BMP],CurrentBMP[[#This Row],[Practice]])*SUMIFS(CountyAdjustments[King & Hagan Adjustor],CountyAdjustments[County],'BMP Costs'!Z$67) -> 3801.509443 | AA90: =SUMIFS(Table33[Average Annual Cost],Table33[Stormwater BMP],CurrentBMP[[#This Row],[Practice]])*SUMIFS(CountyAdjustments[King & Hagan Adjustor],CountyAdjustments[County],'BMP Costs'!AA$67) -> 3840.539314 | AB90: =SUMIFS(Table33[Average Annual Cost],Table33[Stormwater BMP],CurrentBMP[[#This Row],[Practice]])*SUMIFS(CountyAdjustments[King & Hagan Adjustor],CountyAdjustments[County],'BMP Costs'!AB$67) -> 3785.897495 | AC90: =SUMIFS(Table33[Average Annual Cost],Table33[Stormwater BMP],CurrentBMP[[#This Row],[Practice]])*SUMIFS(CountyAdjustments[King & Hagan Adjustor],CountyAdjustments[County],'BMP Costs'!AC$67) -> 3785.897495
A91: Conversion of Dry Pond to Wet Pond | B91: NA | C91: 1775.828719 | D91: =IF(SUMIFS(UserCost[User-Defined Annual Cost per Unit],UserCost[BMP],CurrentBMP[[#This Row],[Practice]])>0,SUMIFS(UserCost[User-Defined Annual Cost per Unit],UserCost[BMP],CurrentBMP[[#This Row],[Practice]]),CurrentBMP[[#This Row],[Average Annual Cost/Unit (county-specific)]]) -> 1775.828719 | F91: =SUMIFS(Table33[Average Annual Cost],Table33[Stormwater BMP],CurrentBMP[[#This Row],[Practice]])*SUMIFS(CountyAdjustments[King & Hagan Adjustor],CountyAdjustments[County],'BMP Costs'!F$67) -> 1775.828719 | G91: =SUMIFS(Table33[Average Annual Cost],Table33[Stormwater BMP],CurrentBMP[[#This Row],[Practice]])*SUMIFS(CountyAdjustments[King & Hagan Adjustor],CountyAdjustments[County],'BMP Costs'!G$67) -> 1827.195665 | H91: =SUMIFS(Table33[Average Annual Cost],Table33[Stormwater BMP],CurrentBMP[[#This Row],[Practice]])*SUMIFS(CountyAdjustments[King & Hagan Adjustor],CountyAdjustments[County],'BMP Costs'!H$67) -> 1818.022996 | I91: =SUMIFS(Table33[Average Annual Cost],Table33[Stormwater BMP],CurrentBMP[[#This Row],[Practice]])*SUMIFS(CountyAdjustments[King & Hagan Adjustor],CountyAdjustments[County],'BMP Costs'!I$67) -> 1818.022996 | J91: =SUMIFS(Table33[Average Annual Cost],Table33[Stormwater BMP],CurrentBMP[[#This Row],[Practice]])*SUMIFS(CountyAdjustments[King & Hagan Adjustor],CountyAdjustments[County],'BMP Costs'!J$67) -> 1810.684861 | K91: =SUMIFS(Table33[Average Annual Cost],Table33[Stormwater BMP],CurrentBMP[[#This Row],[Practice]])*SUMIFS(CountyAdjustments[King & Hagan Adjustor],CountyAdjustments[County],'BMP Costs'!K$67) -> 1786.835921 | L91: =SUMIFS(Table33[Average Annual Cost],Table33[Stormwater BMP],CurrentBMP[[#This Row],[Practice]])*SUMIFS(CountyAdjustments[King & Hagan Adjustor],CountyAdjustments[County],'BMP Costs'!L$67) -> 1805.181259 | M91: =SUMIFS(Table33[Average Annual Cost],Table33[Stormwater BMP],CurrentBMP[[#This Row],[Practice]])*SUMIFS(CountyAdjustments[King & Hagan Adjustor],CountyAdjustments[County],'BMP Costs'!M$67) -> 1801.512192 | N91: =SUMIFS(Table33[Average Annual Cost],Table33[Stormwater BMP],CurrentBMP[[#This Row],[Practice]])*SUMIFS(CountyAdjustments[King & Hagan Adjustor],CountyAdjustments[County],'BMP Costs'!N$67) -> 1810.684861 | O91: =SUMIFS(Table33[Average Annual Cost],Table33[Stormwater BMP],CurrentBMP[[#This Row],[Practice]])*SUMIFS(CountyAdjustments[King & Hagan Adjustor],CountyAdjustments[County],'BMP Costs'!O$67) -> 1786.835921 | P91: =SUMIFS(Table33[Average Annual Cost],Table33[Stormwater BMP],CurrentBMP[[#This Row],[Practice]])*SUMIFS(CountyAdjustments[King & Hagan Adjustor],CountyAdjustments[County],'BMP Costs'!P$67) -> 1805.181259 | Q91: =SUMIFS(Table33[Average Annual Cost],Table33[Stormwater BMP],CurrentBMP[[#This Row],[Practice]])*SUMIFS(CountyAdjustments[King & Hagan Adjustor],CountyAdjustments[County],'BMP Costs'!Q$67) -> 1775.828719 | R91: =SUMIFS(Table33[Average Annual Cost],Table33[Stormwater BMP],CurrentBMP[[#This Row],[Practice]])*SUMIFS(CountyAdjustments[King & Hagan Adjustor],CountyAdjustments[County],'BMP Costs'!R$67) -> 1818.022996 | S91: =SUMIFS(Table33[Average Annual Cost],Table33[Stormwater BMP],CurrentBMP[[#This Row],[Practice]])*SUMIFS(CountyAdjustments[King & Hagan Adjustor],CountyAdjustments[County],'BMP Costs'!S$67) -> 1818.022996 | T91: =SUMIFS(Table33[Average Annual Cost],Table33[Stormwater BMP],CurrentBMP[[#This Row],[Practice]])*SUMIFS(CountyAdjustments[King & Hagan Adjustor],CountyAdjustments[County],'BMP Costs'!T$67) -> 1801.512192 | U91: =SUMIFS(Table33[Average Annual Cost],Table33[Stormwater BMP],CurrentBMP[[#This Row],[Practice]])*SUMIFS(CountyAdjustments[King & Hagan Adjustor],CountyAdjustments[County],'BMP Costs'!U$67) -> 1807.015793 | V91: =SUMIFS(Table33[Average Annual Cost],Table33[Stormwater BMP],CurrentBMP[[#This Row],[Practice]])*SUMIFS(CountyAdjustments[King & Hagan Adjustor],CountyAdjustments[County],'BMP Costs'!V$67) -> 1814.353928 | W91: =SUMIFS(Table33[Average Annual Cost],Table33[Stormwater BMP],CurrentBMP[[#This Row],[Practice]])*SUMIFS(CountyAdjustments[King & Hagan Adjustor],CountyAdjustments[County],'BMP Costs'!W$67) -> 1786.835921 | X91: =SUMIFS(Table33[Average Annual Cost],Table33[Stormwater BMP],CurrentBMP[[#This Row],[Practice]])*SUMIFS(CountyAdjustments[King & Hagan Adjustor],CountyAdjustments[County],'BMP Costs'!X$67) -> 1779.497786 | Y91: =SUMIFS(Table33[Average Annual Cost],Table33[Stormwater BMP],CurrentBMP[[#This Row],[Practice]])*SUMIFS(CountyAdjustments[King & Hagan Adjustor],CountyAdjustments[County],'BMP Costs'!Y$67) -> 1810.684861 | Z91: =SUMIFS(Table33[Average Annual Cost],Table33[Stormwater BMP],CurrentBMP[[#This Row],[Practice]])*SUMIFS(CountyAdjustments[King & Hagan Adjustor],CountyAdjustments[County],'BMP Costs'!Z$67) -> 1786.835921 | AA91: =SUMIFS(Table33[Average Annual Cost],Table33[Stormwater BMP],CurrentBMP[[#This Row],[Practice]])*SUMIFS(CountyAdjustments[King & Hagan Adjustor],CountyAdjustments[County],'BMP Costs'!AA$67) -> 1805.181259 | AB91: =SUMIFS(Table33[Average Annual Cost],Table33[Stormwater BMP],CurrentBMP[[#This Row],[Practice]])*SUMIFS(CountyAdjustments[King & Hagan Adjustor],CountyAdjustments[County],'BMP Costs'!AB$67) -> 1779.497786 | AC91: =SUMIFS(Table33[Average Annual Cost],Table33[Stormwater BMP],CurrentBMP[[#This Row],[Practice]])*SUMIFS(CountyAdjustments[King & Hagan Adjustor],CountyAdjustments[County],'BMP Costs'!AC$67) -> 1779.497786
A92: Forest Buffer | B92: NA | C92: 1180.437888 | D92: =IF(SUMIFS(UserCost[User-Defined Annual Cost per Unit],UserCost[BMP],CurrentBMP[[#This Row],[Practice]])>0,SUMIFS(UserCost[User-Defined Annual Cost per Unit],UserCost[BMP],CurrentBMP[[#This Row],[Practice]]),CurrentBMP[[#This Row],[Average Annual Cost/Unit (county-specific)]]) -> 1180.437888 | F92: =SUMIFS(Table33[Average Annual Cost],Table33[Stormwater BMP],CurrentBMP[[#This Row],[Practice]])*SUMIFS(CountyAdjustments[King & Hagan Adjustor],CountyAdjustments[County],'BMP Costs'!F$67) -> 1180.437888 | G92: =SUMIFS(Table33[Average Annual Cost],Table33[Stormwater BMP],CurrentBMP[[#This Row],[Practice]])*SUMIFS(CountyAdjustments[King & Hagan Adjustor],CountyAdjustments[County],'BMP Costs'!G$67) -> 1214.582785 | H92: =SUMIFS(Table33[Average Annual Cost],Table33[Stormwater BMP],CurrentBMP[[#This Row],[Practice]])*SUMIFS(CountyAdjustments[King & Hagan Adjustor],CountyAdjustments[County],'BMP Costs'!H$67) -> 1208.485482 | I92: =SUMIFS(Table33[Average Annual Cost],Table33[Stormwater BMP],CurrentBMP[[#This Row],[Practice]])*SUMIFS(CountyAdjustments[King & Hagan Adjustor],CountyAdjustments[County],'BMP Costs'!I$67) -> 1208.485482 | J92: =SUMIFS(Table33[Average Annual Cost],Table33[Stormwater BMP],CurrentBMP[[#This Row],[Practice]])*SUMIFS(CountyAdjustments[King & Hagan Adjustor],CountyAdjustments[County],'BMP Costs'!J$67) -> 1203.60764 | K92: =SUMIFS(Table33[Average Annual Cost],Table33[Stormwater BMP],CurrentBMP[[#This Row],[Practice]])*SUMIFS(CountyAdjustments[King & Hagan Adjustor],CountyAdjustments[County],'BMP Costs'!K$67) -> 1187.754652 | L92: =SUMIFS(Table33[Average Annual Cost],Table33[Stormwater BMP],CurrentBMP[[#This Row],[Practice]])*SUMIFS(CountyAdjustments[King & Hagan Adjustor],CountyAdjustments[County],'BMP Costs'!L$67) -> 1199.949258 | M92: =SUMIFS(Table33[Average Annual Cost],Table33[Stormwater BMP],CurrentBMP[[#This Row],[Practice]])*SUMIFS(CountyAdjustments[King & Hagan Adjustor],CountyAdjustments[County],'BMP Costs'!M$67) -> 1197.510337 | N92: =SUMIFS(Table33[Average Annual Cost],Table33[Stormwater BMP],CurrentBMP[[#This Row],[Practice]])*SUMIFS(CountyAdjustments[King & Hagan Adjustor],CountyAdjustments[County],'BMP Costs'!N$67) -> 1203.60764 | O92: =SUMIFS(Table33[Average Annual Cost],Table33[Stormwater BMP],CurrentBMP[[#This Row],[Practice]])*SUMIFS(CountyAdjustments[King & Hagan Adjustor],CountyAdjustments[County],'BMP Costs'!O$67) -> 1187.754652 | P92: =SUMIFS(Table33[Average Annual Cost],Table33[Stormwater BMP],CurrentBMP[[#This Row],[Practice]])*SUMIFS(CountyAdjustments[King & Hagan Adjustor],CountyAdjustments[County],'BMP Costs'!P$67) -> 1199.949258 | Q92: =SUMIFS(Table33[Average Annual Cost],Table33[Stormwater BMP],CurrentBMP[[#This Row],[Practice]])*SUMIFS(CountyAdjustments[King & Hagan Adjustor],CountyAdjustments[County],'BMP Costs'!Q$67) -> 1180.437888 | R92: =SUMIFS(Table33[Average Annual Cost],Table33[Stormwater BMP],CurrentBMP[[#This Row],[Practice]])*SUMIFS(CountyAdjustments[King & Hagan Adjustor],CountyAdjustments[County],'BMP Costs'!R$67) -> 1208.485482 | S92: =SUMIFS(Table33[Average Annual Cost],Table33[Stormwater BMP],CurrentBMP[[#This Row],[Practice]])*SUMIFS(CountyAdjustments[King & Hagan Adjustor],CountyAdjustments[County],'BMP Costs'!S$67) -> 1208.485482 | T92: =SUMIFS(Table33[Average Annual Cost],Table33[Stormwater BMP],CurrentBMP[[#This Row],[Practice]])*SUMIFS(CountyAdjustments[King & Hagan Adjustor],CountyAdjustments[County],'BMP Costs'!T$67) -> 1197.510337 | U92: =SUMIFS(Table33[Average Annual Cost],Table33[Stormwater BMP],CurrentBMP[[#This Row],[Practice]])*SUMIFS(CountyAdjustments[King & Hagan Adjustor],CountyAdjustments[County],'BMP Costs'!U$67) -> 1201.168718 | V92: =SUMIFS(Table33[Average Annual Cost],Table33[Stormwater BMP],CurrentBMP[[#This Row],[Practice]])*SUMIFS(CountyAdjustments[King & Hagan Adjustor],CountyAdjustments[County],'BMP Costs'!V$67) -> 1206.046561 | W92: =SUMIFS(Table33[Average Annual Cost],Table33[Stormwater BMP],CurrentBMP[[#This Row],[Practice]])*SUMIFS(CountyAdjustments[King & Hagan Adjustor],CountyAdjustments[County],'BMP Costs'!W$67) -> 1187.754652 | X92: =SUMIFS(Table33[Average Annual Cost],Table33[Stormwater BMP],CurrentBMP[[#This Row],[Practice]])*SUMIFS(CountyAdjustments[King & Hagan Adjustor],CountyAdjustments[County],'BMP Costs'!X$67) -> 1182.876809 | Y92: =SUMIFS(Table33[Average Annual Cost],Table33[Stormwater BMP],CurrentBMP[[#This Row],[Practice]])*SUMIFS(CountyAdjustments[King & Hagan Adjustor],CountyAdjustments[County],'BMP Costs'!Y$67) -> 1203.60764 | Z92: =SUMIFS(Table33[Average Annual Cost],Table33[Stormwater BMP],CurrentBMP[[#This Row],[Practice]])*SUMIFS(CountyAdjustments[King & Hagan Adjustor],CountyAdjustments[County],'BMP Costs'!Z$67) -> 1187.754652 | AA92: =SUMIFS(Table33[Average Annual Cost],Table33[Stormwater BMP],CurrentBMP[[#This Row],[Practice]])*SUMIFS(CountyAdjustments[King & Hagan Adjustor],CountyAdjustments[County],'BMP Costs'!AA$67) -> 1199.949258 | AB92: =SUMIFS(Table33[Average Annual Cost],Table33[Stormwater BMP],CurrentBMP[[#This Row],[Practice]])*SUMIFS(CountyAdjustments[King & Hagan Adjustor],CountyAdjustments[County],'BMP Costs'!AB$67) -> 1182.876809 | AC92: =SUMIFS(Table33[Average Annual Cost],Table33[Stormwater BMP],CurrentBMP[[#This Row],[Practice]])*SUMIFS(CountyAdjustments[King & Hagan Adjustor],CountyAdjustments[County],'BMP Costs'!AC$67) -> 1182.876809
A93: Urban Tree Planting | B93: NA | C93: 4571.665769 | D93: =IF(SUMIFS(UserCost[User-Defined Annual Cost per Unit],UserCost[BMP],CurrentBMP[[#This Row],[Practice]])>0,SUMIFS(UserCost[User-Defined Annual Cost per Unit],UserCost[BMP],CurrentBMP[[#This Row],[Practice]]),CurrentBMP[[#This Row],[Average Annual Cost/Unit (county-specific)]]) -> 4571.665769 | F93: =SUMIFS(Table33[Average Annual Cost],Table33[Stormwater BMP],CurrentBMP[[#This Row],[Practice]])*SUMIFS(CountyAdjustments[King & Hagan Adjustor],CountyAdjustments[County],'BMP Costs'!F$67) -> 4571.665769 | G93: =SUMIFS(Table33[Average Annual Cost],Table33[Stormwater BMP],CurrentBMP[[#This Row],[Practice]])*SUMIFS(CountyAdjustments[King & Hagan Adjustor],CountyAdjustments[County],'BMP Costs'!G$67) -> 4703.904035 | H93: =SUMIFS(Table33[Average Annual Cost],Table33[Stormwater BMP],CurrentBMP[[#This Row],[Practice]])*SUMIFS(CountyAdjustments[King & Hagan Adjustor],CountyAdjustments[County],'BMP Costs'!H$67) -> 4680.290058 | I93: =SUMIFS(Table33[Average Annual Cost],Table33[Stormwater BMP],CurrentBMP[[#This Row],[Practice]])*SUMIFS(CountyAdjustments[King & Hagan Adjustor],CountyAdjustments[County],'BMP Costs'!I$67) -> 4680.290058 | J93: =SUMIFS(Table33[Average Annual Cost],Table33[Stormwater BMP],CurrentBMP[[#This Row],[Practice]])*SUMIFS(CountyAdjustments[King & Hagan Adjustor],CountyAdjustments[County],'BMP Costs'!J$67) -> 4661.398878 | K93: =SUMIFS(Table33[Average Annual Cost],Table33[Stormwater BMP],CurrentBMP[[#This Row],[Practice]])*SUMIFS(CountyAdjustments[King & Hagan Adjustor],CountyAdjustments[County],'BMP Costs'!K$67) -> 4600.00254 | L93: =SUMIFS(Table33[Average Annual Cost],Table33[Stormwater BMP],CurrentBMP[[#This Row],[Practice]])*SUMIFS(CountyAdjustments[King & Hagan Adjustor],CountyAdjustments[County],'BMP Costs'!L$67) -> 4647.230492 | M93: =SUMIFS(Table33[Average Annual Cost],Table33[Stormwater BMP],CurrentBMP[[#This Row],[Practice]])*SUMIFS(CountyAdjustments[King & Hagan Adjustor],CountyAdjustments[County],'BMP Costs'!M$67) -> 4637.784902 | N93: =SUMIFS(Table33[Average Annual Cost],Table33[Stormwater BMP],CurrentBMP[[#This Row],[Practice]])*SUMIFS(CountyAdjustments[King & Hagan Adjustor],CountyAdjustments[County],'BMP Costs'!N$67) -> 4661.398878 | O93: =SUMIFS(Table33[Average Annual Cost],Table33[Stormwater BMP],CurrentBMP[[#This Row],[Practice]])*SUMIFS(CountyAdjustments[King & Hagan Adjustor],CountyAdjustments[County],'BMP Costs'!O$67) -> 4600.00254 | P93: =SUMIFS(Table33[Average Annual Cost],Table33[Stormwater BMP],CurrentBMP[[#This Row],[Practice]])*SUMIFS(CountyAdjustments[King & Hagan Adjustor],CountyAdjustments[County],'BMP Costs'!P$67) -> 4647.230492 | Q93: =SUMIFS(Table33[Average Annual Cost],Table33[Stormwater BMP],CurrentBMP[[#This Row],[Practice]])*SUMIFS(CountyAdjustments[King & Hagan Adjustor],CountyAdjustments[County],'BMP Costs'!Q$67) -> 4571.665769 | R93: =SUMIFS(Table33[Average Annual Cost],Table33[Stormwater BMP],CurrentBMP[[#This Row],[Practice]])*SUMIFS(CountyAdjustments[King & Hagan Adjustor],CountyAdjustments[County],'BMP Costs'!R$67) -> 4680.290058 | S93: =SUMIFS(Table33[Average Annual Cost],Table33[Stormwater BMP],CurrentBMP[[#This Row],[Practice]])*SUMIFS(CountyAdjustments[King & Hagan Adjustor],CountyAdjustments[County],'BMP Costs'!S$67) -> 4680.290058 | T93: =SUMIFS(Table33[Average Annual Cost],Table33[Stormwater BMP],CurrentBMP[[#This Row],[Practice]])*SUMIFS(CountyAdjustments[King & Hagan Adjustor],CountyAdjustments[County],'BMP Costs'!T$67) -> 4637.784902 | U93: =SUMIFS(Table33[Average Annual Cost],Table33[Stormwater BMP],CurrentBMP[[#This Row],[Practice]])*SUMIFS(CountyAdjustments[King & Hagan Adjustor],CountyAdjustments[County],'BMP Costs'!U$67) -> 4651.953287 | V93: =SUMIFS(Table33[Average Annual Cost],Table33[Stormwater BMP],CurrentBMP[[#This Row],[Practice]])*SUMIFS(CountyAdjustments[King & Hagan Adjustor],CountyAdjustments[County],'BMP Costs'!V$67) -> 4670.844468 | W93: =SUMIFS(Table33[Average Annual Cost],Table33[Stormwater BMP],CurrentBMP[[#This Row],[Practice]])*SUMIFS(CountyAdjustments[King & Hagan Adjustor],CountyAdjustments[County],'BMP Costs'!W$67) -> 4600.00254 | X93: =SUMIFS(Table33[Average Annual Cost],Table33[Stormwater BMP],CurrentBMP[[#This Row],[Practice]])*SUMIFS(CountyAdjustments[King & Hagan Adjustor],CountyAdjustments[County],'BMP Costs'!X$67) -> 4581.111359 | Y93: =SUMIFS(Table33[Average Annual Cost],Table33[Stormwater BMP],CurrentBMP[[#This Row],[Practice]])*SUMIFS(CountyAdjustments[King & Hagan Adjustor],CountyAdjustments[County],'BMP Costs'!Y$67) -> 4661.398878 | Z93: =SUMIFS(Table33[Average Annual Cost],Table33[Stormwater BMP],CurrentBMP[[#This Row],[Practice]])*SUMIFS(CountyAdjustments[King & Hagan Adjustor],CountyAdjustments[County],'BMP Costs'!Z$67) -> 4600.00254 | AA93: =SUMIFS(Table33[Average Annual Cost],Table33[Stormwater BMP],CurrentBMP[[#This Row],[Practice]])*SUMIFS(CountyAdjustments[King & Hagan Adjustor],CountyAdjustments[County],'BMP Costs'!AA$67) -> 4647.230492 | AB93: =SUMIFS(Table33[Average Annual Cost],Table33[Stormwater BMP],CurrentBMP[[#This Row],[Practice]])*SUMIFS(CountyAdjustments[King & Hagan Adjustor],CountyAdjustments[County],'BMP Costs'!AB$67) -> 4581.111359 | AC93: =SUMIFS(Table33[Average Annual Cost],Table33[Stormwater BMP],CurrentBMP[[#This Row],[Practice]])*SUMIFS(CountyAdjustments[King & Hagan Adjustor],CountyAdjustments[County],'BMP Costs'!AC$67) -> 4581.111359
A94: Impervious Cover Removal | B94: RR | C94: 10657.1115 | D94: =IF(SUMIFS(UserCost[User-Defined Annual Cost per Unit],UserCost[BMP],CurrentBMP[[#This Row],[Practice]])>0,SUMIFS(UserCost[User-Defined Annual Cost per Unit],UserCost[BMP],CurrentBMP[[#This Row],[Practice]]),CurrentBMP[[#This Row],[Average Annual Cost/Unit (county-specific)]]) -> 10657.1115 | F94: =SUMIFS(Table33[Average Annual Cost],Table33[Stormwater BMP],CurrentBMP[[#This Row],[Practice]])*SUMIFS(CountyAdjustments[King & Hagan Adjustor],CountyAdjustments[County],'BMP Costs'!F$67) -> 10657.1115 | G94: =SUMIFS(Table33[Average Annual Cost],Table33[Stormwater BMP],CurrentBMP[[#This Row],[Practice]])*SUMIFS(CountyAdjustments[King & Hagan Adjustor],CountyAdjustments[County],'BMP Costs'!G$67) -> 10965.37506 | H94: =SUMIFS(Table33[Average Annual Cost],Table33[Stormwater BMP],CurrentBMP[[#This Row],[Practice]])*SUMIFS(CountyAdjustments[King & Hagan Adjustor],CountyAdjustments[County],'BMP Costs'!H$67) -> 10910.328 | I94: =SUMIFS(Table33[Average Annual Cost],Table33[Stormwater BMP],CurrentBMP[[#This Row],[Practice]])*SUMIFS(CountyAdjustments[King & Hagan Adjustor],CountyAdjustments[County],'BMP Costs'!I$67) -> 10910.328 | J94: =SUMIFS(Table33[Average Annual Cost],Table33[Stormwater BMP],CurrentBMP[[#This Row],[Practice]])*SUMIFS(CountyAdjustments[King & Hagan Adjustor],CountyAdjustments[County],'BMP Costs'!J$67) -> 10866.29035 | K94: =SUMIFS(Table33[Average Annual Cost],Table33[Stormwater BMP],CurrentBMP[[#This Row],[Practice]])*SUMIFS(CountyAdjustments[King & Hagan Adjustor],CountyAdjustments[County],'BMP Costs'!K$67) -> 10723.16798 | L94: =SUMIFS(Table33[Average Annual Cost],Table33[Stormwater BMP],CurrentBMP[[#This Row],[Practice]])*SUMIFS(CountyAdjustments[King & Hagan Adjustor],CountyAdjustments[County],'BMP Costs'!L$67) -> 10833.26211 | M94: =SUMIFS(Table33[Average Annual Cost],Table33[Stormwater BMP],CurrentBMP[[#This Row],[Practice]])*SUMIFS(CountyAdjustments[King & Hagan Adjustor],CountyAdjustments[County],'BMP Costs'!M$67) -> 10811.24328 | N94: =SUMIFS(Table33[Average Annual Cost],Table33[Stormwater BMP],CurrentBMP[[#This Row],[Practice]])*SUMIFS(CountyAdjustments[King & Hagan Adjustor],CountyAdjustments[County],'BMP Costs'!N$67) -> 10866.29035 | O94: =SUMIFS(Table33[Average Annual Cost],Table33[Stormwater BMP],CurrentBMP[[#This Row],[Practice]])*SUMIFS(CountyAdjustments[King & Hagan Adjustor],CountyAdjustments[County],'BMP Costs'!O$67) -> 10723.16798 | P94: =SUMIFS(Table33[Average Annual Cost],Table33[Stormwater BMP],CurrentBMP[[#This Row],[Practice]])*SUMIFS(CountyAdjustments[King & Hagan Adjustor],CountyAdjustments[County],'BMP Costs'!P$67) -> 10833.26211 | Q94: =SUMIFS(Table33[Average Annual Cost],Table33[Stormwater BMP],CurrentBMP[[#This Row],[Practice]])*SUMIFS(CountyAdjustments[King & Hagan Adjustor],CountyAdjustments[County],'BMP Costs'!Q$67) -> 10657.1115 | R94: =SUMIFS(Table33[Average Annual Cost],Table33[Stormwater BMP],CurrentBMP[[#This Row],[Practice]])*SUMIFS(CountyAdjustments[King & Hagan Adjustor],CountyAdjustments[County],'BMP Costs'!R$67) -> 10910.328 | S94: =SUMIFS(Table33[Average Annual Cost],Table33[Stormwater BMP],CurrentBMP[[#This Row],[Practice]])*SUMIFS(CountyAdjustments[King & Hagan Adjustor],CountyAdjustments[County],'BMP Costs'!S$67) -> 10910.328 | T94: =SUMIFS(Table33[Average Annual Cost],Table33[Stormwater BMP],CurrentBMP[[#This Row],[Practice]])*SUMIFS(CountyAdjustments[King & Hagan Adjustor],CountyAdjustments[County],'BMP Costs'!T$67) -> 10811.24328 | U94: =SUMIFS(Table33[Average Annual Cost],Table33[Stormwater BMP],CurrentBMP[[#This Row],[Practice]])*SUMIFS(CountyAdjustments[King & Hagan Adjustor],CountyAdjustments[County],'BMP Costs'!U$67) -> 10844.27152 | V94: =SUMIFS(Table33[Average Annual Cost],Table33[Stormwater BMP],CurrentBMP[[#This Row],[Practice]])*SUMIFS(CountyAdjustments[King & Hagan Adjustor],CountyAdjustments[County],'BMP Costs'!V$67) -> 10888.30917 | W94: =SUMIFS(Table33[Average Annual Cost],Table33[Stormwater BMP],CurrentBMP[[#This Row],[Practice]])*SUMIFS(CountyAdjustments[King & Hagan Adjustor],CountyAdjustments[County],'BMP Costs'!W$67) -> 10723.16798 | X94: =SUMIFS(Table33[Average Annual Cost],Table33[Stormwater BMP],CurrentBMP[[#This Row],[Practice]])*SUMIFS(CountyAdjustments[King & Hagan Adjustor],CountyAdjustments[County],'BMP Costs'!X$67) -> 10679.13033 | Y94: =SUMIFS(Table33[Average Annual Cost],Table33[Stormwater BMP],CurrentBMP[[#This Row],[Practice]])*SUMIFS(CountyAdjustments[King & Hagan Adjustor],CountyAdjustments[County],'BMP Costs'!Y$67) -> 10866.29035 | Z94: =SUMIFS(Table33[Average Annual Cost],Table33[Stormwater BMP],CurrentBMP[[#This Row],[Practice]])*SUMIFS(CountyAdjustments[King & Hagan Adjustor],CountyAdjustments[County],'BMP Costs'!Z$67) -> 10723.16798 | AA94: =SUMIFS(Table33[Average Annual Cost],Table33[Stormwater BMP],CurrentBMP[[#This Row],[Practice]])*SUMIFS(CountyAdjustments[King & Hagan Adjustor],CountyAdjustments[County],'BMP Costs'!AA$67) -> 10833.26211 | AB94: =SUMIFS(Table33[Average Annual Cost],Table33[Stormwater BMP],CurrentBMP[[#This Row],[Practice]])*SUMIFS(CountyAdjustments[King & Hagan Adjustor],CountyAdjustments[County],'BMP Costs'!AB$67) -> 10679.13033 | AC94: =SUMIFS(Table33[Average Annual Cost],Table33[Stormwater BMP],CurrentBMP[[#This Row],[Practice]])*SUMIFS(CountyAdjustments[King & Hagan Adjustor],CountyAdjustments[County],'BMP Costs'!AC$67) -> 10679.13033
A95: Urban Cover Crop | B95: NA | C95: 3521.837097 | D95: =IF(SUMIFS(UserCost[User-Defined Annual Cost per Unit],UserCost[BMP],CurrentBMP[[#This Row],[Practice]])>0,SUMIFS(UserCost[User-Defined Annual Cost per Unit],UserCost[BMP],CurrentBMP[[#This Row],[Practice]]),CurrentBMP[[#This Row],[Average Annual Cost/Unit (county-specific)]]) -> 3521.837097 | F95: =SUMIFS(Table33[Average Annual Cost],Table33[Stormwater BMP],CurrentBMP[[#This Row],[Practice]])*SUMIFS(CountyAdjustments[King & Hagan Adjustor],CountyAdjustments[County],'BMP Costs'!F$67) -> 3521.837097 | G95: =SUMIFS(Table33[Average Annual Cost],Table33[Stormwater BMP],CurrentBMP[[#This Row],[Practice]])*SUMIFS(CountyAdjustments[King & Hagan Adjustor],CountyAdjustments[County],'BMP Costs'!G$67) -> 3623.708418 | H95: =SUMIFS(Table33[Average Annual Cost],Table33[Stormwater BMP],CurrentBMP[[#This Row],[Practice]])*SUMIFS(CountyAdjustments[King & Hagan Adjustor],CountyAdjustments[County],'BMP Costs'!H$67) -> 3605.517111 | I95: =SUMIFS(Table33[Average Annual Cost],Table33[Stormwater BMP],CurrentBMP[[#This Row],[Practice]])*SUMIFS(CountyAdjustments[King & Hagan Adjustor],CountyAdjustments[County],'BMP Costs'!I$67) -> 3605.517111 | J95: =SUMIFS(Table33[Average Annual Cost],Table33[Stormwater BMP],CurrentBMP[[#This Row],[Practice]])*SUMIFS(CountyAdjustments[King & Hagan Adjustor],CountyAdjustments[County],'BMP Costs'!J$67) -> 3590.964065 | K95: =SUMIFS(Table33[Average Annual Cost],Table33[Stormwater BMP],CurrentBMP[[#This Row],[Practice]])*SUMIFS(CountyAdjustments[King & Hagan Adjustor],CountyAdjustments[County],'BMP Costs'!K$67) -> 3543.666666 | L95: =SUMIFS(Table33[Average Annual Cost],Table33[Stormwater BMP],CurrentBMP[[#This Row],[Practice]])*SUMIFS(CountyAdjustments[King & Hagan Adjustor],CountyAdjustments[County],'BMP Costs'!L$67) -> 3580.04928 | M95: =SUMIFS(Table33[Average Annual Cost],Table33[Stormwater BMP],CurrentBMP[[#This Row],[Practice]])*SUMIFS(CountyAdjustments[King & Hagan Adjustor],CountyAdjustments[County],'BMP Costs'!M$67) -> 3572.772757 | N95: =SUMIFS(Table33[Average Annual Cost],Table33[Stormwater BMP],CurrentBMP[[#This Row],[Practice]])*SUMIFS(CountyAdjustments[King & Hagan Adjustor],CountyAdjustments[County],'BMP Costs'!N$67) -> 3590.964065 | O95: =SUMIFS(Table33[Average Annual Cost],Table33[Stormwater BMP],CurrentBMP[[#This Row],[Practice]])*SUMIFS(CountyAdjustments[King & Hagan Adjustor],CountyAdjustments[County],'BMP Costs'!O$67) -> 3543.666666 | P95: =SUMIFS(Table33[Average Annual Cost],Table33[Stormwater BMP],CurrentBMP[[#This Row],[Practice]])*SUMIFS(CountyAdjustments[King & Hagan Adjustor],CountyAdjustments[County],'BMP Costs'!P$67) -> 3580.04928 | Q95: =SUMIFS(Table33[Average Annual Cost],Table33[Stormwater BMP],CurrentBMP[[#This Row],[Practice]])*SUMIFS(CountyAdjustments[King & Hagan Adjustor],CountyAdjustments[County],'BMP Costs'!Q$67) -> 3521.837097 | R95: =SUMIFS(Table33[Average Annual Cost],Table33[Stormwater BMP],CurrentBMP[[#This Row],[Practice]])*SUMIFS(CountyAdjustments[King & Hagan Adjustor],CountyAdjustments[County],'BMP Costs'!R$67) -> 3605.517111 | S95: =SUMIFS(Table33[Average Annual Cost],Table33[Stormwater BMP],CurrentBMP[[#This Row],[Practice]])*SUMIFS(CountyAdjustments[King & Hagan Adjustor],CountyAdjustments[County],'BMP Costs'!S$67) -> 3605.517111 | T95: =SUMIFS(Table33[Average Annual Cost],Table33[Stormwater BMP],CurrentBMP[[#This Row],[Practice]])*SUMIFS(CountyAdjustments[King & Hagan Adjustor],CountyAdjustments[County],'BMP Costs'!T$67) -> 3572.772757 | U95: =SUMIFS(Table33[Average Annual Cost],Table33[Stormwater BMP],CurrentBMP[[#This Row],[Practice]])*SUMIFS(CountyAdjustments[King & Hagan Adjustor],CountyAdjustments[County],'BMP Costs'!U$67) -> 3583.687542 | V95: =SUMIFS(Table33[Average Annual Cost],Table33[Stormwater BMP],CurrentBMP[[#This Row],[Practice]])*SUMIFS(CountyAdjustments[King & Hagan Adjustor],CountyAdjustments[County],'BMP Costs'!V$67) -> 3598.240588 | W95: =SUMIFS(Table33[Average Annual Cost],Table33[Stormwater BMP],CurrentBMP[[#This Row],[Practice]])*SUMIFS(CountyAdjustments[King & Hagan Adjustor],CountyAdjustments[County],'BMP Costs'!W$67) -> 3543.666666 | X95: =SUMIFS(Table33[Average Annual Cost],Table33[Stormwater BMP],CurrentBMP[[#This Row],[Practice]])*SUMIFS(CountyAdjustments[King & Hagan Adjustor],CountyAdjustments[County],'BMP Costs'!X$67) -> 3529.11362 | Y95: =SUMIFS(Table33[Average Annual Cost],Table33[Stormwater BMP],CurrentBMP[[#This Row],[Practice]])*SUMIFS(CountyAdjustments[King & Hagan Adjustor],CountyAdjustments[County],'BMP Costs'!Y$67) -> 3590.964065 | Z95: =SUMIFS(Table33[Average Annual Cost],Table33[Stormwater BMP],CurrentBMP[[#This Row],[Practice]])*SUMIFS(CountyAdjustments[King & Hagan Adjustor],CountyAdjustments[County],'BMP Costs'!Z$67) -> 3543.666666 | AA95: =SUMIFS(Table33[Average Annual Cost],Table33[Stormwater BMP],CurrentBMP[[#This Row],[Practice]])*SUMIFS(CountyAdjustments[King & Hagan Adjustor],CountyAdjustments[County],'BMP Costs'!AA$67) -> 3580.04928 | AB95: =SUMIFS(Table33[Average Annual Cost],Table33[Stormwater BMP],CurrentBMP[[#This Row],[Practice]])*SUMIFS(CountyAdjustments[King & Hagan Adjustor],CountyAdjustments[County],'BMP Costs'!AB$67) -> 3529.11362 | AC95: =SUMIFS(Table33[Average Annual Cost],Table33[Stormwater BMP],CurrentBMP[[#This Row],[Practice]])*SUMIFS(CountyAdjustments[King & Hagan Adjustor],CountyAdjustments[County],'BMP Costs'!AC$67) -> 3529.11362
A96: Soil Augmentation | B96: NA | C96: 5524.181435 | D96: =IF(SUMIFS(UserCost[User-Defined Annual Cost per Unit],UserCost[BMP],CurrentBMP[[#This Row],[Practice]])>0,SUMIFS(UserCost[User-Defined Annual Cost per Unit],UserCost[BMP],CurrentBMP[[#This Row],[Practice]]),CurrentBMP[[#This Row],[Average Annual Cost/Unit (county-specific)]]) -> 5524.181435 | F96: =SUMIFS(Table33[Average Annual Cost],Table33[Stormwater BMP],CurrentBMP[[#This Row],[Practice]])*SUMIFS(CountyAdjustments[King & Hagan Adjustor],CountyAdjustments[County],'BMP Costs'!F$67) -> 5524.181435 | G96: =SUMIFS(Table33[Average Annual Cost],Table33[Stormwater BMP],CurrentBMP[[#This Row],[Practice]])*SUMIFS(CountyAdjustments[King & Hagan Adjustor],CountyAdjustments[County],'BMP Costs'!G$67) -> 5683.971807 | H96: =SUMIFS(Table33[Average Annual Cost],Table33[Stormwater BMP],CurrentBMP[[#This Row],[Practice]])*SUMIFS(CountyAdjustments[King & Hagan Adjustor],CountyAdjustments[County],'BMP Costs'!H$67) -> 5655.437812 | I96: =SUMIFS(Table33[Average Annual Cost],Table33[Stormwater BMP],CurrentBMP[[#This Row],[Practice]])*SUMIFS(CountyAdjustments[King & Hagan Adjustor],CountyAdjustments[County],'BMP Costs'!I$67) -> 5655.437812 | J96: =SUMIFS(Table33[Average Annual Cost],Table33[Stormwater BMP],CurrentBMP[[#This Row],[Practice]])*SUMIFS(CountyAdjustments[King & Hagan Adjustor],CountyAdjustments[County],'BMP Costs'!J$67) -> 5632.610616 | K96: =SUMIFS(Table33[Average Annual Cost],Table33[Stormwater BMP],CurrentBMP[[#This Row],[Practice]])*SUMIFS(CountyAdjustments[King & Hagan Adjustor],CountyAdjustments[County],'BMP Costs'!K$67) -> 5558.422229 | L96: =SUMIFS(Table33[Average Annual Cost],Table33[Stormwater BMP],CurrentBMP[[#This Row],[Practice]])*SUMIFS(CountyAdjustments[King & Hagan Adjustor],CountyAdjustments[County],'BMP Costs'!L$67) -> 5615.490219 | M96: =SUMIFS(Table33[Average Annual Cost],Table33[Stormwater BMP],CurrentBMP[[#This Row],[Practice]])*SUMIFS(CountyAdjustments[King & Hagan Adjustor],CountyAdjustments[County],'BMP Costs'!M$67) -> 5604.076621 | N96: =SUMIFS(Table33[Average Annual Cost],Table33[Stormwater BMP],CurrentBMP[[#This Row],[Practice]])*SUMIFS(CountyAdjustments[King & Hagan Adjustor],CountyAdjustments[County],'BMP Costs'!N$67) -> 5632.610616 | O96: =SUMIFS(Table33[Average Annual Cost],Table33[Stormwater BMP],CurrentBMP[[#This Row],[Practice]])*SUMIFS(CountyAdjustments[King & Hagan Adjustor],CountyAdjustments[County],'BMP Costs'!O$67) -> 5558.422229 | P96: =SUMIFS(Table33[Average Annual Cost],Table33[Stormwater BMP],CurrentBMP[[#This Row],[Practice]])*SUMIFS(CountyAdjustments[King & Hagan Adjustor],CountyAdjustments[County],'BMP Costs'!P$67) -> 5615.490219 | Q96: =SUMIFS(Table33[Average Annual Cost],Table33[Stormwater BMP],CurrentBMP[[#This Row],[Practice]])*SUMIFS(CountyAdjustments[King & Hagan Adjustor],CountyAdjustments[County],'BMP Costs'!Q$67) -> 5524.181435 | R96: =SUMIFS(Table33[Average Annual Cost],Table33[Stormwater BMP],CurrentBMP[[#This Row],[Practice]])*SUMIFS(CountyAdjustments[King & Hagan Adjustor],CountyAdjustments[County],'BMP Costs'!R$67) -> 5655.437812 | S96: =SUMIFS(Table33[Average Annual Cost],Table33[Stormwater BMP],CurrentBMP[[#This Row],[Practice]])*SUMIFS(CountyAdjustments[King & Hagan Adjustor],CountyAdjustments[County],'BMP Costs'!S$67) -> 5655.437812 | T96: =SUMIFS(Table33[Average Annual Cost],Table33[Stormwater BMP],CurrentBMP[[#This Row],[Practice]])*SUMIFS(CountyAdjustments[King & Hagan Adjustor],CountyAdjustments[County],'BMP Costs'!T$67) -> 5604.076621 | U96: =SUMIFS(Table33[Average Annual Cost],Table33[Stormwater BMP],CurrentBMP[[#This Row],[Practice]])*SUMIFS(CountyAdjustments[King & Hagan Adjustor],CountyAdjustments[County],'BMP Costs'!U$67) -> 5621.197018 | V96: =SUMIFS(Table33[Average Annual Cost],Table33[Stormwater BMP],CurrentBMP[[#This Row],[Practice]])*SUMIFS(CountyAdjustments[King & Hagan Adjustor],CountyAdjustments[County],'BMP Costs'!V$67) -> 5644.024214 | W96: =SUMIFS(Table33[Average Annual Cost],Table33[Stormwater BMP],CurrentBMP[[#This Row],[Practice]])*SUMIFS(CountyAdjustments[King & Hagan Adjustor],CountyAdjustments[County],'BMP Costs'!W$67) -> 5558.422229 | X96: =SUMIFS(Table33[Average Annual Cost],Table33[Stormwater BMP],CurrentBMP[[#This Row],[Practice]])*SUMIFS(CountyAdjustments[King & Hagan Adjustor],CountyAdjustments[County],'BMP Costs'!X$67) -> 5535.595033 | Y96: =SUMIFS(Table33[Average Annual Cost],Table33[Stormwater BMP],CurrentBMP[[#This Row],[Practice]])*SUMIFS(CountyAdjustments[King & Hagan Adjustor],CountyAdjustments[County],'BMP Costs'!Y$67) -> 5632.610616 | Z96: =SUMIFS(Table33[Average Annual Cost],Table33[Stormwater BMP],CurrentBMP[[#This Row],[Practice]])*SUMIFS(CountyAdjustments[King & Hagan Adjustor],CountyAdjustments[County],'BMP Costs'!Z$67) -> 5558.422229 | AA96: =SUMIFS(Table33[Average Annual Cost],Table33[Stormwater BMP],CurrentBMP[[#This Row],[Practice]])*SUMIFS(CountyAdjustments[King & Hagan Adjustor],CountyAdjustments[County],'BMP Costs'!AA$67) -> 5615.490219 | AB96: =SUMIFS(Table33[Average Annual Cost],Table33[Stormwater BMP],CurrentBMP[[#This Row],[Practice]])*SUMIFS(CountyAdjustments[King & Hagan Adjustor],CountyAdjustments[County],'BMP Costs'!AB$67) -> 5535.595033 | AC96: =SUMIFS(Table33[Average Annual Cost],Table33[Stormwater BMP],CurrentBMP[[#This Row],[Practice]])*SUMIFS(CountyAdjustments[King & Hagan Adjustor],CountyAdjustments[County],'BMP Costs'!AC$67) -> 5535.595033
A97: Pet Waste Program | B97: NA | C97: 757.9331775 | D97: =IF(SUMIFS(UserCost[User-Defined Annual Cost per Unit],UserCost[BMP],CurrentBMP[[#This Row],[Practice]])>0,SUMIFS(UserCost[User-Defined Annual Cost per Unit],UserCost[BMP],CurrentBMP[[#This Row],[Practice]]),CurrentBMP[[#This Row],[Average Annual Cost/Unit (county-specific)]]) -> 757.9331775 | F97: =SUMIFS(Table33[Average Annual Cost],Table33[Stormwater BMP],CurrentBMP[[#This Row],[Practice]])*SUMIFS(CountyAdjustments[King & Hagan Adjustor],CountyAdjustments[County],'BMP Costs'!F$67) -> 757.9331775 | G97: =SUMIFS(Table33[Average Annual Cost],Table33[Stormwater BMP],CurrentBMP[[#This Row],[Practice]])*SUMIFS(CountyAdjustments[King & Hagan Adjustor],CountyAdjustments[County],'BMP Costs'!G$67) -> 779.8568644 | H97: =SUMIFS(Table33[Average Annual Cost],Table33[Stormwater BMP],CurrentBMP[[#This Row],[Practice]])*SUMIFS(CountyAdjustments[King & Hagan Adjustor],CountyAdjustments[County],'BMP Costs'!H$67) -> 775.9419203 | I97: =SUMIFS(Table33[Average Annual Cost],Table33[Stormwater BMP],CurrentBMP[[#This Row],[Practice]])*SUMIFS(CountyAdjustments[King & Hagan Adjustor],CountyAdjustments[County],'BMP Costs'!I$67) -> 775.9419203 | J97: =SUMIFS(Table33[Average Annual Cost],Table33[Stormwater BMP],CurrentBMP[[#This Row],[Practice]])*SUMIFS(CountyAdjustments[King & Hagan Adjustor],CountyAdjustments[County],'BMP Costs'!J$67) -> 772.8099651 | K97: =SUMIFS(Table33[Average Annual Cost],Table33[Stormwater BMP],CurrentBMP[[#This Row],[Practice]])*SUMIFS(CountyAdjustments[King & Hagan Adjustor],CountyAdjustments[County],'BMP Costs'!K$67) -> 762.6311104 | L97: =SUMIFS(Table33[Average Annual Cost],Table33[Stormwater BMP],CurrentBMP[[#This Row],[Practice]])*SUMIFS(CountyAdjustments[King & Hagan Adjustor],CountyAdjustments[County],'BMP Costs'!L$67) -> 770.4609986 | M97: =SUMIFS(Table33[Average Annual Cost],Table33[Stormwater BMP],CurrentBMP[[#This Row],[Practice]])*SUMIFS(CountyAdjustments[King & Hagan Adjustor],CountyAdjustments[County],'BMP Costs'!M$67) -> 768.895021 | N97: =SUMIFS(Table33[Average Annual Cost],Table33[Stormwater BMP],CurrentBMP[[#This Row],[Practice]])*SUMIFS(CountyAdjustments[King & Hagan Adjustor],CountyAdjustments[County],'BMP Costs'!N$67) -> 772.8099651 | O97: =SUMIFS(Table33[Average Annual Cost],Table33[Stormwater BMP],CurrentBMP[[#This Row],[Practice]])*SUMIFS(CountyAdjustments[King & Hagan Adjustor],CountyAdjustments[County],'BMP Costs'!O$67) -> 762.6311104 | P97: =SUMIFS(Table33[Average Annual Cost],Table33[Stormwater BMP],CurrentBMP[[#This Row],[Practice]])*SUMIFS(CountyAdjustments[King & Hagan Adjustor],CountyAdjustments[County],'BMP Costs'!P$67) -> 770.4609986 | Q97: =SUMIFS(Table33[Average Annual Cost],Table33[Stormwater BMP],CurrentBMP[[#This Row],[Practice]])*SUMIFS(CountyAdjustments[King & Hagan Adjustor],CountyAdjustments[County],'BMP Costs'!Q$67) -> 757.9331775 | R97: =SUMIFS(Table33[Average Annual Cost],Table33[Stormwater BMP],CurrentBMP[[#This Row],[Practice]])*SUMIFS(CountyAdjustments[King & Hagan Adjustor],CountyAdjustments[County],'BMP Costs'!R$67) -> 775.9419203 | S97: =SUMIFS(Table33[Average Annual Cost],Table33[Stormwater BMP],CurrentBMP[[#This Row],[Practice]])*SUMIFS(CountyAdjustments[King & Hagan Adjustor],CountyAdjustments[County],'BMP Costs'!S$67) -> 775.9419203 | T97: =SUMIFS(Table33[Average Annual Cost],Table33[Stormwater BMP],CurrentBMP[[#This Row],[Practice]])*SUMIFS(CountyAdjustments[King & Hagan Adjustor],CountyAdjustments[County],'BMP Costs'!T$67) -> 768.895021 | U97: =SUMIFS(Table33[Average Annual Cost],Table33[Stormwater BMP],CurrentBMP[[#This Row],[Practice]])*SUMIFS(CountyAdjustments[King & Hagan Adjustor],CountyAdjustments[County],'BMP Costs'!U$67) -> 771.2439874 | V97: =SUMIFS(Table33[Average Annual Cost],Table33[Stormwater BMP],CurrentBMP[[#This Row],[Practice]])*SUMIFS(CountyAdjustments[King & Hagan Adjustor],CountyAdjustments[County],'BMP Costs'!V$67) -> 774.3759427 | W97: =SUMIFS(Table33[Average Annual Cost],Table33[Stormwater BMP],CurrentBMP[[#This Row],[Practice]])*SUMIFS(CountyAdjustments[King & Hagan Adjustor],CountyAdjustments[County],'BMP Costs'!W$67) -> 762.6311104 | X97: =SUMIFS(Table33[Average Annual Cost],Table33[Stormwater BMP],CurrentBMP[[#This Row],[Practice]])*SUMIFS(CountyAdjustments[King & Hagan Adjustor],CountyAdjustments[County],'BMP Costs'!X$67) -> 759.4991551 | Y97: =SUMIFS(Table33[Average Annual Cost],Table33[Stormwater BMP],CurrentBMP[[#This Row],[Practice]])*SUMIFS(CountyAdjustments[King & Hagan Adjustor],CountyAdjustments[County],'BMP Costs'!Y$67) -> 772.8099651 | Z97: =SUMIFS(Table33[Average Annual Cost],Table33[Stormwater BMP],CurrentBMP[[#This Row],[Practice]])*SUMIFS(CountyAdjustments[King & Hagan Adjustor],CountyAdjustments[County],'BMP Costs'!Z$67) -> 762.6311104 | AA97: =SUMIFS(Table33[Average Annual Cost],Table33[Stormwater BMP],CurrentBMP[[#This Row],[Practice]])*SUMIFS(CountyAdjustments[King & Hagan Adjustor],CountyAdjustments[County],'BMP Costs'!AA$67) -> 770.4609986 | AB97: =SUMIFS(Table33[Average Annual Cost],Table33[Stormwater BMP],CurrentBMP[[#This Row],[Practice]])*SUMIFS(CountyAdjustments[King & Hagan Adjustor],CountyAdjustments[County],'BMP Costs'!AB$67) -> 759.4991551 | AC97: =SUMIFS(Table33[Average Annual Cost],Table33[Stormwater BMP],CurrentBMP[[#This Row],[Practice]])*SUMIFS(CountyAdjustments[King & Hagan Adjustor],CountyAdjustments[County],'BMP Costs'!AC$67) -> 759.4991551
A98: Street Sweeping | B98: NA | C98: 846.3624054 | D98: =IF(SUMIFS(UserCost[User-Defined Annual Cost per Unit],UserCost[BMP],CurrentBMP[[#This Row],[Practice]])>0,SUMIFS(UserCost[User-Defined Annual Cost per Unit],UserCost[BMP],CurrentBMP[[#This Row],[Practice]]),CurrentBMP[[#This Row],[Average Annual Cost/Unit (county-specific)]]) -> 846.3624054 | F98: =SUMIFS(Table33[Average Annual Cost],Table33[Stormwater BMP],CurrentBMP[[#This Row],[Practice]])*SUMIFS(CountyAdjustments[King & Hagan Adjustor],CountyAdjustments[County],'BMP Costs'!F$67) -> 846.3624054 | G98: =SUMIFS(Table33[Average Annual Cost],Table33[Stormwater BMP],CurrentBMP[[#This Row],[Practice]])*SUMIFS(CountyAdjustments[King & Hagan Adjustor],CountyAdjustments[County],'BMP Costs'!G$67) -> 870.8439626 | H98: =SUMIFS(Table33[Average Annual Cost],Table33[Stormwater BMP],CurrentBMP[[#This Row],[Practice]])*SUMIFS(CountyAdjustments[King & Hagan Adjustor],CountyAdjustments[County],'BMP Costs'!H$67) -> 866.4722559 | I98: =SUMIFS(Table33[Average Annual Cost],Table33[Stormwater BMP],CurrentBMP[[#This Row],[Practice]])*SUMIFS(CountyAdjustments[King & Hagan Adjustor],CountyAdjustments[County],'BMP Costs'!I$67) -> 866.4722559 | J98: =SUMIFS(Table33[Average Annual Cost],Table33[Stormwater BMP],CurrentBMP[[#This Row],[Practice]])*SUMIFS(CountyAdjustments[King & Hagan Adjustor],CountyAdjustments[County],'BMP Costs'!J$67) -> 862.9748906 | K98: =SUMIFS(Table33[Average Annual Cost],Table33[Stormwater BMP],CurrentBMP[[#This Row],[Practice]])*SUMIFS(CountyAdjustments[King & Hagan Adjustor],CountyAdjustments[County],'BMP Costs'!K$67) -> 851.6084533 | L98: =SUMIFS(Table33[Average Annual Cost],Table33[Stormwater BMP],CurrentBMP[[#This Row],[Practice]])*SUMIFS(CountyAdjustments[King & Hagan Adjustor],CountyAdjustments[County],'BMP Costs'!L$67) -> 860.3518666 | M98: =SUMIFS(Table33[Average Annual Cost],Table33[Stormwater BMP],CurrentBMP[[#This Row],[Practice]])*SUMIFS(CountyAdjustments[King & Hagan Adjustor],CountyAdjustments[County],'BMP Costs'!M$67) -> 858.603184 | N98: =SUMIFS(Table33[Average Annual Cost],Table33[Stormwater BMP],CurrentBMP[[#This Row],[Practice]])*SUMIFS(CountyAdjustments[King & Hagan Adjustor],CountyAdjustments[County],'BMP Costs'!N$67) -> 862.9748906 | O98: =SUMIFS(Table33[Average Annual Cost],Table33[Stormwater BMP],CurrentBMP[[#This Row],[Practice]])*SUMIFS(CountyAdjustments[King & Hagan Adjustor],CountyAdjustments[County],'BMP Costs'!O$67) -> 851.6084533 | P98: =SUMIFS(Table33[Average Annual Cost],Table33[Stormwater BMP],CurrentBMP[[#This Row],[Practice]])*SUMIFS(CountyAdjustments[King & Hagan Adjustor],CountyAdjustments[County],'BMP Costs'!P$67) -> 860.3518666 | Q98: =SUMIFS(Table33[Average Annual Cost],Table33[Stormwater BMP],CurrentBMP[[#This Row],[Practice]])*SUMIFS(CountyAdjustments[King & Hagan Adjustor],CountyAdjustments[County],'BMP Costs'!Q$67) -> 846.3624054 | R98: =SUMIFS(Table33[Average Annual Cost],Table33[Stormwater BMP],CurrentBMP[[#This Row],[Practice]])*SUMIFS(CountyAdjustments[King & Hagan Adjustor],CountyAdjustments[County],'BMP Costs'!R$67) -> 866.4722559 | S98: =SUMIFS(Table33[Average Annual Cost],Table33[Stormwater BMP],CurrentBMP[[#This Row],[Practice]])*SUMIFS(CountyAdjustments[King & Hagan Adjustor],CountyAdjustments[County],'BMP Costs'!S$67) -> 866.4722559 | T98: =SUMIFS(Table33[Average Annual Cost],Table33[Stormwater BMP],CurrentBMP[[#This Row],[Practice]])*SUMIFS(CountyAdjustments[King & Hagan Adjustor],CountyAdjustments[County],'BMP Costs'!T$67) -> 858.603184 | U98: =SUMIFS(Table33[Average Annual Cost],Table33[Stormwater BMP],CurrentBMP[[#This Row],[Practice]])*SUMIFS(CountyAdjustments[King & Hagan Adjustor],CountyAdjustments[County],'BMP Costs'!U$67) -> 861.2262079 | V98: =SUMIFS(Table33[Average Annual Cost],Table33[Stormwater BMP],CurrentBMP[[#This Row],[Practice]])*SUMIFS(CountyAdjustments[King & Hagan Adjustor],CountyAdjustments[County],'BMP Costs'!V$67) -> 864.7235733 | W98: =SUMIFS(Table33[Average Annual Cost],Table33[Stormwater BMP],CurrentBMP[[#This Row],[Practice]])*SUMIFS(CountyAdjustments[King & Hagan Adjustor],CountyAdjustments[County],'BMP Costs'!W$67) -> 851.6084533 | X98: =SUMIFS(Table33[Average Annual Cost],Table33[Stormwater BMP],CurrentBMP[[#This Row],[Practice]])*SUMIFS(CountyAdjustments[King & Hagan Adjustor],CountyAdjustments[County],'BMP Costs'!X$67) -> 848.111088 | Y98: =SUMIFS(Table33[Average Annual Cost],Table33[Stormwater BMP],CurrentBMP[[#This Row],[Practice]])*SUMIFS(CountyAdjustments[King & Hagan Adjustor],CountyAdjustments[County],'BMP Costs'!Y$67) -> 862.9748906 | Z98: =SUMIFS(Table33[Average Annual Cost],Table33[Stormwater BMP],CurrentBMP[[#This Row],[Practice]])*SUMIFS(CountyAdjustments[King & Hagan Adjustor],CountyAdjustments[County],'BMP Costs'!Z$67) -> 851.6084533 | AA98: =SUMIFS(Table33[Average Annual Cost],Table33[Stormwater BMP],CurrentBMP[[#This Row],[Practice]])*SUMIFS(CountyAdjustments[King & Hagan Adjustor],CountyAdjustments[County],'BMP Costs'!AA$67) -> 860.3518666 | AB98: =SUMIFS(Table33[Average Annual Cost],Table33[Stormwater BMP],CurrentBMP[[#This Row],[Practice]])*SUMIFS(CountyAdjustments[King & Hagan Adjustor],CountyAdjustments[County],'BMP Costs'!AB$67) -> 848.111088 | AC98: =SUMIFS(Table33[Average Annual Cost],Table33[Stormwater BMP],CurrentBMP[[#This Row],[Practice]])*SUMIFS(CountyAdjustments[King & Hagan Adjustor],CountyAdjustments[County],'BMP Costs'!AC$67) -> 848.111088
A99: Urban Nutrient Management | B99: NA | C99: 382.0444695 | D99: =IF(SUMIFS(UserCost[User-Defined Annual Cost per Unit],UserCost[BMP],CurrentBMP[[#This Row],[Practice]])>0,SUMIFS(UserCost[User-Defined Annual Cost per Unit],UserCost[BMP],CurrentBMP[[#This Row],[Practice]]),CurrentBMP[[#This Row],[Average Annual Cost/Unit (county-specific)]]) -> 382.0444695 | F99: =SUMIFS(Table33[Average Annual Cost],Table33[Stormwater BMP],CurrentBMP[[#This Row],[Practice]])*SUMIFS(CountyAdjustments[King & Hagan Adjustor],CountyAdjustments[County],'BMP Costs'!F$67) -> 382.0444695 | G99: =SUMIFS(Table33[Average Annual Cost],Table33[Stormwater BMP],CurrentBMP[[#This Row],[Practice]])*SUMIFS(CountyAdjustments[King & Hagan Adjustor],CountyAdjustments[County],'BMP Costs'!G$67) -> 393.0953426 | H99: =SUMIFS(Table33[Average Annual Cost],Table33[Stormwater BMP],CurrentBMP[[#This Row],[Practice]])*SUMIFS(CountyAdjustments[King & Hagan Adjustor],CountyAdjustments[County],'BMP Costs'!H$67) -> 391.1219724 | I99: =SUMIFS(Table33[Average Annual Cost],Table33[Stormwater BMP],CurrentBMP[[#This Row],[Practice]])*SUMIFS(CountyAdjustments[King & Hagan Adjustor],CountyAdjustments[County],'BMP Costs'!I$67) -> 391.1219724 | J99: =SUMIFS(Table33[Average Annual Cost],Table33[Stormwater BMP],CurrentBMP[[#This Row],[Practice]])*SUMIFS(CountyAdjustments[King & Hagan Adjustor],CountyAdjustments[County],'BMP Costs'!J$67) -> 389.5432763 | K99: =SUMIFS(Table33[Average Annual Cost],Table33[Stormwater BMP],CurrentBMP[[#This Row],[Practice]])*SUMIFS(CountyAdjustments[King & Hagan Adjustor],CountyAdjustments[County],'BMP Costs'!K$67) -> 384.4125138 | L99: =SUMIFS(Table33[Average Annual Cost],Table33[Stormwater BMP],CurrentBMP[[#This Row],[Practice]])*SUMIFS(CountyAdjustments[King & Hagan Adjustor],CountyAdjustments[County],'BMP Costs'!L$67) -> 388.3592542 | M99: =SUMIFS(Table33[Average Annual Cost],Table33[Stormwater BMP],CurrentBMP[[#This Row],[Practice]])*SUMIFS(CountyAdjustments[King & Hagan Adjustor],CountyAdjustments[County],'BMP Costs'!M$67) -> 387.5699061 | N99: =SUMIFS(Table33[Average Annual Cost],Table33[Stormwater BMP],CurrentBMP[[#This Row],[Practice]])*SUMIFS(CountyAdjustments[King & Hagan Adjustor],CountyAdjustments[County],'BMP Costs'!N$67) -> 389.5432763 | O99: =SUMIFS(Table33[Average Annual Cost],Table33[Stormwater BMP],CurrentBMP[[#This Row],[Practice]])*SUMIFS(CountyAdjustments[King & Hagan Adjustor],CountyAdjustments[County],'BMP Costs'!O$67) -> 384.4125138 | P99: =SUMIFS(Table33[Average Annual Cost],Table33[Stormwater BMP],CurrentBMP[[#This Row],[Practice]])*SUMIFS(CountyAdjustments[King & Hagan Adjustor],CountyAdjustments[County],'BMP Costs'!P$67) -> 388.3592542 | Q99: =SUMIFS(Table33[Average Annual Cost],Table33[Stormwater BMP],CurrentBMP[[#This Row],[Practice]])*SUMIFS(CountyAdjustments[King & Hagan Adjustor],CountyAdjustments[County],'BMP Costs'!Q$67) -> 382.0444695 | R99: =SUMIFS(Table33[Average Annual Cost],Table33[Stormwater BMP],CurrentBMP[[#This Row],[Practice]])*SUMIFS(CountyAdjustments[King & Hagan Adjustor],CountyAdjustments[County],'BMP Costs'!R$67) -> 391.1219724 | S99: =SUMIFS(Table33[Average Annual Cost],Table33[Stormwater BMP],CurrentBMP[[#This Row],[Practice]])*SUMIFS(CountyAdjustments[King & Hagan Adjustor],CountyAdjustments[County],'BMP Costs'!S$67) -> 391.1219724 | T99: =SUMIFS(Table33[Average Annual Cost],Table33[Stormwater BMP],CurrentBMP[[#This Row],[Practice]])*SUMIFS(CountyAdjustments[King & Hagan Adjustor],CountyAdjustments[County],'BMP Costs'!T$67) -> 387.5699061 | U99: =SUMIFS(Table33[Average Annual Cost],Table33[Stormwater BMP],CurrentBMP[[#This Row],[Practice]])*SUMIFS(CountyAdjustments[King & Hagan Adjustor],CountyAdjustments[County],'BMP Costs'!U$67) -> 388.7539282 | V99: =SUMIFS(Table33[Average Annual Cost],Table33[Stormwater BMP],CurrentBMP[[#This Row],[Practice]])*SUMIFS(CountyAdjustments[King & Hagan Adjustor],CountyAdjustments[County],'BMP Costs'!V$67) -> 390.3326244 | W99: =SUMIFS(Table33[Average Annual Cost],Table33[Stormwater BMP],CurrentBMP[[#This Row],[Practice]])*SUMIFS(CountyAdjustments[King & Hagan Adjustor],CountyAdjustments[County],'BMP Costs'!W$67) -> 384.4125138 | X99: =SUMIFS(Table33[Average Annual Cost],Table33[Stormwater BMP],CurrentBMP[[#This Row],[Practice]])*SUMIFS(CountyAdjustments[King & Hagan Adjustor],CountyAdjustments[County],'BMP Costs'!X$67) -> 382.8338176 | Y99: =SUMIFS(Table33[Average Annual Cost],Table33[Stormwater BMP],CurrentBMP[[#This Row],[Practice]])*SUMIFS(CountyAdjustments[King & Hagan Adjustor],CountyAdjustments[County],'BMP Costs'!Y$67) -> 389.5432763 | Z99: =SUMIFS(Table33[Average Annual Cost],Table33[Stormwater BMP],CurrentBMP[[#This Row],[Practice]])*SUMIFS(CountyAdjustments[King & Hagan Adjustor],CountyAdjustments[County],'BMP Costs'!Z$67) -> 384.4125138 | AA99: =SUMIFS(Table33[Average Annual Cost],Table33[Stormwater BMP],CurrentBMP[[#This Row],[Practice]])*SUMIFS(CountyAdjustments[King & Hagan Adjustor],CountyAdjustments[County],'BMP Costs'!AA$67) -> 388.3592542 | AB99: =SUMIFS(Table33[Average Annual Cost],Table33[Stormwater BMP],CurrentBMP[[#This Row],[Practice]])*SUMIFS(CountyAdjustments[King & Hagan Adjustor],CountyAdjustments[County],'BMP Costs'!AB$67) -> 382.8338176 | AC99: =SUMIFS(Table33[Average Annual Cost],Table33[Stormwater BMP],CurrentBMP[[#This Row],[Practice]])*SUMIFS(CountyAdjustments[King & Hagan Adjustor],CountyAdjustments[County],'BMP Costs'!AC$67) -> 382.8338176
A100: Outfall Netting System | B100: NA | C100: 448.6818612 | D100: =IF(SUMIFS(UserCost[User-Defined Annual Cost per Unit],UserCost[BMP],CurrentBMP[[#This Row],[Practice]])>0,SUMIFS(UserCost[User-Defined Annual Cost per Unit],UserCost[BMP],CurrentBMP[[#This Row],[Practice]]),CurrentBMP[[#This Row],[Average Annual Cost/Unit (county-specific)]]) -> 448.6818612 | F100: =SUMIFS(Table33[Average Annual Cost],Table33[Stormwater BMP],CurrentBMP[[#This Row],[Practice]])*SUMIFS(CountyAdjustments[King & Hagan Adjustor],CountyAdjustments[County],'BMP Costs'!F$67) -> 448.6818612 | G100: =SUMIFS(Table33[Average Annual Cost],Table33[Stormwater BMP],CurrentBMP[[#This Row],[Practice]])*SUMIFS(CountyAdjustments[King & Hagan Adjustor],CountyAdjustments[County],'BMP Costs'!G$67) -> 461.6602622 | H100: =SUMIFS(Table33[Average Annual Cost],Table33[Stormwater BMP],CurrentBMP[[#This Row],[Practice]])*SUMIFS(CountyAdjustments[King & Hagan Adjustor],CountyAdjustments[County],'BMP Costs'!H$67) -> 459.3426906 | I100: =SUMIFS(Table33[Average Annual Cost],Table33[Stormwater BMP],CurrentBMP[[#This Row],[Practice]])*SUMIFS(CountyAdjustments[King & Hagan Adjustor],CountyAdjustments[County],'BMP Costs'!I$67) -> 459.3426906 | J100: =SUMIFS(Table33[Average Annual Cost],Table33[Stormwater BMP],CurrentBMP[[#This Row],[Practice]])*SUMIFS(CountyAdjustments[King & Hagan Adjustor],CountyAdjustments[County],'BMP Costs'!J$67) -> 457.4886333 | K100: =SUMIFS(Table33[Average Annual Cost],Table33[Stormwater BMP],CurrentBMP[[#This Row],[Practice]])*SUMIFS(CountyAdjustments[King & Hagan Adjustor],CountyAdjustments[County],'BMP Costs'!K$67) -> 451.4629471 | L100: =SUMIFS(Table33[Average Annual Cost],Table33[Stormwater BMP],CurrentBMP[[#This Row],[Practice]])*SUMIFS(CountyAdjustments[King & Hagan Adjustor],CountyAdjustments[County],'BMP Costs'!L$67) -> 456.0980903 | M100: =SUMIFS(Table33[Average Annual Cost],Table33[Stormwater BMP],CurrentBMP[[#This Row],[Practice]])*SUMIFS(CountyAdjustments[King & Hagan Adjustor],CountyAdjustments[County],'BMP Costs'!M$67) -> 455.1710617 | N100: =SUMIFS(Table33[Average Annual Cost],Table33[Stormwater BMP],CurrentBMP[[#This Row],[Practice]])*SUMIFS(CountyAdjustments[King & Hagan Adjustor],CountyAdjustments[County],'BMP Costs'!N$67) -> 457.4886333 | O100: =SUMIFS(Table33[Average Annual Cost],Table33[Stormwater BMP],CurrentBMP[[#This Row],[Practice]])*SUMIFS(CountyAdjustments[King & Hagan Adjustor],CountyAdjustments[County],'BMP Costs'!O$67) -> 451.4629471 | P100: =SUMIFS(Table33[Average Annual Cost],Table33[Stormwater BMP],CurrentBMP[[#This Row],[Practice]])*SUMIFS(CountyAdjustments[King & Hagan Adjustor],CountyAdjustments[County],'BMP Costs'!P$67) -> 456.0980903 | Q100: =SUMIFS(Table33[Average Annual Cost],Table33[Stormwater BMP],CurrentBMP[[#This Row],[Practice]])*SUMIFS(CountyAdjustments[King & Hagan Adjustor],CountyAdjustments[County],'BMP Costs'!Q$67) -> 448.6818612 | R100: =SUMIFS(Table33[Average Annual Cost],Table33[Stormwater BMP],CurrentBMP[[#This Row],[Practice]])*SUMIFS(CountyAdjustments[King & Hagan Adjustor],CountyAdjustments[County],'BMP Costs'!R$67) -> 459.3426906 | S100: =SUMIFS(Table33[Average Annual Cost],Table33[Stormwater BMP],CurrentBMP[[#This Row],[Practice]])*SUMIFS(CountyAdjustments[King & Hagan Adjustor],CountyAdjustments[County],'BMP Costs'!S$67) -> 459.3426906 | T100: =SUMIFS(Table33[Average Annual Cost],Table33[Stormwater BMP],CurrentBMP[[#This Row],[Practice]])*SUMIFS(CountyAdjustments[King & Hagan Adjustor],CountyAdjustments[County],'BMP Costs'!T$67) -> 455.1710617 | U100: =SUMIFS(Table33[Average Annual Cost],Table33[Stormwater BMP],CurrentBMP[[#This Row],[Practice]])*SUMIFS(CountyAdjustments[King & Hagan Adjustor],CountyAdjustments[County],'BMP Costs'!U$67) -> 456.5616046 | V100: =SUMIFS(Table33[Average Annual Cost],Table33[Stormwater BMP],CurrentBMP[[#This Row],[Practice]])*SUMIFS(CountyAdjustments[King & Hagan Adjustor],CountyAdjustments[County],'BMP Costs'!V$67) -> 458.4156619 | W100: =SUMIFS(Table33[Average Annual Cost],Table33[Stormwater BMP],CurrentBMP[[#This Row],[Practice]])*SUMIFS(CountyAdjustments[King & Hagan Adjustor],CountyAdjustments[County],'BMP Costs'!W$67) -> 451.4629471 | X100: =SUMIFS(Table33[Average Annual Cost],Table33[Stormwater BMP],CurrentBMP[[#This Row],[Practice]])*SUMIFS(CountyAdjustments[King & Hagan Adjustor],CountyAdjustments[County],'BMP Costs'!X$67) -> 449.6088898 | Y100: =SUMIFS(Table33[Average Annual Cost],Table33[Stormwater BMP],CurrentBMP[[#This Row],[Practice]])*SUMIFS(CountyAdjustments[King & Hagan Adjustor],CountyAdjustments[County],'BMP Costs'!Y$67) -> 457.4886333 | Z100: =SUMIFS(Table33[Average Annual Cost],Table33[Stormwater BMP],CurrentBMP[[#This Row],[Practice]])*SUMIFS(CountyAdjustments[King & Hagan Adjustor],CountyAdjustments[County],'BMP Costs'!Z$67) -> 451.4629471 | AA100: =SUMIFS(Table33[Average Annual Cost],Table33[Stormwater BMP],CurrentBMP[[#This Row],[Practice]])*SUMIFS(CountyAdjustments[King & Hagan Adjustor],CountyAdjustments[County],'BMP Costs'!AA$67) -> 456.0980903 | AB100: =SUMIFS(Table33[Average Annual Cost],Table33[Stormwater BMP],CurrentBMP[[#This Row],[Practice]])*SUMIFS(CountyAdjustments[King & Hagan Adjustor],CountyAdjustments[County],'BMP Costs'!AB$67) -> 449.6088898 | AC100: =SUMIFS(Table33[Average Annual Cost],Table33[Stormwater BMP],CurrentBMP[[#This Row],[Practice]])*SUMIFS(CountyAdjustments[King & Hagan Adjustor],CountyAdjustments[County],'BMP Costs'!AC$67) -> 449.6088898
A101: =A144 -> Advanced IDDE Program | B101: NA | C101: 8230.697827 | D101: =IF(SUMIFS(UserCost[User-Defined Annual Cost per Unit],UserCost[BMP],CurrentBMP[[#This Row],[Practice]])>0,SUMIFS(UserCost[User-Defined Annual Cost per Unit],UserCost[BMP],CurrentBMP[[#This Row],[Practice]]),CurrentBMP[[#This Row],[Average Annual Cost/Unit (county-specific)]]) -> 8230.697827 | F101: =SUMIFS(Table33[Average Annual Cost],Table33[Stormwater BMP],CurrentBMP[[#This Row],[Practice]])*SUMIFS(CountyAdjustments[King & Hagan Adjustor],CountyAdjustments[County],'BMP Costs'!F$67) -> 8230.697827 | G101: =SUMIFS(Table33[Average Annual Cost],Table33[Stormwater BMP],CurrentBMP[[#This Row],[Practice]])*SUMIFS(CountyAdjustments[King & Hagan Adjustor],CountyAdjustments[County],'BMP Costs'!G$67) -> 8468.775863 | H101: =SUMIFS(Table33[Average Annual Cost],Table33[Stormwater BMP],CurrentBMP[[#This Row],[Practice]])*SUMIFS(CountyAdjustments[King & Hagan Adjustor],CountyAdjustments[County],'BMP Costs'!H$67) -> 8426.261928 | I101: =SUMIFS(Table33[Average Annual Cost],Table33[Stormwater BMP],CurrentBMP[[#This Row],[Practice]])*SUMIFS(CountyAdjustments[King & Hagan Adjustor],CountyAdjustments[County],'BMP Costs'!I$67) -> 8426.261928 | J101: =SUMIFS(Table33[Average Annual Cost],Table33[Stormwater BMP],CurrentBMP[[#This Row],[Practice]])*SUMIFS(CountyAdjustments[King & Hagan Adjustor],CountyAdjustments[County],'BMP Costs'!J$67) -> 8392.25078 | K101: =SUMIFS(Table33[Average Annual Cost],Table33[Stormwater BMP],CurrentBMP[[#This Row],[Practice]])*SUMIFS(CountyAdjustments[King & Hagan Adjustor],CountyAdjustments[County],'BMP Costs'!K$67) -> 8281.714549 | L101: =SUMIFS(Table33[Average Annual Cost],Table33[Stormwater BMP],CurrentBMP[[#This Row],[Practice]])*SUMIFS(CountyAdjustments[King & Hagan Adjustor],CountyAdjustments[County],'BMP Costs'!L$67) -> 8366.742419 | M101: =SUMIFS(Table33[Average Annual Cost],Table33[Stormwater BMP],CurrentBMP[[#This Row],[Practice]])*SUMIFS(CountyAdjustments[King & Hagan Adjustor],CountyAdjustments[County],'BMP Costs'!M$67) -> 8349.736845 | N101: =SUMIFS(Table33[Average Annual Cost],Table33[Stormwater BMP],CurrentBMP[[#This Row],[Practice]])*SUMIFS(CountyAdjustments[King & Hagan Adjustor],CountyAdjustments[County],'BMP Costs'!N$67) -> 8392.25078 | O101: =SUMIFS(Table33[Average Annual Cost],Table33[Stormwater BMP],CurrentBMP[[#This Row],[Practice]])*SUMIFS(CountyAdjustments[King & Hagan Adjustor],CountyAdjustments[County],'BMP Costs'!O$67) -> 8281.714549 | P101: =SUMIFS(Table33[Average Annual Cost],Table33[Stormwater BMP],CurrentBMP[[#This Row],[Practice]])*SUMIFS(CountyAdjustments[King & Hagan Adjustor],CountyAdjustments[County],'BMP Costs'!P$67) -> 8366.742419 | Q101: =SUMIFS(Table33[Average Annual Cost],Table33[Stormwater BMP],CurrentBMP[[#This Row],[Practice]])*SUMIFS(CountyAdjustments[King & Hagan Adjustor],CountyAdjustments[County],'BMP Costs'!Q$67) -> 8230.697827 | R101: =SUMIFS(Table33[Average Annual Cost],Table33[Stormwater BMP],CurrentBMP[[#This Row],[Practice]])*SUMIFS(CountyAdjustments[King & Hagan Adjustor],CountyAdjustments[County],'BMP Costs'!R$67) -> 8426.261928 | S101: =SUMIFS(Table33[Average Annual Cost],Table33[Stormwater BMP],CurrentBMP[[#This Row],[Practice]])*SUMIFS(CountyAdjustments[King & Hagan Adjustor],CountyAdjustments[County],'BMP Costs'!S$67) -> 8426.261928 | T101: =SUMIFS(Table33[Average Annual Cost],Table33[Stormwater BMP],CurrentBMP[[#This Row],[Practice]])*SUMIFS(CountyAdjustments[King & Hagan Adjustor],CountyAdjustments[County],'BMP Costs'!T$67) -> 8349.736845 | U101: =SUMIFS(Table33[Average Annual Cost],Table33[Stormwater BMP],CurrentBMP[[#This Row],[Practice]])*SUMIFS(CountyAdjustments[King & Hagan Adjustor],CountyAdjustments[County],'BMP Costs'!U$67) -> 8375.245206 | V101: =SUMIFS(Table33[Average Annual Cost],Table33[Stormwater BMP],CurrentBMP[[#This Row],[Practice]])*SUMIFS(CountyAdjustments[King & Hagan Adjustor],CountyAdjustments[County],'BMP Costs'!V$67) -> 8409.256354 | W101: =SUMIFS(Table33[Average Annual Cost],Table33[Stormwater BMP],CurrentBMP[[#This Row],[Practice]])*SUMIFS(CountyAdjustments[King & Hagan Adjustor],CountyAdjustments[County],'BMP Costs'!W$67) -> 8281.714549 | X101: =SUMIFS(Table33[Average Annual Cost],Table33[Stormwater BMP],CurrentBMP[[#This Row],[Practice]])*SUMIFS(CountyAdjustments[King & Hagan Adjustor],CountyAdjustments[County],'BMP Costs'!X$67) -> 8247.703401 | Y101: =SUMIFS(Table33[Average Annual Cost],Table33[Stormwater BMP],CurrentBMP[[#This Row],[Practice]])*SUMIFS(CountyAdjustments[King & Hagan Adjustor],CountyAdjustments[County],'BMP Costs'!Y$67) -> 8392.25078 | Z101: =SUMIFS(Table33[Average Annual Cost],Table33[Stormwater BMP],CurrentBMP[[#This Row],[Practice]])*SUMIFS(CountyAdjustments[King & Hagan Adjustor],CountyAdjustments[County],'BMP Costs'!Z$67) -> 8281.714549 | AA101: =SUMIFS(Table33[Average Annual Cost],Table33[Stormwater BMP],CurrentBMP[[#This Row],[Practice]])*SUMIFS(CountyAdjustments[King & Hagan Adjustor],CountyAdjustments[County],'BMP Costs'!AA$67) -> 8366.742419 | AB101: =SUMIFS(Table33[Average Annual Cost],Table33[Stormwater BMP],CurrentBMP[[#This Row],[Practice]])*SUMIFS(CountyAdjustments[King & Hagan Adjustor],CountyAdjustments[County],'BMP Costs'!AB$67) -> 8247.703401 | AC101: =SUMIFS(Table33[Average Annual Cost],Table33[Stormwater BMP],CurrentBMP[[#This Row],[Practice]])*SUMIFS(CountyAdjustments[King & Hagan Adjustor],CountyAdjustments[County],'BMP Costs'!AC$67) -> 8247.703401
